Workbook

Sheet Disclaimer
B10: THIS TEMPLATE ("TEMPLATE") IS PROVIDED "AS-IS” AND UW MAKES NO WARRANTIES, EXPRESS OR IMPLIED, INCLUDING WARRANTIES OF MERCHANTABILITY OR FITNESS FOR A PARTICULAR PURPOSE, NONINFRINGEMENT AND INTERFERENCE IN USE OF THE TEMPLATE AND HEREBY DISCLAIMS ALL SUCH WARRANTIES AS TO ANY MATTER WHATSOEVER. UW SHALL NOT BE LIABLE FOR ANY DIRECT, CONSEQUENTIAL, LOST PROFITS, OR OTHER DAMAGES SUFFERED BY THE USE OF THE TEMPLATE. IN NO EVENT SHALL UW BE RESPONSIBLE OR LIABLE FOR ANY CLAIM FOR PUNITIVE OR EXEMPLARY DAMAGES OR LOST PROFITS OR ANY OTHER FORM OF CONSEQUENTIAL DAMAGES ARISING FROM ANY USE OF THE TEMPLATE. USERS OF THE TEMPLATE HEREBY RELEASE UW, UWSOM, THEIR OFFICERS, AGENTS, EMPLOYEES, REPRESENTATIVES, FACULTY, AND STUDENTS FROM ALL CLAIMS RELATING TO THE FOREGOING. IT IS THE RESPONSIBILITY OF THE ORGANIZATION TO ESTABLISH A SYSTEM FOR STORING AND SHARING INFORMATION CONTAINED IN THE TEMPLATE IN A WAY THAT COMPLIES WITH HIPAA REGULATIONS. IT IS STRONGLY ENCOURAGED THAT THE ORGANIZATION CONSULT WITH WHOMEVER MANAGES HIPAA COMPLIANCE AT THE ORGANIZATION TO ENSURE A SECURE PLAN IS PUT INTO PLACE.
B22: As Agreed:

Sheet Patient Tracking
A1: Patient information | C1: Enrollment Status and Actions | G1: Contacts | L1: Measurements | P1: Contact Notes and Psychiatric Case Review
A2: MRN | B2: Name | C2: Treatment Status | D2: Display (Hide past tx episodes or view only the most recent contact) | E2: Tickler | F2: Episode Number (Episode of care/tx) | G2: Follow-up Contact Number | H2: Date Follow-up Due | I2: Date Follow-up Due | J2: Actual Contact Dates | K2: Type of Contact | L2: PHQ-9 Score (Target is < 5 within 5-7 months of initial elevated PHQ-9) | M2: % Change in PHQ-9 score (Target is -50% within 5-7 months of initial elevated PHQ-9) | N2: GAD-7 Score (Target is < 10 within 5-7 months of initial elevated GAD-7) | O2: % Change in GAD-7 score (Target is -50% within 10 weeks of tx initiation or change) | P2: Care Manager Contact Notes and Flag for Psychiatric Case Review (Include notes about appointment reminder calls, referrals to specialty services, etc.) | R2: Date of Psychiatric Case Review (Date of most recent Psychiatric Case Review automatically populates at top) | S2: Column R | T2: Pre-Column J: Episode | U2: Pre-Column J: Episode+MRN | V2: Pre-Column J: Remove Date=0 | W2: Column J | X2: Column L | Y2: Column L no score | Z2: Column N | AA2: Column N no score
A3: 1234 | B3: Joe Smith | C3: Active | D3: =IF(A3<>"","Show Initial Assessment row","") -> Show Initial Assessment row | F3: =MAX(IF(A4:A50=A3,F4:F50,"")) -> 1 | G3: Current Episode Initial Assessment | H3: 2-week follow-up schedule | J3: =IF(W3<>0,W3,"") -> 2017-04-01 | L3: =IF(Y3="no score",Y3,X3) -> 15 | N3: =IF(AA3="no score",AA3,Z3) -> 11 | R3: =IF(S3<>0,S3,"") -> 2016-10-24 | S3: =MAX(IF(A4:A50=A3,R4:R50,"")) -> 2016-10-24 | T3: =MAX(IF(A4:A50=A3,F4:F50,"")) -> 1 | U3: =T3&"pt"&A3 -> 1pt1234 | W3: =MIN(IF(U4:U50=U3,V4:V50,"")) -> 2017-04-01 | X3: =MAX(IF('Data Prep'!S2:S60="initial score"&'Patient Tracking'!A3,'Data Prep'!Z2:Z60,"")) -> 15 | Y3: =IF(ISNA(MATCH("initial score"&'Patient Tracking'!A3,'Data Prep'!S2:S60,0)),"No score","") ->  | Z3: =MAX(IF('Data Prep'!T2:T60="initial score"&'Patient Tracking'!A3,'Data Prep'!AD2:AD60,"")) -> 11 | AA3: =IF(ISNA(MATCH("initial score"&'Patient Tracking'!A3,'Data Prep'!T2:T60,0)),"No score","") -> 
A4: =IF(A3<>"",A3,"") -> 1234 | B4: =IF(B3<>"",B3,"") -> Joe Smith | C4: =IF(C3<>"",C3,"") -> Active | D4: =IF(AND(E4=" ",F3>F4), "DESELECT to hide past tx episodes",IF(OR(E4="Past due",E4="contact due today",E4="contact due in 1 day",E4="contact due in 2 days",E4="contact due in 3 days",E4="contact due in 4 days",E4="contact due in 5 days",AND(J4<>"",OR(J5="",A4<>A5))),"Show only most recent visit & ticklers","")) ->  | E4: =IF(C3="Active",IF(J4="",IF(I4<TODAY(), "Past Due",(IF(I4=TODAY(),"Contact due today",IF(I4=(TODAY()+1), "Contact due in 1 day",IF(I4=(TODAY()+2), "Contact due in 2 days",IF(I4=(TODAY()+3), "Contact due in 3 days",IF(I4=(TODAY()+4), "Contact due in 4 days",IF(I4=(TODAY()+5), "Contact due in 5 days"," "))))))))," ")," ") ->  | F4: 1 | G4: Initial Assessment | H4: =IF(J4<>"","",I4) ->  | I4: =IF(H3="1-week follow-up schedule",IF(J3=""," ",IF(ISERROR(J3+7)," ",J3+7)),IF(H3="1-month follow-up schedule",IF(J3=""," ",IF(ISERROR(J3+30)," ",J3+30)),IF(J3=""," ",IF(ISERROR(J3+14)," ",J3+14)))) -> 2017-04-15 | J4: 2017-04-01 | K4: In person at clinic | L4: 15 | M4: =IF(L4=".","",IF(ISERROR((L4/L3)-1),"",((L4/L3)-1))) -> 0 | N4: 11 | O4: =IF(N4=".","",IF(ISERROR((N4/N3)-1),"",((N4/N3)-1))) -> 0 | R4: 2016-09-04 | T4: =F4 -> 1 | U4: =T4&"pt"&A4 -> 1pt1234 | V4: =IF(J4<>0,J4,9999999) -> 42826
A5: =IF(A4<>"",A4,"") -> 1234 | B5: Joe Smith | C5: Active | D5: =IF(AND(E5=" ",F3>F5), "DESELECT to hide past tx episodes",IF(OR(E5="Past due",E5="contact due today",E5="contact due in 1 day",E5="contact due in 2 days",E5="contact due in 3 days",E5="contact due in 4 days",E5="contact due in 5 days",AND(J5<>"",OR(J6="",A5<>A6))),"Show only most recent visit & ticklers","")) ->  | E5: =IF(OR(C4="Active",C4="Relapse Prevention"),IF(J5="",IF(I5<TODAY(), "Past Due",(IF(I5=TODAY(),"Contact due today",IF(I5=(TODAY()+1), "Contact due in 1 day",IF(I5=(TODAY()+2), "Contact due in 2 days",IF(I5=(TODAY()+3), "Contact due in 3 days",IF(I5=(TODAY()+4), "Contact due in 4 days",IF(I5=(TODAY()+5), "Contact due in 5 days"," "))))))))," ")," ") ->  | F5: 1 | G5: =IF(AND(F5=F4,F5<>""),IFERROR(G4+1,1),IF(F5<>"","Initial Assessment","")) -> 1 | H5: =IF(J5<>"","",I5) ->  | I5: =IF(I4=" "," ",(IF(H3="1-week follow-up schedule",IF(J4="",I4+7,IF(ISERROR(J4+7),I4+7,J4+7)),IF(H3="1-month follow-up schedule",IF(J4="",I4+30,IF(ISERROR(J4+30),I4+30,J4+30)),IF(J4="",I4+14,IF(ISERROR(J4+14),I4+14,J4+14)))))) -> 2017-04-15 | J5: 2017-04-15 | K5: In person at clinic | L5: 13 | M5: =IF(L5=".","",IF(ISERROR((L5/L3)-1),"",((L5/L3)-1))) -> -0.1333333333 | N5: 11 | O5: =IF(N5=".","",IF(ISERROR((N5/N3)-1),"",((N5/N3)-1))) -> 0 | R5: 2016-10-24 | T5: =F5 -> 1 | U5: =T5&"pt"&A5 -> 1pt1234 | V5: =IF(J5<>0,J5,9999999) -> 42840
A6: 1234 | B6: Joe Smith | C6: Active | D6: =IF(AND(E6=" ",F3>F6), "DESELECT to hide past tx episodes",IF(OR(E6="Past due",E6="contact due today",E6="contact due in 1 day",E6="contact due in 2 days",E6="contact due in 3 days",E6="contact due in 4 days",E6="contact due in 5 days",AND(J6<>"",OR(J7="",A6<>A7))),"Show only most recent visit & ticklers","")) ->  | E6: =IF(OR(C5="Active",C5="Relapse Prevention"),IF(J6="",IF(I6<TODAY(), "Past Due",(IF(I6=TODAY(),"Contact due today",IF(I6=(TODAY()+1), "Contact due in 1 day",IF(I6=(TODAY()+2), "Contact due in 2 days",IF(I6=(TODAY()+3), "Contact due in 3 days",IF(I6=(TODAY()+4), "Contact due in 4 days",IF(I6=(TODAY()+5), "Contact due in 5 days"," "))))))))," ")," ") ->  | F6: 1 | G6: 2 | I6: =IF(I5=" "," ",(IF(H3="1-week follow-up schedule",IF(J5="",I5+7,IF(ISERROR(J5+7),I5+7,J5+7)),IF(H3="1-month follow-up schedule",IF(J5="",I5+30,IF(ISERROR(J5+30),I5+30,J5+30)),IF(J5="",I5+14,IF(ISERROR(J5+14),I5+14,J5+14)))))) -> 2017-04-29 | J6: 2017-04-29 | K6: In person at clinic | L6: 15 | M6: =IF(L6=".","",IF(ISERROR((L6/L3)-1),"",((L6/L3)-1))) -> 0 | N6: 9 | O6: =IF(N6=".","",IF(ISERROR((N6/N3)-1),"",((N6/N3)-1))) -> -0.1818181818 | T6: 1 | U6: 1pt1234 | V6: 42854
A7: 1234 | B7: Joe Smith | C7: Active | D7: =IF(AND(E7=" ",F3>F7), "DESELECT to hide past tx episodes",IF(OR(E7="Past due",E7="contact due today",E7="contact due in 1 day",E7="contact due in 2 days",E7="contact due in 3 days",E7="contact due in 4 days",E7="contact due in 5 days",AND(J7<>"",OR(J8="",A7<>A8))),"Show only most recent visit & ticklers","")) ->  | F7: 1 | G7: 3 | I7: =IF(I6=" "," ",(IF(H3="1-week follow-up schedule",IF(J6="",I6+7,IF(ISERROR(J6+7),I6+7,J6+7)),IF(H3="1-month follow-up schedule",IF(J6="",I6+30,IF(ISERROR(J6+30),I6+30,J6+30)),IF(J6="",I6+14,IF(ISERROR(J6+14),I6+14,J6+14)))))) -> 2017-05-13 | J7: 2017-05-12 | K7: Phone | L7: 12 | M7: =IF(L7=".","",IF(ISERROR((L7/L3)-1),"",((L7/L3)-1))) -> -0.2 | N7: 6 | O7: =IF(N7=".","",IF(ISERROR((N7/N3)-1),"",((N7/N3)-1))) -> -0.4545454545 | T7: 1 | U7: 1pt1234 | V7: 42867
A8: 1234 | B8: Joe Smith | C8: Active | D8: =IF(AND(E8=" ",F3>F8), "DESELECT to hide past tx episodes",IF(OR(E8="Past due",E8="contact due today",E8="contact due in 1 day",E8="contact due in 2 days",E8="contact due in 3 days",E8="contact due in 4 days",E8="contact due in 5 days",AND(J8<>"",OR(J9="",A8<>A9))),"Show only most recent visit & ticklers","")) ->  | F8: 1 | G8: 4 | I8: =IF(I7=" "," ",(IF(H3="1-week follow-up schedule",IF(J7="",I7+7,IF(ISERROR(J7+7),I7+7,J7+7)),IF(H3="1-month follow-up schedule",IF(J7="",I7+30,IF(ISERROR(J7+30),I7+30,J7+30)),IF(J7="",I7+14,IF(ISERROR(J7+14),I7+14,J7+14)))))) -> 2017-05-26 | J8: 2017-05-25 | K8: In person at clinic | L8: 11 | M8: =IF(L8=".","",IF(ISERROR((L8/L3)-1),"",((L8/L3)-1))) -> -0.2666666667 | N8: 7 | O8: =IF(N8=".","",IF(ISERROR((N8/N3)-1),"",((N8/N3)-1))) -> -0.3636363636 | T8: 1 | U8: 1pt1234 | V8: 42880
A9: 1234 | B9: Joe Smith | C9: Active | D9: =IF(AND(E9=" ",F3>F9), "DESELECT to hide past tx episodes",IF(OR(E9="Past due",E9="contact due today",E9="contact due in 1 day",E9="contact due in 2 days",E9="contact due in 3 days",E9="contact due in 4 days",E9="contact due in 5 days",AND(J9<>"",OR(J10="",A9<>A10))),"Show only most recent visit & ticklers","")) ->  | F9: 1 | G9: 5 | I9: =IF(I8=" "," ",(IF(H3="1-week follow-up schedule",IF(J8="",I8+7,IF(ISERROR(J8+7),I8+7,J8+7)),IF(H3="1-month follow-up schedule",IF(J8="",I8+30,IF(ISERROR(J8+30),I8+30,J8+30)),IF(J8="",I8+14,IF(ISERROR(J8+14),I8+14,J8+14)))))) -> 2017-06-08 | J9: 2017-06-08 | K9: In person at clinic | L9: 9 | M9: =IF(L9=".","",IF(ISERROR((L9/L3)-1),"",((L9/L3)-1))) -> -0.4 | N9: 7 | O9: =IF(N9=".","",IF(ISERROR((N9/N3)-1),"",((N9/N3)-1))) -> -0.3636363636 | T9: 1 | U9: 1pt1234 | V9: 42894
A10: 1234 | B10: Joe Smith | C10: Active | D10: =IF(AND(E10=" ",F3>F10), "DESELECT to hide past tx episodes",IF(OR(E10="Past due",E10="contact due today",E10="contact due in 1 day",E10="contact due in 2 days",E10="contact due in 3 days",E10="contact due in 4 days",E10="contact due in 5 days",AND(J10<>"",OR(J11="",A10<>A11))),"Show only most recent visit & ticklers","")) -> Show only most recent visit & ticklers | F10: 1 | G10: 6 | I10: =IF(I9=" "," ",(IF(H3="1-week follow-up schedule",IF(J9="",I9+7,IF(ISERROR(J9+7),I9+7,J9+7)),IF(H3="1-month follow-up schedule",IF(J9="",I9+30,IF(ISERROR(J9+30),I9+30,J9+30)),IF(J9="",I9+14,IF(ISERROR(J9+14),I9+14,J9+14)))))) -> 2017-06-22 | J10: 2017-07-11 | K10: In person at clinic | L10: 8 | M10: =IF(L10=".","",IF(ISERROR((L10/L3)-1),"",((L10/L3)-1))) -> -0.4666666667 | N10: 4 | O10: =IF(N10=".","",IF(ISERROR((N10/N3)-1),"",((N10/N3)-1))) -> -0.6363636364 | T10: 1 | U10: 1pt1234 | V10: 42927
A11: 1234 | B11: Joe Smith | C11: Active | D11: =IF(AND(E11=" ",F3>F11), "DESELECT to hide past tx episodes",IF(OR(E11="Past due",E11="contact due today",E11="contact due in 1 day",E11="contact due in 2 days",E11="contact due in 3 days",E11="contact due in 4 days",E11="contact due in 5 days",AND(J11<>"",OR(J12="",A11<>A12))),"Show only most recent visit & ticklers","")) -> DESELECT to hide past tx episodes | H11: 2017-07-25 | I11: =IF(I10=" "," ",(IF(H3="1-week follow-up schedule",IF(J10="",I10+7,IF(ISERROR(J10+7),I10+7,J10+7)),IF(H3="1-month follow-up schedule",IF(J10="",I10+30,IF(ISERROR(J10+30),I10+30,J10+30)),IF(J10="",I10+14,IF(ISERROR(J10+14),I10+14,J10+14)))))) -> 2017-07-25 | L11: . | M11: =IF(L11=".","",IF(ISERROR((L11/L3)-1),"",((L11/L3)-1))) ->  | N11: . | O11: =IF(N11=".","",IF(ISERROR((N11/N3)-1),"",((N11/N3)-1))) ->  | T11: 0 | U11: 0pt1234 | V11: 9999999
A12: 1234 | B12: Joe Smith | C12: Active | D12: =IF(AND(E12=" ",F3>F12), "DESELECT to hide past tx episodes",IF(OR(E12="Past due",E12="contact due today",E12="contact due in 1 day",E12="contact due in 2 days",E12="contact due in 3 days",E12="contact due in 4 days",E12="contact due in 5 days",AND(J12<>"",OR(J13="",A12<>A13))),"Show only most recent visit & ticklers","")) -> DESELECT to hide past tx episodes | H12: 2017-08-08 | I12: =IF(I11=" "," ",(IF(H3="1-week follow-up schedule",IF(J11="",I11+7,IF(ISERROR(J11+7),I11+7,J11+7)),IF(H3="1-month follow-up schedule",IF(J11="",I11+30,IF(ISERROR(J11+30),I11+30,J11+30)),IF(J11="",I11+14,IF(ISERROR(J11+14),I11+14,J11+14)))))) -> 2017-08-08 | L12: . | M12: =IF(L12=".","",IF(ISERROR((L12/L3)-1),"",((L12/L3)-1))) ->  | N12: . | O12: =IF(N12=".","",IF(ISERROR((N12/N3)-1),"",((N12/N3)-1))) ->  | T12: 0 | U12: 0pt1234 | V12: 9999999
A13: 1234 | B13: Joe Smith | C13: Active | D13: =IF(AND(E13=" ",F3>F13), "DESELECT to hide past tx episodes",IF(OR(E13="Past due",E13="contact due today",E13="contact due in 1 day",E13="contact due in 2 days",E13="contact due in 3 days",E13="contact due in 4 days",E13="contact due in 5 days",AND(J13<>"",OR(J14="",A13<>A14))),"Show only most recent visit & ticklers","")) -> DESELECT to hide past tx episodes | H13: 2017-08-22 | I13: =IF(I12=" "," ",(IF(H3="1-week follow-up schedule",IF(J12="",I12+7,IF(ISERROR(J12+7),I12+7,J12+7)),IF(H3="1-month follow-up schedule",IF(J12="",I12+30,IF(ISERROR(J12+30),I12+30,J12+30)),IF(J12="",I12+14,IF(ISERROR(J12+14),I12+14,J12+14)))))) -> 2017-08-22 | L13: . | M13: =IF(L13=".","",IF(ISERROR((L13/L3)-1),"",((L13/L3)-1))) ->  | N13: . | O13: =IF(N13=".","",IF(ISERROR((N13/N3)-1),"",((N13/N3)-1))) ->  | T13: 0 | U13: 0pt1234 | V13: 9999999
A14: 1234 | B14: Joe Smith | C14: Active | D14: =IF(AND(E14=" ",F3>F14), "DESELECT to hide past tx episodes",IF(OR(E14="Past due",E14="contact due today",E14="contact due in 1 day",E14="contact due in 2 days",E14="contact due in 3 days",E14="contact due in 4 days",E14="contact due in 5 days",AND(J14<>"",OR(J15="",A14<>A15))),"Show only most recent visit & ticklers","")) -> DESELECT to hide past tx episodes | H14: 2017-09-05 | I14: =IF(I13=" "," ",(IF(H3="1-week follow-up schedule",IF(J13="",I13+7,IF(ISERROR(J13+7),I13+7,J13+7)),IF(H3="1-month follow-up schedule",IF(J13="",I13+30,IF(ISERROR(J13+30),I13+30,J13+30)),IF(J13="",I13+14,IF(ISERROR(J13+14),I13+14,J13+14)))))) -> 2017-09-05 | L14: . | M14: =IF(L14=".","",IF(ISERROR((L14/L3)-1),"",((L14/L3)-1))) ->  | N14: . | O14: =IF(N14=".","",IF(ISERROR((N14/N3)-1),"",((N14/N3)-1))) ->  | T14: 0 | U14: 0pt1234 | V14: 9999999
A15: 1234 | B15: Joe Smith | C15: Active | D15: =IF(AND(E15=" ",F3>F15), "DESELECT to hide past tx episodes",IF(OR(E15="Past due",E15="contact due today",E15="contact due in 1 day",E15="contact due in 2 days",E15="contact due in 3 days",E15="contact due in 4 days",E15="contact due in 5 days",AND(J15<>"",OR(J16="",A15<>A16))),"Show only most recent visit & ticklers","")) -> DESELECT to hide past tx episodes | H15: 2017-09-19 | I15: =IF(I14=" "," ",(IF(H3="1-week follow-up schedule",IF(J14="",I14+7,IF(ISERROR(J14+7),I14+7,J14+7)),IF(H3="1-month follow-up schedule",IF(J14="",I14+30,IF(ISERROR(J14+30),I14+30,J14+30)),IF(J14="",I14+14,IF(ISERROR(J14+14),I14+14,J14+14)))))) -> 2017-09-19 | L15: . | M15: =IF(L15=".","",IF(ISERROR((L15/L3)-1),"",((L15/L3)-1))) ->  | N15: . | O15: =IF(N15=".","",IF(ISERROR((N15/N3)-1),"",((N15/N3)-1))) ->  | T15: 0 | U15: 0pt1234 | V15: 9999999
A16: 1234 | B16: Joe Smith | C16: Active | D16: =IF(AND(E16=" ",F3>F16), "DESELECT to hide past tx episodes",IF(OR(E16="Past due",E16="contact due today",E16="contact due in 1 day",E16="contact due in 2 days",E16="contact due in 3 days",E16="contact due in 4 days",E16="contact due in 5 days",AND(J16<>"",OR(J17="",A16<>A17))),"Show only most recent visit & ticklers","")) -> DESELECT to hide past tx episodes | H16: 2017-10-03 | I16: =IF(I15=" "," ",(IF(H3="1-week follow-up schedule",IF(J15="",I15+7,IF(ISERROR(J15+7),I15+7,J15+7)),IF(H3="1-month follow-up schedule",IF(J15="",I15+30,IF(ISERROR(J15+30),I15+30,J15+30)),IF(J15="",I15+14,IF(ISERROR(J15+14),I15+14,J15+14)))))) -> 2017-10-03 | L16: . | M16: =IF(L16=".","",IF(ISERROR((L16/L3)-1),"",((L16/L3)-1))) ->  | N16: . | O16: =IF(N16=".","",IF(ISERROR((N16/N3)-1),"",((N16/N3)-1))) ->  | T16: 0 | U16: 0pt1234 | V16: 9999999
A17: 1234 | B17: Joe Smith | C17: Active | D17: =IF(AND(E17=" ",F3>F17), "DESELECT to hide past tx episodes",IF(OR(E17="Past due",E17="contact due today",E17="contact due in 1 day",E17="contact due in 2 days",E17="contact due in 3 days",E17="contact due in 4 days",E17="contact due in 5 days",AND(J17<>"",OR(J18="",A17<>A18))),"Show only most recent visit & ticklers","")) -> DESELECT to hide past tx episodes | H17: 2017-10-17 | I17: =IF(I16=" "," ",(IF(H3="1-week follow-up schedule",IF(J16="",I16+7,IF(ISERROR(J16+7),I16+7,J16+7)),IF(H3="1-month follow-up schedule",IF(J16="",I16+30,IF(ISERROR(J16+30),I16+30,J16+30)),IF(J16="",I16+14,IF(ISERROR(J16+14),I16+14,J16+14)))))) -> 2017-10-17 | L17: . | M17: =IF(L17=".","",IF(ISERROR((L17/L3)-1),"",((L17/L3)-1))) ->  | N17: . | O17: =IF(N17=".","",IF(ISERROR((N17/N3)-1),"",((N17/N3)-1))) ->  | T17: 0 | U17: 0pt1234 | V17: 9999999
A18: 1234 | B18: Joe Smith | C18: Active | D18: =IF(AND(E18=" ",F3>F18), "DESELECT to hide past tx episodes",IF(OR(E18="Past due",E18="contact due today",E18="contact due in 1 day",E18="contact due in 2 days",E18="contact due in 3 days",E18="contact due in 4 days",E18="contact due in 5 days",AND(J18<>"",OR(J19="",A18<>A19))),"Show only most recent visit & ticklers","")) -> DESELECT to hide past tx episodes | H18: 2017-10-31 | I18: =IF(I17=" "," ",(IF(H3="1-week follow-up schedule",IF(J17="",I17+7,IF(ISERROR(J17+7),I17+7,J17+7)),IF(H3="1-month follow-up schedule",IF(J17="",I17+30,IF(ISERROR(J17+30),I17+30,J17+30)),IF(J17="",I17+14,IF(ISERROR(J17+14),I17+14,J17+14)))))) -> 2017-10-31 | L18: . | M18: =IF(L18=".","",IF(ISERROR((L18/L3)-1),"",((L18/L3)-1))) ->  | N18: . | O18: =IF(N18=".","",IF(ISERROR((N18/N3)-1),"",((N18/N3)-1))) ->  | T18: 0 | U18: 0pt1234 | V18: 9999999
A19: 1222 | B19: Bob Dolittle | C19: Active | D19: =IF(A19<>"","Show Initial Assessment row","") -> Show Initial Assessment row | F19: =MAX(IF(A20:A66=A19,F20:F66,"")) -> 2 | G19: Current Episode Initial Assessment | H19: 2-week follow-up schedule | J19: =IF(W19<>0,W19,"") -> 2017-03-02 | L19: =IF(Y19="no score",Y19,X19) -> 22 | N19: =IF(AA19="no score",AA19,Z19) -> 12 | Q19: Flag as safety risk | R19: =IF(S19<>0,S19,"") -> 2016-09-17 | S19: =MAX(IF(A20:A66=A19,R20:R66,"")) -> 2016-09-17 | T19: =MAX(IF(A20:A66=A19,F20:F66,"")) -> 2 | U19: =T19&"pt"&A19 -> 2pt1222 | W19: =MIN(IF(U20:U66=U19,V20:V66,"")) -> 2017-03-02 | X19: =MAX(IF('Data Prep'!S18:S76="initial score"&'Patient Tracking'!A19,'Data Prep'!Z18:Z76,"")) -> 22 | Y19: =IF(ISNA(MATCH("initial score"&'Patient Tracking'!A19,'Data Prep'!S18:S76,0)),"No score","") ->  | Z19: =MAX(IF('Data Prep'!T18:T76="initial score"&'Patient Tracking'!A19,'Data Prep'!AD18:AD76,"")) -> 12 | AA19: =IF(ISNA(MATCH("initial score"&'Patient Tracking'!A19,'Data Prep'!T18:T76,0)),"No score","") -> 
A20: =IF(A19<>"",A19,"") -> 1222 | B20: =IF(B19<>"",B19,"") -> Bob Dolittle | C20: =IF(C19<>"",C19,"") -> Active | D20: =IF(AND(E20=" ",F19>F20), "DESELECT to hide past tx episodes",IF(OR(E20="Past due",E20="contact due today",E20="contact due in 1 day",E20="contact due in 2 days",E20="contact due in 3 days",E20="contact due in 4 days",E20="contact due in 5 days",AND(J20<>"",OR(J21="",A20<>A21))),"Show only most recent visit & ticklers","")) -> DESELECT to hide past tx episodes | E20: =IF(C19="Active",IF(J20="",IF(I20<TODAY(), "Past Due",(IF(I20=TODAY(),"Contact due today",IF(I20=(TODAY()+1), "Contact due in 1 day",IF(I20=(TODAY()+2), "Contact due in 2 days",IF(I20=(TODAY()+3), "Contact due in 3 days",IF(I20=(TODAY()+4), "Contact due in 4 days",IF(I20=(TODAY()+5), "Contact due in 5 days"," "))))))))," ")," ") ->  | F20: 1 | G20: Initial Assessment | H20: =IF(J20<>"","",I20) ->  | I20: =IF(H19="1-week follow-up schedule",IF(J19=""," ",IF(ISERROR(J19+7)," ",J19+7)),IF(H19="1-month follow-up schedule",IF(J19=""," ",IF(ISERROR(J19+30)," ",J19+30)),IF(J19=""," ",IF(ISERROR(J19+14)," ",J19+14)))) -> 2017-03-16 | J20: 2015-03-05 | K20: In person at clinic | L20: 21 | M20: =IF(L20=".","",IF(ISERROR((L20/L19)-1),"",((L20/L19)-1))) -> -0.04545454545 | N20: 12 | O20: =IF(N20=".","",IF(ISERROR((N20/N19)-1),"",((N20/N19)-1))) -> 0 | R20: 2015-03-31 | T20: =F20 -> 1 | U20: =T20&"pt"&A20 -> 1pt1222 | V20: =IF(J20<>0,J20,9999999) -> 42068
A21: =IF(A20<>"",A20,"") -> 1222 | B21: Bob Dolittle | C21: Active | D21: =IF(AND(E21=" ",F19>F21), "DESELECT to hide past tx episodes",IF(OR(E21="Past due",E21="contact due today",E21="contact due in 1 day",E21="contact due in 2 days",E21="contact due in 3 days",E21="contact due in 4 days",E21="contact due in 5 days",AND(J21<>"",OR(J22="",A21<>A22))),"Show only most recent visit & ticklers","")) -> DESELECT to hide past tx episodes | E21: =IF(OR(C20="Active",C20="Relapse Prevention"),IF(J21="",IF(I21<TODAY(), "Past Due",(IF(I21=TODAY(),"Contact due today",IF(I21=(TODAY()+1), "Contact due in 1 day",IF(I21=(TODAY()+2), "Contact due in 2 days",IF(I21=(TODAY()+3), "Contact due in 3 days",IF(I21=(TODAY()+4), "Contact due in 4 days",IF(I21=(TODAY()+5), "Contact due in 5 days"," "))))))))," ")," ") ->  | F21: 1 | G21: =IF(AND(F21=F20,F21<>""),IFERROR(G20+1,1),IF(F21<>"","Initial Assessment","")) -> 1 | H21: =IF(J21<>"","",I21) ->  | I21: =IF(I20=" "," ",(IF(H19="1-week follow-up schedule",IF(J20="",I20+7,IF(ISERROR(J20+7),I20+7,J20+7)),IF(H19="1-month follow-up schedule",IF(J20="",I20+30,IF(ISERROR(J20+30),I20+30,J20+30)),IF(J20="",I20+14,IF(ISERROR(J20+14),I20+14,J20+14)))))) -> 2015-03-19 | J21: 2015-06-19 | K21: In person at clinic | L21: 19 | M21: =IF(L21=".","",IF(ISERROR((L21/L19)-1),"",((L21/L19)-1))) -> -0.1363636364 | N21: 10 | O21: =IF(N21=".","",IF(ISERROR((N21/N19)-1),"",((N21/N19)-1))) -> -0.1666666667 | R21: 2016-02-18 | T21: =F21 -> 1 | U21: =T21&"pt"&A21 -> 1pt1222 | V21: =IF(J21<>0,J21,9999999) -> 42174
A22: =IF(A21<>"",A21,"") -> 1222 | B22: Bob Dolittle | C22: Active | D22: =IF(AND(E22=" ",F19>F22), "DESELECT to hide past tx episodes",IF(OR(E22="Past due",E22="contact due today",E22="contact due in 1 day",E22="contact due in 2 days",E22="contact due in 3 days",E22="contact due in 4 days",E22="contact due in 5 days",AND(J22<>"",OR(J23="",A22<>A23))),"Show only most recent visit & ticklers","")) -> DESELECT to hide past tx episodes | E22: =IF(OR(C21="Active",C21="Relapse Prevention"),IF(J22="",IF(I22<TODAY(), "Past Due",(IF(I22=TODAY(),"Contact due today",IF(I22=(TODAY()+1), "Contact due in 1 day",IF(I22=(TODAY()+2), "Contact due in 2 days",IF(I22=(TODAY()+3), "Contact due in 3 days",IF(I22=(TODAY()+4), "Contact due in 4 days",IF(I22=(TODAY()+5), "Contact due in 5 days"," "))))))))," ")," ") ->  | F22: 1 | G22: 2 | I22: =IF(I21=" "," ",(IF(H19="1-week follow-up schedule",IF(J21="",I21+7,IF(ISERROR(J21+7),I21+7,J21+7)),IF(H19="1-month follow-up schedule",IF(J21="",I21+30,IF(ISERROR(J21+30),I21+30,J21+30)),IF(J21="",I21+14,IF(ISERROR(J21+14),I21+14,J21+14)))))) -> 2015-07-03 | J22: 2015-07-02 | K22: In person at clinic | L22: 15 | M22: =IF(L22=".","",IF(ISERROR((L22/L19)-1),"",((L22/L19)-1))) -> -0.3181818182 | N22: 7 | O22: =IF(N22=".","",IF(ISERROR((N22/N19)-1),"",((N22/N19)-1))) -> -0.4166666667 | R22: 2016-09-17 | T22: 1 | U22: 1pt1222 | V22: 42187
A23: =IF(A22<>"",A22,"") -> 1222 | B23: Bob Dolittle | C23: Active | D23: =IF(AND(E23=" ",F19>F23), "DESELECT to hide past tx episodes",IF(OR(E23="Past due",E23="contact due today",E23="contact due in 1 day",E23="contact due in 2 days",E23="contact due in 3 days",E23="contact due in 4 days",E23="contact due in 5 days",AND(J23<>"",OR(J24="",A23<>A24))),"Show only most recent visit & ticklers","")) -> DESELECT to hide past tx episodes | F23: 1 | G23: 3 | I23: =IF(I22=" "," ",(IF(H19="1-week follow-up schedule",IF(J22="",I22+7,IF(ISERROR(J22+7),I22+7,J22+7)),IF(H19="1-month follow-up schedule",IF(J22="",I22+30,IF(ISERROR(J22+30),I22+30,J22+30)),IF(J22="",I22+14,IF(ISERROR(J22+14),I22+14,J22+14)))))) -> 2015-07-16 | J23: 2015-07-16 | K23: In person at clinic | L23: 10 | M23: =IF(L23=".","",IF(ISERROR((L23/L19)-1),"",((L23/L19)-1))) -> -0.5454545455 | N23: 7 | O23: =IF(N23=".","",IF(ISERROR((N23/N19)-1),"",((N23/N19)-1))) -> -0.4166666667 | T23: 1 | U23: 1pt1222 | V23: 42201
A24: =IF(A23<>"",A23,"") -> 1222 | B24: Bob Dolittle | C24: Active | D24: =IF(AND(E24=" ",F19>F24), "DESELECT to hide past tx episodes",IF(OR(E24="Past due",E24="contact due today",E24="contact due in 1 day",E24="contact due in 2 days",E24="contact due in 3 days",E24="contact due in 4 days",E24="contact due in 5 days",AND(J24<>"",OR(J25="",A24<>A25))),"Show only most recent visit & ticklers","")) -> DESELECT to hide past tx episodes | F24: 1 | G24: 4 | I24: =IF(I23=" "," ",(IF(H19="1-week follow-up schedule",IF(J23="",I23+7,IF(ISERROR(J23+7),I23+7,J23+7)),IF(H19="1-month follow-up schedule",IF(J23="",I23+30,IF(ISERROR(J23+30),I23+30,J23+30)),IF(J23="",I23+14,IF(ISERROR(J23+14),I23+14,J23+14)))))) -> 2015-07-30 | J24: 2015-08-01 | K24: In person at clinic | L24: 9 | M24: =IF(L24=".","",IF(ISERROR((L24/L19)-1),"",((L24/L19)-1))) -> -0.5909090909 | N24: 8 | O24: =IF(N24=".","",IF(ISERROR((N24/N19)-1),"",((N24/N19)-1))) -> -0.3333333333 | T24: 1 | U24: 1pt1222 | V24: 42217
A25: =IF(A24<>"",A24,"") -> 1222 | B25: Bob Dolittle | C25: Active | D25: =IF(AND(E25=" ",F19>F25), "DESELECT to hide past tx episodes",IF(OR(E25="Past due",E25="contact due today",E25="contact due in 1 day",E25="contact due in 2 days",E25="contact due in 3 days",E25="contact due in 4 days",E25="contact due in 5 days",AND(J25<>"",OR(J26="",A25<>A26))),"Show only most recent visit & ticklers","")) -> DESELECT to hide past tx episodes | F25: 1 | G25: 5 | I25: =IF(I24=" "," ",(IF(H19="1-week follow-up schedule",IF(J24="",I24+7,IF(ISERROR(J24+7),I24+7,J24+7)),IF(H19="1-month follow-up schedule",IF(J24="",I24+30,IF(ISERROR(J24+30),I24+30,J24+30)),IF(J24="",I24+14,IF(ISERROR(J24+14),I24+14,J24+14)))))) -> 2015-08-15 | J25: Missed | L25: . | M25: =IF(L25=".","",IF(ISERROR((L25/L19)-1),"",((L25/L19)-1))) ->  | N25: . | O25: =IF(N25=".","",IF(ISERROR((N25/N19)-1),"",((N25/N19)-1))) ->  | T25: 1 | U25: 1pt1222 | V25: Missed
A26: =IF(A25<>"",A25,"") -> 1222 | B26: Bob Dolittle | C26: Active | D26: =IF(AND(E26=" ",F19>F26), "DESELECT to hide past tx episodes",IF(OR(E26="Past due",E26="contact due today",E26="contact due in 1 day",E26="contact due in 2 days",E26="contact due in 3 days",E26="contact due in 4 days",E26="contact due in 5 days",AND(J26<>"",OR(J27="",A26<>A27))),"Show only most recent visit & ticklers","")) -> DESELECT to hide past tx episodes | F26: 1 | G26: 6 | I26: =IF(I25=" "," ",(IF(H19="1-week follow-up schedule",IF(J25="",I25+7,IF(ISERROR(J25+7),I25+7,J25+7)),IF(H19="1-month follow-up schedule",IF(J25="",I25+30,IF(ISERROR(J25+30),I25+30,J25+30)),IF(J25="",I25+14,IF(ISERROR(J25+14),I25+14,J25+14)))))) -> 2015-08-29 | J26: Missed | L26: . | M26: =IF(L26=".","",IF(ISERROR((L26/L19)-1),"",((L26/L19)-1))) ->  | N26: . | O26: =IF(N26=".","",IF(ISERROR((N26/N19)-1),"",((N26/N19)-1))) ->  | T26: 1 | U26: 1pt1222 | V26: Missed
A27: =IF(A26<>"",A26,"") -> 1222 | B27: Bob Dolittle | C27: Active | D27: =IF(AND(E27=" ",F19>F27), "DESELECT to hide past tx episodes",IF(OR(E27="Past due",E27="contact due today",E27="contact due in 1 day",E27="contact due in 2 days",E27="contact due in 3 days",E27="contact due in 4 days",E27="contact due in 5 days",AND(J27<>"",OR(J28="",A27<>A28))),"Show only most recent visit & ticklers","")) -> DESELECT to hide past tx episodes | F27: 1 | G27: 7 | I27: =IF(I26=" "," ",(IF(H19="1-week follow-up schedule",IF(J26="",I26+7,IF(ISERROR(J26+7),I26+7,J26+7)),IF(H19="1-month follow-up schedule",IF(J26="",I26+30,IF(ISERROR(J26+30),I26+30,J26+30)),IF(J26="",I26+14,IF(ISERROR(J26+14),I26+14,J26+14)))))) -> 2015-09-12 | J27: 2015-09-15 | K27: Phone | L27: . | M27: =IF(L27=".","",IF(ISERROR((L27/L19)-1),"",((L27/L19)-1))) ->  | N27: . | O27: =IF(N27=".","",IF(ISERROR((N27/N19)-1),"",((N27/N19)-1))) ->  | P27: Pt does not wish to continue care; discharged | T27: 1 | U27: 1pt1222 | V27: 42262
A28: =IF(A27<>"",A27,"") -> 1222 | B28: Bob Dolittle | C28: Active | D28: =IF(AND(E28=" ",F19>F28), "DESELECT to hide past tx episodes",IF(OR(E28="Past due",E28="contact due today",E28="contact due in 1 day",E28="contact due in 2 days",E28="contact due in 3 days",E28="contact due in 4 days",E28="contact due in 5 days",AND(J28<>"",OR(J29="",A28<>A29))),"Show only most recent visit & ticklers","")) ->  | F28: 2 | G28: Initial Assessment | I28: =IF(I27=" "," ",(IF(H19="1-week follow-up schedule",IF(J27="",I27+7,IF(ISERROR(J27+7),I27+7,J27+7)),IF(H19="1-month follow-up schedule",IF(J27="",I27+30,IF(ISERROR(J27+30),I27+30,J27+30)),IF(J27="",I27+14,IF(ISERROR(J27+14),I27+14,J27+14)))))) -> 2015-09-29 | J28: 2017-03-02 | K28: In person at clinic | L28: 22 | M28: =IF(L28=".","",IF(ISERROR((L28/L19)-1),"",((L28/L19)-1))) -> 0 | N28: 12 | O28: =IF(N28=".","",IF(ISERROR((N28/N19)-1),"",((N28/N19)-1))) -> 0 | T28: 2 | U28: 2pt1222 | V28: 42796
A29: =IF(A28<>"",A28,"") -> 1222 | B29: Bob Dolittle | C29: Active | D29: =IF(AND(E29=" ",F19>F29), "DESELECT to hide past tx episodes",IF(OR(E29="Past due",E29="contact due today",E29="contact due in 1 day",E29="contact due in 2 days",E29="contact due in 3 days",E29="contact due in 4 days",E29="contact due in 5 days",AND(J29<>"",OR(J30="",A29<>A30))),"Show only most recent visit & ticklers","")) ->  | F29: 2 | G29: 1 | I29: =IF(I28=" "," ",(IF(H19="1-week follow-up schedule",IF(J28="",I28+7,IF(ISERROR(J28+7),I28+7,J28+7)),IF(H19="1-month follow-up schedule",IF(J28="",I28+30,IF(ISERROR(J28+30),I28+30,J28+30)),IF(J28="",I28+14,IF(ISERROR(J28+14),I28+14,J28+14)))))) -> 2017-03-16 | J29: 2017-03-16 | K29: Phone | L29: 21 | M29: =IF(L29=".","",IF(ISERROR((L29/L19)-1),"",((L29/L19)-1))) -> -0.04545454545 | N29: 10 | O29: =IF(N29=".","",IF(ISERROR((N29/N19)-1),"",((N29/N19)-1))) -> -0.1666666667 | T29: 2 | U29: 2pt1222 | V29: 42810
A30: =IF(A29<>"",A29,"") -> 1222 | B30: Bob Dolittle | C30: Active | D30: =IF(AND(E30=" ",F19>F30), "DESELECT to hide past tx episodes",IF(OR(E30="Past due",E30="contact due today",E30="contact due in 1 day",E30="contact due in 2 days",E30="contact due in 3 days",E30="contact due in 4 days",E30="contact due in 5 days",AND(J30<>"",OR(J31="",A30<>A31))),"Show only most recent visit & ticklers","")) ->  | F30: 2 | G30: 2 | I30: =IF(I29=" "," ",(IF(H19="1-week follow-up schedule",IF(J29="",I29+7,IF(ISERROR(J29+7),I29+7,J29+7)),IF(H19="1-month follow-up schedule",IF(J29="",I29+30,IF(ISERROR(J29+30),I29+30,J29+30)),IF(J29="",I29+14,IF(ISERROR(J29+14),I29+14,J29+14)))))) -> 2017-03-30 | J30: 2017-03-30 | K30: In person at clinic | L30: 22 | M30: =IF(L30=".","",IF(ISERROR((L30/L19)-1),"",((L30/L19)-1))) -> 0 | N30: 11 | O30: =IF(N30=".","",IF(ISERROR((N30/N19)-1),"",((N30/N19)-1))) -> -0.08333333333 | T30: 2 | U30: 2pt1222 | V30: 42824
A31: =IF(A30<>"",A30,"") -> 1222 | B31: Bob Dolittle | C31: Active | D31: =IF(AND(E31=" ",F19>F31), "DESELECT to hide past tx episodes",IF(OR(E31="Past due",E31="contact due today",E31="contact due in 1 day",E31="contact due in 2 days",E31="contact due in 3 days",E31="contact due in 4 days",E31="contact due in 5 days",AND(J31<>"",OR(J32="",A31<>A32))),"Show only most recent visit & ticklers","")) ->  | F31: 2 | G31: 3 | I31: =IF(I30=" "," ",(IF(H19="1-week follow-up schedule",IF(J30="",I30+7,IF(ISERROR(J30+7),I30+7,J30+7)),IF(H19="1-month follow-up schedule",IF(J30="",I30+30,IF(ISERROR(J30+30),I30+30,J30+30)),IF(J30="",I30+14,IF(ISERROR(J30+14),I30+14,J30+14)))))) -> 2017-04-13 | J31: Missed | L31: . | M31: =IF(L31=".","",IF(ISERROR((L31/L19)-1),"",((L31/L19)-1))) ->  | N31: . | O31: =IF(N31=".","",IF(ISERROR((N31/N19)-1),"",((N31/N19)-1))) ->  | T31: 2 | U31: 2pt1222 | V31: Missed
A32: =IF(A31<>"",A31,"") -> 1222 | B32: Bob Dolittle | C32: Active | D32: =IF(AND(E32=" ",F19>F32), "DESELECT to hide past tx episodes",IF(OR(E32="Past due",E32="contact due today",E32="contact due in 1 day",E32="contact due in 2 days",E32="contact due in 3 days",E32="contact due in 4 days",E32="contact due in 5 days",AND(J32<>"",OR(J33="",A32<>A33))),"Show only most recent visit & ticklers","")) -> Show only most recent visit & ticklers | F32: 2 | G32: 4 | I32: =IF(I31=" "," ",(IF(H19="1-week follow-up schedule",IF(J31="",I31+7,IF(ISERROR(J31+7),I31+7,J31+7)),IF(H19="1-month follow-up schedule",IF(J31="",I31+30,IF(ISERROR(J31+30),I31+30,J31+30)),IF(J31="",I31+14,IF(ISERROR(J31+14),I31+14,J31+14)))))) -> 2017-04-27 | J32: 2017-07-01 | L32: 19 | M32: =IF(L32=".","",IF(ISERROR((L32/L19)-1),"",((L32/L19)-1))) -> -0.1363636364 | N32: 10 | O32: =IF(N32=".","",IF(ISERROR((N32/N19)-1),"",((N32/N19)-1))) -> -0.1666666667 | T32: 2 | U32: 2pt1222 | V32: 42917
A33: =IF(A32<>"",A32,"") -> 1222 | B33: Bob Dolittle | C33: Active | D33: =IF(AND(E33=" ",F19>F33), "DESELECT to hide past tx episodes",IF(OR(E33="Past due",E33="contact due today",E33="contact due in 1 day",E33="contact due in 2 days",E33="contact due in 3 days",E33="contact due in 4 days",E33="contact due in 5 days",AND(J33<>"",OR(J34="",A33<>A34))),"Show only most recent visit & ticklers","")) -> Show only most recent visit & ticklers | E33: Contact due in 4 days | H33: 2017-07-15 | I33: =IF(I32=" "," ",(IF(H19="1-week follow-up schedule",IF(J32="",I32+7,IF(ISERROR(J32+7),I32+7,J32+7)),IF(H19="1-month follow-up schedule",IF(J32="",I32+30,IF(ISERROR(J32+30),I32+30,J32+30)),IF(J32="",I32+14,IF(ISERROR(J32+14),I32+14,J32+14)))))) -> 2017-07-15 | L33: . | M33: =IF(L33=".","",IF(ISERROR((L33/L19)-1),"",((L33/L19)-1))) ->  | N33: . | O33: =IF(N33=".","",IF(ISERROR((N33/N19)-1),"",((N33/N19)-1))) ->  | T33: 0 | U33: 0pt1222 | V33: 9999999
A34: =IF(A33<>"",A33,"") -> 1222 | B34: Bob Dolittle | C34: Active | D34: =IF(AND(E34=" ",F19>F34), "DESELECT to hide past tx episodes",IF(OR(E34="Past due",E34="contact due today",E34="contact due in 1 day",E34="contact due in 2 days",E34="contact due in 3 days",E34="contact due in 4 days",E34="contact due in 5 days",AND(J34<>"",OR(J35="",A34<>A35))),"Show only most recent visit & ticklers","")) -> DESELECT to hide past tx episodes | H34: 2017-07-29 | I34: =IF(I33=" "," ",(IF(H19="1-week follow-up schedule",IF(J33="",I33+7,IF(ISERROR(J33+7),I33+7,J33+7)),IF(H19="1-month follow-up schedule",IF(J33="",I33+30,IF(ISERROR(J33+30),I33+30,J33+30)),IF(J33="",I33+14,IF(ISERROR(J33+14),I33+14,J33+14)))))) -> 2017-07-29 | L34: . | M34: =IF(L34=".","",IF(ISERROR((L34/L19)-1),"",((L34/L19)-1))) ->  | N34: . | O34: =IF(N34=".","",IF(ISERROR((N34/N19)-1),"",((N34/N19)-1))) ->  | T34: 0 | U34: 0pt1222 | V34: 9999999
A35: 5555 | B35: Albert Smith | C35: Active | D35: =IF(A35<>"","Show Initial Assessment row","") -> Show Initial Assessment row | F35: =MAX(IF(A36:A82=A35,F36:F82,"")) -> 2 | G35: Current Episode Initial Assessment | H35: 2-week follow-up schedule | J35: =IF(W35<>0,W35,"") -> 2017-03-05 | L35: =IF(Y35="no score",Y35,X35) -> 18 | N35: =IF(AA35="no score",AA35,Z35) -> 14 | Q35: Flag for discussion | R35: =IF(S35<>0,S35,"") ->  | S35: =MAX(IF(A36:A82=A35,R36:R82,"")) -> 00:00:00 | T35: =MAX(IF(A36:A82=A35,F36:F82,"")) -> 2 | U35: =T35&"pt"&A35 -> 2pt5555 | W35: =MIN(IF(U36:U82=U35,V36:V82,"")) -> 2017-03-05 | X35: =MAX(IF('Data Prep'!S34:S92="initial score"&'Patient Tracking'!A35,'Data Prep'!Z34:Z92,"")) -> 18 | Y35: =IF(ISNA(MATCH("initial score"&'Patient Tracking'!A35,'Data Prep'!S34:S92,0)),"No score","") ->  | Z35: =MAX(IF('Data Prep'!T34:T92="initial score"&'Patient Tracking'!A35,'Data Prep'!AD34:AD92,"")) -> 14 | AA35: =IF(ISNA(MATCH("initial score"&'Patient Tracking'!A35,'Data Prep'!T34:T92,0)),"No score","") -> 
A36: =IF(A35<>"",A35,"") -> 5555 | B36: =IF(B35<>"",B35,"") -> Albert Smith | C36: =IF(C35<>"",C35,"") -> Active | D36: =IF(AND(E36=" ",F35>F36), "DESELECT to hide past tx episodes",IF(OR(E36="Past due",E36="contact due today",E36="contact due in 1 day",E36="contact due in 2 days",E36="contact due in 3 days",E36="contact due in 4 days",E36="contact due in 5 days",AND(J36<>"",OR(J37="",A36<>A37))),"Show only most recent visit & ticklers","")) -> DESELECT to hide past tx episodes | E36: =IF(C35="Active",IF(J36="",IF(I36<TODAY(), "Past Due",(IF(I36=TODAY(),"Contact due today",IF(I36=(TODAY()+1), "Contact due in 1 day",IF(I36=(TODAY()+2), "Contact due in 2 days",IF(I36=(TODAY()+3), "Contact due in 3 days",IF(I36=(TODAY()+4), "Contact due in 4 days",IF(I36=(TODAY()+5), "Contact due in 5 days"," "))))))))," ")," ") ->  | F36: 1 | G36: Initial Assessment | H36: =IF(J36<>"","",I36) ->  | I36: =IF(H35="1-week follow-up schedule",IF(J35=""," ",IF(ISERROR(J35+7)," ",J35+7)),IF(H35="1-month follow-up schedule",IF(J35=""," ",IF(ISERROR(J35+30)," ",J35+30)),IF(J35=""," ",IF(ISERROR(J35+14)," ",J35+14)))) -> 2017-03-19 | J36: 2014-04-18 | K36: Phone | L36: 18 | M36: =IF(L36=".","",IF(ISERROR((L36/L35)-1),"",((L36/L35)-1))) -> 0 | N36: 14 | O36: =IF(N36=".","",IF(ISERROR((N36/N35)-1),"",((N36/N35)-1))) -> 0 | T36: =F36 -> 1 | U36: =T36&"pt"&A36 -> 1pt5555 | V36: =IF(J36<>0,J36,9999999) -> 41747
A37: =IF(A36<>"",A36,"") -> 5555 | B37: Albert Smith | C37: Active | D37: =IF(AND(E37=" ",F35>F37), "DESELECT to hide past tx episodes",IF(OR(E37="Past due",E37="contact due today",E37="contact due in 1 day",E37="contact due in 2 days",E37="contact due in 3 days",E37="contact due in 4 days",E37="contact due in 5 days",AND(J37<>"",OR(J38="",A37<>A38))),"Show only most recent visit & ticklers","")) -> DESELECT to hide past tx episodes | E37: =IF(OR(C36="Active",C36="Relapse Prevention"),IF(J37="",IF(I37<TODAY(), "Past Due",(IF(I37=TODAY(),"Contact due today",IF(I37=(TODAY()+1), "Contact due in 1 day",IF(I37=(TODAY()+2), "Contact due in 2 days",IF(I37=(TODAY()+3), "Contact due in 3 days",IF(I37=(TODAY()+4), "Contact due in 4 days",IF(I37=(TODAY()+5), "Contact due in 5 days"," "))))))))," ")," ") ->  | F37: 1 | G37: =IF(AND(F37=F36,F37<>""),IFERROR(G36+1,1),IF(F37<>"","Initial Assessment","")) -> 1 | H37: =IF(J37<>"","",I37) ->  | I37: =IF(I36=" "," ",(IF(H35="1-week follow-up schedule",IF(J36="",I36+7,IF(ISERROR(J36+7),I36+7,J36+7)),IF(H35="1-month follow-up schedule",IF(J36="",I36+30,IF(ISERROR(J36+30),I36+30,J36+30)),IF(J36="",I36+14,IF(ISERROR(J36+14),I36+14,J36+14)))))) -> 2014-05-02 | J37: 2014-05-02 | K37: Phone | L37: 19 | M37: =IF(L37=".","",IF(ISERROR((L37/L35)-1),"",((L37/L35)-1))) -> 0.05555555556 | N37: 15 | O37: =IF(N37=".","",IF(ISERROR((N37/N35)-1),"",((N37/N35)-1))) -> 0.07142857143 | T37: =F37 -> 1 | U37: =T37&"pt"&A37 -> 1pt5555 | V37: =IF(J37<>0,J37,9999999) -> 41761
A38: =IF(A37<>"",A37,"") -> 5555 | B38: Albert Smith | C38: Active | D38: =IF(AND(E38=" ",F35>F38), "DESELECT to hide past tx episodes",IF(OR(E38="Past due",E38="contact due today",E38="contact due in 1 day",E38="contact due in 2 days",E38="contact due in 3 days",E38="contact due in 4 days",E38="contact due in 5 days",AND(J38<>"",OR(J39="",A38<>A39))),"Show only most recent visit & ticklers","")) -> DESELECT to hide past tx episodes | E38: =IF(OR(C37="Active",C37="Relapse Prevention"),IF(J38="",IF(I38<TODAY(), "Past Due",(IF(I38=TODAY(),"Contact due today",IF(I38=(TODAY()+1), "Contact due in 1 day",IF(I38=(TODAY()+2), "Contact due in 2 days",IF(I38=(TODAY()+3), "Contact due in 3 days",IF(I38=(TODAY()+4), "Contact due in 4 days",IF(I38=(TODAY()+5), "Contact due in 5 days"," "))))))))," ")," ") ->  | F38: 1 | G38: 2 | I38: =IF(I37=" "," ",(IF(H35="1-week follow-up schedule",IF(J37="",I37+7,IF(ISERROR(J37+7),I37+7,J37+7)),IF(H35="1-month follow-up schedule",IF(J37="",I37+30,IF(ISERROR(J37+30),I37+30,J37+30)),IF(J37="",I37+14,IF(ISERROR(J37+14),I37+14,J37+14)))))) -> 2014-05-16 | J38: 2014-05-16 | K38: In person at clinic | L38: 17 | M38: =IF(L38=".","",IF(ISERROR((L38/L35)-1),"",((L38/L35)-1))) -> -0.05555555556 | N38: 13 | O38: =IF(N38=".","",IF(ISERROR((N38/N35)-1),"",((N38/N35)-1))) -> -0.07142857143 | T38: 1 | U38: 1pt5555 | V38: 41775
A39: =IF(A38<>"",A38,"") -> 5555 | B39: Albert Smith | C39: Active | D39: =IF(AND(E39=" ",F35>F39), "DESELECT to hide past tx episodes",IF(OR(E39="Past due",E39="contact due today",E39="contact due in 1 day",E39="contact due in 2 days",E39="contact due in 3 days",E39="contact due in 4 days",E39="contact due in 5 days",AND(J39<>"",OR(J40="",A39<>A40))),"Show only most recent visit & ticklers","")) -> DESELECT to hide past tx episodes | F39: 1 | G39: 3 | I39: =IF(I38=" "," ",(IF(H35="1-week follow-up schedule",IF(J38="",I38+7,IF(ISERROR(J38+7),I38+7,J38+7)),IF(H35="1-month follow-up schedule",IF(J38="",I38+30,IF(ISERROR(J38+30),I38+30,J38+30)),IF(J38="",I38+14,IF(ISERROR(J38+14),I38+14,J38+14)))))) -> 2014-05-30 | J39: 2014-05-30 | K39: In person at clinic | L39: 17 | M39: =IF(L39=".","",IF(ISERROR((L39/L35)-1),"",((L39/L35)-1))) -> -0.05555555556 | N39: 14 | O39: =IF(N39=".","",IF(ISERROR((N39/N35)-1),"",((N39/N35)-1))) -> 0 | T39: 1 | U39: 1pt5555 | V39: 41789
A40: =IF(A39<>"",A39,"") -> 5555 | B40: Albert Smith | C40: Active | D40: =IF(AND(E40=" ",F35>F40), "DESELECT to hide past tx episodes",IF(OR(E40="Past due",E40="contact due today",E40="contact due in 1 day",E40="contact due in 2 days",E40="contact due in 3 days",E40="contact due in 4 days",E40="contact due in 5 days",AND(J40<>"",OR(J41="",A40<>A41))),"Show only most recent visit & ticklers","")) -> DESELECT to hide past tx episodes | F40: 1 | G40: 4 | I40: =IF(I39=" "," ",(IF(H35="1-week follow-up schedule",IF(J39="",I39+7,IF(ISERROR(J39+7),I39+7,J39+7)),IF(H35="1-month follow-up schedule",IF(J39="",I39+30,IF(ISERROR(J39+30),I39+30,J39+30)),IF(J39="",I39+14,IF(ISERROR(J39+14),I39+14,J39+14)))))) -> 2014-06-13 | J40: Missed | L40: . | M40: =IF(L40=".","",IF(ISERROR((L40/L35)-1),"",((L40/L35)-1))) ->  | N40: . | O40: =IF(N40=".","",IF(ISERROR((N40/N35)-1),"",((N40/N35)-1))) ->  | T40: 1 | U40: 1pt5555 | V40: Missed
A41: =IF(A40<>"",A40,"") -> 5555 | B41: Albert Smith | C41: Active | D41: =IF(AND(E41=" ",F35>F41), "DESELECT to hide past tx episodes",IF(OR(E41="Past due",E41="contact due today",E41="contact due in 1 day",E41="contact due in 2 days",E41="contact due in 3 days",E41="contact due in 4 days",E41="contact due in 5 days",AND(J41<>"",OR(J42="",A41<>A42))),"Show only most recent visit & ticklers","")) -> DESELECT to hide past tx episodes | F41: 1 | G41: 5 | I41: =IF(I40=" "," ",(IF(H35="1-week follow-up schedule",IF(J40="",I40+7,IF(ISERROR(J40+7),I40+7,J40+7)),IF(H35="1-month follow-up schedule",IF(J40="",I40+30,IF(ISERROR(J40+30),I40+30,J40+30)),IF(J40="",I40+14,IF(ISERROR(J40+14),I40+14,J40+14)))))) -> 2014-06-27 | J41: Missed | L41: . | M41: =IF(L41=".","",IF(ISERROR((L41/L35)-1),"",((L41/L35)-1))) ->  | N41: . | O41: =IF(N41=".","",IF(ISERROR((N41/N35)-1),"",((N41/N35)-1))) ->  | T41: 1 | U41: 1pt5555 | V41: Missed
A42: =IF(A41<>"",A41,"") -> 5555 | B42: Albert Smith | C42: Active | D42: =IF(AND(E42=" ",F35>F42), "DESELECT to hide past tx episodes",IF(OR(E42="Past due",E42="contact due today",E42="contact due in 1 day",E42="contact due in 2 days",E42="contact due in 3 days",E42="contact due in 4 days",E42="contact due in 5 days",AND(J42<>"",OR(J43="",A42<>A43))),"Show only most recent visit & ticklers","")) ->  | F42: 2 | G42: Initial Assessment | I42: =IF(I41=" "," ",(IF(H35="1-week follow-up schedule",IF(J41="",I41+7,IF(ISERROR(J41+7),I41+7,J41+7)),IF(H35="1-month follow-up schedule",IF(J41="",I41+30,IF(ISERROR(J41+30),I41+30,J41+30)),IF(J41="",I41+14,IF(ISERROR(J41+14),I41+14,J41+14)))))) -> 2014-07-11 | J42: 2017-03-05 | K42: In person at clinic | L42: 18 | M42: =IF(L42=".","",IF(ISERROR((L42/L35)-1),"",((L42/L35)-1))) -> 0 | N42: 14 | O42: =IF(N42=".","",IF(ISERROR((N42/N35)-1),"",((N42/N35)-1))) -> 0 | T42: 2 | U42: 2pt5555 | V42: 42799
A43: =IF(A42<>"",A42,"") -> 5555 | B43: Albert Smith | C43: Active | D43: =IF(AND(E43=" ",F35>F43), "DESELECT to hide past tx episodes",IF(OR(E43="Past due",E43="contact due today",E43="contact due in 1 day",E43="contact due in 2 days",E43="contact due in 3 days",E43="contact due in 4 days",E43="contact due in 5 days",AND(J43<>"",OR(J44="",A43<>A44))),"Show only most recent visit & ticklers","")) ->  | F43: 2 | G43: 1 | I43: =IF(I42=" "," ",(IF(H35="1-week follow-up schedule",IF(J42="",I42+7,IF(ISERROR(J42+7),I42+7,J42+7)),IF(H35="1-month follow-up schedule",IF(J42="",I42+30,IF(ISERROR(J42+30),I42+30,J42+30)),IF(J42="",I42+14,IF(ISERROR(J42+14),I42+14,J42+14)))))) -> 2017-03-19 | J43: 2017-03-24 | K43: In person at clinic | L43: 17 | M43: =IF(L43=".","",IF(ISERROR((L43/L35)-1),"",((L43/L35)-1))) -> -0.05555555556 | N43: 11 | O43: =IF(N43=".","",IF(ISERROR((N43/N35)-1),"",((N43/N35)-1))) -> -0.2142857143 | T43: 2 | U43: 2pt5555 | V43: 42818
A44: =IF(A43<>"",A43,"") -> 5555 | B44: Albert Smith | C44: Active | D44: =IF(AND(E44=" ",F35>F44), "DESELECT to hide past tx episodes",IF(OR(E44="Past due",E44="contact due today",E44="contact due in 1 day",E44="contact due in 2 days",E44="contact due in 3 days",E44="contact due in 4 days",E44="contact due in 5 days",AND(J44<>"",OR(J45="",A44<>A45))),"Show only most recent visit & ticklers","")) ->  | F44: 2 | G44: 2 | I44: =IF(I43=" "," ",(IF(H35="1-week follow-up schedule",IF(J43="",I43+7,IF(ISERROR(J43+7),I43+7,J43+7)),IF(H35="1-month follow-up schedule",IF(J43="",I43+30,IF(ISERROR(J43+30),I43+30,J43+30)),IF(J43="",I43+14,IF(ISERROR(J43+14),I43+14,J43+14)))))) -> 2017-04-07 | J44: 2017-04-07 | K44: In person at clinic | L44: 18 | M44: =IF(L44=".","",IF(ISERROR((L44/L35)-1),"",((L44/L35)-1))) -> 0 | N44: 11 | O44: =IF(N44=".","",IF(ISERROR((N44/N35)-1),"",((N44/N35)-1))) -> -0.2142857143 | T44: 2 | U44: 2pt5555 | V44: 42832
A45: =IF(A44<>"",A44,"") -> 5555 | B45: Albert Smith | C45: Active | D45: =IF(AND(E45=" ",F35>F45), "DESELECT to hide past tx episodes",IF(OR(E45="Past due",E45="contact due today",E45="contact due in 1 day",E45="contact due in 2 days",E45="contact due in 3 days",E45="contact due in 4 days",E45="contact due in 5 days",AND(J45<>"",OR(J46="",A45<>A46))),"Show only most recent visit & ticklers","")) ->  | F45: 2 | G45: 3 | I45: =IF(I44=" "," ",(IF(H35="1-week follow-up schedule",IF(J44="",I44+7,IF(ISERROR(J44+7),I44+7,J44+7)),IF(H35="1-month follow-up schedule",IF(J44="",I44+30,IF(ISERROR(J44+30),I44+30,J44+30)),IF(J44="",I44+14,IF(ISERROR(J44+14),I44+14,J44+14)))))) -> 2017-04-21 | J45: 2017-04-21 | K45: Phone | L45: 17 | M45: =IF(L45=".","",IF(ISERROR((L45/L35)-1),"",((L45/L35)-1))) -> -0.05555555556 | N45: 11 | O45: =IF(N45=".","",IF(ISERROR((N45/N35)-1),"",((N45/N35)-1))) -> -0.2142857143 | T45: 2 | U45: 2pt5555 | V45: 42846
A46: =IF(A45<>"",A45,"") -> 5555 | B46: Albert Smith | C46: Active | D46: =IF(AND(E46=" ",F35>F46), "DESELECT to hide past tx episodes",IF(OR(E46="Past due",E46="contact due today",E46="contact due in 1 day",E46="contact due in 2 days",E46="contact due in 3 days",E46="contact due in 4 days",E46="contact due in 5 days",AND(J46<>"",OR(J47="",A46<>A47))),"Show only most recent visit & ticklers","")) ->  | F46: 2 | G46: 4 | I46: =IF(I45=" "," ",(IF(H35="1-week follow-up schedule",IF(J45="",I45+7,IF(ISERROR(J45+7),I45+7,J45+7)),IF(H35="1-month follow-up schedule",IF(J45="",I45+30,IF(ISERROR(J45+30),I45+30,J45+30)),IF(J45="",I45+14,IF(ISERROR(J45+14),I45+14,J45+14)))))) -> 2017-05-05 | J46: 2017-05-08 | K46: In person at clinic | L46: 19 | M46: =IF(L46=".","",IF(ISERROR((L46/L35)-1),"",((L46/L35)-1))) -> 0.05555555556 | N46: 10 | O46: =IF(N46=".","",IF(ISERROR((N46/N35)-1),"",((N46/N35)-1))) -> -0.2857142857 | T46: 2 | U46: 2pt5555 | V46: 42863
A47: =IF(A46<>"",A46,"") -> 5555 | B47: Albert Smith | C47: Active | D47: =IF(AND(E47=" ",F35>F47), "DESELECT to hide past tx episodes",IF(OR(E47="Past due",E47="contact due today",E47="contact due in 1 day",E47="contact due in 2 days",E47="contact due in 3 days",E47="contact due in 4 days",E47="contact due in 5 days",AND(J47<>"",OR(J48="",A47<>A48))),"Show only most recent visit & ticklers","")) ->  | F47: 2 | G47: 5 | I47: =IF(I46=" "," ",(IF(H35="1-week follow-up schedule",IF(J46="",I46+7,IF(ISERROR(J46+7),I46+7,J46+7)),IF(H35="1-month follow-up schedule",IF(J46="",I46+30,IF(ISERROR(J46+30),I46+30,J46+30)),IF(J46="",I46+14,IF(ISERROR(J46+14),I46+14,J46+14)))))) -> 2017-05-22 | J47: 2017-06-30 | K47: In person at clinic | L47: 18 | M47: =IF(L47=".","",IF(ISERROR((L47/L35)-1),"",((L47/L35)-1))) -> 0 | N47: 10 | O47: =IF(N47=".","",IF(ISERROR((N47/N35)-1),"",((N47/N35)-1))) -> -0.2857142857 | T47: 2 | U47: 2pt5555 | V47: 42916
A48: =IF(A47<>"",A47,"") -> 5555 | B48: Albert Smith | C48: Active | D48: =IF(AND(E48=" ",F35>F48), "DESELECT to hide past tx episodes",IF(OR(E48="Past due",E48="contact due today",E48="contact due in 1 day",E48="contact due in 2 days",E48="contact due in 3 days",E48="contact due in 4 days",E48="contact due in 5 days",AND(J48<>"",OR(J49="",A48<>A49))),"Show only most recent visit & ticklers","")) -> Show only most recent visit & ticklers | F48: 2 | G48: 6 | I48: =IF(I47=" "," ",(IF(H35="1-week follow-up schedule",IF(J47="",I47+7,IF(ISERROR(J47+7),I47+7,J47+7)),IF(H35="1-month follow-up schedule",IF(J47="",I47+30,IF(ISERROR(J47+30),I47+30,J47+30)),IF(J47="",I47+14,IF(ISERROR(J47+14),I47+14,J47+14)))))) -> 2017-07-14 | J48: Missed | L48: . | M48: =IF(L48=".","",IF(ISERROR((L48/L35)-1),"",((L48/L35)-1))) ->  | N48: . | O48: =IF(N48=".","",IF(ISERROR((N48/N35)-1),"",((N48/N35)-1))) ->  | T48: 2 | U48: 2pt5555 | V48: Missed
A49: =IF(A48<>"",A48,"") -> 5555 | B49: Albert Smith | C49: Active | D49: =IF(AND(E49=" ",F35>F49), "DESELECT to hide past tx episodes",IF(OR(E49="Past due",E49="contact due today",E49="contact due in 1 day",E49="contact due in 2 days",E49="contact due in 3 days",E49="contact due in 4 days",E49="contact due in 5 days",AND(J49<>"",OR(J50="",A49<>A50))),"Show only most recent visit & ticklers","")) -> DESELECT to hide past tx episodes | H49: 2017-07-28 | I49: =IF(I48=" "," ",(IF(H35="1-week follow-up schedule",IF(J48="",I48+7,IF(ISERROR(J48+7),I48+7,J48+7)),IF(H35="1-month follow-up schedule",IF(J48="",I48+30,IF(ISERROR(J48+30),I48+30,J48+30)),IF(J48="",I48+14,IF(ISERROR(J48+14),I48+14,J48+14)))))) -> 2017-07-28 | L49: . | M49: =IF(L49=".","",IF(ISERROR((L49/L35)-1),"",((L49/L35)-1))) ->  | N49: . | O49: =IF(N49=".","",IF(ISERROR((N49/N35)-1),"",((N49/N35)-1))) ->  | T49: 0 | U49: 0pt5555 | V49: 9999999
A50: =IF(A49<>"",A49,"") -> 5555 | B50: Albert Smith | C50: Active | D50: =IF(AND(E50=" ",F35>F50), "DESELECT to hide past tx episodes",IF(OR(E50="Past due",E50="contact due today",E50="contact due in 1 day",E50="contact due in 2 days",E50="contact due in 3 days",E50="contact due in 4 days",E50="contact due in 5 days",AND(J50<>"",OR(J51="",A50<>A51))),"Show only most recent visit & ticklers","")) -> DESELECT to hide past tx episodes | H50: 2017-08-11 | I50: =IF(I49=" "," ",(IF(H35="1-week follow-up schedule",IF(J49="",I49+7,IF(ISERROR(J49+7),I49+7,J49+7)),IF(H35="1-month follow-up schedule",IF(J49="",I49+30,IF(ISERROR(J49+30),I49+30,J49+30)),IF(J49="",I49+14,IF(ISERROR(J49+14),I49+14,J49+14)))))) -> 2017-08-11 | L50: . | M50: =IF(L50=".","",IF(ISERROR((L50/L35)-1),"",((L50/L35)-1))) ->  | N50: . | O50: =IF(N50=".","",IF(ISERROR((N50/N35)-1),"",((N50/N35)-1))) ->  | T50: 0 | U50: 0pt5555 | V50: 9999999
A51: 4321 | B51: John Doe | C51: Inactive | D51: =IF(A51<>"","Show Initial Assessment row","") -> Show Initial Assessment row | F51: =MAX(IF(A52:A98=A51,F52:F98,"")) -> 1 | G51: Current Episode Initial Assessment | H51: 1-month follow-up schedule | J51: =IF(W51<>0,W51,"") -> 2016-01-15 | L51: =IF(Y51="no score",Y51,X51) -> 20 | N51: =IF(AA51="no score",AA51,Z51) -> 14 | R51: =IF(S51<>0,S51,"") -> 2016-11-01 | S51: =MAX(IF(A52:A98=A51,R52:R98,"")) -> 2016-11-01 | T51: =MAX(IF(A52:A98=A51,F52:F98,"")) -> 1 | U51: =T51&"pt"&A51 -> 1pt4321 | W51: =MIN(IF(U52:U98=U51,V52:V98,"")) -> 2016-01-15 | X51: =MAX(IF('Data Prep'!S50:S108="initial score"&'Patient Tracking'!A51,'Data Prep'!Z50:Z108,"")) -> 20 | Y51: =IF(ISNA(MATCH("initial score"&'Patient Tracking'!A51,'Data Prep'!S50:S108,0)),"No score","") ->  | Z51: =MAX(IF('Data Prep'!T50:T108="initial score"&'Patient Tracking'!A51,'Data Prep'!AD50:AD108,"")) -> 14 | AA51: =IF(ISNA(MATCH("initial score"&'Patient Tracking'!A51,'Data Prep'!T50:T108,0)),"No score","") -> 
A52: =IF(A51<>"",A51,"") -> 4321 | B52: =IF(B51<>"",B51,"") -> John Doe | C52: =IF(C51<>"",C51,"") -> Inactive | D52: =IF(AND(E52=" ",F51>F52), "DESELECT to hide past tx episodes",IF(OR(E52="Past due",E52="contact due today",E52="contact due in 1 day",E52="contact due in 2 days",E52="contact due in 3 days",E52="contact due in 4 days",E52="contact due in 5 days",AND(J52<>"",OR(J53="",A52<>A53))),"Show only most recent visit & ticklers","")) ->  | E52: =IF(C51="Active",IF(J52="",IF(I52<TODAY(), "Past Due",(IF(I52=TODAY(),"Contact due today",IF(I52=(TODAY()+1), "Contact due in 1 day",IF(I52=(TODAY()+2), "Contact due in 2 days",IF(I52=(TODAY()+3), "Contact due in 3 days",IF(I52=(TODAY()+4), "Contact due in 4 days",IF(I52=(TODAY()+5), "Contact due in 5 days"," "))))))))," ")," ") ->  | F52: 1 | G52: Initial Assessment | H52: =IF(J52<>"","",I52) ->  | I52: =IF(H51="1-week follow-up schedule",IF(J51=""," ",IF(ISERROR(J51+7)," ",J51+7)),IF(H51="1-month follow-up schedule",IF(J51=""," ",IF(ISERROR(J51+30)," ",J51+30)),IF(J51=""," ",IF(ISERROR(J51+14)," ",J51+14)))) -> 2016-02-14 | J52: 2016-01-15 | K52: In person at clinic | L52: 20 | M52: =IF(L52=".","",IF(ISERROR((L52/L51)-1),"",((L52/L51)-1))) -> 0 | N52: 14 | O52: =IF(N52=".","",IF(ISERROR((N52/N51)-1),"",((N52/N51)-1))) -> 0 | R52: 2016-02-08 | T52: =F52 -> 1 | U52: =T52&"pt"&A52 -> 1pt4321 | V52: =IF(J52<>0,J52,9999999) -> 42384
A53: =IF(A52<>"",A52,"") -> 4321 | B53: John Doe | C53: Inactive | D53: =IF(AND(E53=" ",F51>F53), "DESELECT to hide past tx episodes",IF(OR(E53="Past due",E53="contact due today",E53="contact due in 1 day",E53="contact due in 2 days",E53="contact due in 3 days",E53="contact due in 4 days",E53="contact due in 5 days",AND(J53<>"",OR(J54="",A53<>A54))),"Show only most recent visit & ticklers","")) ->  | E53: =IF(OR(C52="Active",C52="Relapse Prevention"),IF(J53="",IF(I53<TODAY(), "Past Due",(IF(I53=TODAY(),"Contact due today",IF(I53=(TODAY()+1), "Contact due in 1 day",IF(I53=(TODAY()+2), "Contact due in 2 days",IF(I53=(TODAY()+3), "Contact due in 3 days",IF(I53=(TODAY()+4), "Contact due in 4 days",IF(I53=(TODAY()+5), "Contact due in 5 days"," "))))))))," ")," ") ->  | F53: 1 | G53: =IF(AND(F53=F52,F53<>""),IFERROR(G52+1,1),IF(F53<>"","Initial Assessment","")) -> 1 | H53: =IF(J53<>"","",I53) ->  | I53: =IF(I52=" "," ",(IF(H51="1-week follow-up schedule",IF(J52="",I52+7,IF(ISERROR(J52+7),I52+7,J52+7)),IF(H51="1-month follow-up schedule",IF(J52="",I52+30,IF(ISERROR(J52+30),I52+30,J52+30)),IF(J52="",I52+14,IF(ISERROR(J52+14),I52+14,J52+14)))))) -> 2016-02-14 | J53: 2016-01-28 | K53: In person at clinic | L53: 21 | M53: =IF(L53=".","",IF(ISERROR((L53/L51)-1),"",((L53/L51)-1))) -> 0.05 | N53: 13 | O53: =IF(N53=".","",IF(ISERROR((N53/N51)-1),"",((N53/N51)-1))) -> -0.07142857143 | R53: 2016-02-20 | T53: =F53 -> 1 | U53: =T53&"pt"&A53 -> 1pt4321 | V53: =IF(J53<>0,J53,9999999) -> 42397
A54: =IF(A53<>"",A53,"") -> 4321 | B54: John Doe | C54: Inactive | D54: =IF(AND(E54=" ",F51>F54), "DESELECT to hide past tx episodes",IF(OR(E54="Past due",E54="contact due today",E54="contact due in 1 day",E54="contact due in 2 days",E54="contact due in 3 days",E54="contact due in 4 days",E54="contact due in 5 days",AND(J54<>"",OR(J55="",A54<>A55))),"Show only most recent visit & ticklers","")) ->  | E54: =IF(OR(C53="Active",C53="Relapse Prevention"),IF(J54="",IF(I54<TODAY(), "Past Due",(IF(I54=TODAY(),"Contact due today",IF(I54=(TODAY()+1), "Contact due in 1 day",IF(I54=(TODAY()+2), "Contact due in 2 days",IF(I54=(TODAY()+3), "Contact due in 3 days",IF(I54=(TODAY()+4), "Contact due in 4 days",IF(I54=(TODAY()+5), "Contact due in 5 days"," "))))))))," ")," ") ->  | F54: 1 | G54: 2 | I54: =IF(I53=" "," ",(IF(H51="1-week follow-up schedule",IF(J53="",I53+7,IF(ISERROR(J53+7),I53+7,J53+7)),IF(H51="1-month follow-up schedule",IF(J53="",I53+30,IF(ISERROR(J53+30),I53+30,J53+30)),IF(J53="",I53+14,IF(ISERROR(J53+14),I53+14,J53+14)))))) -> 2016-02-27 | J54: 2016-02-12 | K54: In person at clinic | L54: 18 | M54: =IF(L54=".","",IF(ISERROR((L54/L51)-1),"",((L54/L51)-1))) -> -0.1 | N54: 11 | O54: =IF(N54=".","",IF(ISERROR((N54/N51)-1),"",((N54/N51)-1))) -> -0.2142857143 | R54: 2016-05-30 | T54: 1 | U54: 1pt4321 | V54: 42412
A55: =IF(A54<>"",A54,"") -> 4321 | B55: John Doe | C55: Inactive | D55: =IF(AND(E55=" ",F51>F55), "DESELECT to hide past tx episodes",IF(OR(E55="Past due",E55="contact due today",E55="contact due in 1 day",E55="contact due in 2 days",E55="contact due in 3 days",E55="contact due in 4 days",E55="contact due in 5 days",AND(J55<>"",OR(J56="",A55<>A56))),"Show only most recent visit & ticklers","")) ->  | F55: 1 | G55: 3 | I55: =IF(I54=" "," ",(IF(H51="1-week follow-up schedule",IF(J54="",I54+7,IF(ISERROR(J54+7),I54+7,J54+7)),IF(H51="1-month follow-up schedule",IF(J54="",I54+30,IF(ISERROR(J54+30),I54+30,J54+30)),IF(J54="",I54+14,IF(ISERROR(J54+14),I54+14,J54+14)))))) -> 2016-03-13 | J55: 2016-02-25 | K55: In person at clinic | L55: 16 | M55: =IF(L55=".","",IF(ISERROR((L55/L51)-1),"",((L55/L51)-1))) -> -0.2 | N55: 11 | O55: =IF(N55=".","",IF(ISERROR((N55/N51)-1),"",((N55/N51)-1))) -> -0.2142857143 | R55: 2016-06-15 | T55: 1 | U55: 1pt4321 | V55: 42425
A56: =IF(A55<>"",A55,"") -> 4321 | B56: John Doe | C56: Inactive | D56: =IF(AND(E56=" ",F51>F56), "DESELECT to hide past tx episodes",IF(OR(E56="Past due",E56="contact due today",E56="contact due in 1 day",E56="contact due in 2 days",E56="contact due in 3 days",E56="contact due in 4 days",E56="contact due in 5 days",AND(J56<>"",OR(J57="",A56<>A57))),"Show only most recent visit & ticklers","")) ->  | F56: 1 | G56: 4 | I56: =IF(I55=" "," ",(IF(H51="1-week follow-up schedule",IF(J55="",I55+7,IF(ISERROR(J55+7),I55+7,J55+7)),IF(H51="1-month follow-up schedule",IF(J55="",I55+30,IF(ISERROR(J55+30),I55+30,J55+30)),IF(J55="",I55+14,IF(ISERROR(J55+14),I55+14,J55+14)))))) -> 2016-03-26 | J56: 2016-03-09 | K56: Phone | L56: 14 | M56: =IF(L56=".","",IF(ISERROR((L56/L51)-1),"",((L56/L51)-1))) -> -0.3 | N56: 9 | O56: =IF(N56=".","",IF(ISERROR((N56/N51)-1),"",((N56/N51)-1))) -> -0.3571428571 | R56: 2016-11-01 | T56: 1 | U56: 1pt4321 | V56: 42438
A57: =IF(A56<>"",A56,"") -> 4321 | B57: John Doe | C57: Inactive | D57: =IF(AND(E57=" ",F51>F57), "DESELECT to hide past tx episodes",IF(OR(E57="Past due",E57="contact due today",E57="contact due in 1 day",E57="contact due in 2 days",E57="contact due in 3 days",E57="contact due in 4 days",E57="contact due in 5 days",AND(J57<>"",OR(J58="",A57<>A58))),"Show only most recent visit & ticklers","")) ->  | F57: 1 | G57: 5 | I57: =IF(I56=" "," ",(IF(H51="1-week follow-up schedule",IF(J56="",I56+7,IF(ISERROR(J56+7),I56+7,J56+7)),IF(H51="1-month follow-up schedule",IF(J56="",I56+30,IF(ISERROR(J56+30),I56+30,J56+30)),IF(J56="",I56+14,IF(ISERROR(J56+14),I56+14,J56+14)))))) -> 2016-04-08 | J57: 2016-03-25 | K57: In person at clinic | L57: 14 | M57: =IF(L57=".","",IF(ISERROR((L57/L51)-1),"",((L57/L51)-1))) -> -0.3 | N57: 7 | O57: =IF(N57=".","",IF(ISERROR((N57/N51)-1),"",((N57/N51)-1))) -> -0.5 | T57: 1 | U57: 1pt4321 | V57: 42454
A58: =IF(A57<>"",A57,"") -> 4321 | B58: John Doe | C58: Inactive | D58: =IF(AND(E58=" ",F51>F58), "DESELECT to hide past tx episodes",IF(OR(E58="Past due",E58="contact due today",E58="contact due in 1 day",E58="contact due in 2 days",E58="contact due in 3 days",E58="contact due in 4 days",E58="contact due in 5 days",AND(J58<>"",OR(J59="",A58<>A59))),"Show only most recent visit & ticklers","")) ->  | F58: 1 | G58: 6 | I58: =IF(I57=" "," ",(IF(H51="1-week follow-up schedule",IF(J57="",I57+7,IF(ISERROR(J57+7),I57+7,J57+7)),IF(H51="1-month follow-up schedule",IF(J57="",I57+30,IF(ISERROR(J57+30),I57+30,J57+30)),IF(J57="",I57+14,IF(ISERROR(J57+14),I57+14,J57+14)))))) -> 2016-04-24 | J58: 2016-04-09 | K58: Phone | L58: 11 | M58: =IF(L58=".","",IF(ISERROR((L58/L51)-1),"",((L58/L51)-1))) -> -0.45 | N58: 6 | O58: =IF(N58=".","",IF(ISERROR((N58/N51)-1),"",((N58/N51)-1))) -> -0.5714285714 | T58: 1 | U58: 1pt4321 | V58: 42469
A59: =IF(A58<>"",A58,"") -> 4321 | B59: John Doe | C59: Inactive | D59: =IF(AND(E59=" ",F51>F59), "DESELECT to hide past tx episodes",IF(OR(E59="Past due",E59="contact due today",E59="contact due in 1 day",E59="contact due in 2 days",E59="contact due in 3 days",E59="contact due in 4 days",E59="contact due in 5 days",AND(J59<>"",OR(J60="",A59<>A60))),"Show only most recent visit & ticklers","")) ->  | F59: 1 | G59: 7 | I59: =IF(I58=" "," ",(IF(H51="1-week follow-up schedule",IF(J58="",I58+7,IF(ISERROR(J58+7),I58+7,J58+7)),IF(H51="1-month follow-up schedule",IF(J58="",I58+30,IF(ISERROR(J58+30),I58+30,J58+30)),IF(J58="",I58+14,IF(ISERROR(J58+14),I58+14,J58+14)))))) -> 2016-05-09 | J59: Missed | L59: . | M59: =IF(L59=".","",IF(ISERROR((L59/L51)-1),"",((L59/L51)-1))) ->  | N59: . | O59: =IF(N59=".","",IF(ISERROR((N59/N51)-1),"",((N59/N51)-1))) ->  | T59: 1 | U59: 1pt4321 | V59: Missed
A60: =IF(A59<>"",A59,"") -> 4321 | B60: John Doe | C60: Inactive | D60: =IF(AND(E60=" ",F51>F60), "DESELECT to hide past tx episodes",IF(OR(E60="Past due",E60="contact due today",E60="contact due in 1 day",E60="contact due in 2 days",E60="contact due in 3 days",E60="contact due in 4 days",E60="contact due in 5 days",AND(J60<>"",OR(J61="",A60<>A61))),"Show only most recent visit & ticklers","")) ->  | F60: 1 | G60: 8 | I60: =IF(I59=" "," ",(IF(H51="1-week follow-up schedule",IF(J59="",I59+7,IF(ISERROR(J59+7),I59+7,J59+7)),IF(H51="1-month follow-up schedule",IF(J59="",I59+30,IF(ISERROR(J59+30),I59+30,J59+30)),IF(J59="",I59+14,IF(ISERROR(J59+14),I59+14,J59+14)))))) -> 2016-06-08 | J60: 2016-05-04 | K60: In person at clinic | L60: 8 | M60: =IF(L60=".","",IF(ISERROR((L60/L51)-1),"",((L60/L51)-1))) -> -0.6 | N60: 4 | O60: =IF(N60=".","",IF(ISERROR((N60/N51)-1),"",((N60/N51)-1))) -> -0.7142857143 | T60: 1 | U60: 1pt4321 | V60: 42494
A61: =IF(A60<>"",A60,"") -> 4321 | B61: John Doe | C61: Inactive | D61: =IF(AND(E61=" ",F51>F61), "DESELECT to hide past tx episodes",IF(OR(E61="Past due",E61="contact due today",E61="contact due in 1 day",E61="contact due in 2 days",E61="contact due in 3 days",E61="contact due in 4 days",E61="contact due in 5 days",AND(J61<>"",OR(J62="",A61<>A62))),"Show only most recent visit & ticklers","")) ->  | F61: 1 | G61: 9 | I61: =IF(I60=" "," ",(IF(H51="1-week follow-up schedule",IF(J60="",I60+7,IF(ISERROR(J60+7),I60+7,J60+7)),IF(H51="1-month follow-up schedule",IF(J60="",I60+30,IF(ISERROR(J60+30),I60+30,J60+30)),IF(J60="",I60+14,IF(ISERROR(J60+14),I60+14,J60+14)))))) -> 2016-06-03 | J61: 2016-05-20 | K61: In person at clinic | L61: 4 | M61: =IF(L61=".","",IF(ISERROR((L61/L51)-1),"",((L61/L51)-1))) -> -0.8 | N61: 4 | O61: =IF(N61=".","",IF(ISERROR((N61/N51)-1),"",((N61/N51)-1))) -> -0.7142857143 | T61: 1 | U61: 1pt4321 | V61: 42510
A62: =IF(A61<>"",A61,"") -> 4321 | B62: John Doe | C62: Inactive | D62: =IF(AND(E62=" ",F51>F62), "DESELECT to hide past tx episodes",IF(OR(E62="Past due",E62="contact due today",E62="contact due in 1 day",E62="contact due in 2 days",E62="contact due in 3 days",E62="contact due in 4 days",E62="contact due in 5 days",AND(J62<>"",OR(J63="",A62<>A63))),"Show only most recent visit & ticklers","")) ->  | F62: 1 | G62: 10 | I62: =IF(I61=" "," ",(IF(H51="1-week follow-up schedule",IF(J61="",I61+7,IF(ISERROR(J61+7),I61+7,J61+7)),IF(H51="1-month follow-up schedule",IF(J61="",I61+30,IF(ISERROR(J61+30),I61+30,J61+30)),IF(J61="",I61+14,IF(ISERROR(J61+14),I61+14,J61+14)))))) -> 2016-06-19 | J62: 2016-06-06 | K62: Phone | L62: 4 | M62: =IF(L62=".","",IF(ISERROR((L62/L51)-1),"",((L62/L51)-1))) -> -0.8 | N62: 3 | O62: =IF(N62=".","",IF(ISERROR((N62/N51)-1),"",((N62/N51)-1))) -> -0.7857142857 | T62: 1 | U62: 1pt4321 | V62: 42527
A63: =IF(A62<>"",A62,"") -> 4321 | B63: John Doe | C63: Inactive | D63: =IF(AND(E63=" ",F51>F63), "DESELECT to hide past tx episodes",IF(OR(E63="Past due",E63="contact due today",E63="contact due in 1 day",E63="contact due in 2 days",E63="contact due in 3 days",E63="contact due in 4 days",E63="contact due in 5 days",AND(J63<>"",OR(J64="",A63<>A64))),"Show only most recent visit & ticklers","")) ->  | F63: 1 | G63: 11 | I63: =IF(I62=" "," ",(IF(H51="1-week follow-up schedule",IF(J62="",I62+7,IF(ISERROR(J62+7),I62+7,J62+7)),IF(H51="1-month follow-up schedule",IF(J62="",I62+30,IF(ISERROR(J62+30),I62+30,J62+30)),IF(J62="",I62+14,IF(ISERROR(J62+14),I62+14,J62+14)))))) -> 2016-07-06 | J63: 2016-07-06 | K63: Phone | L63: 2 | M63: =IF(L63=".","",IF(ISERROR((L63/L51)-1),"",((L63/L51)-1))) -> -0.9 | N63: 3 | O63: =IF(N63=".","",IF(ISERROR((N63/N51)-1),"",((N63/N51)-1))) -> -0.7857142857 | T63: 1 | U63: 1pt4321 | V63: 42557
A64: =IF(A63<>"",A63,"") -> 4321 | B64: John Doe | C64: Inactive | D64: =IF(AND(E64=" ",F51>F64), "DESELECT to hide past tx episodes",IF(OR(E64="Past due",E64="contact due today",E64="contact due in 1 day",E64="contact due in 2 days",E64="contact due in 3 days",E64="contact due in 4 days",E64="contact due in 5 days",AND(J64<>"",OR(J65="",A64<>A65))),"Show only most recent visit & ticklers","")) ->  | F64: 1 | G64: 12 | I64: =IF(I63=" "," ",(IF(H51="1-week follow-up schedule",IF(J63="",I63+7,IF(ISERROR(J63+7),I63+7,J63+7)),IF(H51="1-month follow-up schedule",IF(J63="",I63+30,IF(ISERROR(J63+30),I63+30,J63+30)),IF(J63="",I63+14,IF(ISERROR(J63+14),I63+14,J63+14)))))) -> 2016-08-05 | J64: 2016-08-03 | K64: In person at clinic | L64: 2 | M64: =IF(L64=".","",IF(ISERROR((L64/L51)-1),"",((L64/L51)-1))) -> -0.9 | N64: 1 | O64: =IF(N64=".","",IF(ISERROR((N64/N51)-1),"",((N64/N51)-1))) -> -0.9285714286 | T64: 1 | U64: 1pt4321 | V64: 42585
A65: =IF(A64<>"",A64,"") -> 4321 | B65: John Doe | C65: Inactive | D65: =IF(AND(E65=" ",F51>F65), "DESELECT to hide past tx episodes",IF(OR(E65="Past due",E65="contact due today",E65="contact due in 1 day",E65="contact due in 2 days",E65="contact due in 3 days",E65="contact due in 4 days",E65="contact due in 5 days",AND(J65<>"",OR(J66="",A65<>A66))),"Show only most recent visit & ticklers","")) -> Show only most recent visit & ticklers | F65: 1 | G65: 13 | I65: =IF(I64=" "," ",(IF(H51="1-week follow-up schedule",IF(J64="",I64+7,IF(ISERROR(J64+7),I64+7,J64+7)),IF(H51="1-month follow-up schedule",IF(J64="",I64+30,IF(ISERROR(J64+30),I64+30,J64+30)),IF(J64="",I64+14,IF(ISERROR(J64+14),I64+14,J64+14)))))) -> 2016-09-02 | J65: 2016-11-16 | K65: Phone | L65: 0 | M65: =IF(L65=".","",IF(ISERROR((L65/L51)-1),"",((L65/L51)-1))) -> -1 | N65: 1 | O65: =IF(N65=".","",IF(ISERROR((N65/N51)-1),"",((N65/N51)-1))) -> -0.9285714286 | T65: 1 | U65: 1pt4321 | V65: 42690
A66: =IF(A65<>"",A65,"") -> 4321 | B66: John Doe | C66: Inactive | D66: =IF(AND(E66=" ",F51>F66), "DESELECT to hide past tx episodes",IF(OR(E66="Past due",E66="contact due today",E66="contact due in 1 day",E66="contact due in 2 days",E66="contact due in 3 days",E66="contact due in 4 days",E66="contact due in 5 days",AND(J66<>"",OR(J67="",A66<>A67))),"Show only most recent visit & ticklers","")) -> DESELECT to hide past tx episodes | H66: 2016-12-16 | I66: =IF(I65=" "," ",(IF(H51="1-week follow-up schedule",IF(J65="",I65+7,IF(ISERROR(J65+7),I65+7,J65+7)),IF(H51="1-month follow-up schedule",IF(J65="",I65+30,IF(ISERROR(J65+30),I65+30,J65+30)),IF(J65="",I65+14,IF(ISERROR(J65+14),I65+14,J65+14)))))) -> 2016-12-16 | L66: . | M66: =IF(L66=".","",IF(ISERROR((L66/L51)-1),"",((L66/L51)-1))) ->  | N66: . | O66: =IF(N66=".","",IF(ISERROR((N66/N51)-1),"",((N66/N51)-1))) ->  | T66: 0 | U66: 0pt4321 | V66: 9999999
A67: 1678 | B67: Susan Test | C67: Active | D67: =IF(A67<>"","Show Initial Assessment row","") -> Show Initial Assessment row | F67: =MAX(IF(A68:A114=A67,F68:F114,"")) -> 1 | G67: Current Episode Initial Assessment | H67: 2-week follow-up schedule | J67: =IF(W67<>0,W67,"") -> 2016-11-20 | L67: =IF(Y67="no score",Y67,X67) -> 22 | N67: =IF(AA67="no score",AA67,Z67) -> 18 | Q67: Flag for discussion & safety risk | R67: =IF(S67<>0,S67,"") -> 2016-09-15 | S67: =MAX(IF(A68:A114=A67,R68:R114,"")) -> 2016-09-15 | T67: =MAX(IF(A68:A114=A67,F68:F114,"")) -> 1 | U67: =T67&"pt"&A67 -> 1pt1678 | W67: =MIN(IF(U68:U114=U67,V68:V114,"")) -> 2016-11-20 | X67: =MAX(IF('Data Prep'!S66:S124="initial score"&'Patient Tracking'!A67,'Data Prep'!Z66:Z124,"")) -> 22 | Y67: =IF(ISNA(MATCH("initial score"&'Patient Tracking'!A67,'Data Prep'!S66:S124,0)),"No score","") ->  | Z67: =MAX(IF('Data Prep'!T66:T124="initial score"&'Patient Tracking'!A67,'Data Prep'!AD66:AD124,"")) -> 18 | AA67: =IF(ISNA(MATCH("initial score"&'Patient Tracking'!A67,'Data Prep'!T66:T124,0)),"No score","") -> 
A68: =IF(A67<>"",A67,"") -> 1678 | B68: =IF(B67<>"",B67,"") -> Susan Test | C68: =IF(C67<>"",C67,"") -> Active | D68: =IF(AND(E68=" ",F67>F68), "DESELECT to hide past tx episodes",IF(OR(E68="Past due",E68="contact due today",E68="contact due in 1 day",E68="contact due in 2 days",E68="contact due in 3 days",E68="contact due in 4 days",E68="contact due in 5 days",AND(J68<>"",OR(J69="",A68<>A69))),"Show only most recent visit & ticklers","")) ->  | E68: =IF(C67="Active",IF(J68="",IF(I68<TODAY(), "Past Due",(IF(I68=TODAY(),"Contact due today",IF(I68=(TODAY()+1), "Contact due in 1 day",IF(I68=(TODAY()+2), "Contact due in 2 days",IF(I68=(TODAY()+3), "Contact due in 3 days",IF(I68=(TODAY()+4), "Contact due in 4 days",IF(I68=(TODAY()+5), "Contact due in 5 days"," "))))))))," ")," ") ->  | F68: 1 | G68: Initial Assessment | H68: =IF(J68<>"","",I68) ->  | I68: =IF(H67="1-week follow-up schedule",IF(J67=""," ",IF(ISERROR(J67+7)," ",J67+7)),IF(H67="1-month follow-up schedule",IF(J67=""," ",IF(ISERROR(J67+30)," ",J67+30)),IF(J67=""," ",IF(ISERROR(J67+14)," ",J67+14)))) -> 2016-12-04 | J68: 2016-11-20 | K68: In person at clinic | L68: . | M68: =IF(L68=".","",IF(ISERROR((L68/L67)-1),"",((L68/L67)-1))) ->  | N68: . | O68: =IF(N68=".","",IF(ISERROR((N68/N67)-1),"",((N68/N67)-1))) ->  | P68: Initial scores obtained on 10/17/15. See notes below. | R68: 2016-03-30 | T68: =F68 -> 1 | U68: =T68&"pt"&A68 -> 1pt1678 | V68: =IF(J68<>0,J68,9999999) -> 42694
A69: =IF(A68<>"",A68,"") -> 1678 | B69: Susan Test | C69: Active | D69: =IF(AND(E69=" ",F67>F69), "DESELECT to hide past tx episodes",IF(OR(E69="Past due",E69="contact due today",E69="contact due in 1 day",E69="contact due in 2 days",E69="contact due in 3 days",E69="contact due in 4 days",E69="contact due in 5 days",AND(J69<>"",OR(J70="",A69<>A70))),"Show only most recent visit & ticklers","")) ->  | E69: =IF(OR(C68="Active",C68="Relapse Prevention"),IF(J69="",IF(I69<TODAY(), "Past Due",(IF(I69=TODAY(),"Contact due today",IF(I69=(TODAY()+1), "Contact due in 1 day",IF(I69=(TODAY()+2), "Contact due in 2 days",IF(I69=(TODAY()+3), "Contact due in 3 days",IF(I69=(TODAY()+4), "Contact due in 4 days",IF(I69=(TODAY()+5), "Contact due in 5 days"," "))))))))," ")," ") ->  | F69: 1 | G69: =IF(AND(F69=F68,F69<>""),IFERROR(G68+1,1),IF(F69<>"","Initial Assessment","")) -> 1 | H69: =IF(J69<>"","",I69) ->  | I69: =IF(I68=" "," ",(IF(H67="1-week follow-up schedule",IF(J68="",I68+7,IF(ISERROR(J68+7),I68+7,J68+7)),IF(H67="1-month follow-up schedule",IF(J68="",I68+30,IF(ISERROR(J68+30),I68+30,J68+30)),IF(J68="",I68+14,IF(ISERROR(J68+14),I68+14,J68+14)))))) -> 2016-12-04 | J69: 2016-12-04 | K69: In person at clinic | L69: . | M69: =IF(L69=".","",IF(ISERROR((L69/L67)-1),"",((L69/L67)-1))) ->  | N69: . | O69: =IF(N69=".","",IF(ISERROR((N69/N67)-1),"",((N69/N67)-1))) ->  | P69: Pt was resistant to completing scales; will try next time | R69: 2016-05-20 | T69: =F69 -> 1 | U69: =T69&"pt"&A69 -> 1pt1678 | V69: =IF(J69<>0,J69,9999999) -> 42708
A70: =IF(A69<>"",A69,"") -> 1678 | B70: Susan Test | C70: Active | D70: =IF(AND(E70=" ",F67>F70), "DESELECT to hide past tx episodes",IF(OR(E70="Past due",E70="contact due today",E70="contact due in 1 day",E70="contact due in 2 days",E70="contact due in 3 days",E70="contact due in 4 days",E70="contact due in 5 days",AND(J70<>"",OR(J71="",A70<>A71))),"Show only most recent visit & ticklers","")) ->  | E70: =IF(OR(C69="Active",C69="Relapse Prevention"),IF(J70="",IF(I70<TODAY(), "Past Due",(IF(I70=TODAY(),"Contact due today",IF(I70=(TODAY()+1), "Contact due in 1 day",IF(I70=(TODAY()+2), "Contact due in 2 days",IF(I70=(TODAY()+3), "Contact due in 3 days",IF(I70=(TODAY()+4), "Contact due in 4 days",IF(I70=(TODAY()+5), "Contact due in 5 days"," "))))))))," ")," ") ->  | F70: 1 | G70: 2 | I70: =IF(I69=" "," ",(IF(H67="1-week follow-up schedule",IF(J69="",I69+7,IF(ISERROR(J69+7),I69+7,J69+7)),IF(H67="1-month follow-up schedule",IF(J69="",I69+30,IF(ISERROR(J69+30),I69+30,J69+30)),IF(J69="",I69+14,IF(ISERROR(J69+14),I69+14,J69+14)))))) -> 2016-12-18 | J70: 2016-12-16 | K70: In person at clinic | L70: . | M70: =IF(L70=".","",IF(ISERROR((L70/L67)-1),"",((L70/L67)-1))) ->  | N70: . | O70: =IF(N70=".","",IF(ISERROR((N70/N67)-1),"",((N70/N67)-1))) ->  | P70: Pt uncomfortable with answering questions for scales. Having a very bad day; says might feel differently next visit | R70: 2016-07-01 | T70: 1 | U70: 1pt1678 | V70: 42720
A71: =IF(A70<>"",A70,"") -> 1678 | B71: Susan Test | C71: Active | D71: =IF(AND(E71=" ",F67>F71), "DESELECT to hide past tx episodes",IF(OR(E71="Past due",E71="contact due today",E71="contact due in 1 day",E71="contact due in 2 days",E71="contact due in 3 days",E71="contact due in 4 days",E71="contact due in 5 days",AND(J71<>"",OR(J72="",A71<>A72))),"Show only most recent visit & ticklers","")) ->  | F71: 1 | G71: 3 | I71: =IF(I70=" "," ",(IF(H67="1-week follow-up schedule",IF(J70="",I70+7,IF(ISERROR(J70+7),I70+7,J70+7)),IF(H67="1-month follow-up schedule",IF(J70="",I70+30,IF(ISERROR(J70+30),I70+30,J70+30)),IF(J70="",I70+14,IF(ISERROR(J70+14),I70+14,J70+14)))))) -> 2016-12-30 | J71: 2016-12-29 | K71: In person at clinic | L71: 22 | M71: =IF(L71=".","",IF(ISERROR((L71/L67)-1),"",((L71/L67)-1))) -> 0 | N71: 18 | O71: =IF(N71=".","",IF(ISERROR((N71/N67)-1),"",((N71/N67)-1))) -> 0 | R71: 2016-09-15 | T71: 1 | U71: 1pt1678 | V71: 42733
A72: =IF(A71<>"",A71,"") -> 1678 | B72: Susan Test | C72: Active | D72: =IF(AND(E72=" ",F67>F72), "DESELECT to hide past tx episodes",IF(OR(E72="Past due",E72="contact due today",E72="contact due in 1 day",E72="contact due in 2 days",E72="contact due in 3 days",E72="contact due in 4 days",E72="contact due in 5 days",AND(J72<>"",OR(J73="",A72<>A73))),"Show only most recent visit & ticklers","")) ->  | F72: 1 | G72: 4 | I72: =IF(I71=" "," ",(IF(H67="1-week follow-up schedule",IF(J71="",I71+7,IF(ISERROR(J71+7),I71+7,J71+7)),IF(H67="1-month follow-up schedule",IF(J71="",I71+30,IF(ISERROR(J71+30),I71+30,J71+30)),IF(J71="",I71+14,IF(ISERROR(J71+14),I71+14,J71+14)))))) -> 2017-01-12 | J72: 2017-01-14 | K72: In person at clinic | L72: 21 | M72: =IF(L72=".","",IF(ISERROR((L72/L67)-1),"",((L72/L67)-1))) -> -0.04545454545 | N72: 18 | O72: =IF(N72=".","",IF(ISERROR((N72/N67)-1),"",((N72/N67)-1))) -> 0 | T72: 1 | U72: 1pt1678 | V72: 42749
A73: =IF(A72<>"",A72,"") -> 1678 | B73: Susan Test | C73: Active | D73: =IF(AND(E73=" ",F67>F73), "DESELECT to hide past tx episodes",IF(OR(E73="Past due",E73="contact due today",E73="contact due in 1 day",E73="contact due in 2 days",E73="contact due in 3 days",E73="contact due in 4 days",E73="contact due in 5 days",AND(J73<>"",OR(J74="",A73<>A74))),"Show only most recent visit & ticklers","")) ->  | F73: 1 | G73: 5 | I73: =IF(I72=" "," ",(IF(H67="1-week follow-up schedule",IF(J72="",I72+7,IF(ISERROR(J72+7),I72+7,J72+7)),IF(H67="1-month follow-up schedule",IF(J72="",I72+30,IF(ISERROR(J72+30),I72+30,J72+30)),IF(J72="",I72+14,IF(ISERROR(J72+14),I72+14,J72+14)))))) -> 2017-01-28 | J73: Missed | L73: . | M73: =IF(L73=".","",IF(ISERROR((L73/L67)-1),"",((L73/L67)-1))) ->  | N73: . | O73: =IF(N73=".","",IF(ISERROR((N73/N67)-1),"",((N73/N67)-1))) ->  | T73: 1 | U73: 1pt1678 | V73: Missed
A74: =IF(A73<>"",A73,"") -> 1678 | B74: Susan Test | C74: Active | D74: =IF(AND(E74=" ",F67>F74), "DESELECT to hide past tx episodes",IF(OR(E74="Past due",E74="contact due today",E74="contact due in 1 day",E74="contact due in 2 days",E74="contact due in 3 days",E74="contact due in 4 days",E74="contact due in 5 days",AND(J74<>"",OR(J75="",A74<>A75))),"Show only most recent visit & ticklers","")) ->  | F74: 1 | G74: 6 | I74: =IF(I73=" "," ",(IF(H67="1-week follow-up schedule",IF(J73="",I73+7,IF(ISERROR(J73+7),I73+7,J73+7)),IF(H67="1-month follow-up schedule",IF(J73="",I73+30,IF(ISERROR(J73+30),I73+30,J73+30)),IF(J73="",I73+14,IF(ISERROR(J73+14),I73+14,J73+14)))))) -> 2017-02-11 | J74: 2017-02-11 | K74: Phone | L74: 20 | M74: =IF(L74=".","",IF(ISERROR((L74/L67)-1),"",((L74/L67)-1))) -> -0.09090909091 | N74: . | O74: =IF(N74=".","",IF(ISERROR((N74/N67)-1),"",((N74/N67)-1))) ->  | P74: 11/27: Appt reminder call Did not have time to complete GAD-7 | T74: 1 | U74: 1pt1678 | V74: 42777
A75: =IF(A74<>"",A74,"") -> 1678 | B75: Susan Test | C75: Active | D75: =IF(AND(E75=" ",F67>F75), "DESELECT to hide past tx episodes",IF(OR(E75="Past due",E75="contact due today",E75="contact due in 1 day",E75="contact due in 2 days",E75="contact due in 3 days",E75="contact due in 4 days",E75="contact due in 5 days",AND(J75<>"",OR(J76="",A75<>A76))),"Show only most recent visit & ticklers","")) ->  | F75: 1 | G75: 7 | I75: =IF(I74=" "," ",(IF(H67="1-week follow-up schedule",IF(J74="",I74+7,IF(ISERROR(J74+7),I74+7,J74+7)),IF(H67="1-month follow-up schedule",IF(J74="",I74+30,IF(ISERROR(J74+30),I74+30,J74+30)),IF(J74="",I74+14,IF(ISERROR(J74+14),I74+14,J74+14)))))) -> 2017-02-25 | J75: 2017-02-25 | K75: In person at clinic | L75: 22 | M75: =IF(L75=".","",IF(ISERROR((L75/L67)-1),"",((L75/L67)-1))) -> 0 | N75: 19 | O75: =IF(N75=".","",IF(ISERROR((N75/N67)-1),"",((N75/N67)-1))) -> 0.05555555556 | T75: 1 | U75: 1pt1678 | V75: 42791
A76: =IF(A75<>"",A75,"") -> 1678 | B76: Susan Test | C76: Active | D76: =IF(AND(E76=" ",F67>F76), "DESELECT to hide past tx episodes",IF(OR(E76="Past due",E76="contact due today",E76="contact due in 1 day",E76="contact due in 2 days",E76="contact due in 3 days",E76="contact due in 4 days",E76="contact due in 5 days",AND(J76<>"",OR(J77="",A76<>A77))),"Show only most recent visit & ticklers","")) ->  | F76: 1 | G76: 8 | I76: =IF(I75=" "," ",(IF(H67="1-week follow-up schedule",IF(J75="",I75+7,IF(ISERROR(J75+7),I75+7,J75+7)),IF(H67="1-month follow-up schedule",IF(J75="",I75+30,IF(ISERROR(J75+30),I75+30,J75+30)),IF(J75="",I75+14,IF(ISERROR(J75+14),I75+14,J75+14)))))) -> 2017-03-11 | J76: Missed | K76: In person at clinic | L76: . | M76: =IF(L76=".","",IF(ISERROR((L76/L67)-1),"",((L76/L67)-1))) ->  | N76: . | O76: =IF(N76=".","",IF(ISERROR((N76/N67)-1),"",((N76/N67)-1))) ->  | T76: 1 | U76: 1pt1678 | V76: Missed
A77: =IF(A76<>"",A76,"") -> 1678 | B77: Susan Test | C77: Active | D77: =IF(AND(E77=" ",F67>F77), "DESELECT to hide past tx episodes",IF(OR(E77="Past due",E77="contact due today",E77="contact due in 1 day",E77="contact due in 2 days",E77="contact due in 3 days",E77="contact due in 4 days",E77="contact due in 5 days",AND(J77<>"",OR(J78="",A77<>A78))),"Show only most recent visit & ticklers","")) ->  | F77: 1 | G77: 9 | I77: =IF(I76=" "," ",(IF(H67="1-week follow-up schedule",IF(J76="",I76+7,IF(ISERROR(J76+7),I76+7,J76+7)),IF(H67="1-month follow-up schedule",IF(J76="",I76+30,IF(ISERROR(J76+30),I76+30,J76+30)),IF(J76="",I76+14,IF(ISERROR(J76+14),I76+14,J76+14)))))) -> 2017-03-25 | J77: 2017-03-22 | K77: In person at clinic | L77: 19 | M77: =IF(L77=".","",IF(ISERROR((L77/L67)-1),"",((L77/L67)-1))) -> -0.1363636364 | N77: 17 | O77: =IF(N77=".","",IF(ISERROR((N77/N67)-1),"",((N77/N67)-1))) -> -0.05555555556 | T77: 1 | U77: 1pt1678 | V77: 42816
A78: =IF(A77<>"",A77,"") -> 1678 | B78: Susan Test | C78: Active | D78: =IF(AND(E78=" ",F67>F78), "DESELECT to hide past tx episodes",IF(OR(E78="Past due",E78="contact due today",E78="contact due in 1 day",E78="contact due in 2 days",E78="contact due in 3 days",E78="contact due in 4 days",E78="contact due in 5 days",AND(J78<>"",OR(J79="",A78<>A79))),"Show only most recent visit & ticklers","")) ->  | F78: 1 | G78: 10 | I78: =IF(I77=" "," ",(IF(H67="1-week follow-up schedule",IF(J77="",I77+7,IF(ISERROR(J77+7),I77+7,J77+7)),IF(H67="1-month follow-up schedule",IF(J77="",I77+30,IF(ISERROR(J77+30),I77+30,J77+30)),IF(J77="",I77+14,IF(ISERROR(J77+14),I77+14,J77+14)))))) -> 2017-04-05 | J78: 2017-04-05 | K78: In person at clinic | L78: 16 | M78: =IF(L78=".","",IF(ISERROR((L78/L67)-1),"",((L78/L67)-1))) -> -0.2727272727 | N78: 17 | O78: =IF(N78=".","",IF(ISERROR((N78/N67)-1),"",((N78/N67)-1))) -> -0.05555555556 | T78: 1 | U78: 1pt1678 | V78: 42830
A79: =IF(A78<>"",A78,"") -> 1678 | B79: Susan Test | C79: Active | D79: =IF(AND(E79=" ",F67>F79), "DESELECT to hide past tx episodes",IF(OR(E79="Past due",E79="contact due today",E79="contact due in 1 day",E79="contact due in 2 days",E79="contact due in 3 days",E79="contact due in 4 days",E79="contact due in 5 days",AND(J79<>"",OR(J80="",A79<>A80))),"Show only most recent visit & ticklers","")) ->  | F79: 1 | G79: 11 | I79: =IF(I78=" "," ",(IF(H67="1-week follow-up schedule",IF(J78="",I78+7,IF(ISERROR(J78+7),I78+7,J78+7)),IF(H67="1-month follow-up schedule",IF(J78="",I78+30,IF(ISERROR(J78+30),I78+30,J78+30)),IF(J78="",I78+14,IF(ISERROR(J78+14),I78+14,J78+14)))))) -> 2017-04-19 | J79: 2017-04-30 | K79: Phone | L79: 17 | M79: =IF(L79=".","",IF(ISERROR((L79/L67)-1),"",((L79/L67)-1))) -> -0.2272727273 | N79: . | O79: =IF(N79=".","",IF(ISERROR((N79/N67)-1),"",((N79/N67)-1))) ->  | P79: Did not have time to complete GAD-7 | T79: 1 | U79: 1pt1678 | V79: 42855
A80: =IF(A79<>"",A79,"") -> 1678 | B80: Susan Test | C80: Active | D80: =IF(AND(E80=" ",F67>F80), "DESELECT to hide past tx episodes",IF(OR(E80="Past due",E80="contact due today",E80="contact due in 1 day",E80="contact due in 2 days",E80="contact due in 3 days",E80="contact due in 4 days",E80="contact due in 5 days",AND(J80<>"",OR(J81="",A80<>A81))),"Show only most recent visit & ticklers","")) -> Show only most recent visit & ticklers | F80: 1 | G80: 12 | I80: =IF(I79=" "," ",(IF(H67="1-week follow-up schedule",IF(J79="",I79+7,IF(ISERROR(J79+7),I79+7,J79+7)),IF(H67="1-month follow-up schedule",IF(J79="",I79+30,IF(ISERROR(J79+30),I79+30,J79+30)),IF(J79="",I79+14,IF(ISERROR(J79+14),I79+14,J79+14)))))) -> 2017-05-14 | J80: 2017-06-02 | K80: In person at clinic | L80: 15 | M80: =IF(L80=".","",IF(ISERROR((L80/L67)-1),"",((L80/L67)-1))) -> -0.3181818182 | N80: 14 | O80: =IF(N80=".","",IF(ISERROR((N80/N67)-1),"",((N80/N67)-1))) -> -0.2222222222 | T80: 1 | U80: 1pt1678 | V80: 42888
A81: =IF(A80<>"",A80,"") -> 1678 | B81: Susan Test | C81: Active | D81: =IF(AND(E81=" ",F67>F81), "DESELECT to hide past tx episodes",IF(OR(E81="Past due",E81="contact due today",E81="contact due in 1 day",E81="contact due in 2 days",E81="contact due in 3 days",E81="contact due in 4 days",E81="contact due in 5 days",AND(J81<>"",OR(J82="",A81<>A82))),"Show only most recent visit & ticklers","")) -> Show only most recent visit & ticklers | E81: Past Due | H81: 2017-06-16 | I81: =IF(I80=" "," ",(IF(H67="1-week follow-up schedule",IF(J80="",I80+7,IF(ISERROR(J80+7),I80+7,J80+7)),IF(H67="1-month follow-up schedule",IF(J80="",I80+30,IF(ISERROR(J80+30),I80+30,J80+30)),IF(J80="",I80+14,IF(ISERROR(J80+14),I80+14,J80+14)))))) -> 2017-06-16 | L81: . | M81: =IF(L81=".","",IF(ISERROR((L81/L67)-1),"",((L81/L67)-1))) ->  | N81: . | O81: =IF(N81=".","",IF(ISERROR((N81/N67)-1),"",((N81/N67)-1))) ->  | T81: 0 | U81: 0pt1678 | V81: 9999999
A82: =IF(A81<>"",A81,"") -> 1678 | B82: Susan Test | C82: Active | D82: =IF(AND(E82=" ",F67>F82), "DESELECT to hide past tx episodes",IF(OR(E82="Past due",E82="contact due today",E82="contact due in 1 day",E82="contact due in 2 days",E82="contact due in 3 days",E82="contact due in 4 days",E82="contact due in 5 days",AND(J82<>"",OR(J83="",A82<>A83))),"Show only most recent visit & ticklers","")) -> Show only most recent visit & ticklers | E82: Past Due | H82: 2017-06-30 | I82: =IF(I81=" "," ",(IF(H67="1-week follow-up schedule",IF(J81="",I81+7,IF(ISERROR(J81+7),I81+7,J81+7)),IF(H67="1-month follow-up schedule",IF(J81="",I81+30,IF(ISERROR(J81+30),I81+30,J81+30)),IF(J81="",I81+14,IF(ISERROR(J81+14),I81+14,J81+14)))))) -> 2017-06-30 | L82: . | M82: =IF(L82=".","",IF(ISERROR((L82/L67)-1),"",((L82/L67)-1))) ->  | N82: . | O82: =IF(N82=".","",IF(ISERROR((N82/N67)-1),"",((N82/N67)-1))) ->  | T82: 0 | U82: 0pt1678 | V82: 9999999
A83: 6789 | B83: Nancy Fake | C83: Active | D83: =IF(A83<>"","Show Initial Assessment row","") -> Show Initial Assessment row | F83: =MAX(IF(A84:A130=A83,F84:F130,"")) -> 1 | G83: Current Episode Initial Assessment | H83: 2-week follow-up schedule | J83: =IF(W83<>0,W83,"") -> 2017-05-29 | L83: =IF(Y83="no score",Y83,X83) -> No score | N83: =IF(AA83="no score",AA83,Z83) -> No score | R83: =IF(S83<>0,S83,"") ->  | S83: =MAX(IF(A84:A130=A83,R84:R130,"")) -> 00:00:00 | T83: =MAX(IF(A84:A130=A83,F84:F130,"")) -> 1 | U83: =T83&"pt"&A83 -> 1pt6789 | W83: =MIN(IF(U84:U130=U83,V84:V130,"")) -> 2017-05-29 | X83: =MAX(IF('Data Prep'!S82:S140="initial score"&'Patient Tracking'!A83,'Data Prep'!Z82:Z140,"")) -> 0 | Y83: =IF(ISNA(MATCH("initial score"&'Patient Tracking'!A83,'Data Prep'!S82:S140,0)),"No score","") -> No score | Z83: =MAX(IF('Data Prep'!T82:T140="initial score"&'Patient Tracking'!A83,'Data Prep'!AD82:AD140,"")) -> 0 | AA83: =IF(ISNA(MATCH("initial score"&'Patient Tracking'!A83,'Data Prep'!T82:T140,0)),"No score","") -> No score
A84: =IF(A83<>"",A83,"") -> 6789 | B84: =IF(B83<>"",B83,"") -> Nancy Fake | C84: =IF(C83<>"",C83,"") -> Active | D84: =IF(AND(E84=" ",F83>F84), "DESELECT to hide past tx episodes",IF(OR(E84="Past due",E84="contact due today",E84="contact due in 1 day",E84="contact due in 2 days",E84="contact due in 3 days",E84="contact due in 4 days",E84="contact due in 5 days",AND(J84<>"",OR(J85="",A84<>A85))),"Show only most recent visit & ticklers","")) -> Show only most recent visit & ticklers | E84: =IF(C83="Active",IF(J84="",IF(I84<TODAY(), "Past Due",(IF(I84=TODAY(),"Contact due today",IF(I84=(TODAY()+1), "Contact due in 1 day",IF(I84=(TODAY()+2), "Contact due in 2 days",IF(I84=(TODAY()+3), "Contact due in 3 days",IF(I84=(TODAY()+4), "Contact due in 4 days",IF(I84=(TODAY()+5), "Contact due in 5 days"," "))))))))," ")," ") ->  | F84: 1 | G84: Initial Assessment | H84: =IF(J84<>"","",I84) ->  | I84: =IF(H83="1-week follow-up schedule",IF(J83=""," ",IF(ISERROR(J83+7)," ",J83+7)),IF(H83="1-month follow-up schedule",IF(J83=""," ",IF(ISERROR(J83+30)," ",J83+30)),IF(J83=""," ",IF(ISERROR(J83+14)," ",J83+14)))) -> 2017-06-12 | J84: 2017-05-29 | K84: In person at clinic | L84: . | M84: =IF(L84=".","",IF(ISERROR((L84/L83)-1),"",((L84/L83)-1))) ->  | N84: . | O84: =IF(N84=".","",IF(ISERROR((N84/N83)-1),"",((N84/N83)-1))) ->  | P84: Did not have time to administer scales | T84: =F84 -> 1 | U84: =T84&"pt"&A84 -> 1pt6789 | V84: =IF(J84<>0,J84,9999999) -> 42884
A85: =IF(A84<>"",A84,"") -> 6789 | B85: Nancy Fake | C85: Active | D85: =IF(AND(E85=" ",F83>F85), "DESELECT to hide past tx episodes",IF(OR(E85="Past due",E85="contact due today",E85="contact due in 1 day",E85="contact due in 2 days",E85="contact due in 3 days",E85="contact due in 4 days",E85="contact due in 5 days",AND(J85<>"",OR(J86="",A85<>A86))),"Show only most recent visit & ticklers","")) -> Show only most recent visit & ticklers | E85: =IF(OR(C84="Active",C84="Relapse Prevention"),IF(J85="",IF(I85<TODAY(), "Past Due",(IF(I85=TODAY(),"Contact due today",IF(I85=(TODAY()+1), "Contact due in 1 day",IF(I85=(TODAY()+2), "Contact due in 2 days",IF(I85=(TODAY()+3), "Contact due in 3 days",IF(I85=(TODAY()+4), "Contact due in 4 days",IF(I85=(TODAY()+5), "Contact due in 5 days"," "))))))))," ")," ") -> Past Due | G85: =IF(AND(F85=F84,F85<>""),IFERROR(G84+1,1),IF(F85<>"","Initial Assessment","")) ->  | H85: =IF(J85<>"","",I85) -> 2017-06-12 | I85: =IF(I84=" "," ",(IF(H83="1-week follow-up schedule",IF(J84="",I84+7,IF(ISERROR(J84+7),I84+7,J84+7)),IF(H83="1-month follow-up schedule",IF(J84="",I84+30,IF(ISERROR(J84+30),I84+30,J84+30)),IF(J84="",I84+14,IF(ISERROR(J84+14),I84+14,J84+14)))))) -> 2017-06-12 | L85: . | M85: =IF(L85=".","",IF(ISERROR((L85/L83)-1),"",((L85/L83)-1))) ->  | N85: . | O85: =IF(N85=".","",IF(ISERROR((N85/N83)-1),"",((N85/N83)-1))) ->  | T85: =F85 -> 0 | U85: =T85&"pt"&A85 -> 0pt6789 | V85: =IF(J85<>0,J85,9999999) -> 9999999
A86: =IF(A85<>"",A85,"") -> 6789 | B86: Nancy Fake | C86: Active | D86: =IF(AND(E86=" ",F83>F86), "DESELECT to hide past tx episodes",IF(OR(E86="Past due",E86="contact due today",E86="contact due in 1 day",E86="contact due in 2 days",E86="contact due in 3 days",E86="contact due in 4 days",E86="contact due in 5 days",AND(J86<>"",OR(J87="",A86<>A87))),"Show only most recent visit & ticklers","")) -> Show only most recent visit & ticklers | E86: =IF(OR(C85="Active",C85="Relapse Prevention"),IF(J86="",IF(I86<TODAY(), "Past Due",(IF(I86=TODAY(),"Contact due today",IF(I86=(TODAY()+1), "Contact due in 1 day",IF(I86=(TODAY()+2), "Contact due in 2 days",IF(I86=(TODAY()+3), "Contact due in 3 days",IF(I86=(TODAY()+4), "Contact due in 4 days",IF(I86=(TODAY()+5), "Contact due in 5 days"," "))))))))," ")," ") -> Past Due | H86: 2017-06-26 | I86: =IF(I85=" "," ",(IF(H83="1-week follow-up schedule",IF(J85="",I85+7,IF(ISERROR(J85+7),I85+7,J85+7)),IF(H83="1-month follow-up schedule",IF(J85="",I85+30,IF(ISERROR(J85+30),I85+30,J85+30)),IF(J85="",I85+14,IF(ISERROR(J85+14),I85+14,J85+14)))))) -> 2017-06-26 | L86: . | M86: =IF(L86=".","",IF(ISERROR((L86/L83)-1),"",((L86/L83)-1))) ->  | N86: . | O86: =IF(N86=".","",IF(ISERROR((N86/N83)-1),"",((N86/N83)-1))) ->  | T86: 0 | U86: 0pt6789 | V86: 9999999
A87: =IF(A86<>"",A86,"") -> 6789 | B87: Nancy Fake | C87: Active | D87: =IF(AND(E87=" ",F83>F87), "DESELECT to hide past tx episodes",IF(OR(E87="Past due",E87="contact due today",E87="contact due in 1 day",E87="contact due in 2 days",E87="contact due in 3 days",E87="contact due in 4 days",E87="contact due in 5 days",AND(J87<>"",OR(J88="",A87<>A88))),"Show only most recent visit & ticklers","")) -> Show only most recent visit & ticklers | E87: Past Due | H87: 2017-07-10 | I87: =IF(I86=" "," ",(IF(H83="1-week follow-up schedule",IF(J86="",I86+7,IF(ISERROR(J86+7),I86+7,J86+7)),IF(H83="1-month follow-up schedule",IF(J86="",I86+30,IF(ISERROR(J86+30),I86+30,J86+30)),IF(J86="",I86+14,IF(ISERROR(J86+14),I86+14,J86+14)))))) -> 2017-07-10 | L87: . | M87: =IF(L87=".","",IF(ISERROR((L87/L83)-1),"",((L87/L83)-1))) ->  | N87: . | O87: =IF(N87=".","",IF(ISERROR((N87/N83)-1),"",((N87/N83)-1))) ->  | T87: 0 | U87: 0pt6789 | V87: 9999999
A88: =IF(A87<>"",A87,"") -> 6789 | B88: Nancy Fake | C88: Active | D88: =IF(AND(E88=" ",F83>F88), "DESELECT to hide past tx episodes",IF(OR(E88="Past due",E88="contact due today",E88="contact due in 1 day",E88="contact due in 2 days",E88="contact due in 3 days",E88="contact due in 4 days",E88="contact due in 5 days",AND(J88<>"",OR(J89="",A88<>A89))),"Show only most recent visit & ticklers","")) -> DESELECT to hide past tx episodes | H88: 2017-07-24 | I88: =IF(I87=" "," ",(IF(H83="1-week follow-up schedule",IF(J87="",I87+7,IF(ISERROR(J87+7),I87+7,J87+7)),IF(H83="1-month follow-up schedule",IF(J87="",I87+30,IF(ISERROR(J87+30),I87+30,J87+30)),IF(J87="",I87+14,IF(ISERROR(J87+14),I87+14,J87+14)))))) -> 2017-07-24 | L88: . | M88: =IF(L88=".","",IF(ISERROR((L88/L83)-1),"",((L88/L83)-1))) ->  | N88: . | O88: =IF(N88=".","",IF(ISERROR((N88/N83)-1),"",((N88/N83)-1))) ->  | T88: 0 | U88: 0pt6789 | V88: 9999999
A89: =IF(A88<>"",A88,"") -> 6789 | B89: Nancy Fake | C89: Active | D89: =IF(AND(E89=" ",F83>F89), "DESELECT to hide past tx episodes",IF(OR(E89="Past due",E89="contact due today",E89="contact due in 1 day",E89="contact due in 2 days",E89="contact due in 3 days",E89="contact due in 4 days",E89="contact due in 5 days",AND(J89<>"",OR(J90="",A89<>A90))),"Show only most recent visit & ticklers","")) -> DESELECT to hide past tx episodes | H89: 2017-08-07 | I89: =IF(I88=" "," ",(IF(H83="1-week follow-up schedule",IF(J88="",I88+7,IF(ISERROR(J88+7),I88+7,J88+7)),IF(H83="1-month follow-up schedule",IF(J88="",I88+30,IF(ISERROR(J88+30),I88+30,J88+30)),IF(J88="",I88+14,IF(ISERROR(J88+14),I88+14,J88+14)))))) -> 2017-08-07 | L89: . | M89: =IF(L89=".","",IF(ISERROR((L89/L83)-1),"",((L89/L83)-1))) ->  | N89: . | O89: =IF(N89=".","",IF(ISERROR((N89/N83)-1),"",((N89/N83)-1))) ->  | T89: 0 | U89: 0pt6789 | V89: 9999999
A90: =IF(A89<>"",A89,"") -> 6789 | B90: Nancy Fake | C90: Active | D90: =IF(AND(E90=" ",F83>F90), "DESELECT to hide past tx episodes",IF(OR(E90="Past due",E90="contact due today",E90="contact due in 1 day",E90="contact due in 2 days",E90="contact due in 3 days",E90="contact due in 4 days",E90="contact due in 5 days",AND(J90<>"",OR(J91="",A90<>A91))),"Show only most recent visit & ticklers","")) -> DESELECT to hide past tx episodes | H90: 2017-08-21 | I90: =IF(I89=" "," ",(IF(H83="1-week follow-up schedule",IF(J89="",I89+7,IF(ISERROR(J89+7),I89+7,J89+7)),IF(H83="1-month follow-up schedule",IF(J89="",I89+30,IF(ISERROR(J89+30),I89+30,J89+30)),IF(J89="",I89+14,IF(ISERROR(J89+14),I89+14,J89+14)))))) -> 2017-08-21 | L90: . | M90: =IF(L90=".","",IF(ISERROR((L90/L83)-1),"",((L90/L83)-1))) ->  | N90: . | O90: =IF(N90=".","",IF(ISERROR((N90/N83)-1),"",((N90/N83)-1))) ->  | T90: 0 | U90: 0pt6789 | V90: 9999999
A91: =IF(A90<>"",A90,"") -> 6789 | B91: Nancy Fake | C91: Active | D91: =IF(AND(E91=" ",F83>F91), "DESELECT to hide past tx episodes",IF(OR(E91="Past due",E91="contact due today",E91="contact due in 1 day",E91="contact due in 2 days",E91="contact due in 3 days",E91="contact due in 4 days",E91="contact due in 5 days",AND(J91<>"",OR(J92="",A91<>A92))),"Show only most recent visit & ticklers","")) -> DESELECT to hide past tx episodes | H91: 2017-09-04 | I91: =IF(I90=" "," ",(IF(H83="1-week follow-up schedule",IF(J90="",I90+7,IF(ISERROR(J90+7),I90+7,J90+7)),IF(H83="1-month follow-up schedule",IF(J90="",I90+30,IF(ISERROR(J90+30),I90+30,J90+30)),IF(J90="",I90+14,IF(ISERROR(J90+14),I90+14,J90+14)))))) -> 2017-09-04 | L91: . | M91: =IF(L91=".","",IF(ISERROR((L91/L83)-1),"",((L91/L83)-1))) ->  | N91: . | O91: =IF(N91=".","",IF(ISERROR((N91/N83)-1),"",((N91/N83)-1))) ->  | T91: 0 | U91: 0pt6789 | V91: 9999999
A92: =IF(A91<>"",A91,"") -> 6789 | B92: Nancy Fake | C92: Active | D92: =IF(AND(E92=" ",F83>F92), "DESELECT to hide past tx episodes",IF(OR(E92="Past due",E92="contact due today",E92="contact due in 1 day",E92="contact due in 2 days",E92="contact due in 3 days",E92="contact due in 4 days",E92="contact due in 5 days",AND(J92<>"",OR(J93="",A92<>A93))),"Show only most recent visit & ticklers","")) -> DESELECT to hide past tx episodes | H92: 2017-09-18 | I92: =IF(I91=" "," ",(IF(H83="1-week follow-up schedule",IF(J91="",I91+7,IF(ISERROR(J91+7),I91+7,J91+7)),IF(H83="1-month follow-up schedule",IF(J91="",I91+30,IF(ISERROR(J91+30),I91+30,J91+30)),IF(J91="",I91+14,IF(ISERROR(J91+14),I91+14,J91+14)))))) -> 2017-09-18 | L92: . | M92: =IF(L92=".","",IF(ISERROR((L92/L83)-1),"",((L92/L83)-1))) ->  | N92: . | O92: =IF(N92=".","",IF(ISERROR((N92/N83)-1),"",((N92/N83)-1))) ->  | T92: 0 | U92: 0pt6789 | V92: 9999999
A93: =IF(A92<>"",A92,"") -> 6789 | B93: Nancy Fake | C93: Active | D93: =IF(AND(E93=" ",F83>F93), "DESELECT to hide past tx episodes",IF(OR(E93="Past due",E93="contact due today",E93="contact due in 1 day",E93="contact due in 2 days",E93="contact due in 3 days",E93="contact due in 4 days",E93="contact due in 5 days",AND(J93<>"",OR(J94="",A93<>A94))),"Show only most recent visit & ticklers","")) -> DESELECT to hide past tx episodes | H93: 2017-10-02 | I93: =IF(I92=" "," ",(IF(H83="1-week follow-up schedule",IF(J92="",I92+7,IF(ISERROR(J92+7),I92+7,J92+7)),IF(H83="1-month follow-up schedule",IF(J92="",I92+30,IF(ISERROR(J92+30),I92+30,J92+30)),IF(J92="",I92+14,IF(ISERROR(J92+14),I92+14,J92+14)))))) -> 2017-10-02 | L93: . | M93: =IF(L93=".","",IF(ISERROR((L93/L83)-1),"",((L93/L83)-1))) ->  | N93: . | O93: =IF(N93=".","",IF(ISERROR((N93/N83)-1),"",((N93/N83)-1))) ->  | T93: 0 | U93: 0pt6789 | V93: 9999999
A94: =IF(A93<>"",A93,"") -> 6789 | B94: Nancy Fake | C94: Active | D94: =IF(AND(E94=" ",F83>F94), "DESELECT to hide past tx episodes",IF(OR(E94="Past due",E94="contact due today",E94="contact due in 1 day",E94="contact due in 2 days",E94="contact due in 3 days",E94="contact due in 4 days",E94="contact due in 5 days",AND(J94<>"",OR(J95="",A94<>A95))),"Show only most recent visit & ticklers","")) -> DESELECT to hide past tx episodes | H94: 2017-10-16 | I94: =IF(I93=" "," ",(IF(H83="1-week follow-up schedule",IF(J93="",I93+7,IF(ISERROR(J93+7),I93+7,J93+7)),IF(H83="1-month follow-up schedule",IF(J93="",I93+30,IF(ISERROR(J93+30),I93+30,J93+30)),IF(J93="",I93+14,IF(ISERROR(J93+14),I93+14,J93+14)))))) -> 2017-10-16 | L94: . | M94: =IF(L94=".","",IF(ISERROR((L94/L83)-1),"",((L94/L83)-1))) ->  | N94: . | O94: =IF(N94=".","",IF(ISERROR((N94/N83)-1),"",((N94/N83)-1))) ->  | T94: 0 | U94: 0pt6789 | V94: 9999999
A95: =IF(A94<>"",A94,"") -> 6789 | B95: Nancy Fake | C95: Active | D95: =IF(AND(E95=" ",F83>F95), "DESELECT to hide past tx episodes",IF(OR(E95="Past due",E95="contact due today",E95="contact due in 1 day",E95="contact due in 2 days",E95="contact due in 3 days",E95="contact due in 4 days",E95="contact due in 5 days",AND(J95<>"",OR(J96="",A95<>A96))),"Show only most recent visit & ticklers","")) -> DESELECT to hide past tx episodes | H95: 2017-10-30 | I95: =IF(I94=" "," ",(IF(H83="1-week follow-up schedule",IF(J94="",I94+7,IF(ISERROR(J94+7),I94+7,J94+7)),IF(H83="1-month follow-up schedule",IF(J94="",I94+30,IF(ISERROR(J94+30),I94+30,J94+30)),IF(J94="",I94+14,IF(ISERROR(J94+14),I94+14,J94+14)))))) -> 2017-10-30 | L95: . | M95: =IF(L95=".","",IF(ISERROR((L95/L83)-1),"",((L95/L83)-1))) ->  | N95: . | O95: =IF(N95=".","",IF(ISERROR((N95/N83)-1),"",((N95/N83)-1))) ->  | T95: 0 | U95: 0pt6789 | V95: 9999999
A96: =IF(A95<>"",A95,"") -> 6789 | B96: Nancy Fake | C96: Active | D96: =IF(AND(E96=" ",F83>F96), "DESELECT to hide past tx episodes",IF(OR(E96="Past due",E96="contact due today",E96="contact due in 1 day",E96="contact due in 2 days",E96="contact due in 3 days",E96="contact due in 4 days",E96="contact due in 5 days",AND(J96<>"",OR(J97="",A96<>A97))),"Show only most recent visit & ticklers","")) -> DESELECT to hide past tx episodes | H96: 2017-11-13 | I96: =IF(I95=" "," ",(IF(H83="1-week follow-up schedule",IF(J95="",I95+7,IF(ISERROR(J95+7),I95+7,J95+7)),IF(H83="1-month follow-up schedule",IF(J95="",I95+30,IF(ISERROR(J95+30),I95+30,J95+30)),IF(J95="",I95+14,IF(ISERROR(J95+14),I95+14,J95+14)))))) -> 2017-11-13 | L96: . | M96: =IF(L96=".","",IF(ISERROR((L96/L83)-1),"",((L96/L83)-1))) ->  | N96: . | O96: =IF(N96=".","",IF(ISERROR((N96/N83)-1),"",((N96/N83)-1))) ->  | T96: 0 | U96: 0pt6789 | V96: 9999999
A97: =IF(A96<>"",A96,"") -> 6789 | B97: Nancy Fake | C97: Active | D97: =IF(AND(E97=" ",F83>F97), "DESELECT to hide past tx episodes",IF(OR(E97="Past due",E97="contact due today",E97="contact due in 1 day",E97="contact due in 2 days",E97="contact due in 3 days",E97="contact due in 4 days",E97="contact due in 5 days",AND(J97<>"",OR(J98="",A97<>A98))),"Show only most recent visit & ticklers","")) -> DESELECT to hide past tx episodes | H97: 2017-11-27 | I97: =IF(I96=" "," ",(IF(H83="1-week follow-up schedule",IF(J96="",I96+7,IF(ISERROR(J96+7),I96+7,J96+7)),IF(H83="1-month follow-up schedule",IF(J96="",I96+30,IF(ISERROR(J96+30),I96+30,J96+30)),IF(J96="",I96+14,IF(ISERROR(J96+14),I96+14,J96+14)))))) -> 2017-11-27 | L97: . | M97: =IF(L97=".","",IF(ISERROR((L97/L83)-1),"",((L97/L83)-1))) ->  | N97: . | O97: =IF(N97=".","",IF(ISERROR((N97/N83)-1),"",((N97/N83)-1))) ->  | T97: 0 | U97: 0pt6789 | V97: 9999999
A98: =IF(A97<>"",A97,"") -> 6789 | B98: Nancy Fake | C98: Active | D98: =IF(AND(E98=" ",F83>F98), "DESELECT to hide past tx episodes",IF(OR(E98="Past due",E98="contact due today",E98="contact due in 1 day",E98="contact due in 2 days",E98="contact due in 3 days",E98="contact due in 4 days",E98="contact due in 5 days",AND(J98<>"",OR(J99="",A98<>A99))),"Show only most recent visit & ticklers","")) -> DESELECT to hide past tx episodes | H98: 2017-12-11 | I98: =IF(I97=" "," ",(IF(H83="1-week follow-up schedule",IF(J97="",I97+7,IF(ISERROR(J97+7),I97+7,J97+7)),IF(H83="1-month follow-up schedule",IF(J97="",I97+30,IF(ISERROR(J97+30),I97+30,J97+30)),IF(J97="",I97+14,IF(ISERROR(J97+14),I97+14,J97+14)))))) -> 2017-12-11 | L98: . | M98: =IF(L98=".","",IF(ISERROR((L98/L83)-1),"",((L98/L83)-1))) ->  | N98: . | O98: =IF(N98=".","",IF(ISERROR((N98/N83)-1),"",((N98/N83)-1))) ->  | T98: 0 | U98: 0pt6789 | V98: 9999999
A99: 2500 | B99: Betty Test | C99: Relapse Prevention | D99: =IF(A99<>"","Show Initial Assessment row","") -> Show Initial Assessment row | F99: =MAX(IF(A100:A146=A99,F100:F146,"")) -> 1 | G99: Current Episode Initial Assessment | H99: 1-month follow-up schedule | J99: =IF(W99<>0,W99,"") -> 2016-12-15 | L99: =IF(Y99="no score",Y99,X99) -> 12 | N99: =IF(AA99="no score",AA99,Z99) -> 9 | R99: =IF(S99<>0,S99,"") ->  | S99: =MAX(IF(A100:A146=A99,R100:R146,"")) -> 00:00:00 | T99: =MAX(IF(A100:A146=A99,F100:F146,"")) -> 1 | U99: =T99&"pt"&A99 -> 1pt2500 | W99: =MIN(IF(U100:U146=U99,V100:V146,"")) -> 2016-12-15 | X99: =MAX(IF('Data Prep'!S98:S156="initial score"&'Patient Tracking'!A99,'Data Prep'!Z98:Z156,"")) -> 12 | Y99: =IF(ISNA(MATCH("initial score"&'Patient Tracking'!A99,'Data Prep'!S98:S156,0)),"No score","") ->  | Z99: =MAX(IF('Data Prep'!T98:T156="initial score"&'Patient Tracking'!A99,'Data Prep'!AD98:AD156,"")) -> 9 | AA99: =IF(ISNA(MATCH("initial score"&'Patient Tracking'!A99,'Data Prep'!T98:T156,0)),"No score","") -> 
A100: =IF(A99<>"",A99,"") -> 2500 | B100: =IF(B99<>"",B99,"") -> Betty Test | C100: =IF(C99<>"",C99,"") -> Relapse Prevention | D100: =IF(AND(E100=" ",F99>F100), "DESELECT to hide past tx episodes",IF(OR(E100="Past due",E100="contact due today",E100="contact due in 1 day",E100="contact due in 2 days",E100="contact due in 3 days",E100="contact due in 4 days",E100="contact due in 5 days",AND(J100<>"",OR(J101="",A100<>A101))),"Show only most recent visit & ticklers","")) ->  | E100: =IF(C99="Active",IF(J100="",IF(I100<TODAY(), "Past Due",(IF(I100=TODAY(),"Contact due today",IF(I100=(TODAY()+1), "Contact due in 1 day",IF(I100=(TODAY()+2), "Contact due in 2 days",IF(I100=(TODAY()+3), "Contact due in 3 days",IF(I100=(TODAY()+4), "Contact due in 4 days",IF(I100=(TODAY()+5), "Contact due in 5 days"," "))))))))," ")," ") ->  | F100: 1 | G100: Initial Assessment | H100: =IF(J100<>"","",I100) ->  | I100: =IF(H99="1-week follow-up schedule",IF(J99=""," ",IF(ISERROR(J99+7)," ",J99+7)),IF(H99="1-month follow-up schedule",IF(J99=""," ",IF(ISERROR(J99+30)," ",J99+30)),IF(J99=""," ",IF(ISERROR(J99+14)," ",J99+14)))) -> 2017-01-14 | J100: 2016-12-15 | L100: 12 | M100: =IF(L100=".","",IF(ISERROR((L100/L99)-1),"",((L100/L99)-1))) -> 0 | N100: 9 | O100: =IF(N100=".","",IF(ISERROR((N100/N99)-1),"",((N100/N99)-1))) -> 0 | T100: =F100 -> 1 | U100: =T100&"pt"&A100 -> 1pt2500 | V100: =IF(J100<>0,J100,9999999) -> 42719
A101: =IF(A100<>"",A100,"") -> 2500 | B101: Betty Test | C101: Relapse Prevention | D101: =IF(AND(E101=" ",F99>F101), "DESELECT to hide past tx episodes",IF(OR(E101="Past due",E101="contact due today",E101="contact due in 1 day",E101="contact due in 2 days",E101="contact due in 3 days",E101="contact due in 4 days",E101="contact due in 5 days",AND(J101<>"",OR(J102="",A101<>A102))),"Show only most recent visit & ticklers","")) ->  | E101: =IF(OR(C100="Active",C100="Relapse Prevention"),IF(J101="",IF(I101<TODAY(), "Past Due",(IF(I101=TODAY(),"Contact due today",IF(I101=(TODAY()+1), "Contact due in 1 day",IF(I101=(TODAY()+2), "Contact due in 2 days",IF(I101=(TODAY()+3), "Contact due in 3 days",IF(I101=(TODAY()+4), "Contact due in 4 days",IF(I101=(TODAY()+5), "Contact due in 5 days"," "))))))))," ")," ") ->  | F101: 1 | G101: =IF(AND(F101=F100,F101<>""),IFERROR(G100+1,1),IF(F101<>"","Initial Assessment","")) -> 1 | H101: =IF(J101<>"","",I101) ->  | I101: =IF(I100=" "," ",(IF(H99="1-week follow-up schedule",IF(J100="",I100+7,IF(ISERROR(J100+7),I100+7,J100+7)),IF(H99="1-month follow-up schedule",IF(J100="",I100+30,IF(ISERROR(J100+30),I100+30,J100+30)),IF(J100="",I100+14,IF(ISERROR(J100+14),I100+14,J100+14)))))) -> 2017-01-14 | J101: 2016-12-29 | L101: 9 | M101: =IF(L101=".","",IF(ISERROR((L101/L99)-1),"",((L101/L99)-1))) -> -0.25 | N101: 7 | O101: =IF(N101=".","",IF(ISERROR((N101/N99)-1),"",((N101/N99)-1))) -> -0.2222222222 | T101: =F101 -> 1 | U101: =T101&"pt"&A101 -> 1pt2500 | V101: =IF(J101<>0,J101,9999999) -> 42733
A102: =IF(A101<>"",A101,"") -> 2500 | B102: Betty Test | C102: Relapse Prevention | D102: =IF(AND(E102=" ",F99>F102), "DESELECT to hide past tx episodes",IF(OR(E102="Past due",E102="contact due today",E102="contact due in 1 day",E102="contact due in 2 days",E102="contact due in 3 days",E102="contact due in 4 days",E102="contact due in 5 days",AND(J102<>"",OR(J103="",A102<>A103))),"Show only most recent visit & ticklers","")) ->  | E102: =IF(OR(C101="Active",C101="Relapse Prevention"),IF(J102="",IF(I102<TODAY(), "Past Due",(IF(I102=TODAY(),"Contact due today",IF(I102=(TODAY()+1), "Contact due in 1 day",IF(I102=(TODAY()+2), "Contact due in 2 days",IF(I102=(TODAY()+3), "Contact due in 3 days",IF(I102=(TODAY()+4), "Contact due in 4 days",IF(I102=(TODAY()+5), "Contact due in 5 days"," "))))))))," ")," ") ->  | F102: 1 | G102: 2 | I102: =IF(I101=" "," ",(IF(H99="1-week follow-up schedule",IF(J101="",I101+7,IF(ISERROR(J101+7),I101+7,J101+7)),IF(H99="1-month follow-up schedule",IF(J101="",I101+30,IF(ISERROR(J101+30),I101+30,J101+30)),IF(J101="",I101+14,IF(ISERROR(J101+14),I101+14,J101+14)))))) -> 2017-01-28 | J102: 2017-01-12 | L102: 7 | M102: =IF(L102=".","",IF(ISERROR((L102/L99)-1),"",((L102/L99)-1))) -> -0.4166666667 | N102: 8 | O102: =IF(N102=".","",IF(ISERROR((N102/N99)-1),"",((N102/N99)-1))) -> -0.1111111111 | T102: 1 | U102: 1pt2500 | V102: 42747
A103: =IF(A102<>"",A102,"") -> 2500 | B103: Betty Test | C103: Relapse Prevention | D103: =IF(AND(E103=" ",F99>F103), "DESELECT to hide past tx episodes",IF(OR(E103="Past due",E103="contact due today",E103="contact due in 1 day",E103="contact due in 2 days",E103="contact due in 3 days",E103="contact due in 4 days",E103="contact due in 5 days",AND(J103<>"",OR(J104="",A103<>A104))),"Show only most recent visit & ticklers","")) ->  | F103: 1 | G103: 3 | I103: =IF(I102=" "," ",(IF(H99="1-week follow-up schedule",IF(J102="",I102+7,IF(ISERROR(J102+7),I102+7,J102+7)),IF(H99="1-month follow-up schedule",IF(J102="",I102+30,IF(ISERROR(J102+30),I102+30,J102+30)),IF(J102="",I102+14,IF(ISERROR(J102+14),I102+14,J102+14)))))) -> 2017-02-11 | J103: 2017-01-25 | L103: 8 | M103: =IF(L103=".","",IF(ISERROR((L103/L99)-1),"",((L103/L99)-1))) -> -0.3333333333 | N103: 5 | O103: =IF(N103=".","",IF(ISERROR((N103/N99)-1),"",((N103/N99)-1))) -> -0.4444444444 | T103: 1 | U103: 1pt2500 | V103: 42760
A104: =IF(A103<>"",A103,"") -> 2500 | B104: Betty Test | C104: Relapse Prevention | D104: =IF(AND(E104=" ",F99>F104), "DESELECT to hide past tx episodes",IF(OR(E104="Past due",E104="contact due today",E104="contact due in 1 day",E104="contact due in 2 days",E104="contact due in 3 days",E104="contact due in 4 days",E104="contact due in 5 days",AND(J104<>"",OR(J105="",A104<>A105))),"Show only most recent visit & ticklers","")) ->  | F104: 1 | G104: 4 | I104: =IF(I103=" "," ",(IF(H99="1-week follow-up schedule",IF(J103="",I103+7,IF(ISERROR(J103+7),I103+7,J103+7)),IF(H99="1-month follow-up schedule",IF(J103="",I103+30,IF(ISERROR(J103+30),I103+30,J103+30)),IF(J103="",I103+14,IF(ISERROR(J103+14),I103+14,J103+14)))))) -> 2017-02-24 | J104: 2017-02-09 | L104: 6 | M104: =IF(L104=".","",IF(ISERROR((L104/L99)-1),"",((L104/L99)-1))) -> -0.5 | N104: 6 | O104: =IF(N104=".","",IF(ISERROR((N104/N99)-1),"",((N104/N99)-1))) -> -0.3333333333 | T104: 1 | U104: 1pt2500 | V104: 42775
A105: =IF(A104<>"",A104,"") -> 2500 | B105: Betty Test | C105: Relapse Prevention | D105: =IF(AND(E105=" ",F99>F105), "DESELECT to hide past tx episodes",IF(OR(E105="Past due",E105="contact due today",E105="contact due in 1 day",E105="contact due in 2 days",E105="contact due in 3 days",E105="contact due in 4 days",E105="contact due in 5 days",AND(J105<>"",OR(J106="",A105<>A106))),"Show only most recent visit & ticklers","")) ->  | F105: 1 | G105: 5 | I105: =IF(I104=" "," ",(IF(H99="1-week follow-up schedule",IF(J104="",I104+7,IF(ISERROR(J104+7),I104+7,J104+7)),IF(H99="1-month follow-up schedule",IF(J104="",I104+30,IF(ISERROR(J104+30),I104+30,J104+30)),IF(J104="",I104+14,IF(ISERROR(J104+14),I104+14,J104+14)))))) -> 2017-03-11 | J105: 2017-02-20 | L105: 4 | M105: =IF(L105=".","",IF(ISERROR((L105/L99)-1),"",((L105/L99)-1))) -> -0.6666666667 | N105: 4 | O105: =IF(N105=".","",IF(ISERROR((N105/N99)-1),"",((N105/N99)-1))) -> -0.5555555556 | T105: 1 | U105: 1pt2500 | V105: 42786
A106: =IF(A105<>"",A105,"") -> 2500 | B106: Betty Test | C106: Relapse Prevention | D106: =IF(AND(E106=" ",F99>F106), "DESELECT to hide past tx episodes",IF(OR(E106="Past due",E106="contact due today",E106="contact due in 1 day",E106="contact due in 2 days",E106="contact due in 3 days",E106="contact due in 4 days",E106="contact due in 5 days",AND(J106<>"",OR(J107="",A106<>A107))),"Show only most recent visit & ticklers","")) ->  | F106: 1 | G106: 6 | I106: =IF(I105=" "," ",(IF(H99="1-week follow-up schedule",IF(J105="",I105+7,IF(ISERROR(J105+7),I105+7,J105+7)),IF(H99="1-month follow-up schedule",IF(J105="",I105+30,IF(ISERROR(J105+30),I105+30,J105+30)),IF(J105="",I105+14,IF(ISERROR(J105+14),I105+14,J105+14)))))) -> 2017-03-22 | J106: 2017-03-03 | L106: 3 | M106: =IF(L106=".","",IF(ISERROR((L106/L99)-1),"",((L106/L99)-1))) -> -0.75 | N106: 3 | O106: =IF(N106=".","",IF(ISERROR((N106/N99)-1),"",((N106/N99)-1))) -> -0.6666666667 | T106: 1 | U106: 1pt2500 | V106: 42797
A107: =IF(A106<>"",A106,"") -> 2500 | B107: Betty Test | C107: Relapse Prevention | D107: =IF(AND(E107=" ",F99>F107), "DESELECT to hide past tx episodes",IF(OR(E107="Past due",E107="contact due today",E107="contact due in 1 day",E107="contact due in 2 days",E107="contact due in 3 days",E107="contact due in 4 days",E107="contact due in 5 days",AND(J107<>"",OR(J108="",A107<>A108))),"Show only most recent visit & ticklers","")) ->  | F107: 1 | G107: 7 | I107: =IF(I106=" "," ",(IF(H99="1-week follow-up schedule",IF(J106="",I106+7,IF(ISERROR(J106+7),I106+7,J106+7)),IF(H99="1-month follow-up schedule",IF(J106="",I106+30,IF(ISERROR(J106+30),I106+30,J106+30)),IF(J106="",I106+14,IF(ISERROR(J106+14),I106+14,J106+14)))))) -> 2017-04-02 | J107: 2017-03-17 | L107: 4 | M107: =IF(L107=".","",IF(ISERROR((L107/L99)-1),"",((L107/L99)-1))) -> -0.6666666667 | N107: 3 | O107: =IF(N107=".","",IF(ISERROR((N107/N99)-1),"",((N107/N99)-1))) -> -0.6666666667 | T107: 1 | U107: 1pt2500 | V107: 42811
A108: =IF(A107<>"",A107,"") -> 2500 | B108: Betty Test | C108: Relapse Prevention | D108: =IF(AND(E108=" ",F99>F108), "DESELECT to hide past tx episodes",IF(OR(E108="Past due",E108="contact due today",E108="contact due in 1 day",E108="contact due in 2 days",E108="contact due in 3 days",E108="contact due in 4 days",E108="contact due in 5 days",AND(J108<>"",OR(J109="",A108<>A109))),"Show only most recent visit & ticklers","")) ->  | F108: 1 | G108: 8 | I108: =IF(I107=" "," ",(IF(H99="1-week follow-up schedule",IF(J107="",I107+7,IF(ISERROR(J107+7),I107+7,J107+7)),IF(H99="1-month follow-up schedule",IF(J107="",I107+30,IF(ISERROR(J107+30),I107+30,J107+30)),IF(J107="",I107+14,IF(ISERROR(J107+14),I107+14,J107+14)))))) -> 2017-04-16 | J108: 2017-04-16 | L108: 4 | M108: =IF(L108=".","",IF(ISERROR((L108/L99)-1),"",((L108/L99)-1))) -> -0.6666666667 | N108: 2 | O108: =IF(N108=".","",IF(ISERROR((N108/N99)-1),"",((N108/N99)-1))) -> -0.7777777778 | T108: 1 | U108: 1pt2500 | V108: 42841
A109: =IF(A108<>"",A108,"") -> 2500 | B109: Betty Test | C109: Relapse Prevention | D109: =IF(AND(E109=" ",F99>F109), "DESELECT to hide past tx episodes",IF(OR(E109="Past due",E109="contact due today",E109="contact due in 1 day",E109="contact due in 2 days",E109="contact due in 3 days",E109="contact due in 4 days",E109="contact due in 5 days",AND(J109<>"",OR(J110="",A109<>A110))),"Show only most recent visit & ticklers","")) ->  | F109: 1 | G109: 9 | I109: =IF(I108=" "," ",(IF(H99="1-week follow-up schedule",IF(J108="",I108+7,IF(ISERROR(J108+7),I108+7,J108+7)),IF(H99="1-month follow-up schedule",IF(J108="",I108+30,IF(ISERROR(J108+30),I108+30,J108+30)),IF(J108="",I108+14,IF(ISERROR(J108+14),I108+14,J108+14)))))) -> 2017-05-16 | J109: 2017-04-17 | L109: 2 | M109: =IF(L109=".","",IF(ISERROR((L109/L99)-1),"",((L109/L99)-1))) -> -0.8333333333 | N109: 2 | O109: =IF(N109=".","",IF(ISERROR((N109/N99)-1),"",((N109/N99)-1))) -> -0.7777777778 | T109: 1 | U109: 1pt2500 | V109: 42842
A110: =IF(A109<>"",A109,"") -> 2500 | B110: Betty Test | C110: Relapse Prevention | D110: =IF(AND(E110=" ",F99>F110), "DESELECT to hide past tx episodes",IF(OR(E110="Past due",E110="contact due today",E110="contact due in 1 day",E110="contact due in 2 days",E110="contact due in 3 days",E110="contact due in 4 days",E110="contact due in 5 days",AND(J110<>"",OR(J111="",A110<>A111))),"Show only most recent visit & ticklers","")) -> Show only most recent visit & ticklers | F110: 1 | G110: 10 | I110: =IF(I109=" "," ",(IF(H99="1-week follow-up schedule",IF(J109="",I109+7,IF(ISERROR(J109+7),I109+7,J109+7)),IF(H99="1-month follow-up schedule",IF(J109="",I109+30,IF(ISERROR(J109+30),I109+30,J109+30)),IF(J109="",I109+14,IF(ISERROR(J109+14),I109+14,J109+14)))))) -> 2017-05-17 | J110: 2017-05-15 | L110: 1 | M110: =IF(L110=".","",IF(ISERROR((L110/L99)-1),"",((L110/L99)-1))) -> -0.9166666667 | N110: 3 | O110: =IF(N110=".","",IF(ISERROR((N110/N99)-1),"",((N110/N99)-1))) -> -0.6666666667 | T110: 1 | U110: 1pt2500 | V110: 42870
A111: =IF(A110<>"",A110,"") -> 2500 | B111: Betty Test | C111: Relapse Prevention | D111: =IF(AND(E111=" ",F99>F111), "DESELECT to hide past tx episodes",IF(OR(E111="Past due",E111="contact due today",E111="contact due in 1 day",E111="contact due in 2 days",E111="contact due in 3 days",E111="contact due in 4 days",E111="contact due in 5 days",AND(J111<>"",OR(J112="",A111<>A112))),"Show only most recent visit & ticklers","")) -> Show only most recent visit & ticklers | E111: Past Due | H111: 2017-06-14 | I111: =IF(I110=" "," ",(IF(H99="1-week follow-up schedule",IF(J110="",I110+7,IF(ISERROR(J110+7),I110+7,J110+7)),IF(H99="1-month follow-up schedule",IF(J110="",I110+30,IF(ISERROR(J110+30),I110+30,J110+30)),IF(J110="",I110+14,IF(ISERROR(J110+14),I110+14,J110+14)))))) -> 2017-06-14 | L111: . | M111: =IF(L111=".","",IF(ISERROR((L111/L99)-1),"",((L111/L99)-1))) ->  | N111: . | O111: =IF(N111=".","",IF(ISERROR((N111/N99)-1),"",((N111/N99)-1))) ->  | T111: 0 | U111: 0pt2500 | V111: 9999999
A112: =IF(A111<>"",A111,"") -> 2500 | B112: Betty Test | C112: Relapse Prevention | D112: =IF(AND(E112=" ",F99>F112), "DESELECT to hide past tx episodes",IF(OR(E112="Past due",E112="contact due today",E112="contact due in 1 day",E112="contact due in 2 days",E112="contact due in 3 days",E112="contact due in 4 days",E112="contact due in 5 days",AND(J112<>"",OR(J113="",A112<>A113))),"Show only most recent visit & ticklers","")) -> Show only most recent visit & ticklers | E112: Contact due in 3 days | H112: 2017-07-14 | I112: =IF(I111=" "," ",(IF(H99="1-week follow-up schedule",IF(J111="",I111+7,IF(ISERROR(J111+7),I111+7,J111+7)),IF(H99="1-month follow-up schedule",IF(J111="",I111+30,IF(ISERROR(J111+30),I111+30,J111+30)),IF(J111="",I111+14,IF(ISERROR(J111+14),I111+14,J111+14)))))) -> 2017-07-14 | L112: . | M112: =IF(L112=".","",IF(ISERROR((L112/L99)-1),"",((L112/L99)-1))) ->  | N112: . | O112: =IF(N112=".","",IF(ISERROR((N112/N99)-1),"",((N112/N99)-1))) ->  | T112: 0 | U112: 0pt2500 | V112: 9999999
A113: =IF(A112<>"",A112,"") -> 2500 | B113: Betty Test | C113: Relapse Prevention | D113: =IF(AND(E113=" ",F99>F113), "DESELECT to hide past tx episodes",IF(OR(E113="Past due",E113="contact due today",E113="contact due in 1 day",E113="contact due in 2 days",E113="contact due in 3 days",E113="contact due in 4 days",E113="contact due in 5 days",AND(J113<>"",OR(J114="",A113<>A114))),"Show only most recent visit & ticklers","")) -> DESELECT to hide past tx episodes | H113: 2017-08-13 | I113: =IF(I112=" "," ",(IF(H99="1-week follow-up schedule",IF(J112="",I112+7,IF(ISERROR(J112+7),I112+7,J112+7)),IF(H99="1-month follow-up schedule",IF(J112="",I112+30,IF(ISERROR(J112+30),I112+30,J112+30)),IF(J112="",I112+14,IF(ISERROR(J112+14),I112+14,J112+14)))))) -> 2017-08-13 | L113: . | M113: =IF(L113=".","",IF(ISERROR((L113/L99)-1),"",((L113/L99)-1))) ->  | N113: . | O113: =IF(N113=".","",IF(ISERROR((N113/N99)-1),"",((N113/N99)-1))) ->  | T113: 0 | U113: 0pt2500 | V113: 9999999
A114: =IF(A113<>"",A113,"") -> 2500 | B114: Betty Test | C114: Relapse Prevention | D114: =IF(AND(E114=" ",F99>F114), "DESELECT to hide past tx episodes",IF(OR(E114="Past due",E114="contact due today",E114="contact due in 1 day",E114="contact due in 2 days",E114="contact due in 3 days",E114="contact due in 4 days",E114="contact due in 5 days",AND(J114<>"",OR(J115="",A114<>A115))),"Show only most recent visit & ticklers","")) -> DESELECT to hide past tx episodes | H114: 2017-09-12 | I114: =IF(I113=" "," ",(IF(H99="1-week follow-up schedule",IF(J113="",I113+7,IF(ISERROR(J113+7),I113+7,J113+7)),IF(H99="1-month follow-up schedule",IF(J113="",I113+30,IF(ISERROR(J113+30),I113+30,J113+30)),IF(J113="",I113+14,IF(ISERROR(J113+14),I113+14,J113+14)))))) -> 2017-09-12 | L114: . | M114: =IF(L114=".","",IF(ISERROR((L114/L99)-1),"",((L114/L99)-1))) ->  | N114: . | O114: =IF(N114=".","",IF(ISERROR((N114/N99)-1),"",((N114/N99)-1))) ->  | T114: 0 | U114: 0pt2500 | V114: 9999999
D115: =IF(A115<>"","Show Initial Assessment row","") ->  | F115: =MAX(IF(A116:A162=A115,F116:F162,"")) -> 0 | G115: Current Episode Initial Assessment | H115: 2-week follow-up schedule | J115: =IF(W115<>0,W115,"") ->  | L115: =IF(Y115="no score",Y115,X115) -> No score | N115: =IF(AA115="no score",AA115,Z115) -> No score | R115: =IF(S115<>0,S115,"") ->  | S115: =MAX(IF(A116:A162=A115,R116:R162,"")) -> 00:00:00 | T115: =MAX(IF(A116:A162=A115,F116:F162,"")) -> 0 | U115: =T115&"pt"&A115 -> 0pt | W115: =MIN(IF(U116:U162=U115,V116:V162,"")) -> 00:00:00 | X115: =MAX(IF('Data Prep'!S114:S172="initial score"&'Patient Tracking'!A115,'Data Prep'!Z114:Z172,"")) -> 0 | Y115: =IF(ISNA(MATCH("initial score"&'Patient Tracking'!A115,'Data Prep'!S114:S172,0)),"No score","") -> No score | Z115: =MAX(IF('Data Prep'!T114:T172="initial score"&'Patient Tracking'!A115,'Data Prep'!AD114:AD172,"")) -> 0 | AA115: =IF(ISNA(MATCH("initial score"&'Patient Tracking'!A115,'Data Prep'!T114:T172,0)),"No score","") -> No score
A116: =IF(A115<>"",A115,"") ->  | B116: =IF(B115<>"",B115,"") ->  | C116: =IF(C115<>"",C115,"") ->  | D116: =IF(AND(E116=" ",F115>F116), "DESELECT to hide past tx episodes",IF(OR(E116="Past due",E116="contact due today",E116="contact due in 1 day",E116="contact due in 2 days",E116="contact due in 3 days",E116="contact due in 4 days",E116="contact due in 5 days",AND(J116<>"",OR(J117="",A116<>A117))),"Show only most recent visit & ticklers","")) ->  | E116: =IF(C115="Active",IF(J116="",IF(I116<TODAY(), "Past Due",(IF(I116=TODAY(),"Contact due today",IF(I116=(TODAY()+1), "Contact due in 1 day",IF(I116=(TODAY()+2), "Contact due in 2 days",IF(I116=(TODAY()+3), "Contact due in 3 days",IF(I116=(TODAY()+4), "Contact due in 4 days",IF(I116=(TODAY()+5), "Contact due in 5 days"," "))))))))," ")," ") ->  | G116: Initial Assessment | H116: =IF(J116<>"","",I116) ->  | I116: =IF(H115="1-week follow-up schedule",IF(J115=""," ",IF(ISERROR(J115+7)," ",J115+7)),IF(H115="1-month follow-up schedule",IF(J115=""," ",IF(ISERROR(J115+30)," ",J115+30)),IF(J115=""," ",IF(ISERROR(J115+14)," ",J115+14)))) ->  | L116: . | M116: =IF(L116=".","",IF(ISERROR((L116/L115)-1),"",((L116/L115)-1))) ->  | N116: . | O116: =IF(N116=".","",IF(ISERROR((N116/N115)-1),"",((N116/N115)-1))) ->  | T116: =F116 -> 0 | U116: =T116&"pt"&A116 -> 0pt | V116: =IF(J116<>0,J116,9999999) -> 9999999
A117: =IF(A116<>"",A116,"") ->  | D117: =IF(AND(E117=" ",F115>F117), "DESELECT to hide past tx episodes",IF(OR(E117="Past due",E117="contact due today",E117="contact due in 1 day",E117="contact due in 2 days",E117="contact due in 3 days",E117="contact due in 4 days",E117="contact due in 5 days",AND(J117<>"",OR(J118="",A117<>A118))),"Show only most recent visit & ticklers","")) ->  | E117: =IF(OR(C116="Active",C116="Relapse Prevention"),IF(J117="",IF(I117<TODAY(), "Past Due",(IF(I117=TODAY(),"Contact due today",IF(I117=(TODAY()+1), "Contact due in 1 day",IF(I117=(TODAY()+2), "Contact due in 2 days",IF(I117=(TODAY()+3), "Contact due in 3 days",IF(I117=(TODAY()+4), "Contact due in 4 days",IF(I117=(TODAY()+5), "Contact due in 5 days"," "))))))))," ")," ") ->  | G117: =IF(AND(F117=F116,F117<>""),IFERROR(G116+1,1),IF(F117<>"","Initial Assessment","")) ->  | H117: =IF(J117<>"","",I117) ->  | I117: =IF(I116=" "," ",(IF(H115="1-week follow-up schedule",IF(J116="",I116+7,IF(ISERROR(J116+7),I116+7,J116+7)),IF(H115="1-month follow-up schedule",IF(J116="",I116+30,IF(ISERROR(J116+30),I116+30,J116+30)),IF(J116="",I116+14,IF(ISERROR(J116+14),I116+14,J116+14)))))) ->  | L117: . | M117: =IF(L117=".","",IF(ISERROR((L117/L115)-1),"",((L117/L115)-1))) ->  | N117: . | O117: =IF(N117=".","",IF(ISERROR((N117/N115)-1),"",((N117/N115)-1))) ->  | T117: =F117 -> 0 | U117: =T117&"pt"&A117 -> 0pt | V117: =IF(J117<>0,J117,9999999) -> 9999999
A118: =IF(A117<>"",A117,"") ->  | D118: =IF(AND(E118=" ",F115>F118), "DESELECT to hide past tx episodes",IF(OR(E118="Past due",E118="contact due today",E118="contact due in 1 day",E118="contact due in 2 days",E118="contact due in 3 days",E118="contact due in 4 days",E118="contact due in 5 days",AND(J118<>"",OR(J119="",A118<>A119))),"Show only most recent visit & ticklers","")) ->  | E118: =IF(OR(C117="Active",C117="Relapse Prevention"),IF(J118="",IF(I118<TODAY(), "Past Due",(IF(I118=TODAY(),"Contact due today",IF(I118=(TODAY()+1), "Contact due in 1 day",IF(I118=(TODAY()+2), "Contact due in 2 days",IF(I118=(TODAY()+3), "Contact due in 3 days",IF(I118=(TODAY()+4), "Contact due in 4 days",IF(I118=(TODAY()+5), "Contact due in 5 days"," "))))))))," ")," ") ->  | I118: =IF(I117=" "," ",(IF(H115="1-week follow-up schedule",IF(J117="",I117+7,IF(ISERROR(J117+7),I117+7,J117+7)),IF(H115="1-month follow-up schedule",IF(J117="",I117+30,IF(ISERROR(J117+30),I117+30,J117+30)),IF(J117="",I117+14,IF(ISERROR(J117+14),I117+14,J117+14)))))) ->  | L118: . | M118: =IF(L118=".","",IF(ISERROR((L118/L115)-1),"",((L118/L115)-1))) ->  | N118: . | O118: =IF(N118=".","",IF(ISERROR((N118/N115)-1),"",((N118/N115)-1))) ->  | T118: 0 | U118: 0pt | V118: 9999999
A119: =IF(A118<>"",A118,"") ->  | D119: =IF(AND(E119=" ",F115>F119), "DESELECT to hide past tx episodes",IF(OR(E119="Past due",E119="contact due today",E119="contact due in 1 day",E119="contact due in 2 days",E119="contact due in 3 days",E119="contact due in 4 days",E119="contact due in 5 days",AND(J119<>"",OR(J120="",A119<>A120))),"Show only most recent visit & ticklers","")) ->  | I119: =IF(I118=" "," ",(IF(H115="1-week follow-up schedule",IF(J118="",I118+7,IF(ISERROR(J118+7),I118+7,J118+7)),IF(H115="1-month follow-up schedule",IF(J118="",I118+30,IF(ISERROR(J118+30),I118+30,J118+30)),IF(J118="",I118+14,IF(ISERROR(J118+14),I118+14,J118+14)))))) ->  | L119: . | M119: =IF(L119=".","",IF(ISERROR((L119/L115)-1),"",((L119/L115)-1))) ->  | N119: . | O119: =IF(N119=".","",IF(ISERROR((N119/N115)-1),"",((N119/N115)-1))) ->  | T119: 0 | U119: 0pt | V119: 9999999
A120: =IF(A119<>"",A119,"") ->  | D120: =IF(AND(E120=" ",F115>F120), "DESELECT to hide past tx episodes",IF(OR(E120="Past due",E120="contact due today",E120="contact due in 1 day",E120="contact due in 2 days",E120="contact due in 3 days",E120="contact due in 4 days",E120="contact due in 5 days",AND(J120<>"",OR(J121="",A120<>A121))),"Show only most recent visit & ticklers","")) ->  | I120: =IF(I119=" "," ",(IF(H115="1-week follow-up schedule",IF(J119="",I119+7,IF(ISERROR(J119+7),I119+7,J119+7)),IF(H115="1-month follow-up schedule",IF(J119="",I119+30,IF(ISERROR(J119+30),I119+30,J119+30)),IF(J119="",I119+14,IF(ISERROR(J119+14),I119+14,J119+14)))))) ->  | L120: . | M120: =IF(L120=".","",IF(ISERROR((L120/L115)-1),"",((L120/L115)-1))) ->  | N120: . | O120: =IF(N120=".","",IF(ISERROR((N120/N115)-1),"",((N120/N115)-1))) ->  | T120: 0 | U120: 0pt | V120: 9999999
A121: =IF(A120<>"",A120,"") ->  | D121: =IF(AND(E121=" ",F115>F121), "DESELECT to hide past tx episodes",IF(OR(E121="Past due",E121="contact due today",E121="contact due in 1 day",E121="contact due in 2 days",E121="contact due in 3 days",E121="contact due in 4 days",E121="contact due in 5 days",AND(J121<>"",OR(J122="",A121<>A122))),"Show only most recent visit & ticklers","")) ->  | I121: =IF(I120=" "," ",(IF(H115="1-week follow-up schedule",IF(J120="",I120+7,IF(ISERROR(J120+7),I120+7,J120+7)),IF(H115="1-month follow-up schedule",IF(J120="",I120+30,IF(ISERROR(J120+30),I120+30,J120+30)),IF(J120="",I120+14,IF(ISERROR(J120+14),I120+14,J120+14)))))) ->  | L121: . | M121: =IF(L121=".","",IF(ISERROR((L121/L115)-1),"",((L121/L115)-1))) ->  | N121: . | O121: =IF(N121=".","",IF(ISERROR((N121/N115)-1),"",((N121/N115)-1))) ->  | T121: 0 | U121: 0pt | V121: 9999999
A122: =IF(A121<>"",A121,"") ->  | D122: =IF(AND(E122=" ",F115>F122), "DESELECT to hide past tx episodes",IF(OR(E122="Past due",E122="contact due today",E122="contact due in 1 day",E122="contact due in 2 days",E122="contact due in 3 days",E122="contact due in 4 days",E122="contact due in 5 days",AND(J122<>"",OR(J123="",A122<>A123))),"Show only most recent visit & ticklers","")) ->  | I122: =IF(I121=" "," ",(IF(H115="1-week follow-up schedule",IF(J121="",I121+7,IF(ISERROR(J121+7),I121+7,J121+7)),IF(H115="1-month follow-up schedule",IF(J121="",I121+30,IF(ISERROR(J121+30),I121+30,J121+30)),IF(J121="",I121+14,IF(ISERROR(J121+14),I121+14,J121+14)))))) ->  | L122: . | M122: =IF(L122=".","",IF(ISERROR((L122/L115)-1),"",((L122/L115)-1))) ->  | N122: . | O122: =IF(N122=".","",IF(ISERROR((N122/N115)-1),"",((N122/N115)-1))) ->  | T122: 0 | U122: 0pt | V122: 9999999
A123: =IF(A122<>"",A122,"") ->  | D123: =IF(AND(E123=" ",F115>F123), "DESELECT to hide past tx episodes",IF(OR(E123="Past due",E123="contact due today",E123="contact due in 1 day",E123="contact due in 2 days",E123="contact due in 3 days",E123="contact due in 4 days",E123="contact due in 5 days",AND(J123<>"",OR(J124="",A123<>A124))),"Show only most recent visit & ticklers","")) ->  | I123: =IF(I122=" "," ",(IF(H115="1-week follow-up schedule",IF(J122="",I122+7,IF(ISERROR(J122+7),I122+7,J122+7)),IF(H115="1-month follow-up schedule",IF(J122="",I122+30,IF(ISERROR(J122+30),I122+30,J122+30)),IF(J122="",I122+14,IF(ISERROR(J122+14),I122+14,J122+14)))))) ->  | L123: . | M123: =IF(L123=".","",IF(ISERROR((L123/L115)-1),"",((L123/L115)-1))) ->  | N123: . | O123: =IF(N123=".","",IF(ISERROR((N123/N115)-1),"",((N123/N115)-1))) ->  | T123: 0 | U123: 0pt | V123: 9999999
A124: =IF(A123<>"",A123,"") ->  | D124: =IF(AND(E124=" ",F115>F124), "DESELECT to hide past tx episodes",IF(OR(E124="Past due",E124="contact due today",E124="contact due in 1 day",E124="contact due in 2 days",E124="contact due in 3 days",E124="contact due in 4 days",E124="contact due in 5 days",AND(J124<>"",OR(J125="",A124<>A125))),"Show only most recent visit & ticklers","")) ->  | I124: =IF(I123=" "," ",(IF(H115="1-week follow-up schedule",IF(J123="",I123+7,IF(ISERROR(J123+7),I123+7,J123+7)),IF(H115="1-month follow-up schedule",IF(J123="",I123+30,IF(ISERROR(J123+30),I123+30,J123+30)),IF(J123="",I123+14,IF(ISERROR(J123+14),I123+14,J123+14)))))) ->  | L124: . | M124: =IF(L124=".","",IF(ISERROR((L124/L115)-1),"",((L124/L115)-1))) ->  | N124: . | O124: =IF(N124=".","",IF(ISERROR((N124/N115)-1),"",((N124/N115)-1))) ->  | T124: 0 | U124: 0pt | V124: 9999999
A125: =IF(A124<>"",A124,"") ->  | D125: =IF(AND(E125=" ",F115>F125), "DESELECT to hide past tx episodes",IF(OR(E125="Past due",E125="contact due today",E125="contact due in 1 day",E125="contact due in 2 days",E125="contact due in 3 days",E125="contact due in 4 days",E125="contact due in 5 days",AND(J125<>"",OR(J126="",A125<>A126))),"Show only most recent visit & ticklers","")) ->  | I125: =IF(I124=" "," ",(IF(H115="1-week follow-up schedule",IF(J124="",I124+7,IF(ISERROR(J124+7),I124+7,J124+7)),IF(H115="1-month follow-up schedule",IF(J124="",I124+30,IF(ISERROR(J124+30),I124+30,J124+30)),IF(J124="",I124+14,IF(ISERROR(J124+14),I124+14,J124+14)))))) ->  | L125: . | M125: =IF(L125=".","",IF(ISERROR((L125/L115)-1),"",((L125/L115)-1))) ->  | N125: . | O125: =IF(N125=".","",IF(ISERROR((N125/N115)-1),"",((N125/N115)-1))) ->  | T125: 0 | U125: 0pt | V125: 9999999
A126: =IF(A125<>"",A125,"") ->  | D126: =IF(AND(E126=" ",F115>F126), "DESELECT to hide past tx episodes",IF(OR(E126="Past due",E126="contact due today",E126="contact due in 1 day",E126="contact due in 2 days",E126="contact due in 3 days",E126="contact due in 4 days",E126="contact due in 5 days",AND(J126<>"",OR(J127="",A126<>A127))),"Show only most recent visit & ticklers","")) ->  | I126: =IF(I125=" "," ",(IF(H115="1-week follow-up schedule",IF(J125="",I125+7,IF(ISERROR(J125+7),I125+7,J125+7)),IF(H115="1-month follow-up schedule",IF(J125="",I125+30,IF(ISERROR(J125+30),I125+30,J125+30)),IF(J125="",I125+14,IF(ISERROR(J125+14),I125+14,J125+14)))))) ->  | L126: . | M126: =IF(L126=".","",IF(ISERROR((L126/L115)-1),"",((L126/L115)-1))) ->  | N126: . | O126: =IF(N126=".","",IF(ISERROR((N126/N115)-1),"",((N126/N115)-1))) ->  | T126: 0 | U126: 0pt | V126: 9999999
A127: =IF(A126<>"",A126,"") ->  | D127: =IF(AND(E127=" ",F115>F127), "DESELECT to hide past tx episodes",IF(OR(E127="Past due",E127="contact due today",E127="contact due in 1 day",E127="contact due in 2 days",E127="contact due in 3 days",E127="contact due in 4 days",E127="contact due in 5 days",AND(J127<>"",OR(J128="",A127<>A128))),"Show only most recent visit & ticklers","")) ->  | I127: =IF(I126=" "," ",(IF(H115="1-week follow-up schedule",IF(J126="",I126+7,IF(ISERROR(J126+7),I126+7,J126+7)),IF(H115="1-month follow-up schedule",IF(J126="",I126+30,IF(ISERROR(J126+30),I126+30,J126+30)),IF(J126="",I126+14,IF(ISERROR(J126+14),I126+14,J126+14)))))) ->  | L127: . | M127: =IF(L127=".","",IF(ISERROR((L127/L115)-1),"",((L127/L115)-1))) ->  | N127: . | O127: =IF(N127=".","",IF(ISERROR((N127/N115)-1),"",((N127/N115)-1))) ->  | T127: 0 | U127: 0pt | V127: 9999999
A128: =IF(A127<>"",A127,"") ->  | D128: =IF(AND(E128=" ",F115>F128), "DESELECT to hide past tx episodes",IF(OR(E128="Past due",E128="contact due today",E128="contact due in 1 day",E128="contact due in 2 days",E128="contact due in 3 days",E128="contact due in 4 days",E128="contact due in 5 days",AND(J128<>"",OR(J129="",A128<>A129))),"Show only most recent visit & ticklers","")) ->  | I128: =IF(I127=" "," ",(IF(H115="1-week follow-up schedule",IF(J127="",I127+7,IF(ISERROR(J127+7),I127+7,J127+7)),IF(H115="1-month follow-up schedule",IF(J127="",I127+30,IF(ISERROR(J127+30),I127+30,J127+30)),IF(J127="",I127+14,IF(ISERROR(J127+14),I127+14,J127+14)))))) ->  | L128: . | M128: =IF(L128=".","",IF(ISERROR((L128/L115)-1),"",((L128/L115)-1))) ->  | N128: . | O128: =IF(N128=".","",IF(ISERROR((N128/N115)-1),"",((N128/N115)-1))) ->  | T128: 0 | U128: 0pt | V128: 9999999
A129: =IF(A128<>"",A128,"") ->  | D129: =IF(AND(E129=" ",F115>F129), "DESELECT to hide past tx episodes",IF(OR(E129="Past due",E129="contact due today",E129="contact due in 1 day",E129="contact due in 2 days",E129="contact due in 3 days",E129="contact due in 4 days",E129="contact due in 5 days",AND(J129<>"",OR(J130="",A129<>A130))),"Show only most recent visit & ticklers","")) ->  | I129: =IF(I128=" "," ",(IF(H115="1-week follow-up schedule",IF(J128="",I128+7,IF(ISERROR(J128+7),I128+7,J128+7)),IF(H115="1-month follow-up schedule",IF(J128="",I128+30,IF(ISERROR(J128+30),I128+30,J128+30)),IF(J128="",I128+14,IF(ISERROR(J128+14),I128+14,J128+14)))))) ->  | L129: . | M129: =IF(L129=".","",IF(ISERROR((L129/L115)-1),"",((L129/L115)-1))) ->  | N129: . | O129: =IF(N129=".","",IF(ISERROR((N129/N115)-1),"",((N129/N115)-1))) ->  | T129: 0 | U129: 0pt | V129: 9999999
A130: =IF(A129<>"",A129,"") ->  | D130: =IF(AND(E130=" ",F115>F130), "DESELECT to hide past tx episodes",IF(OR(E130="Past due",E130="contact due today",E130="contact due in 1 day",E130="contact due in 2 days",E130="contact due in 3 days",E130="contact due in 4 days",E130="contact due in 5 days",AND(J130<>"",OR(J131="",A130<>A131))),"Show only most recent visit & ticklers","")) ->  | I130: =IF(I129=" "," ",(IF(H115="1-week follow-up schedule",IF(J129="",I129+7,IF(ISERROR(J129+7),I129+7,J129+7)),IF(H115="1-month follow-up schedule",IF(J129="",I129+30,IF(ISERROR(J129+30),I129+30,J129+30)),IF(J129="",I129+14,IF(ISERROR(J129+14),I129+14,J129+14)))))) ->  | L130: . | M130: =IF(L130=".","",IF(ISERROR((L130/L115)-1),"",((L130/L115)-1))) ->  | N130: . | O130: =IF(N130=".","",IF(ISERROR((N130/N115)-1),"",((N130/N115)-1))) ->  | T130: 0 | U130: 0pt | V130: 9999999
D131: =IF(A131<>"","Show Initial Assessment row","") ->  | F131: =MAX(IF(A132:A162=A131,F132:F162,"")) -> 0 | G131: Current Episode Initial Assessment | H131: 2-week follow-up schedule | J131: =IF(W131<>0,W131,"") ->  | L131: =IF(Y131="no score",Y131,X131) -> No score | N131: =IF(AA131="no score",AA131,Z131) -> No score | R131: =IF(S131<>0,S131,"") ->  | S131: =MAX(IF(A132:A162=A131,R132:R162,"")) -> 00:00:00 | T131: =MAX(IF(A132:A162=A131,F132:F162,"")) -> 0 | U131: =T131&"pt"&A131 -> 0pt | W131: =MIN(IF(U132:U162=U131,V132:V162,"")) -> 00:00:00 | X131: =MAX(IF('Data Prep'!S130:S188="initial score"&'Patient Tracking'!A131,'Data Prep'!Z130:Z188,"")) -> 0 | Y131: =IF(ISNA(MATCH("initial score"&'Patient Tracking'!A131,'Data Prep'!S130:S188,0)),"No score","") -> No score | Z131: =MAX(IF('Data Prep'!T130:T188="initial score"&'Patient Tracking'!A131,'Data Prep'!AD130:AD188,"")) -> 0 | AA131: =IF(ISNA(MATCH("initial score"&'Patient Tracking'!A131,'Data Prep'!T130:T188,0)),"No score","") -> No score
A132: =IF(A131<>"",A131,"") ->  | B132: =IF(B131<>"",B131,"") ->  | C132: =IF(C131<>"",C131,"") ->  | D132: =IF(AND(E132=" ",F131>F132), "DESELECT to hide past tx episodes",IF(OR(E132="Past due",E132="contact due today",E132="contact due in 1 day",E132="contact due in 2 days",E132="contact due in 3 days",E132="contact due in 4 days",E132="contact due in 5 days",AND(J132<>"",OR(J133="",A132<>A133))),"Show only most recent visit & ticklers","")) ->  | E132: =IF(C131="Active",IF(J132="",IF(I132<TODAY(), "Past Due",(IF(I132=TODAY(),"Contact due today",IF(I132=(TODAY()+1), "Contact due in 1 day",IF(I132=(TODAY()+2), "Contact due in 2 days",IF(I132=(TODAY()+3), "Contact due in 3 days",IF(I132=(TODAY()+4), "Contact due in 4 days",IF(I132=(TODAY()+5), "Contact due in 5 days"," "))))))))," ")," ") ->  | G132: Initial Assessment | H132: =IF(J132<>"","",I132) ->  | I132: =IF(H131="1-week follow-up schedule",IF(J131=""," ",IF(ISERROR(J131+7)," ",J131+7)),IF(H131="1-month follow-up schedule",IF(J131=""," ",IF(ISERROR(J131+30)," ",J131+30)),IF(J131=""," ",IF(ISERROR(J131+14)," ",J131+14)))) ->  | L132: . | M132: =IF(L132=".","",IF(ISERROR((L132/L131)-1),"",((L132/L131)-1))) ->  | N132: . | O132: =IF(N132=".","",IF(ISERROR((N132/N131)-1),"",((N132/N131)-1))) ->  | T132: =F132 -> 0 | U132: =T132&"pt"&A132 -> 0pt | V132: =IF(J132<>0,J132,9999999) -> 9999999
A133: =IF(A132<>"",A132,"") ->  | D133: =IF(AND(E133=" ",F131>F133), "DESELECT to hide past tx episodes",IF(OR(E133="Past due",E133="contact due today",E133="contact due in 1 day",E133="contact due in 2 days",E133="contact due in 3 days",E133="contact due in 4 days",E133="contact due in 5 days",AND(J133<>"",OR(J134="",A133<>A134))),"Show only most recent visit & ticklers","")) ->  | E133: =IF(OR(C132="Active",C132="Relapse Prevention"),IF(J133="",IF(I133<TODAY(), "Past Due",(IF(I133=TODAY(),"Contact due today",IF(I133=(TODAY()+1), "Contact due in 1 day",IF(I133=(TODAY()+2), "Contact due in 2 days",IF(I133=(TODAY()+3), "Contact due in 3 days",IF(I133=(TODAY()+4), "Contact due in 4 days",IF(I133=(TODAY()+5), "Contact due in 5 days"," "))))))))," ")," ") ->  | G133: =IF(AND(F133=F132,F133<>""),IFERROR(G132+1,1),IF(F133<>"","Initial Assessment","")) ->  | H133: =IF(J133<>"","",I133) ->  | I133: =IF(I132=" "," ",(IF(H131="1-week follow-up schedule",IF(J132="",I132+7,IF(ISERROR(J132+7),I132+7,J132+7)),IF(H131="1-month follow-up schedule",IF(J132="",I132+30,IF(ISERROR(J132+30),I132+30,J132+30)),IF(J132="",I132+14,IF(ISERROR(J132+14),I132+14,J132+14)))))) ->  | L133: . | M133: =IF(L133=".","",IF(ISERROR((L133/L131)-1),"",((L133/L131)-1))) ->  | N133: . | O133: =IF(N133=".","",IF(ISERROR((N133/N131)-1),"",((N133/N131)-1))) ->  | T133: =F133 -> 0 | U133: =T133&"pt"&A133 -> 0pt | V133: =IF(J133<>0,J133,9999999) -> 9999999
A134: =IF(A133<>"",A133,"") ->  | D134: =IF(AND(E134=" ",F131>F134), "DESELECT to hide past tx episodes",IF(OR(E134="Past due",E134="contact due today",E134="contact due in 1 day",E134="contact due in 2 days",E134="contact due in 3 days",E134="contact due in 4 days",E134="contact due in 5 days",AND(J134<>"",OR(J135="",A134<>A135))),"Show only most recent visit & ticklers","")) ->  | E134: =IF(OR(C133="Active",C133="Relapse Prevention"),IF(J134="",IF(I134<TODAY(), "Past Due",(IF(I134=TODAY(),"Contact due today",IF(I134=(TODAY()+1), "Contact due in 1 day",IF(I134=(TODAY()+2), "Contact due in 2 days",IF(I134=(TODAY()+3), "Contact due in 3 days",IF(I134=(TODAY()+4), "Contact due in 4 days",IF(I134=(TODAY()+5), "Contact due in 5 days"," "))))))))," ")," ") ->  | I134: =IF(I133=" "," ",(IF(H131="1-week follow-up schedule",IF(J133="",I133+7,IF(ISERROR(J133+7),I133+7,J133+7)),IF(H131="1-month follow-up schedule",IF(J133="",I133+30,IF(ISERROR(J133+30),I133+30,J133+30)),IF(J133="",I133+14,IF(ISERROR(J133+14),I133+14,J133+14)))))) ->  | L134: . | M134: =IF(L134=".","",IF(ISERROR((L134/L131)-1),"",((L134/L131)-1))) ->  | N134: . | O134: =IF(N134=".","",IF(ISERROR((N134/N131)-1),"",((N134/N131)-1))) ->  | T134: 0 | U134: 0pt | V134: 9999999
A135: =IF(A134<>"",A134,"") ->  | D135: =IF(AND(E135=" ",F131>F135), "DESELECT to hide past tx episodes",IF(OR(E135="Past due",E135="contact due today",E135="contact due in 1 day",E135="contact due in 2 days",E135="contact due in 3 days",E135="contact due in 4 days",E135="contact due in 5 days",AND(J135<>"",OR(J136="",A135<>A136))),"Show only most recent visit & ticklers","")) ->  | I135: =IF(I134=" "," ",(IF(H131="1-week follow-up schedule",IF(J134="",I134+7,IF(ISERROR(J134+7),I134+7,J134+7)),IF(H131="1-month follow-up schedule",IF(J134="",I134+30,IF(ISERROR(J134+30),I134+30,J134+30)),IF(J134="",I134+14,IF(ISERROR(J134+14),I134+14,J134+14)))))) ->  | L135: . | M135: =IF(L135=".","",IF(ISERROR((L135/L131)-1),"",((L135/L131)-1))) ->  | N135: . | O135: =IF(N135=".","",IF(ISERROR((N135/N131)-1),"",((N135/N131)-1))) ->  | T135: 0 | U135: 0pt | V135: 9999999
A136: =IF(A135<>"",A135,"") ->  | D136: =IF(AND(E136=" ",F131>F136), "DESELECT to hide past tx episodes",IF(OR(E136="Past due",E136="contact due today",E136="contact due in 1 day",E136="contact due in 2 days",E136="contact due in 3 days",E136="contact due in 4 days",E136="contact due in 5 days",AND(J136<>"",OR(J137="",A136<>A137))),"Show only most recent visit & ticklers","")) ->  | I136: =IF(I135=" "," ",(IF(H131="1-week follow-up schedule",IF(J135="",I135+7,IF(ISERROR(J135+7),I135+7,J135+7)),IF(H131="1-month follow-up schedule",IF(J135="",I135+30,IF(ISERROR(J135+30),I135+30,J135+30)),IF(J135="",I135+14,IF(ISERROR(J135+14),I135+14,J135+14)))))) ->  | L136: . | M136: =IF(L136=".","",IF(ISERROR((L136/L131)-1),"",((L136/L131)-1))) ->  | N136: . | O136: =IF(N136=".","",IF(ISERROR((N136/N131)-1),"",((N136/N131)-1))) ->  | T136: 0 | U136: 0pt | V136: 9999999
A137: =IF(A136<>"",A136,"") ->  | D137: =IF(AND(E137=" ",F131>F137), "DESELECT to hide past tx episodes",IF(OR(E137="Past due",E137="contact due today",E137="contact due in 1 day",E137="contact due in 2 days",E137="contact due in 3 days",E137="contact due in 4 days",E137="contact due in 5 days",AND(J137<>"",OR(J138="",A137<>A138))),"Show only most recent visit & ticklers","")) ->  | I137: =IF(I136=" "," ",(IF(H131="1-week follow-up schedule",IF(J136="",I136+7,IF(ISERROR(J136+7),I136+7,J136+7)),IF(H131="1-month follow-up schedule",IF(J136="",I136+30,IF(ISERROR(J136+30),I136+30,J136+30)),IF(J136="",I136+14,IF(ISERROR(J136+14),I136+14,J136+14)))))) ->  | L137: . | M137: =IF(L137=".","",IF(ISERROR((L137/L131)-1),"",((L137/L131)-1))) ->  | N137: . | O137: =IF(N137=".","",IF(ISERROR((N137/N131)-1),"",((N137/N131)-1))) ->  | T137: 0 | U137: 0pt | V137: 9999999
A138: =IF(A137<>"",A137,"") ->  | D138: =IF(AND(E138=" ",F131>F138), "DESELECT to hide past tx episodes",IF(OR(E138="Past due",E138="contact due today",E138="contact due in 1 day",E138="contact due in 2 days",E138="contact due in 3 days",E138="contact due in 4 days",E138="contact due in 5 days",AND(J138<>"",OR(J139="",A138<>A139))),"Show only most recent visit & ticklers","")) ->  | I138: =IF(I137=" "," ",(IF(H131="1-week follow-up schedule",IF(J137="",I137+7,IF(ISERROR(J137+7),I137+7,J137+7)),IF(H131="1-month follow-up schedule",IF(J137="",I137+30,IF(ISERROR(J137+30),I137+30,J137+30)),IF(J137="",I137+14,IF(ISERROR(J137+14),I137+14,J137+14)))))) ->  | L138: . | M138: =IF(L138=".","",IF(ISERROR((L138/L131)-1),"",((L138/L131)-1))) ->  | N138: . | O138: =IF(N138=".","",IF(ISERROR((N138/N131)-1),"",((N138/N131)-1))) ->  | T138: 0 | U138: 0pt | V138: 9999999
A139: =IF(A138<>"",A138,"") ->  | D139: =IF(AND(E139=" ",F131>F139), "DESELECT to hide past tx episodes",IF(OR(E139="Past due",E139="contact due today",E139="contact due in 1 day",E139="contact due in 2 days",E139="contact due in 3 days",E139="contact due in 4 days",E139="contact due in 5 days",AND(J139<>"",OR(J140="",A139<>A140))),"Show only most recent visit & ticklers","")) ->  | I139: =IF(I138=" "," ",(IF(H131="1-week follow-up schedule",IF(J138="",I138+7,IF(ISERROR(J138+7),I138+7,J138+7)),IF(H131="1-month follow-up schedule",IF(J138="",I138+30,IF(ISERROR(J138+30),I138+30,J138+30)),IF(J138="",I138+14,IF(ISERROR(J138+14),I138+14,J138+14)))))) ->  | L139: . | M139: =IF(L139=".","",IF(ISERROR((L139/L131)-1),"",((L139/L131)-1))) ->  | N139: . | O139: =IF(N139=".","",IF(ISERROR((N139/N131)-1),"",((N139/N131)-1))) ->  | T139: 0 | U139: 0pt | V139: 9999999
A140: =IF(A139<>"",A139,"") ->  | D140: =IF(AND(E140=" ",F131>F140), "DESELECT to hide past tx episodes",IF(OR(E140="Past due",E140="contact due today",E140="contact due in 1 day",E140="contact due in 2 days",E140="contact due in 3 days",E140="contact due in 4 days",E140="contact due in 5 days",AND(J140<>"",OR(J141="",A140<>A141))),"Show only most recent visit & ticklers","")) ->  | I140: =IF(I139=" "," ",(IF(H131="1-week follow-up schedule",IF(J139="",I139+7,IF(ISERROR(J139+7),I139+7,J139+7)),IF(H131="1-month follow-up schedule",IF(J139="",I139+30,IF(ISERROR(J139+30),I139+30,J139+30)),IF(J139="",I139+14,IF(ISERROR(J139+14),I139+14,J139+14)))))) ->  | L140: . | M140: =IF(L140=".","",IF(ISERROR((L140/L131)-1),"",((L140/L131)-1))) ->  | N140: . | O140: =IF(N140=".","",IF(ISERROR((N140/N131)-1),"",((N140/N131)-1))) ->  | T140: 0 | U140: 0pt | V140: 9999999
A141: =IF(A140<>"",A140,"") ->  | D141: =IF(AND(E141=" ",F131>F141), "DESELECT to hide past tx episodes",IF(OR(E141="Past due",E141="contact due today",E141="contact due in 1 day",E141="contact due in 2 days",E141="contact due in 3 days",E141="contact due in 4 days",E141="contact due in 5 days",AND(J141<>"",OR(J142="",A141<>A142))),"Show only most recent visit & ticklers","")) ->  | I141: =IF(I140=" "," ",(IF(H131="1-week follow-up schedule",IF(J140="",I140+7,IF(ISERROR(J140+7),I140+7,J140+7)),IF(H131="1-month follow-up schedule",IF(J140="",I140+30,IF(ISERROR(J140+30),I140+30,J140+30)),IF(J140="",I140+14,IF(ISERROR(J140+14),I140+14,J140+14)))))) ->  | L141: . | M141: =IF(L141=".","",IF(ISERROR((L141/L131)-1),"",((L141/L131)-1))) ->  | N141: . | O141: =IF(N141=".","",IF(ISERROR((N141/N131)-1),"",((N141/N131)-1))) ->  | T141: 0 | U141: 0pt | V141: 9999999
A142: =IF(A141<>"",A141,"") ->  | D142: =IF(AND(E142=" ",F131>F142), "DESELECT to hide past tx episodes",IF(OR(E142="Past due",E142="contact due today",E142="contact due in 1 day",E142="contact due in 2 days",E142="contact due in 3 days",E142="contact due in 4 days",E142="contact due in 5 days",AND(J142<>"",OR(J143="",A142<>A143))),"Show only most recent visit & ticklers","")) ->  | I142: =IF(I141=" "," ",(IF(H131="1-week follow-up schedule",IF(J141="",I141+7,IF(ISERROR(J141+7),I141+7,J141+7)),IF(H131="1-month follow-up schedule",IF(J141="",I141+30,IF(ISERROR(J141+30),I141+30,J141+30)),IF(J141="",I141+14,IF(ISERROR(J141+14),I141+14,J141+14)))))) ->  | L142: . | M142: =IF(L142=".","",IF(ISERROR((L142/L131)-1),"",((L142/L131)-1))) ->  | N142: . | O142: =IF(N142=".","",IF(ISERROR((N142/N131)-1),"",((N142/N131)-1))) ->  | T142: 0 | U142: 0pt | V142: 9999999
A143: =IF(A142<>"",A142,"") ->  | D143: =IF(AND(E143=" ",F131>F143), "DESELECT to hide past tx episodes",IF(OR(E143="Past due",E143="contact due today",E143="contact due in 1 day",E143="contact due in 2 days",E143="contact due in 3 days",E143="contact due in 4 days",E143="contact due in 5 days",AND(J143<>"",OR(J144="",A143<>A144))),"Show only most recent visit & ticklers","")) ->  | I143: =IF(I142=" "," ",(IF(H131="1-week follow-up schedule",IF(J142="",I142+7,IF(ISERROR(J142+7),I142+7,J142+7)),IF(H131="1-month follow-up schedule",IF(J142="",I142+30,IF(ISERROR(J142+30),I142+30,J142+30)),IF(J142="",I142+14,IF(ISERROR(J142+14),I142+14,J142+14)))))) ->  | L143: . | M143: =IF(L143=".","",IF(ISERROR((L143/L131)-1),"",((L143/L131)-1))) ->  | N143: . | O143: =IF(N143=".","",IF(ISERROR((N143/N131)-1),"",((N143/N131)-1))) ->  | T143: 0 | U143: 0pt | V143: 9999999
A144: =IF(A143<>"",A143,"") ->  | D144: =IF(AND(E144=" ",F131>F144), "DESELECT to hide past tx episodes",IF(OR(E144="Past due",E144="contact due today",E144="contact due in 1 day",E144="contact due in 2 days",E144="contact due in 3 days",E144="contact due in 4 days",E144="contact due in 5 days",AND(J144<>"",OR(J145="",A144<>A145))),"Show only most recent visit & ticklers","")) ->  | I144: =IF(I143=" "," ",(IF(H131="1-week follow-up schedule",IF(J143="",I143+7,IF(ISERROR(J143+7),I143+7,J143+7)),IF(H131="1-month follow-up schedule",IF(J143="",I143+30,IF(ISERROR(J143+30),I143+30,J143+30)),IF(J143="",I143+14,IF(ISERROR(J143+14),I143+14,J143+14)))))) ->  | L144: . | M144: =IF(L144=".","",IF(ISERROR((L144/L131)-1),"",((L144/L131)-1))) ->  | N144: . | O144: =IF(N144=".","",IF(ISERROR((N144/N131)-1),"",((N144/N131)-1))) ->  | T144: 0 | U144: 0pt | V144: 9999999
A145: =IF(A144<>"",A144,"") ->  | D145: =IF(AND(E145=" ",F131>F145), "DESELECT to hide past tx episodes",IF(OR(E145="Past due",E145="contact due today",E145="contact due in 1 day",E145="contact due in 2 days",E145="contact due in 3 days",E145="contact due in 4 days",E145="contact due in 5 days",AND(J145<>"",OR(J146="",A145<>A146))),"Show only most recent visit & ticklers","")) ->  | I145: =IF(I144=" "," ",(IF(H131="1-week follow-up schedule",IF(J144="",I144+7,IF(ISERROR(J144+7),I144+7,J144+7)),IF(H131="1-month follow-up schedule",IF(J144="",I144+30,IF(ISERROR(J144+30),I144+30,J144+30)),IF(J144="",I144+14,IF(ISERROR(J144+14),I144+14,J144+14)))))) ->  | L145: . | M145: =IF(L145=".","",IF(ISERROR((L145/L131)-1),"",((L145/L131)-1))) ->  | N145: . | O145: =IF(N145=".","",IF(ISERROR((N145/N131)-1),"",((N145/N131)-1))) ->  | T145: 0 | U145: 0pt | V145: 9999999
A146: =IF(A145<>"",A145,"") ->  | D146: =IF(AND(E146=" ",F131>F146), "DESELECT to hide past tx episodes",IF(OR(E146="Past due",E146="contact due today",E146="contact due in 1 day",E146="contact due in 2 days",E146="contact due in 3 days",E146="contact due in 4 days",E146="contact due in 5 days",AND(J146<>"",OR(J147="",A146<>A147))),"Show only most recent visit & ticklers","")) ->  | I146: =IF(I145=" "," ",(IF(H131="1-week follow-up schedule",IF(J145="",I145+7,IF(ISERROR(J145+7),I145+7,J145+7)),IF(H131="1-month follow-up schedule",IF(J145="",I145+30,IF(ISERROR(J145+30),I145+30,J145+30)),IF(J145="",I145+14,IF(ISERROR(J145+14),I145+14,J145+14)))))) ->  | L146: . | M146: =IF(L146=".","",IF(ISERROR((L146/L131)-1),"",((L146/L131)-1))) ->  | N146: . | O146: =IF(N146=".","",IF(ISERROR((N146/N131)-1),"",((N146/N131)-1))) ->  | T146: 0 | U146: 0pt | V146: 9999999
D147: =IF(A147<>"","Show Initial Assessment row","") ->  | F147: =MAX(IF(A148:A162=A147,F148:F162,"")) -> 0 | G147: Current Episode Initial Assessment | H147: 2-week follow-up schedule | J147: =IF(W147<>0,W147,"") ->  | L147: =IF(Y147="no score",Y147,X147) -> No score | N147: =IF(AA147="no score",AA147,Z147) -> No score | R147: =IF(S147<>0,S147,"") ->  | S147: =MAX(IF(A148:A162=A147,R148:R162,"")) -> 00:00:00 | T147: =MAX(IF(A148:A162=A147,F148:F162,"")) -> 0 | U147: =T147&"pt"&A147 -> 0pt | W147: =MIN(IF(U148:U163=U147,V148:V163,"")) -> 00:00:00 | X147: =MAX(IF('Data Prep'!S146:S204="initial score"&'Patient Tracking'!A147,'Data Prep'!Z146:Z204,"")) -> 0 | Y147: =IF(ISNA(MATCH("initial score"&'Patient Tracking'!A147,'Data Prep'!S146:S204,0)),"No score","") -> No score | Z147: =MAX(IF('Data Prep'!T146:T204="initial score"&'Patient Tracking'!A147,'Data Prep'!AD146:AD204,"")) -> 0 | AA147: =IF(ISNA(MATCH("initial score"&'Patient Tracking'!A147,'Data Prep'!T146:T204,0)),"No score","") -> No score
A148: =IF(A147<>"",A147,"") ->  | B148: =IF(B147<>"",B147,"") ->  | C148: =IF(C147<>"",C147,"") ->  | D148: =IF(AND(E148=" ",F147>F148), "DESELECT to hide past tx episodes",IF(OR(E148="Past due",E148="contact due today",E148="contact due in 1 day",E148="contact due in 2 days",E148="contact due in 3 days",E148="contact due in 4 days",E148="contact due in 5 days",AND(J148<>"",OR(J149="",A148<>A149))),"Show only most recent visit & ticklers","")) ->  | E148: =IF(C147="Active",IF(J148="",IF(I148<TODAY(), "Past Due",(IF(I148=TODAY(),"Contact due today",IF(I148=(TODAY()+1), "Contact due in 1 day",IF(I148=(TODAY()+2), "Contact due in 2 days",IF(I148=(TODAY()+3), "Contact due in 3 days",IF(I148=(TODAY()+4), "Contact due in 4 days",IF(I148=(TODAY()+5), "Contact due in 5 days"," "))))))))," ")," ") ->  | G148: Initial Assessment | H148: =IF(J148<>"","",I148) ->  | I148: =IF(H147="1-week follow-up schedule",IF(J147=""," ",IF(ISERROR(J147+7)," ",J147+7)),IF(H147="1-month follow-up schedule",IF(J147=""," ",IF(ISERROR(J147+30)," ",J147+30)),IF(J147=""," ",IF(ISERROR(J147+14)," ",J147+14)))) ->  | L148: . | M148: =IF(L148=".","",IF(ISERROR((L148/L147)-1),"",((L148/L147)-1))) ->  | N148: . | O148: =IF(N148=".","",IF(ISERROR((N148/N147)-1),"",((N148/N147)-1))) ->  | T148: =F148 -> 0 | U148: =T148&"pt"&A148 -> 0pt | V148: =IF(J148<>0,J148,9999999) -> 9999999
A149: =IF(A148<>"",A148,"") ->  | D149: =IF(AND(E149=" ",F147>F149), "DESELECT to hide past tx episodes",IF(OR(E149="Past due",E149="contact due today",E149="contact due in 1 day",E149="contact due in 2 days",E149="contact due in 3 days",E149="contact due in 4 days",E149="contact due in 5 days",AND(J149<>"",OR(J150="",A149<>A150))),"Show only most recent visit & ticklers","")) ->  | E149: =IF(OR(C148="Active",C148="Relapse Prevention"),IF(J149="",IF(I149<TODAY(), "Past Due",(IF(I149=TODAY(),"Contact due today",IF(I149=(TODAY()+1), "Contact due in 1 day",IF(I149=(TODAY()+2), "Contact due in 2 days",IF(I149=(TODAY()+3), "Contact due in 3 days",IF(I149=(TODAY()+4), "Contact due in 4 days",IF(I149=(TODAY()+5), "Contact due in 5 days"," "))))))))," ")," ") ->  | G149: =IF(AND(F149=F148,F149<>""),IFERROR(G148+1,1),IF(F149<>"","Initial Assessment","")) ->  | H149: =IF(J149<>"","",I149) ->  | I149: =IF(I148=" "," ",(IF(H147="1-week follow-up schedule",IF(J148="",I148+7,IF(ISERROR(J148+7),I148+7,J148+7)),IF(H147="1-month follow-up schedule",IF(J148="",I148+30,IF(ISERROR(J148+30),I148+30,J148+30)),IF(J148="",I148+14,IF(ISERROR(J148+14),I148+14,J148+14)))))) ->  | L149: . | M149: =IF(L149=".","",IF(ISERROR((L149/L147)-1),"",((L149/L147)-1))) ->  | N149: . | O149: =IF(N149=".","",IF(ISERROR((N149/N147)-1),"",((N149/N147)-1))) ->  | T149: =F149 -> 0 | U149: =T149&"pt"&A149 -> 0pt | V149: =IF(J149<>0,J149,9999999) -> 9999999
A150: =IF(A149<>"",A149,"") ->  | D150: =IF(AND(E150=" ",F147>F150), "DESELECT to hide past tx episodes",IF(OR(E150="Past due",E150="contact due today",E150="contact due in 1 day",E150="contact due in 2 days",E150="contact due in 3 days",E150="contact due in 4 days",E150="contact due in 5 days",AND(J150<>"",OR(J151="",A150<>A151))),"Show only most recent visit & ticklers","")) ->  | E150: =IF(OR(C149="Active",C149="Relapse Prevention"),IF(J150="",IF(I150<TODAY(), "Past Due",(IF(I150=TODAY(),"Contact due today",IF(I150=(TODAY()+1), "Contact due in 1 day",IF(I150=(TODAY()+2), "Contact due in 2 days",IF(I150=(TODAY()+3), "Contact due in 3 days",IF(I150=(TODAY()+4), "Contact due in 4 days",IF(I150=(TODAY()+5), "Contact due in 5 days"," "))))))))," ")," ") ->  | I150: =IF(I149=" "," ",(IF(H147="1-week follow-up schedule",IF(J149="",I149+7,IF(ISERROR(J149+7),I149+7,J149+7)),IF(H147="1-month follow-up schedule",IF(J149="",I149+30,IF(ISERROR(J149+30),I149+30,J149+30)),IF(J149="",I149+14,IF(ISERROR(J149+14),I149+14,J149+14)))))) ->  | L150: . | M150: =IF(L150=".","",IF(ISERROR((L150/L147)-1),"",((L150/L147)-1))) ->  | N150: . | O150: =IF(N150=".","",IF(ISERROR((N150/N147)-1),"",((N150/N147)-1))) ->  | T150: 0 | U150: 0pt | V150: 9999999
A151: =IF(A150<>"",A150,"") ->  | D151: =IF(AND(E151=" ",F147>F151), "DESELECT to hide past tx episodes",IF(OR(E151="Past due",E151="contact due today",E151="contact due in 1 day",E151="contact due in 2 days",E151="contact due in 3 days",E151="contact due in 4 days",E151="contact due in 5 days",AND(J151<>"",OR(J152="",A151<>A152))),"Show only most recent visit & ticklers","")) ->  | I151: =IF(I150=" "," ",(IF(H147="1-week follow-up schedule",IF(J150="",I150+7,IF(ISERROR(J150+7),I150+7,J150+7)),IF(H147="1-month follow-up schedule",IF(J150="",I150+30,IF(ISERROR(J150+30),I150+30,J150+30)),IF(J150="",I150+14,IF(ISERROR(J150+14),I150+14,J150+14)))))) ->  | L151: . | M151: =IF(L151=".","",IF(ISERROR((L151/L147)-1),"",((L151/L147)-1))) ->  | N151: . | O151: =IF(N151=".","",IF(ISERROR((N151/N147)-1),"",((N151/N147)-1))) ->  | T151: 0 | U151: 0pt | V151: 9999999
A152: =IF(A151<>"",A151,"") ->  | D152: =IF(AND(E152=" ",F147>F152), "DESELECT to hide past tx episodes",IF(OR(E152="Past due",E152="contact due today",E152="contact due in 1 day",E152="contact due in 2 days",E152="contact due in 3 days",E152="contact due in 4 days",E152="contact due in 5 days",AND(J152<>"",OR(J153="",A152<>A153))),"Show only most recent visit & ticklers","")) ->  | I152: =IF(I151=" "," ",(IF(H147="1-week follow-up schedule",IF(J151="",I151+7,IF(ISERROR(J151+7),I151+7,J151+7)),IF(H147="1-month follow-up schedule",IF(J151="",I151+30,IF(ISERROR(J151+30),I151+30,J151+30)),IF(J151="",I151+14,IF(ISERROR(J151+14),I151+14,J151+14)))))) ->  | L152: . | M152: =IF(L152=".","",IF(ISERROR((L152/L147)-1),"",((L152/L147)-1))) ->  | N152: . | O152: =IF(N152=".","",IF(ISERROR((N152/N147)-1),"",((N152/N147)-1))) ->  | T152: 0 | U152: 0pt | V152: 9999999
A153: =IF(A152<>"",A152,"") ->  | D153: =IF(AND(E153=" ",F147>F153), "DESELECT to hide past tx episodes",IF(OR(E153="Past due",E153="contact due today",E153="contact due in 1 day",E153="contact due in 2 days",E153="contact due in 3 days",E153="contact due in 4 days",E153="contact due in 5 days",AND(J153<>"",OR(J154="",A153<>A154))),"Show only most recent visit & ticklers","")) ->  | I153: =IF(I152=" "," ",(IF(H147="1-week follow-up schedule",IF(J152="",I152+7,IF(ISERROR(J152+7),I152+7,J152+7)),IF(H147="1-month follow-up schedule",IF(J152="",I152+30,IF(ISERROR(J152+30),I152+30,J152+30)),IF(J152="",I152+14,IF(ISERROR(J152+14),I152+14,J152+14)))))) ->  | L153: . | M153: =IF(L153=".","",IF(ISERROR((L153/L147)-1),"",((L153/L147)-1))) ->  | N153: . | O153: =IF(N153=".","",IF(ISERROR((N153/N147)-1),"",((N153/N147)-1))) ->  | T153: 0 | U153: 0pt | V153: 9999999
A154: =IF(A153<>"",A153,"") ->  | D154: =IF(AND(E154=" ",F147>F154), "DESELECT to hide past tx episodes",IF(OR(E154="Past due",E154="contact due today",E154="contact due in 1 day",E154="contact due in 2 days",E154="contact due in 3 days",E154="contact due in 4 days",E154="contact due in 5 days",AND(J154<>"",OR(J155="",A154<>A155))),"Show only most recent visit & ticklers","")) ->  | I154: =IF(I153=" "," ",(IF(H147="1-week follow-up schedule",IF(J153="",I153+7,IF(ISERROR(J153+7),I153+7,J153+7)),IF(H147="1-month follow-up schedule",IF(J153="",I153+30,IF(ISERROR(J153+30),I153+30,J153+30)),IF(J153="",I153+14,IF(ISERROR(J153+14),I153+14,J153+14)))))) ->  | L154: . | M154: =IF(L154=".","",IF(ISERROR((L154/L147)-1),"",((L154/L147)-1))) ->  | N154: . | O154: =IF(N154=".","",IF(ISERROR((N154/N147)-1),"",((N154/N147)-1))) ->  | T154: 0 | U154: 0pt | V154: 9999999
A155: =IF(A154<>"",A154,"") ->  | D155: =IF(AND(E155=" ",F147>F155), "DESELECT to hide past tx episodes",IF(OR(E155="Past due",E155="contact due today",E155="contact due in 1 day",E155="contact due in 2 days",E155="contact due in 3 days",E155="contact due in 4 days",E155="contact due in 5 days",AND(J155<>"",OR(J156="",A155<>A156))),"Show only most recent visit & ticklers","")) ->  | I155: =IF(I154=" "," ",(IF(H147="1-week follow-up schedule",IF(J154="",I154+7,IF(ISERROR(J154+7),I154+7,J154+7)),IF(H147="1-month follow-up schedule",IF(J154="",I154+30,IF(ISERROR(J154+30),I154+30,J154+30)),IF(J154="",I154+14,IF(ISERROR(J154+14),I154+14,J154+14)))))) ->  | L155: . | M155: =IF(L155=".","",IF(ISERROR((L155/L147)-1),"",((L155/L147)-1))) ->  | N155: . | O155: =IF(N155=".","",IF(ISERROR((N155/N147)-1),"",((N155/N147)-1))) ->  | T155: 0 | U155: 0pt | V155: 9999999
A156: =IF(A155<>"",A155,"") ->  | D156: =IF(AND(E156=" ",F147>F156), "DESELECT to hide past tx episodes",IF(OR(E156="Past due",E156="contact due today",E156="contact due in 1 day",E156="contact due in 2 days",E156="contact due in 3 days",E156="contact due in 4 days",E156="contact due in 5 days",AND(J156<>"",OR(J157="",A156<>A157))),"Show only most recent visit & ticklers","")) ->  | I156: =IF(I155=" "," ",(IF(H147="1-week follow-up schedule",IF(J155="",I155+7,IF(ISERROR(J155+7),I155+7,J155+7)),IF(H147="1-month follow-up schedule",IF(J155="",I155+30,IF(ISERROR(J155+30),I155+30,J155+30)),IF(J155="",I155+14,IF(ISERROR(J155+14),I155+14,J155+14)))))) ->  | L156: . | M156: =IF(L156=".","",IF(ISERROR((L156/L147)-1),"",((L156/L147)-1))) ->  | N156: . | O156: =IF(N156=".","",IF(ISERROR((N156/N147)-1),"",((N156/N147)-1))) ->  | T156: 0 | U156: 0pt | V156: 9999999
A157: =IF(A156<>"",A156,"") ->  | D157: =IF(AND(E157=" ",F147>F157), "DESELECT to hide past tx episodes",IF(OR(E157="Past due",E157="contact due today",E157="contact due in 1 day",E157="contact due in 2 days",E157="contact due in 3 days",E157="contact due in 4 days",E157="contact due in 5 days",AND(J157<>"",OR(J158="",A157<>A158))),"Show only most recent visit & ticklers","")) ->  | I157: =IF(I156=" "," ",(IF(H147="1-week follow-up schedule",IF(J156="",I156+7,IF(ISERROR(J156+7),I156+7,J156+7)),IF(H147="1-month follow-up schedule",IF(J156="",I156+30,IF(ISERROR(J156+30),I156+30,J156+30)),IF(J156="",I156+14,IF(ISERROR(J156+14),I156+14,J156+14)))))) ->  | L157: . | M157: =IF(L157=".","",IF(ISERROR((L157/L147)-1),"",((L157/L147)-1))) ->  | N157: . | O157: =IF(N157=".","",IF(ISERROR((N157/N147)-1),"",((N157/N147)-1))) ->  | T157: 0 | U157: 0pt | V157: 9999999
A158: =IF(A157<>"",A157,"") ->  | D158: =IF(AND(E158=" ",F147>F158), "DESELECT to hide past tx episodes",IF(OR(E158="Past due",E158="contact due today",E158="contact due in 1 day",E158="contact due in 2 days",E158="contact due in 3 days",E158="contact due in 4 days",E158="contact due in 5 days",AND(J158<>"",OR(J159="",A158<>A159))),"Show only most recent visit & ticklers","")) ->  | I158: =IF(I157=" "," ",(IF(H147="1-week follow-up schedule",IF(J157="",I157+7,IF(ISERROR(J157+7),I157+7,J157+7)),IF(H147="1-month follow-up schedule",IF(J157="",I157+30,IF(ISERROR(J157+30),I157+30,J157+30)),IF(J157="",I157+14,IF(ISERROR(J157+14),I157+14,J157+14)))))) ->  | L158: . | M158: =IF(L158=".","",IF(ISERROR((L158/L147)-1),"",((L158/L147)-1))) ->  | N158: . | O158: =IF(N158=".","",IF(ISERROR((N158/N147)-1),"",((N158/N147)-1))) ->  | T158: 0 | U158: 0pt | V158: 9999999
A159: =IF(A158<>"",A158,"") ->  | D159: =IF(AND(E159=" ",F147>F159), "DESELECT to hide past tx episodes",IF(OR(E159="Past due",E159="contact due today",E159="contact due in 1 day",E159="contact due in 2 days",E159="contact due in 3 days",E159="contact due in 4 days",E159="contact due in 5 days",AND(J159<>"",OR(J160="",A159<>A160))),"Show only most recent visit & ticklers","")) ->  | I159: =IF(I158=" "," ",(IF(H147="1-week follow-up schedule",IF(J158="",I158+7,IF(ISERROR(J158+7),I158+7,J158+7)),IF(H147="1-month follow-up schedule",IF(J158="",I158+30,IF(ISERROR(J158+30),I158+30,J158+30)),IF(J158="",I158+14,IF(ISERROR(J158+14),I158+14,J158+14)))))) ->  | L159: . | M159: =IF(L159=".","",IF(ISERROR((L159/L147)-1),"",((L159/L147)-1))) ->  | N159: . | O159: =IF(N159=".","",IF(ISERROR((N159/N147)-1),"",((N159/N147)-1))) ->  | T159: 0 | U159: 0pt | V159: 9999999
A160: =IF(A159<>"",A159,"") ->  | D160: =IF(AND(E160=" ",F147>F160), "DESELECT to hide past tx episodes",IF(OR(E160="Past due",E160="contact due today",E160="contact due in 1 day",E160="contact due in 2 days",E160="contact due in 3 days",E160="contact due in 4 days",E160="contact due in 5 days",AND(J160<>"",OR(J161="",A160<>A161))),"Show only most recent visit & ticklers","")) ->  | I160: =IF(I159=" "," ",(IF(H147="1-week follow-up schedule",IF(J159="",I159+7,IF(ISERROR(J159+7),I159+7,J159+7)),IF(H147="1-month follow-up schedule",IF(J159="",I159+30,IF(ISERROR(J159+30),I159+30,J159+30)),IF(J159="",I159+14,IF(ISERROR(J159+14),I159+14,J159+14)))))) ->  | L160: . | M160: =IF(L160=".","",IF(ISERROR((L160/L147)-1),"",((L160/L147)-1))) ->  | N160: . | O160: =IF(N160=".","",IF(ISERROR((N160/N147)-1),"",((N160/N147)-1))) ->  | T160: 0 | U160: 0pt | V160: 9999999
A161: =IF(A160<>"",A160,"") ->  | D161: =IF(AND(E161=" ",F147>F161), "DESELECT to hide past tx episodes",IF(OR(E161="Past due",E161="contact due today",E161="contact due in 1 day",E161="contact due in 2 days",E161="contact due in 3 days",E161="contact due in 4 days",E161="contact due in 5 days",AND(J161<>"",OR(J162="",A161<>A162))),"Show only most recent visit & ticklers","")) ->  | I161: =IF(I160=" "," ",(IF(H147="1-week follow-up schedule",IF(J160="",I160+7,IF(ISERROR(J160+7),I160+7,J160+7)),IF(H147="1-month follow-up schedule",IF(J160="",I160+30,IF(ISERROR(J160+30),I160+30,J160+30)),IF(J160="",I160+14,IF(ISERROR(J160+14),I160+14,J160+14)))))) ->  | L161: . | M161: =IF(L161=".","",IF(ISERROR((L161/L147)-1),"",((L161/L147)-1))) ->  | N161: . | O161: =IF(N161=".","",IF(ISERROR((N161/N147)-1),"",((N161/N147)-1))) ->  | T161: 0 | U161: 0pt | V161: 9999999
A162: =IF(A161<>"",A161,"") ->  | D162: =IF(AND(E162=" ",F147>F162), "DESELECT to hide past tx episodes",IF(OR(E162="Past due",E162="contact due today",E162="contact due in 1 day",E162="contact due in 2 days",E162="contact due in 3 days",E162="contact due in 4 days",E162="contact due in 5 days",AND(J162<>"",OR(#REF!="",A162<>#REF!))),"Show only most recent visit & ticklers","")) ->  | I162: =IF(I161=" "," ",(IF(H147="1-week follow-up schedule",IF(J161="",I161+7,IF(ISERROR(J161+7),I161+7,J161+7)),IF(H147="1-month follow-up schedule",IF(J161="",I161+30,IF(ISERROR(J161+30),I161+30,J161+30)),IF(J161="",I161+14,IF(ISERROR(J161+14),I161+14,J161+14)))))) ->  | L162: . | M162: =IF(L162=".","",IF(ISERROR((L162/L147)-1),"",((L162/L147)-1))) ->  | N162: . | O162: =IF(N162=".","",IF(ISERROR((N162/N147)-1),"",((N162/N147)-1))) ->  | T162: 0 | U162: 0pt | V162: 9999999
T163: 0 | U163: 0pt

Sheet Caseload Overview - DO NOT EDIT (hidden)
D1: 1) Press "Ctrl+J" to refresh the page EVERY time this worksheet is used 2) Make sure all other versions/copies of the template are CLOSED before pressing "Ctrl+J" 3) Do NOT use this worksheet if fewer than 2 ACTIVE patients are entered on the Patient Tracking worksheet 4) Do NOT make changes to the text on this worksheet. Only use the sort/filter functions in Row 4. If a cell value is changed, press "Ctrl+Z" immediately to undo it.
D2: Treatment Status Indicates that the the most recent contact was over 2 months ago | I2: PHQ-9 | M2: GAD-7 A green check mark indicates that a patient's last available GAD-7 score was at target (<8 or 50% decrease from initial score) | Q2: Psychiatric Consultation
A4: Treatment Status | B4: Name | C4: MRN | D4: Date of Initial Assessment | E4: Date of Most Recent Contact | F4: Date Next Follow-up Due | G4: Number of Follow-up Contacts | H4: Weeks in Treatment | I4: Initial PHQ-9 Score | J4: Last Available PHQ-9 Score | K4: % Change in PHQ-9 Score | L4: Date of Last PHQ-9 Score | M4: Initial GAD-7 Score | N4: Last Available GAD-7 Score | O4: % Change in GAD-7 Score | P4: Date of Last GAD-7 Score | Q4: Flag | R4: Most Recent Psychiatric Consultant Note
A5: ='Data Prep'!B2 -> Active | B5: ='Data Prep'!D2 -> Joe Smith | C5: ='Data Prep'!C2 -> 1234 | D5: ='Data Prep'!K2 -> 2017-04-01 | E5: ='Data Prep'!M2 -> 2017-04-01 | F5: ='Data Prep'!P2 -> 2017-07-25 | G5: ='Data Prep'!J2 -> 6 | H5: ='Data Prep'!W2 -> 14.42857143 | I5: ='Data Prep'!Z2 -> No Score | J5: ='Data Prep'!AA2 ->  | K5: ='Data Prep'!AB2 ->  | L5: ='Data Prep'!AC2 ->  | M5: ='Data Prep'!AD2 -> No Score | N5: ='Data Prep'!AG2 -> No Score | O5: ='Data Prep'!AH2 ->  | P5: ='Data Prep'!AJ2 -> 2017-07-11 | Q5: ='Data Prep'!AO2 ->  | R5: ='Data Prep'!AM2 -> 2016-10-24
A6: ='Data Prep'!B3 -> Active | B6: ='Data Prep'!D3 -> Joe Smith | C6: ='Data Prep'!C3 -> 1234 | D6: ='Data Prep'!K3 -> 2017-04-01 | E6: ='Data Prep'!M3 -> 2017-07-11 | F6: ='Data Prep'!P3 -> 2017-07-25 | G6: ='Data Prep'!J3 -> 6 | H6: ='Data Prep'!W3 -> 14.42857143 | I6: ='Data Prep'!Z3 -> 15 | J6: ='Data Prep'!AA3 ->  | K6: ='Data Prep'!AB3 ->  | L6: ='Data Prep'!AC3 ->  | M6: ='Data Prep'!AD3 -> 11 | N6: ='Data Prep'!AG3 -> 4 | O6: ='Data Prep'!AH3 -> -0.6363636364 | P6: ='Data Prep'!AJ3 -> 2017-07-11 | Q6: ='Data Prep'!AO3 ->  | R6: ='Data Prep'!AM3 -> 2016-10-24
A7: ='Data Prep'!B4 -> Active | B7: ='Data Prep'!D4 -> Joe Smith | C7: ='Data Prep'!C4 -> 1234 | D7: ='Data Prep'!K4 -> 2017-04-01 | E7: ='Data Prep'!M4 -> 2017-07-11 | F7: ='Data Prep'!P4 -> 2017-07-25 | G7: ='Data Prep'!J4 -> 6 | H7: ='Data Prep'!W4 -> 14.42857143 | I7: ='Data Prep'!Z4 -> 15 | J7: ='Data Prep'!AA4 ->  | K7: ='Data Prep'!AB4 ->  | L7: ='Data Prep'!AC4 ->  | M7: ='Data Prep'!AD4 -> 11 | N7: ='Data Prep'!AG4 -> 4 | O7: ='Data Prep'!AH4 -> -0.6363636364 | P7: ='Data Prep'!AJ4 -> 2017-07-11 | Q7: ='Data Prep'!AO4 ->  | R7: ='Data Prep'!AM4 -> 2016-10-24
A8: ='Data Prep'!B5 -> Active | B8: ='Data Prep'!D5 -> Joe Smith | C8: ='Data Prep'!C5 -> 1234 | D8: ='Data Prep'!K5 -> 2017-04-01 | E8: ='Data Prep'!M5 -> 2017-07-11 | F8: ='Data Prep'!P5 -> 2017-07-25 | G8: ='Data Prep'!J5 -> 6 | H8: ='Data Prep'!W5 -> 14.42857143 | I8: ='Data Prep'!Z5 -> 15 | J8: ='Data Prep'!AA5 ->  | K8: ='Data Prep'!AB5 ->  | L8: ='Data Prep'!AC5 ->  | M8: ='Data Prep'!AD5 -> 11 | N8: ='Data Prep'!AG5 -> 4 | O8: ='Data Prep'!AH5 -> -0.6363636364 | P8: ='Data Prep'!AJ5 -> 2017-07-11 | Q8: ='Data Prep'!AO5 ->  | R8: ='Data Prep'!AM5 -> 2016-10-24
A9: ='Data Prep'!B6 -> Active | B9: ='Data Prep'!D6 -> Joe Smith | C9: ='Data Prep'!C6 -> 1234 | D9: ='Data Prep'!K6 -> 2017-04-01 | E9: ='Data Prep'!M6 -> 2017-07-11 | F9: ='Data Prep'!P6 -> 2017-07-25 | G9: ='Data Prep'!J6 -> 6 | H9: ='Data Prep'!W6 -> 14.42857143 | I9: ='Data Prep'!Z6 -> 15 | J9: ='Data Prep'!AA6 ->  | K9: ='Data Prep'!AB6 ->  | L9: ='Data Prep'!AC6 ->  | M9: ='Data Prep'!AD6 -> 11 | N9: ='Data Prep'!AG6 -> 4 | O9: ='Data Prep'!AH6 -> -0.6363636364 | P9: ='Data Prep'!AJ6 -> 2017-07-11 | Q9: ='Data Prep'!AO6 ->  | R9: ='Data Prep'!AM6 -> 2016-10-24
A10: ='Data Prep'!B7 -> Active | B10: ='Data Prep'!D7 -> Joe Smith | C10: ='Data Prep'!C7 -> 1234 | D10: ='Data Prep'!K7 -> 2017-04-01 | E10: ='Data Prep'!M7 -> 2017-07-11 | F10: ='Data Prep'!P7 -> 2017-07-25 | G10: ='Data Prep'!J7 -> 6 | H10: ='Data Prep'!W7 -> 14.42857143 | I10: ='Data Prep'!Z7 -> 15 | J10: ='Data Prep'!AA7 ->  | K10: ='Data Prep'!AB7 ->  | L10: ='Data Prep'!AC7 ->  | M10: ='Data Prep'!AD7 -> 11 | N10: ='Data Prep'!AG7 -> 4 | O10: ='Data Prep'!AH7 -> -0.6363636364 | P10: ='Data Prep'!AJ7 -> 2017-07-11 | Q10: ='Data Prep'!AO7 ->  | R10: ='Data Prep'!AM7 -> 2016-10-24
A11: ='Data Prep'!B8 -> Active | B11: ='Data Prep'!D8 -> Joe Smith | C11: ='Data Prep'!C8 -> 1234 | D11: ='Data Prep'!K8 -> 2017-04-01 | E11: ='Data Prep'!M8 -> 2017-07-11 | F11: ='Data Prep'!P8 -> 2017-07-25 | G11: ='Data Prep'!J8 -> 6 | H11: ='Data Prep'!W8 -> 14.42857143 | I11: ='Data Prep'!Z8 -> 15 | J11: ='Data Prep'!AA8 ->  | K11: ='Data Prep'!AB8 ->  | L11: ='Data Prep'!AC8 ->  | M11: ='Data Prep'!AD8 -> 11 | N11: ='Data Prep'!AG8 -> 4 | O11: ='Data Prep'!AH8 -> -0.6363636364 | P11: ='Data Prep'!AJ8 -> 2017-07-11 | Q11: ='Data Prep'!AO8 ->  | R11: ='Data Prep'!AM8 -> 2016-10-24
A12: ='Data Prep'!B9 -> Active | B12: ='Data Prep'!D9 -> Joe Smith | C12: ='Data Prep'!C9 -> 1234 | D12: ='Data Prep'!K9 -> 2017-04-01 | E12: ='Data Prep'!M9 -> 2017-07-11 | F12: ='Data Prep'!P9 -> 2017-07-25 | G12: ='Data Prep'!J9 -> 6 | H12: ='Data Prep'!W9 -> 14.42857143 | I12: ='Data Prep'!Z9 -> 15 | J12: ='Data Prep'!AA9 -> 8 | K12: ='Data Prep'!AB9 -> -0.4666666667 | L12: ='Data Prep'!AC9 -> 2017-07-11 | M12: ='Data Prep'!AD9 -> 11 | N12: ='Data Prep'!AG9 -> 4 | O12: ='Data Prep'!AH9 -> -0.6363636364 | P12: ='Data Prep'!AJ9 -> 2017-07-11 | Q12: ='Data Prep'!AO9 ->  | R12: ='Data Prep'!AM9 -> 2016-10-24
A13: ='Data Prep'!B10 -> Active | B13: ='Data Prep'!D10 -> Joe Smith | C13: ='Data Prep'!C10 -> 1234 | D13: ='Data Prep'!K10 -> 2017-04-01 | E13: ='Data Prep'!M10 -> 2017-05-29 | F13: ='Data Prep'!P10 -> 2017-07-25 | G13: ='Data Prep'!J10 -> 0 | H13: ='Data Prep'!W10 -> 14.42857143 | I13: ='Data Prep'!Z10 -> 15 | J13: ='Data Prep'!AA10 ->  | K13: ='Data Prep'!AB10 ->  | L13: ='Data Prep'!AC10 ->  | M13: ='Data Prep'!AD10 -> 11 | N13: ='Data Prep'!AG10 -> 4 | O13: ='Data Prep'!AH10 -> -0.6363636364 | P13: ='Data Prep'!AJ10 -> 2017-07-11 | Q13: ='Data Prep'!AO10 ->  | R13: ='Data Prep'!AM10 -> 2016-10-24
A14: ='Data Prep'!B11 -> Active | B14: ='Data Prep'!D11 -> Joe Smith | C14: ='Data Prep'!C11 -> 1234 | D14: ='Data Prep'!K11 -> 2017-04-01 | E14: ='Data Prep'!M11 -> 2017-05-29 | F14: ='Data Prep'!P11 -> 2017-08-08 | G14: ='Data Prep'!J11 -> 0 | H14: ='Data Prep'!W11 -> 14.42857143 | I14: ='Data Prep'!Z11 -> 15 | J14: ='Data Prep'!AA11 ->  | K14: ='Data Prep'!AB11 ->  | L14: ='Data Prep'!AC11 ->  | M14: ='Data Prep'!AD11 -> 11 | N14: ='Data Prep'!AG11 -> 4 | O14: ='Data Prep'!AH11 -> -0.6363636364 | P14: ='Data Prep'!AJ11 -> 2017-07-11 | Q14: ='Data Prep'!AO11 ->  | R14: ='Data Prep'!AM11 -> 2016-10-24
A15: ='Data Prep'!B12 -> Active | B15: ='Data Prep'!D12 -> Joe Smith | C15: ='Data Prep'!C12 -> 1234 | D15: ='Data Prep'!K12 -> 2017-04-01 | E15: ='Data Prep'!M12 -> 2017-05-29 | F15: ='Data Prep'!P12 -> 2017-08-22 | G15: ='Data Prep'!J12 -> 0 | H15: ='Data Prep'!W12 -> 14.42857143 | I15: ='Data Prep'!Z12 -> 15 | J15: ='Data Prep'!AA12 ->  | K15: ='Data Prep'!AB12 ->  | L15: ='Data Prep'!AC12 ->  | M15: ='Data Prep'!AD12 -> 11 | N15: ='Data Prep'!AG12 -> 4 | O15: ='Data Prep'!AH12 -> -0.6363636364 | P15: ='Data Prep'!AJ12 -> 2017-07-11 | Q15: ='Data Prep'!AO12 ->  | R15: ='Data Prep'!AM12 -> 2016-10-24
A16: ='Data Prep'!B13 -> Active | B16: ='Data Prep'!D13 -> Joe Smith | C16: ='Data Prep'!C13 -> 1234 | D16: ='Data Prep'!K13 -> 2017-04-01 | E16: ='Data Prep'!M13 -> 2017-05-29 | F16: ='Data Prep'!P13 -> 2017-09-05 | G16: ='Data Prep'!J13 -> 0 | H16: ='Data Prep'!W13 -> 14.42857143 | I16: ='Data Prep'!Z13 -> 15 | J16: ='Data Prep'!AA13 ->  | K16: ='Data Prep'!AB13 ->  | L16: ='Data Prep'!AC13 ->  | M16: ='Data Prep'!AD13 -> 11 | N16: ='Data Prep'!AG13 -> 4 | O16: ='Data Prep'!AH13 -> -0.6363636364 | P16: ='Data Prep'!AJ13 -> 2017-07-11 | Q16: ='Data Prep'!AO13 ->  | R16: ='Data Prep'!AM13 -> 2016-10-24
A17: ='Data Prep'!B14 -> Active | B17: ='Data Prep'!D14 -> Joe Smith | C17: ='Data Prep'!C14 -> 1234 | D17: ='Data Prep'!K14 -> 2017-04-01 | E17: ='Data Prep'!M14 -> 2017-05-29 | F17: ='Data Prep'!P14 -> 2017-09-19 | G17: ='Data Prep'!J14 -> 0 | H17: ='Data Prep'!W14 -> 14.42857143 | I17: ='Data Prep'!Z14 -> 15 | J17: ='Data Prep'!AA14 ->  | K17: ='Data Prep'!AB14 ->  | L17: ='Data Prep'!AC14 ->  | M17: ='Data Prep'!AD14 -> 11 | N17: ='Data Prep'!AG14 -> 4 | O17: ='Data Prep'!AH14 -> -0.6363636364 | P17: ='Data Prep'!AJ14 -> 2017-07-11 | Q17: ='Data Prep'!AO14 ->  | R17: ='Data Prep'!AM14 -> 2016-10-24
A18: ='Data Prep'!B15 -> Active | B18: ='Data Prep'!D15 -> Joe Smith | C18: ='Data Prep'!C15 -> 1234 | D18: ='Data Prep'!K15 -> 2017-04-01 | E18: ='Data Prep'!M15 -> 2017-05-29 | F18: ='Data Prep'!P15 -> 2017-10-03 | G18: ='Data Prep'!J15 -> 0 | H18: ='Data Prep'!W15 -> 14.42857143 | I18: ='Data Prep'!Z15 -> 15 | J18: ='Data Prep'!AA15 ->  | K18: ='Data Prep'!AB15 ->  | L18: ='Data Prep'!AC15 ->  | M18: ='Data Prep'!AD15 -> 11 | N18: ='Data Prep'!AG15 -> 4 | O18: ='Data Prep'!AH15 -> -0.6363636364 | P18: ='Data Prep'!AJ15 -> 2017-07-11 | Q18: ='Data Prep'!AO15 ->  | R18: ='Data Prep'!AM15 -> 2016-10-24
A19: ='Data Prep'!B16 -> Active | B19: ='Data Prep'!D16 -> Joe Smith | C19: ='Data Prep'!C16 -> 1234 | D19: ='Data Prep'!K16 -> 2017-04-01 | E19: ='Data Prep'!M16 -> 2017-05-29 | F19: ='Data Prep'!P16 -> 2017-10-17 | G19: ='Data Prep'!J16 -> 0 | H19: ='Data Prep'!W16 -> 14.42857143 | I19: ='Data Prep'!Z16 -> 15 | J19: ='Data Prep'!AA16 ->  | K19: ='Data Prep'!AB16 ->  | L19: ='Data Prep'!AC16 ->  | M19: ='Data Prep'!AD16 -> 11 | N19: ='Data Prep'!AG16 -> 4 | O19: ='Data Prep'!AH16 -> -0.6363636364 | P19: ='Data Prep'!AJ16 -> 2017-07-11 | Q19: ='Data Prep'!AO16 ->  | R19: ='Data Prep'!AM16 -> 2016-10-24
A20: ='Data Prep'!B17 -> Active | B20: ='Data Prep'!D17 -> Joe Smith | C20: ='Data Prep'!C17 -> 1234 | D20: ='Data Prep'!K17 -> 2017-04-01 | E20: ='Data Prep'!M17 -> 2017-05-29 | F20: ='Data Prep'!P17 -> 2017-10-31 | G20: ='Data Prep'!J17 -> 0 | H20: ='Data Prep'!W17 -> 14.42857143 | I20: ='Data Prep'!Z17 -> 15 | J20: ='Data Prep'!AA17 ->  | K20: ='Data Prep'!AB17 ->  | L20: ='Data Prep'!AC17 ->  | M20: ='Data Prep'!AD17 -> 11 | N20: ='Data Prep'!AG17 -> 4 | O20: ='Data Prep'!AH17 -> -0.6363636364 | P20: ='Data Prep'!AJ17 -> 2017-07-11 | Q20: ='Data Prep'!AO17 ->  | R20: ='Data Prep'!AM17 -> 2016-10-24
A21: ='Data Prep'!B18 -> Active | B21: ='Data Prep'!D18 -> Bob Dolittle | C21: ='Data Prep'!C18 -> 1222 | D21: ='Data Prep'!K18 -> 2017-03-02 | E21: ='Data Prep'!M18 -> 2017-05-29 | F21: ='Data Prep'!P18 -> 2017-07-15 | G21: ='Data Prep'!J18 -> 3 | H21: ='Data Prep'!W18 -> 18.71428571 | I21: ='Data Prep'!Z18 -> No Score | J21: ='Data Prep'!AA18 ->  | K21: ='Data Prep'!AB18 ->  | L21: ='Data Prep'!AC18 ->  | M21: ='Data Prep'!AD18 -> No Score | N21: ='Data Prep'!AG18 -> No Score | O21: ='Data Prep'!AH18 ->  | P21: ='Data Prep'!AJ18 -> 2017-07-01 | Q21: ='Data Prep'!AO18 -> Flag as safety risk | R21: ='Data Prep'!AM18 -> 2016-09-17
A22: ='Data Prep'!B19 -> Active | B22: ='Data Prep'!D19 -> Bob Dolittle | C22: ='Data Prep'!C19 -> 1222 | D22: ='Data Prep'!K19 -> 2017-03-02 | E22: ='Data Prep'!M19 -> 2017-07-01 | F22: ='Data Prep'!P19 -> 2017-07-15 | G22: ='Data Prep'!J19 -> 3 | H22: ='Data Prep'!W19 -> 18.71428571 | I22: ='Data Prep'!Z19 ->  | J22: ='Data Prep'!AA19 ->  | K22: ='Data Prep'!AB19 ->  | L22: ='Data Prep'!AC19 ->  | M22: ='Data Prep'!AD19 ->  | N22: ='Data Prep'!AG19 -> No Score | O22: ='Data Prep'!AH19 ->  | P22: ='Data Prep'!AJ19 -> 2017-07-01 | Q22: ='Data Prep'!AO19 -> Flag as safety risk | R22: ='Data Prep'!AM19 -> 2016-09-17
A23: ='Data Prep'!B20 -> Active | B23: ='Data Prep'!D20 -> Bob Dolittle | C23: ='Data Prep'!C20 -> 1222 | D23: ='Data Prep'!K20 -> 2017-03-02 | E23: ='Data Prep'!M20 -> 2017-07-01 | F23: ='Data Prep'!P20 -> 2017-07-15 | G23: ='Data Prep'!J20 -> 3 | H23: ='Data Prep'!W20 -> 18.71428571 | I23: ='Data Prep'!Z20 ->  | J23: ='Data Prep'!AA20 ->  | K23: ='Data Prep'!AB20 ->  | L23: ='Data Prep'!AC20 ->  | M23: ='Data Prep'!AD20 ->  | N23: ='Data Prep'!AG20 -> No Score | O23: ='Data Prep'!AH20 ->  | P23: ='Data Prep'!AJ20 -> 2017-07-01 | Q23: ='Data Prep'!AO20 -> Flag as safety risk | R23: ='Data Prep'!AM20 -> 2016-09-17
A24: ='Data Prep'!B21 -> Active | B24: ='Data Prep'!D21 -> Bob Dolittle | C24: ='Data Prep'!C21 -> 1222 | D24: ='Data Prep'!K21 -> 2017-03-02 | E24: ='Data Prep'!M21 -> 2017-07-01 | F24: ='Data Prep'!P21 -> 2017-07-15 | G24: ='Data Prep'!J21 -> 3 | H24: ='Data Prep'!W21 -> 18.71428571 | I24: ='Data Prep'!Z21 ->  | J24: ='Data Prep'!AA21 ->  | K24: ='Data Prep'!AB21 ->  | L24: ='Data Prep'!AC21 ->  | M24: ='Data Prep'!AD21 ->  | N24: ='Data Prep'!AG21 -> No Score | O24: ='Data Prep'!AH21 ->  | P24: ='Data Prep'!AJ21 -> 2017-07-01 | Q24: ='Data Prep'!AO21 -> Flag as safety risk | R24: ='Data Prep'!AM21 -> 2016-09-17
A25: ='Data Prep'!B22 -> Active | B25: ='Data Prep'!D22 -> Bob Dolittle | C25: ='Data Prep'!C22 -> 1222 | D25: ='Data Prep'!K22 -> 2017-03-02 | E25: ='Data Prep'!M22 -> 2017-07-01 | F25: ='Data Prep'!P22 -> 2017-07-15 | G25: ='Data Prep'!J22 -> 3 | H25: ='Data Prep'!W22 -> 18.71428571 | I25: ='Data Prep'!Z22 ->  | J25: ='Data Prep'!AA22 ->  | K25: ='Data Prep'!AB22 ->  | L25: ='Data Prep'!AC22 ->  | M25: ='Data Prep'!AD22 ->  | N25: ='Data Prep'!AG22 -> No Score | O25: ='Data Prep'!AH22 ->  | P25: ='Data Prep'!AJ22 -> 2017-07-01 | Q25: ='Data Prep'!AO22 -> Flag as safety risk | R25: ='Data Prep'!AM22 -> 2016-09-17
A26: ='Data Prep'!B23 -> Active | B26: ='Data Prep'!D23 -> Bob Dolittle | C26: ='Data Prep'!C23 -> 1222 | D26: ='Data Prep'!K23 -> 2017-03-02 | E26: ='Data Prep'!M23 -> 2017-07-01 | F26: ='Data Prep'!P23 -> 2017-07-15 | G26: ='Data Prep'!J23 -> 3 | H26: ='Data Prep'!W23 -> 18.71428571 | I26: ='Data Prep'!Z23 ->  | J26: ='Data Prep'!AA23 ->  | K26: ='Data Prep'!AB23 ->  | L26: ='Data Prep'!AC23 ->  | M26: ='Data Prep'!AD23 ->  | N26: ='Data Prep'!AG23 -> No Score | O26: ='Data Prep'!AH23 ->  | P26: ='Data Prep'!AJ23 -> 2017-07-01 | Q26: ='Data Prep'!AO23 -> Flag as safety risk | R26: ='Data Prep'!AM23 -> 2016-09-17
A27: ='Data Prep'!B24 -> Active | B27: ='Data Prep'!D24 -> Bob Dolittle | C27: ='Data Prep'!C24 -> 1222 | D27: ='Data Prep'!K24 -> 2017-03-02 | E27: ='Data Prep'!M24 -> 2017-05-29 | F27: ='Data Prep'!P24 -> 2017-07-15 | G27: ='Data Prep'!J24 -> 3 | H27: ='Data Prep'!W24 -> 18.71428571 | I27: ='Data Prep'!Z24 -> No Score | J27: ='Data Prep'!AA24 ->  | K27: ='Data Prep'!AB24 ->  | L27: ='Data Prep'!AC24 ->  | M27: ='Data Prep'!AD24 -> No Score | N27: ='Data Prep'!AG24 -> No Score | O27: ='Data Prep'!AH24 ->  | P27: ='Data Prep'!AJ24 -> 2017-07-01 | Q27: ='Data Prep'!AO24 -> Flag as safety risk | R27: ='Data Prep'!AM24 -> 2016-09-17
A28: ='Data Prep'!B25 -> Active | B28: ='Data Prep'!D25 -> Bob Dolittle | C28: ='Data Prep'!C25 -> 1222 | D28: ='Data Prep'!K25 -> 2017-03-02 | E28: ='Data Prep'!M25 -> 2017-05-29 | F28: ='Data Prep'!P25 -> 2017-07-15 | G28: ='Data Prep'!J25 -> 3 | H28: ='Data Prep'!W25 -> 18.71428571 | I28: ='Data Prep'!Z25 -> No Score | J28: ='Data Prep'!AA25 ->  | K28: ='Data Prep'!AB25 ->  | L28: ='Data Prep'!AC25 ->  | M28: ='Data Prep'!AD25 -> No Score | N28: ='Data Prep'!AG25 -> No Score | O28: ='Data Prep'!AH25 ->  | P28: ='Data Prep'!AJ25 -> 2017-07-01 | Q28: ='Data Prep'!AO25 -> Flag as safety risk | R28: ='Data Prep'!AM25 -> 2016-09-17
A29: ='Data Prep'!B26 -> Active | B29: ='Data Prep'!D26 -> Bob Dolittle | C29: ='Data Prep'!C26 -> 1222 | D29: ='Data Prep'!K26 -> 2017-03-02 | E29: ='Data Prep'!M26 -> 2017-07-01 | F29: ='Data Prep'!P26 -> 2017-07-15 | G29: ='Data Prep'!J26 -> 3 | H29: ='Data Prep'!W26 -> 18.71428571 | I29: ='Data Prep'!Z26 -> No Score | J29: ='Data Prep'!AA26 ->  | K29: ='Data Prep'!AB26 ->  | L29: ='Data Prep'!AC26 ->  | M29: ='Data Prep'!AD26 -> No Score | N29: ='Data Prep'!AG26 -> No Score | O29: ='Data Prep'!AH26 ->  | P29: ='Data Prep'!AJ26 -> 2017-07-01 | Q29: ='Data Prep'!AO26 -> Flag as safety risk | R29: ='Data Prep'!AM26 -> 2016-09-17
A30: ='Data Prep'!B27 -> Active | B30: ='Data Prep'!D27 -> Bob Dolittle | C30: ='Data Prep'!C27 -> 1222 | D30: ='Data Prep'!K27 -> 2017-03-02 | E30: ='Data Prep'!M27 -> 2017-07-01 | F30: ='Data Prep'!P27 -> 2017-07-15 | G30: ='Data Prep'!J27 -> 3 | H30: ='Data Prep'!W27 -> 18.71428571 | I30: ='Data Prep'!Z27 -> 22 | J30: ='Data Prep'!AA27 ->  | K30: ='Data Prep'!AB27 ->  | L30: ='Data Prep'!AC27 ->  | M30: ='Data Prep'!AD27 -> 12 | N30: ='Data Prep'!AG27 -> 10 | O30: ='Data Prep'!AH27 -> -0.1666666667 | P30: ='Data Prep'!AJ27 -> 2017-07-01 | Q30: ='Data Prep'!AO27 -> Flag as safety risk | R30: ='Data Prep'!AM27 -> 2016-09-17
A31: ='Data Prep'!B28 -> Active | B31: ='Data Prep'!D28 -> Bob Dolittle | C31: ='Data Prep'!C28 -> 1222 | D31: ='Data Prep'!K28 -> 2017-03-02 | E31: ='Data Prep'!M28 -> 2017-07-01 | F31: ='Data Prep'!P28 -> 2017-07-15 | G31: ='Data Prep'!J28 -> 3 | H31: ='Data Prep'!W28 -> 18.71428571 | I31: ='Data Prep'!Z28 -> 22 | J31: ='Data Prep'!AA28 ->  | K31: ='Data Prep'!AB28 ->  | L31: ='Data Prep'!AC28 ->  | M31: ='Data Prep'!AD28 -> 12 | N31: ='Data Prep'!AG28 -> 10 | O31: ='Data Prep'!AH28 -> -0.1666666667 | P31: ='Data Prep'!AJ28 -> 2017-07-01 | Q31: ='Data Prep'!AO28 -> Flag as safety risk | R31: ='Data Prep'!AM28 -> 2016-09-17
A32: ='Data Prep'!B29 -> Active | B32: ='Data Prep'!D29 -> Bob Dolittle | C32: ='Data Prep'!C29 -> 1222 | D32: ='Data Prep'!K29 -> 2017-03-02 | E32: ='Data Prep'!M29 -> 2017-07-01 | F32: ='Data Prep'!P29 -> 2017-07-15 | G32: ='Data Prep'!J29 -> 3 | H32: ='Data Prep'!W29 -> 18.71428571 | I32: ='Data Prep'!Z29 -> 22 | J32: ='Data Prep'!AA29 ->  | K32: ='Data Prep'!AB29 ->  | L32: ='Data Prep'!AC29 ->  | M32: ='Data Prep'!AD29 -> 12 | N32: ='Data Prep'!AG29 -> 10 | O32: ='Data Prep'!AH29 -> -0.1666666667 | P32: ='Data Prep'!AJ29 -> 2017-07-01 | Q32: ='Data Prep'!AO29 -> Flag as safety risk | R32: ='Data Prep'!AM29 -> 2016-09-17
A33: ='Data Prep'!B30 -> Active | B33: ='Data Prep'!D30 -> Bob Dolittle | C33: ='Data Prep'!C30 -> 1222 | D33: ='Data Prep'!K30 -> 2017-03-02 | E33: ='Data Prep'!M30 -> 2017-05-29 | F33: ='Data Prep'!P30 -> 2017-07-15 | G33: ='Data Prep'!J30 -> 3 | H33: ='Data Prep'!W30 -> 18.71428571 | I33: ='Data Prep'!Z30 -> 22 | J33: ='Data Prep'!AA30 ->  | K33: ='Data Prep'!AB30 ->  | L33: ='Data Prep'!AC30 ->  | M33: ='Data Prep'!AD30 -> 12 | N33: ='Data Prep'!AG30 -> 10 | O33: ='Data Prep'!AH30 -> -0.1666666667 | P33: ='Data Prep'!AJ30 -> 2017-07-01 | Q33: ='Data Prep'!AO30 -> Flag as safety risk | R33: ='Data Prep'!AM30 -> 2016-09-17
A34: ='Data Prep'!B31 -> Active | B34: ='Data Prep'!D31 -> Bob Dolittle | C34: ='Data Prep'!C31 -> 1222 | D34: ='Data Prep'!K31 -> 2017-03-02 | E34: ='Data Prep'!M31 -> 2017-07-01 | F34: ='Data Prep'!P31 -> 2017-07-15 | G34: ='Data Prep'!J31 -> 3 | H34: ='Data Prep'!W31 -> 18.71428571 | I34: ='Data Prep'!Z31 -> 22 | J34: ='Data Prep'!AA31 -> 19 | K34: ='Data Prep'!AB31 -> -0.1363636364 | L34: ='Data Prep'!AC31 -> 2017-07-01 | M34: ='Data Prep'!AD31 -> 12 | N34: ='Data Prep'!AG31 -> 10 | O34: ='Data Prep'!AH31 -> -0.1666666667 | P34: ='Data Prep'!AJ31 -> 2017-07-01 | Q34: ='Data Prep'!AO31 -> Flag as safety risk | R34: ='Data Prep'!AM31 -> 2016-09-17
A35: ='Data Prep'!B32 -> Active | B35: ='Data Prep'!D32 -> Bob Dolittle | C35: ='Data Prep'!C32 -> 1222 | D35: ='Data Prep'!K32 -> 2017-03-02 | E35: ='Data Prep'!M32 -> 2017-05-29 | F35: ='Data Prep'!P32 -> 2017-07-15 | G35: ='Data Prep'!J32 -> 0 | H35: ='Data Prep'!W32 -> 18.71428571 | I35: ='Data Prep'!Z32 -> 22 | J35: ='Data Prep'!AA32 ->  | K35: ='Data Prep'!AB32 ->  | L35: ='Data Prep'!AC32 ->  | M35: ='Data Prep'!AD32 -> 12 | N35: ='Data Prep'!AG32 -> 10 | O35: ='Data Prep'!AH32 -> -0.1666666667 | P35: ='Data Prep'!AJ32 -> 2017-07-01 | Q35: ='Data Prep'!AO32 -> Flag as safety risk | R35: ='Data Prep'!AM32 -> 2016-09-17
A36: ='Data Prep'!B33 -> Active | B36: ='Data Prep'!D33 -> Bob Dolittle | C36: ='Data Prep'!C33 -> 1222 | D36: ='Data Prep'!K33 -> 2017-03-02 | E36: ='Data Prep'!M33 -> 2017-05-29 | F36: ='Data Prep'!P33 -> 2017-07-29 | G36: ='Data Prep'!J33 -> 0 | H36: ='Data Prep'!W33 -> 18.71428571 | I36: ='Data Prep'!Z33 -> 22 | J36: ='Data Prep'!AA33 ->  | K36: ='Data Prep'!AB33 ->  | L36: ='Data Prep'!AC33 ->  | M36: ='Data Prep'!AD33 -> 12 | N36: ='Data Prep'!AG33 -> 10 | O36: ='Data Prep'!AH33 -> -0.1666666667 | P36: ='Data Prep'!AJ33 -> 2017-07-01 | Q36: ='Data Prep'!AO33 -> Flag as safety risk | R36: ='Data Prep'!AM33 -> 2016-09-17
A37: ='Data Prep'!B34 -> Active | B37: ='Data Prep'!D34 -> Albert Smith | C37: ='Data Prep'!C34 -> 5555 | D37: ='Data Prep'!K34 -> 2017-03-05 | E37: ='Data Prep'!M34 -> 2017-05-29 | F37: ='Data Prep'!P34 -> 2017-07-28 | G37: ='Data Prep'!J34 -> 5 | H37: ='Data Prep'!W34 -> 18.28571429 | I37: ='Data Prep'!Z34 -> No Score | J37: ='Data Prep'!AA34 ->  | K37: ='Data Prep'!AB34 ->  | L37: ='Data Prep'!AC34 ->  | M37: ='Data Prep'!AD34 -> No Score | N37: ='Data Prep'!AG34 -> No Score | O37: ='Data Prep'!AH34 ->  | P37: ='Data Prep'!AJ34 -> 2017-06-30 | Q37: ='Data Prep'!AO34 -> Flag for discussion | R37: ='Data Prep'!AM34 -> 
A38: ='Data Prep'!B35 -> Active | B38: ='Data Prep'!D35 -> Albert Smith | C38: ='Data Prep'!C35 -> 5555 | D38: ='Data Prep'!K35 -> 2017-03-05 | E38: ='Data Prep'!M35 -> 2017-06-30 | F38: ='Data Prep'!P35 -> 2017-07-28 | G38: ='Data Prep'!J35 -> 5 | H38: ='Data Prep'!W35 -> 18.28571429 | I38: ='Data Prep'!Z35 ->  | J38: ='Data Prep'!AA35 ->  | K38: ='Data Prep'!AB35 ->  | L38: ='Data Prep'!AC35 ->  | M38: ='Data Prep'!AD35 ->  | N38: ='Data Prep'!AG35 -> No Score | O38: ='Data Prep'!AH35 ->  | P38: ='Data Prep'!AJ35 -> 2017-06-30 | Q38: ='Data Prep'!AO35 -> Flag for discussion | R38: ='Data Prep'!AM35 -> 
A39: ='Data Prep'!B36 -> Active | B39: ='Data Prep'!D36 -> Albert Smith | C39: ='Data Prep'!C36 -> 5555 | D39: ='Data Prep'!K36 -> 2017-03-05 | E39: ='Data Prep'!M36 -> 2017-06-30 | F39: ='Data Prep'!P36 -> 2017-07-28 | G39: ='Data Prep'!J36 -> 5 | H39: ='Data Prep'!W36 -> 18.28571429 | I39: ='Data Prep'!Z36 ->  | J39: ='Data Prep'!AA36 ->  | K39: ='Data Prep'!AB36 ->  | L39: ='Data Prep'!AC36 ->  | M39: ='Data Prep'!AD36 ->  | N39: ='Data Prep'!AG36 -> No Score | O39: ='Data Prep'!AH36 ->  | P39: ='Data Prep'!AJ36 -> 2017-06-30 | Q39: ='Data Prep'!AO36 -> Flag for discussion | R39: ='Data Prep'!AM36 -> 
A40: ='Data Prep'!B37 -> Active | B40: ='Data Prep'!D37 -> Albert Smith | C40: ='Data Prep'!C37 -> 5555 | D40: ='Data Prep'!K37 -> 2017-03-05 | E40: ='Data Prep'!M37 -> 2017-06-30 | F40: ='Data Prep'!P37 -> 2017-07-28 | G40: ='Data Prep'!J37 -> 5 | H40: ='Data Prep'!W37 -> 18.28571429 | I40: ='Data Prep'!Z37 ->  | J40: ='Data Prep'!AA37 ->  | K40: ='Data Prep'!AB37 ->  | L40: ='Data Prep'!AC37 ->  | M40: ='Data Prep'!AD37 ->  | N40: ='Data Prep'!AG37 -> No Score | O40: ='Data Prep'!AH37 ->  | P40: ='Data Prep'!AJ37 -> 2017-06-30 | Q40: ='Data Prep'!AO37 -> Flag for discussion | R40: ='Data Prep'!AM37 -> 
A41: ='Data Prep'!B38 -> Active | B41: ='Data Prep'!D38 -> Albert Smith | C41: ='Data Prep'!C38 -> 5555 | D41: ='Data Prep'!K38 -> 2017-03-05 | E41: ='Data Prep'!M38 -> 2017-06-30 | F41: ='Data Prep'!P38 -> 2017-07-28 | G41: ='Data Prep'!J38 -> 5 | H41: ='Data Prep'!W38 -> 18.28571429 | I41: ='Data Prep'!Z38 ->  | J41: ='Data Prep'!AA38 ->  | K41: ='Data Prep'!AB38 ->  | L41: ='Data Prep'!AC38 ->  | M41: ='Data Prep'!AD38 ->  | N41: ='Data Prep'!AG38 -> No Score | O41: ='Data Prep'!AH38 ->  | P41: ='Data Prep'!AJ38 -> 2017-06-30 | Q41: ='Data Prep'!AO38 -> Flag for discussion | R41: ='Data Prep'!AM38 -> 
A42: ='Data Prep'!B39 -> Active | B42: ='Data Prep'!D39 -> Albert Smith | C42: ='Data Prep'!C39 -> 5555 | D42: ='Data Prep'!K39 -> 2017-03-05 | E42: ='Data Prep'!M39 -> 2017-05-29 | F42: ='Data Prep'!P39 -> 2017-07-28 | G42: ='Data Prep'!J39 -> 5 | H42: ='Data Prep'!W39 -> 18.28571429 | I42: ='Data Prep'!Z39 -> No Score | J42: ='Data Prep'!AA39 ->  | K42: ='Data Prep'!AB39 ->  | L42: ='Data Prep'!AC39 ->  | M42: ='Data Prep'!AD39 -> No Score | N42: ='Data Prep'!AG39 -> No Score | O42: ='Data Prep'!AH39 ->  | P42: ='Data Prep'!AJ39 -> 2017-06-30 | Q42: ='Data Prep'!AO39 -> Flag for discussion | R42: ='Data Prep'!AM39 -> 
A43: ='Data Prep'!B40 -> Active | B43: ='Data Prep'!D40 -> Albert Smith | C43: ='Data Prep'!C40 -> 5555 | D43: ='Data Prep'!K40 -> 2017-03-05 | E43: ='Data Prep'!M40 -> 2017-05-29 | F43: ='Data Prep'!P40 -> 2017-07-28 | G43: ='Data Prep'!J40 -> 5 | H43: ='Data Prep'!W40 -> 18.28571429 | I43: ='Data Prep'!Z40 -> No Score | J43: ='Data Prep'!AA40 ->  | K43: ='Data Prep'!AB40 ->  | L43: ='Data Prep'!AC40 ->  | M43: ='Data Prep'!AD40 -> No Score | N43: ='Data Prep'!AG40 -> No Score | O43: ='Data Prep'!AH40 ->  | P43: ='Data Prep'!AJ40 -> 2017-06-30 | Q43: ='Data Prep'!AO40 -> Flag for discussion | R43: ='Data Prep'!AM40 -> 
A44: ='Data Prep'!B41 -> Active | B44: ='Data Prep'!D41 -> Albert Smith | C44: ='Data Prep'!C41 -> 5555 | D44: ='Data Prep'!K41 -> 2017-03-05 | E44: ='Data Prep'!M41 -> 2017-06-30 | F44: ='Data Prep'!P41 -> 2017-07-28 | G44: ='Data Prep'!J41 -> 5 | H44: ='Data Prep'!W41 -> 18.28571429 | I44: ='Data Prep'!Z41 -> 18 | J44: ='Data Prep'!AA41 ->  | K44: ='Data Prep'!AB41 ->  | L44: ='Data Prep'!AC41 ->  | M44: ='Data Prep'!AD41 -> 14 | N44: ='Data Prep'!AG41 -> 10 | O44: ='Data Prep'!AH41 -> -0.2857142857 | P44: ='Data Prep'!AJ41 -> 2017-06-30 | Q44: ='Data Prep'!AO41 -> Flag for discussion | R44: ='Data Prep'!AM41 -> 
A45: ='Data Prep'!B42 -> Active | B45: ='Data Prep'!D42 -> Albert Smith | C45: ='Data Prep'!C42 -> 5555 | D45: ='Data Prep'!K42 -> 2017-03-05 | E45: ='Data Prep'!M42 -> 2017-06-30 | F45: ='Data Prep'!P42 -> 2017-07-28 | G45: ='Data Prep'!J42 -> 5 | H45: ='Data Prep'!W42 -> 18.28571429 | I45: ='Data Prep'!Z42 -> 18 | J45: ='Data Prep'!AA42 ->  | K45: ='Data Prep'!AB42 ->  | L45: ='Data Prep'!AC42 ->  | M45: ='Data Prep'!AD42 -> 14 | N45: ='Data Prep'!AG42 -> 10 | O45: ='Data Prep'!AH42 -> -0.2857142857 | P45: ='Data Prep'!AJ42 -> 2017-06-30 | Q45: ='Data Prep'!AO42 -> Flag for discussion | R45: ='Data Prep'!AM42 -> 
A46: ='Data Prep'!B43 -> Active | B46: ='Data Prep'!D43 -> Albert Smith | C46: ='Data Prep'!C43 -> 5555 | D46: ='Data Prep'!K43 -> 2017-03-05 | E46: ='Data Prep'!M43 -> 2017-06-30 | F46: ='Data Prep'!P43 -> 2017-07-28 | G46: ='Data Prep'!J43 -> 5 | H46: ='Data Prep'!W43 -> 18.28571429 | I46: ='Data Prep'!Z43 -> 18 | J46: ='Data Prep'!AA43 ->  | K46: ='Data Prep'!AB43 ->  | L46: ='Data Prep'!AC43 ->  | M46: ='Data Prep'!AD43 -> 14 | N46: ='Data Prep'!AG43 -> 10 | O46: ='Data Prep'!AH43 -> -0.2857142857 | P46: ='Data Prep'!AJ43 -> 2017-06-30 | Q46: ='Data Prep'!AO43 -> Flag for discussion | R46: ='Data Prep'!AM43 -> 
A47: ='Data Prep'!B44 -> Active | B47: ='Data Prep'!D44 -> Albert Smith | C47: ='Data Prep'!C44 -> 5555 | D47: ='Data Prep'!K44 -> 2017-03-05 | E47: ='Data Prep'!M44 -> 2017-06-30 | F47: ='Data Prep'!P44 -> 2017-07-28 | G47: ='Data Prep'!J44 -> 5 | H47: ='Data Prep'!W44 -> 18.28571429 | I47: ='Data Prep'!Z44 -> 18 | J47: ='Data Prep'!AA44 ->  | K47: ='Data Prep'!AB44 ->  | L47: ='Data Prep'!AC44 ->  | M47: ='Data Prep'!AD44 -> 14 | N47: ='Data Prep'!AG44 -> 10 | O47: ='Data Prep'!AH44 -> -0.2857142857 | P47: ='Data Prep'!AJ44 -> 2017-06-30 | Q47: ='Data Prep'!AO44 -> Flag for discussion | R47: ='Data Prep'!AM44 -> 
A48: ='Data Prep'!B45 -> Active | B48: ='Data Prep'!D45 -> Albert Smith | C48: ='Data Prep'!C45 -> 5555 | D48: ='Data Prep'!K45 -> 2017-03-05 | E48: ='Data Prep'!M45 -> 2017-06-30 | F48: ='Data Prep'!P45 -> 2017-07-28 | G48: ='Data Prep'!J45 -> 5 | H48: ='Data Prep'!W45 -> 18.28571429 | I48: ='Data Prep'!Z45 -> 18 | J48: ='Data Prep'!AA45 ->  | K48: ='Data Prep'!AB45 ->  | L48: ='Data Prep'!AC45 ->  | M48: ='Data Prep'!AD45 -> 14 | N48: ='Data Prep'!AG45 -> 10 | O48: ='Data Prep'!AH45 -> -0.2857142857 | P48: ='Data Prep'!AJ45 -> 2017-06-30 | Q48: ='Data Prep'!AO45 -> Flag for discussion | R48: ='Data Prep'!AM45 -> 
A49: ='Data Prep'!B46 -> Active | B49: ='Data Prep'!D46 -> Albert Smith | C49: ='Data Prep'!C46 -> 5555 | D49: ='Data Prep'!K46 -> 2017-03-05 | E49: ='Data Prep'!M46 -> 2017-06-30 | F49: ='Data Prep'!P46 -> 2017-07-28 | G49: ='Data Prep'!J46 -> 5 | H49: ='Data Prep'!W46 -> 18.28571429 | I49: ='Data Prep'!Z46 -> 18 | J49: ='Data Prep'!AA46 -> 18 | K49: ='Data Prep'!AB46 -> 0 | L49: ='Data Prep'!AC46 -> 2017-06-30 | M49: ='Data Prep'!AD46 -> 14 | N49: ='Data Prep'!AG46 -> 10 | O49: ='Data Prep'!AH46 -> -0.2857142857 | P49: ='Data Prep'!AJ46 -> 2017-06-30 | Q49: ='Data Prep'!AO46 -> Flag for discussion | R49: ='Data Prep'!AM46 -> 
A50: ='Data Prep'!B47 -> Active | B50: ='Data Prep'!D47 -> Albert Smith | C50: ='Data Prep'!C47 -> 5555 | D50: ='Data Prep'!K47 -> 2017-03-05 | E50: ='Data Prep'!M47 -> 2017-05-29 | F50: ='Data Prep'!P47 -> 2017-07-28 | G50: ='Data Prep'!J47 -> 0 | H50: ='Data Prep'!W47 -> 18.28571429 | I50: ='Data Prep'!Z47 -> 18 | J50: ='Data Prep'!AA47 ->  | K50: ='Data Prep'!AB47 ->  | L50: ='Data Prep'!AC47 ->  | M50: ='Data Prep'!AD47 -> 14 | N50: ='Data Prep'!AG47 -> 10 | O50: ='Data Prep'!AH47 -> -0.2857142857 | P50: ='Data Prep'!AJ47 -> 2017-06-30 | Q50: ='Data Prep'!AO47 -> Flag for discussion | R50: ='Data Prep'!AM47 -> 
A51: ='Data Prep'!B48 -> Active | B51: ='Data Prep'!D48 -> Albert Smith | C51: ='Data Prep'!C48 -> 5555 | D51: ='Data Prep'!K48 -> 2017-03-05 | E51: ='Data Prep'!M48 -> 2017-05-29 | F51: ='Data Prep'!P48 -> 2017-07-28 | G51: ='Data Prep'!J48 -> 0 | H51: ='Data Prep'!W48 -> 18.28571429 | I51: ='Data Prep'!Z48 -> 18 | J51: ='Data Prep'!AA48 ->  | K51: ='Data Prep'!AB48 ->  | L51: ='Data Prep'!AC48 ->  | M51: ='Data Prep'!AD48 -> 14 | N51: ='Data Prep'!AG48 -> 10 | O51: ='Data Prep'!AH48 -> -0.2857142857 | P51: ='Data Prep'!AJ48 -> 2017-06-30 | Q51: ='Data Prep'!AO48 -> Flag for discussion | R51: ='Data Prep'!AM48 -> 
A52: ='Data Prep'!B49 -> Active | B52: ='Data Prep'!D49 -> Albert Smith | C52: ='Data Prep'!C49 -> 5555 | D52: ='Data Prep'!K49 -> 2017-03-05 | E52: ='Data Prep'!M49 -> 2017-05-29 | F52: ='Data Prep'!P49 -> 2017-08-11 | G52: ='Data Prep'!J49 -> 0 | H52: ='Data Prep'!W49 -> 18.28571429 | I52: ='Data Prep'!Z49 -> 18 | J52: ='Data Prep'!AA49 ->  | K52: ='Data Prep'!AB49 ->  | L52: ='Data Prep'!AC49 ->  | M52: ='Data Prep'!AD49 -> 14 | N52: ='Data Prep'!AG49 -> 10 | O52: ='Data Prep'!AH49 -> -0.2857142857 | P52: ='Data Prep'!AJ49 -> 2017-06-30 | Q52: ='Data Prep'!AO49 -> Flag for discussion | R52: ='Data Prep'!AM49 -> 
A53: ='Data Prep'!B50 -> Inactive | B53: ='Data Prep'!D50 -> John Doe | C53: ='Data Prep'!C50 -> 4321 | D53: ='Data Prep'!K50 -> 2016-01-15 | E53: ='Data Prep'!M50 -> 2017-05-29 | F53: ='Data Prep'!P50 -> 2016-12-16 | G53: ='Data Prep'!J50 -> 12 | H53: ='Data Prep'!W50 -> 77.57142857 | I53: ='Data Prep'!Z50 -> No Score | J53: ='Data Prep'!AA50 ->  | K53: ='Data Prep'!AB50 ->  | L53: ='Data Prep'!AC50 ->  | M53: ='Data Prep'!AD50 -> No Score | N53: ='Data Prep'!AG50 -> No Score | O53: ='Data Prep'!AH50 ->  | P53: ='Data Prep'!AJ50 -> 2016-11-16 | Q53: ='Data Prep'!AO50 ->  | R53: ='Data Prep'!AM50 -> 2016-11-01
A54: ='Data Prep'!B51 -> Inactive | B54: ='Data Prep'!D51 -> John Doe | C54: ='Data Prep'!C51 -> 4321 | D54: ='Data Prep'!K51 -> 2016-01-15 | E54: ='Data Prep'!M51 -> 2016-11-16 | F54: ='Data Prep'!P51 -> 2016-12-16 | G54: ='Data Prep'!J51 -> 12 | H54: ='Data Prep'!W51 -> 77.57142857 | I54: ='Data Prep'!Z51 -> 20 | J54: ='Data Prep'!AA51 ->  | K54: ='Data Prep'!AB51 ->  | L54: ='Data Prep'!AC51 ->  | M54: ='Data Prep'!AD51 -> 14 | N54: ='Data Prep'!AG51 -> 1 | O54: ='Data Prep'!AH51 -> -0.9285714286 | P54: ='Data Prep'!AJ51 -> 2016-11-16 | Q54: ='Data Prep'!AO51 ->  | R54: ='Data Prep'!AM51 -> 2016-11-01
A55: ='Data Prep'!B52 -> Inactive | B55: ='Data Prep'!D52 -> John Doe | C55: ='Data Prep'!C52 -> 4321 | D55: ='Data Prep'!K52 -> 2016-01-15 | E55: ='Data Prep'!M52 -> 2016-11-16 | F55: ='Data Prep'!P52 -> 2016-12-16 | G55: ='Data Prep'!J52 -> 12 | H55: ='Data Prep'!W52 -> 77.57142857 | I55: ='Data Prep'!Z52 -> 20 | J55: ='Data Prep'!AA52 ->  | K55: ='Data Prep'!AB52 ->  | L55: ='Data Prep'!AC52 ->  | M55: ='Data Prep'!AD52 -> 14 | N55: ='Data Prep'!AG52 -> 1 | O55: ='Data Prep'!AH52 -> -0.9285714286 | P55: ='Data Prep'!AJ52 -> 2016-11-16 | Q55: ='Data Prep'!AO52 ->  | R55: ='Data Prep'!AM52 -> 2016-11-01
A56: ='Data Prep'!B53 -> Inactive | B56: ='Data Prep'!D53 -> John Doe | C56: ='Data Prep'!C53 -> 4321 | D56: ='Data Prep'!K53 -> 2016-01-15 | E56: ='Data Prep'!M53 -> 2016-11-16 | F56: ='Data Prep'!P53 -> 2016-12-16 | G56: ='Data Prep'!J53 -> 12 | H56: ='Data Prep'!W53 -> 77.57142857 | I56: ='Data Prep'!Z53 -> 20 | J56: ='Data Prep'!AA53 ->  | K56: ='Data Prep'!AB53 ->  | L56: ='Data Prep'!AC53 ->  | M56: ='Data Prep'!AD53 -> 14 | N56: ='Data Prep'!AG53 -> 1 | O56: ='Data Prep'!AH53 -> -0.9285714286 | P56: ='Data Prep'!AJ53 -> 2016-11-16 | Q56: ='Data Prep'!AO53 ->  | R56: ='Data Prep'!AM53 -> 2016-11-01
A57: ='Data Prep'!B54 -> Inactive | B57: ='Data Prep'!D54 -> John Doe | C57: ='Data Prep'!C54 -> 4321 | D57: ='Data Prep'!K54 -> 2016-01-15 | E57: ='Data Prep'!M54 -> 2016-11-16 | F57: ='Data Prep'!P54 -> 2016-12-16 | G57: ='Data Prep'!J54 -> 12 | H57: ='Data Prep'!W54 -> 77.57142857 | I57: ='Data Prep'!Z54 -> 20 | J57: ='Data Prep'!AA54 ->  | K57: ='Data Prep'!AB54 ->  | L57: ='Data Prep'!AC54 ->  | M57: ='Data Prep'!AD54 -> 14 | N57: ='Data Prep'!AG54 -> 1 | O57: ='Data Prep'!AH54 -> -0.9285714286 | P57: ='Data Prep'!AJ54 -> 2016-11-16 | Q57: ='Data Prep'!AO54 ->  | R57: ='Data Prep'!AM54 -> 2016-11-01
A58: ='Data Prep'!B55 -> Inactive | B58: ='Data Prep'!D55 -> John Doe | C58: ='Data Prep'!C55 -> 4321 | D58: ='Data Prep'!K55 -> 2016-01-15 | E58: ='Data Prep'!M55 -> 2016-11-16 | F58: ='Data Prep'!P55 -> 2016-12-16 | G58: ='Data Prep'!J55 -> 12 | H58: ='Data Prep'!W55 -> 77.57142857 | I58: ='Data Prep'!Z55 -> 20 | J58: ='Data Prep'!AA55 ->  | K58: ='Data Prep'!AB55 ->  | L58: ='Data Prep'!AC55 ->  | M58: ='Data Prep'!AD55 -> 14 | N58: ='Data Prep'!AG55 -> 1 | O58: ='Data Prep'!AH55 -> -0.9285714286 | P58: ='Data Prep'!AJ55 -> 2016-11-16 | Q58: ='Data Prep'!AO55 ->  | R58: ='Data Prep'!AM55 -> 2016-11-01
A59: ='Data Prep'!B56 -> Inactive | B59: ='Data Prep'!D56 -> John Doe | C59: ='Data Prep'!C56 -> 4321 | D59: ='Data Prep'!K56 -> 2016-01-15 | E59: ='Data Prep'!M56 -> 2016-11-16 | F59: ='Data Prep'!P56 -> 2016-12-16 | G59: ='Data Prep'!J56 -> 12 | H59: ='Data Prep'!W56 -> 77.57142857 | I59: ='Data Prep'!Z56 -> 20 | J59: ='Data Prep'!AA56 ->  | K59: ='Data Prep'!AB56 ->  | L59: ='Data Prep'!AC56 ->  | M59: ='Data Prep'!AD56 -> 14 | N59: ='Data Prep'!AG56 -> 1 | O59: ='Data Prep'!AH56 -> -0.9285714286 | P59: ='Data Prep'!AJ56 -> 2016-11-16 | Q59: ='Data Prep'!AO56 ->  | R59: ='Data Prep'!AM56 -> 2016-11-01
A60: ='Data Prep'!B57 -> Inactive | B60: ='Data Prep'!D57 -> John Doe | C60: ='Data Prep'!C57 -> 4321 | D60: ='Data Prep'!K57 -> 2016-01-15 | E60: ='Data Prep'!M57 -> 2016-11-16 | F60: ='Data Prep'!P57 -> 2016-12-16 | G60: ='Data Prep'!J57 -> 12 | H60: ='Data Prep'!W57 -> 77.57142857 | I60: ='Data Prep'!Z57 -> 20 | J60: ='Data Prep'!AA57 ->  | K60: ='Data Prep'!AB57 ->  | L60: ='Data Prep'!AC57 ->  | M60: ='Data Prep'!AD57 -> 14 | N60: ='Data Prep'!AG57 -> 1 | O60: ='Data Prep'!AH57 -> -0.9285714286 | P60: ='Data Prep'!AJ57 -> 2016-11-16 | Q60: ='Data Prep'!AO57 ->  | R60: ='Data Prep'!AM57 -> 2016-11-01
A61: ='Data Prep'!B58 -> Inactive | B61: ='Data Prep'!D58 -> John Doe | C61: ='Data Prep'!C58 -> 4321 | D61: ='Data Prep'!K58 -> 2016-01-15 | E61: ='Data Prep'!M58 -> 2017-05-29 | F61: ='Data Prep'!P58 -> 2016-12-16 | G61: ='Data Prep'!J58 -> 12 | H61: ='Data Prep'!W58 -> 77.57142857 | I61: ='Data Prep'!Z58 -> 20 | J61: ='Data Prep'!AA58 ->  | K61: ='Data Prep'!AB58 ->  | L61: ='Data Prep'!AC58 ->  | M61: ='Data Prep'!AD58 -> 14 | N61: ='Data Prep'!AG58 -> 1 | O61: ='Data Prep'!AH58 -> -0.9285714286 | P61: ='Data Prep'!AJ58 -> 2016-11-16 | Q61: ='Data Prep'!AO58 ->  | R61: ='Data Prep'!AM58 -> 2016-11-01
A62: ='Data Prep'!B59 -> Inactive | B62: ='Data Prep'!D59 -> John Doe | C62: ='Data Prep'!C59 -> 4321 | D62: ='Data Prep'!K59 -> 2016-01-15 | E62: ='Data Prep'!M59 -> 2016-11-16 | F62: ='Data Prep'!P59 -> 2016-12-16 | G62: ='Data Prep'!J59 -> 12 | H62: ='Data Prep'!W59 -> 77.57142857 | I62: ='Data Prep'!Z59 -> 20 | J62: ='Data Prep'!AA59 ->  | K62: ='Data Prep'!AB59 ->  | L62: ='Data Prep'!AC59 ->  | M62: ='Data Prep'!AD59 -> 14 | N62: ='Data Prep'!AG59 -> 1 | O62: ='Data Prep'!AH59 -> -0.9285714286 | P62: ='Data Prep'!AJ59 -> 2016-11-16 | Q62: ='Data Prep'!AO59 ->  | R62: ='Data Prep'!AM59 -> 2016-11-01
A63: ='Data Prep'!B60 -> Inactive | B63: ='Data Prep'!D60 -> John Doe | C63: ='Data Prep'!C60 -> 4321 | D63: ='Data Prep'!K60 -> 2016-01-15 | E63: ='Data Prep'!M60 -> 2016-11-16 | F63: ='Data Prep'!P60 -> 2016-12-16 | G63: ='Data Prep'!J60 -> 12 | H63: ='Data Prep'!W60 -> 77.57142857 | I63: ='Data Prep'!Z60 -> 20 | J63: ='Data Prep'!AA60 ->  | K63: ='Data Prep'!AB60 ->  | L63: ='Data Prep'!AC60 ->  | M63: ='Data Prep'!AD60 -> 14 | N63: ='Data Prep'!AG60 -> 1 | O63: ='Data Prep'!AH60 -> -0.9285714286 | P63: ='Data Prep'!AJ60 -> 2016-11-16 | Q63: ='Data Prep'!AO60 ->  | R63: ='Data Prep'!AM60 -> 2016-11-01
A64: ='Data Prep'!B61 -> Inactive | B64: ='Data Prep'!D61 -> John Doe | C64: ='Data Prep'!C61 -> 4321 | D64: ='Data Prep'!K61 -> 2016-01-15 | E64: ='Data Prep'!M61 -> 2016-11-16 | F64: ='Data Prep'!P61 -> 2016-12-16 | G64: ='Data Prep'!J61 -> 12 | H64: ='Data Prep'!W61 -> 77.57142857 | I64: ='Data Prep'!Z61 -> 20 | J64: ='Data Prep'!AA61 ->  | K64: ='Data Prep'!AB61 ->  | L64: ='Data Prep'!AC61 ->  | M64: ='Data Prep'!AD61 -> 14 | N64: ='Data Prep'!AG61 -> 1 | O64: ='Data Prep'!AH61 -> -0.9285714286 | P64: ='Data Prep'!AJ61 -> 2016-11-16 | Q64: ='Data Prep'!AO61 ->  | R64: ='Data Prep'!AM61 -> 2016-11-01
A65: ='Data Prep'!B62 -> Inactive | B65: ='Data Prep'!D62 -> John Doe | C65: ='Data Prep'!C62 -> 4321 | D65: ='Data Prep'!K62 -> 2016-01-15 | E65: ='Data Prep'!M62 -> 2016-11-16 | F65: ='Data Prep'!P62 -> 2016-12-16 | G65: ='Data Prep'!J62 -> 12 | H65: ='Data Prep'!W62 -> 77.57142857 | I65: ='Data Prep'!Z62 -> 20 | J65: ='Data Prep'!AA62 ->  | K65: ='Data Prep'!AB62 ->  | L65: ='Data Prep'!AC62 ->  | M65: ='Data Prep'!AD62 -> 14 | N65: ='Data Prep'!AG62 -> 1 | O65: ='Data Prep'!AH62 -> -0.9285714286 | P65: ='Data Prep'!AJ62 -> 2016-11-16 | Q65: ='Data Prep'!AO62 ->  | R65: ='Data Prep'!AM62 -> 2016-11-01
A66: ='Data Prep'!B63 -> Inactive | B66: ='Data Prep'!D63 -> John Doe | C66: ='Data Prep'!C63 -> 4321 | D66: ='Data Prep'!K63 -> 2016-01-15 | E66: ='Data Prep'!M63 -> 2016-11-16 | F66: ='Data Prep'!P63 -> 2016-12-16 | G66: ='Data Prep'!J63 -> 12 | H66: ='Data Prep'!W63 -> 77.57142857 | I66: ='Data Prep'!Z63 -> 20 | J66: ='Data Prep'!AA63 ->  | K66: ='Data Prep'!AB63 ->  | L66: ='Data Prep'!AC63 ->  | M66: ='Data Prep'!AD63 -> 14 | N66: ='Data Prep'!AG63 -> 1 | O66: ='Data Prep'!AH63 -> -0.9285714286 | P66: ='Data Prep'!AJ63 -> 2016-11-16 | Q66: ='Data Prep'!AO63 ->  | R66: ='Data Prep'!AM63 -> 2016-11-01
A67: ='Data Prep'!B64 -> Inactive | B67: ='Data Prep'!D64 -> John Doe | C67: ='Data Prep'!C64 -> 4321 | D67: ='Data Prep'!K64 -> 2016-01-15 | E67: ='Data Prep'!M64 -> 2016-11-16 | F67: ='Data Prep'!P64 -> 2016-12-16 | G67: ='Data Prep'!J64 -> 12 | H67: ='Data Prep'!W64 -> 77.57142857 | I67: ='Data Prep'!Z64 -> 20 | J67: ='Data Prep'!AA64 -> 0 | K67: ='Data Prep'!AB64 -> -1 | L67: ='Data Prep'!AC64 -> 2016-11-16 | M67: ='Data Prep'!AD64 -> 14 | N67: ='Data Prep'!AG64 -> 1 | O67: ='Data Prep'!AH64 -> -0.9285714286 | P67: ='Data Prep'!AJ64 -> 2016-11-16 | Q67: ='Data Prep'!AO64 ->  | R67: ='Data Prep'!AM64 -> 2016-11-01
A68: ='Data Prep'!B65 -> Inactive | B68: ='Data Prep'!D65 -> John Doe | C68: ='Data Prep'!C65 -> 4321 | D68: ='Data Prep'!K65 -> 2016-01-15 | E68: ='Data Prep'!M65 -> 2017-05-29 | F68: ='Data Prep'!P65 -> 2016-12-16 | G68: ='Data Prep'!J65 -> 0 | H68: ='Data Prep'!W65 -> 77.57142857 | I68: ='Data Prep'!Z65 -> 20 | J68: ='Data Prep'!AA65 ->  | K68: ='Data Prep'!AB65 ->  | L68: ='Data Prep'!AC65 ->  | M68: ='Data Prep'!AD65 -> 14 | N68: ='Data Prep'!AG65 -> 1 | O68: ='Data Prep'!AH65 -> -0.9285714286 | P68: ='Data Prep'!AJ65 -> 2016-11-16 | Q68: ='Data Prep'!AO65 ->  | R68: ='Data Prep'!AM65 -> 2016-11-01
A69: ='Data Prep'!B66 -> Active | B69: ='Data Prep'!D66 -> Susan Test | C69: ='Data Prep'!C66 -> 1678 | D69: ='Data Prep'!K66 -> 2016-11-20 | E69: ='Data Prep'!M66 -> 2017-05-29 | F69: ='Data Prep'!P66 -> 2017-06-16 | G69: ='Data Prep'!J66 -> 10 | H69: ='Data Prep'!W66 -> 33.28571429 | I69: ='Data Prep'!Z66 -> No Score | J69: ='Data Prep'!AA66 ->  | K69: ='Data Prep'!AB66 ->  | L69: ='Data Prep'!AC66 ->  | M69: ='Data Prep'!AD66 -> No Score | N69: ='Data Prep'!AG66 -> No Score | O69: ='Data Prep'!AH66 ->  | P69: ='Data Prep'!AJ66 -> 2017-06-02 | Q69: ='Data Prep'!AO66 -> Flag for discussion & safety risk | R69: ='Data Prep'!AM66 -> 2016-09-15
A70: ='Data Prep'!B67 -> Active | B70: ='Data Prep'!D67 -> Susan Test | C70: ='Data Prep'!C67 -> 1678 | D70: ='Data Prep'!K67 -> 2016-11-20 | E70: ='Data Prep'!M67 -> 2017-06-02 | F70: ='Data Prep'!P67 -> 2017-06-16 | G70: ='Data Prep'!J67 -> 10 | H70: ='Data Prep'!W67 -> 33.28571429 | I70: ='Data Prep'!Z67 -> No Score | J70: ='Data Prep'!AA67 ->  | K70: ='Data Prep'!AB67 ->  | L70: ='Data Prep'!AC67 ->  | M70: ='Data Prep'!AD67 -> No Score | N70: ='Data Prep'!AG67 -> 14 | O70: ='Data Prep'!AH67 ->  | P70: ='Data Prep'!AJ67 -> 2017-06-02 | Q70: ='Data Prep'!AO67 -> Flag for discussion & safety risk | R70: ='Data Prep'!AM67 -> 2016-09-15
A71: ='Data Prep'!B68 -> Active | B71: ='Data Prep'!D68 -> Susan Test | C71: ='Data Prep'!C68 -> 1678 | D71: ='Data Prep'!K68 -> 2016-11-20 | E71: ='Data Prep'!M68 -> 2017-06-02 | F71: ='Data Prep'!P68 -> 2017-06-16 | G71: ='Data Prep'!J68 -> 10 | H71: ='Data Prep'!W68 -> 33.28571429 | I71: ='Data Prep'!Z68 -> No Score | J71: ='Data Prep'!AA68 ->  | K71: ='Data Prep'!AB68 ->  | L71: ='Data Prep'!AC68 ->  | M71: ='Data Prep'!AD68 -> No Score | N71: ='Data Prep'!AG68 -> 14 | O71: ='Data Prep'!AH68 ->  | P71: ='Data Prep'!AJ68 -> 2017-06-02 | Q71: ='Data Prep'!AO68 -> Flag for discussion & safety risk | R71: ='Data Prep'!AM68 -> 2016-09-15
A72: ='Data Prep'!B69 -> Active | B72: ='Data Prep'!D69 -> Susan Test | C72: ='Data Prep'!C69 -> 1678 | D72: ='Data Prep'!K69 -> 2016-11-20 | E72: ='Data Prep'!M69 -> 2017-06-02 | F72: ='Data Prep'!P69 -> 2017-06-16 | G72: ='Data Prep'!J69 -> 10 | H72: ='Data Prep'!W69 -> 33.28571429 | I72: ='Data Prep'!Z69 -> No Score | J72: ='Data Prep'!AA69 ->  | K72: ='Data Prep'!AB69 ->  | L72: ='Data Prep'!AC69 ->  | M72: ='Data Prep'!AD69 -> No Score | N72: ='Data Prep'!AG69 -> 14 | O72: ='Data Prep'!AH69 ->  | P72: ='Data Prep'!AJ69 -> 2017-06-02 | Q72: ='Data Prep'!AO69 -> Flag for discussion & safety risk | R72: ='Data Prep'!AM69 -> 2016-09-15
A73: ='Data Prep'!B70 -> Active | B73: ='Data Prep'!D70 -> Susan Test | C73: ='Data Prep'!C70 -> 1678 | D73: ='Data Prep'!K70 -> 2016-11-20 | E73: ='Data Prep'!M70 -> 2017-06-02 | F73: ='Data Prep'!P70 -> 2017-06-16 | G73: ='Data Prep'!J70 -> 10 | H73: ='Data Prep'!W70 -> 33.28571429 | I73: ='Data Prep'!Z70 -> 22 | J73: ='Data Prep'!AA70 ->  | K73: ='Data Prep'!AB70 ->  | L73: ='Data Prep'!AC70 ->  | M73: ='Data Prep'!AD70 -> 18 | N73: ='Data Prep'!AG70 -> 14 | O73: ='Data Prep'!AH70 -> -0.2222222222 | P73: ='Data Prep'!AJ70 -> 2017-06-02 | Q73: ='Data Prep'!AO70 -> Flag for discussion & safety risk | R73: ='Data Prep'!AM70 -> 2016-09-15
A74: ='Data Prep'!B71 -> Active | B74: ='Data Prep'!D71 -> Susan Test | C74: ='Data Prep'!C71 -> 1678 | D74: ='Data Prep'!K71 -> 2016-11-20 | E74: ='Data Prep'!M71 -> 2017-06-02 | F74: ='Data Prep'!P71 -> 2017-06-16 | G74: ='Data Prep'!J71 -> 10 | H74: ='Data Prep'!W71 -> 33.28571429 | I74: ='Data Prep'!Z71 -> 22 | J74: ='Data Prep'!AA71 ->  | K74: ='Data Prep'!AB71 ->  | L74: ='Data Prep'!AC71 ->  | M74: ='Data Prep'!AD71 -> 18 | N74: ='Data Prep'!AG71 -> 14 | O74: ='Data Prep'!AH71 -> -0.2222222222 | P74: ='Data Prep'!AJ71 -> 2017-06-02 | Q74: ='Data Prep'!AO71 -> Flag for discussion & safety risk | R74: ='Data Prep'!AM71 -> 2016-09-15
A75: ='Data Prep'!B72 -> Active | B75: ='Data Prep'!D72 -> Susan Test | C75: ='Data Prep'!C72 -> 1678 | D75: ='Data Prep'!K72 -> 2016-11-20 | E75: ='Data Prep'!M72 -> 2017-05-29 | F75: ='Data Prep'!P72 -> 2017-06-16 | G75: ='Data Prep'!J72 -> 10 | H75: ='Data Prep'!W72 -> 33.28571429 | I75: ='Data Prep'!Z72 -> 22 | J75: ='Data Prep'!AA72 ->  | K75: ='Data Prep'!AB72 ->  | L75: ='Data Prep'!AC72 ->  | M75: ='Data Prep'!AD72 -> 18 | N75: ='Data Prep'!AG72 -> 14 | O75: ='Data Prep'!AH72 -> -0.2222222222 | P75: ='Data Prep'!AJ72 -> 2017-06-02 | Q75: ='Data Prep'!AO72 -> Flag for discussion & safety risk | R75: ='Data Prep'!AM72 -> 2016-09-15
A76: ='Data Prep'!B73 -> Active | B76: ='Data Prep'!D73 -> Susan Test | C76: ='Data Prep'!C73 -> 1678 | D76: ='Data Prep'!K73 -> 2016-11-20 | E76: ='Data Prep'!M73 -> 2017-06-02 | F76: ='Data Prep'!P73 -> 2017-06-16 | G76: ='Data Prep'!J73 -> 10 | H76: ='Data Prep'!W73 -> 33.28571429 | I76: ='Data Prep'!Z73 -> 22 | J76: ='Data Prep'!AA73 ->  | K76: ='Data Prep'!AB73 ->  | L76: ='Data Prep'!AC73 ->  | M76: ='Data Prep'!AD73 -> 18 | N76: ='Data Prep'!AG73 -> 14 | O76: ='Data Prep'!AH73 -> -0.2222222222 | P76: ='Data Prep'!AJ73 -> 2017-06-02 | Q76: ='Data Prep'!AO73 -> Flag for discussion & safety risk | R76: ='Data Prep'!AM73 -> 2016-09-15
A77: ='Data Prep'!B74 -> Active | B77: ='Data Prep'!D74 -> Susan Test | C77: ='Data Prep'!C74 -> 1678 | D77: ='Data Prep'!K74 -> 2016-11-20 | E77: ='Data Prep'!M74 -> 2017-06-02 | F77: ='Data Prep'!P74 -> 2017-06-16 | G77: ='Data Prep'!J74 -> 10 | H77: ='Data Prep'!W74 -> 33.28571429 | I77: ='Data Prep'!Z74 -> 22 | J77: ='Data Prep'!AA74 ->  | K77: ='Data Prep'!AB74 ->  | L77: ='Data Prep'!AC74 ->  | M77: ='Data Prep'!AD74 -> 18 | N77: ='Data Prep'!AG74 -> 14 | O77: ='Data Prep'!AH74 -> -0.2222222222 | P77: ='Data Prep'!AJ74 -> 2017-06-02 | Q77: ='Data Prep'!AO74 -> Flag for discussion & safety risk | R77: ='Data Prep'!AM74 -> 2016-09-15
A78: ='Data Prep'!B75 -> Active | B78: ='Data Prep'!D75 -> Susan Test | C78: ='Data Prep'!C75 -> 1678 | D78: ='Data Prep'!K75 -> 2016-11-20 | E78: ='Data Prep'!M75 -> 2017-05-29 | F78: ='Data Prep'!P75 -> 2017-06-16 | G78: ='Data Prep'!J75 -> 10 | H78: ='Data Prep'!W75 -> 33.28571429 | I78: ='Data Prep'!Z75 -> 22 | J78: ='Data Prep'!AA75 ->  | K78: ='Data Prep'!AB75 ->  | L78: ='Data Prep'!AC75 ->  | M78: ='Data Prep'!AD75 -> 18 | N78: ='Data Prep'!AG75 -> 14 | O78: ='Data Prep'!AH75 -> -0.2222222222 | P78: ='Data Prep'!AJ75 -> 2017-06-02 | Q78: ='Data Prep'!AO75 -> Flag for discussion & safety risk | R78: ='Data Prep'!AM75 -> 2016-09-15
A79: ='Data Prep'!B76 -> Active | B79: ='Data Prep'!D76 -> Susan Test | C79: ='Data Prep'!C76 -> 1678 | D79: ='Data Prep'!K76 -> 2016-11-20 | E79: ='Data Prep'!M76 -> 2017-06-02 | F79: ='Data Prep'!P76 -> 2017-06-16 | G79: ='Data Prep'!J76 -> 10 | H79: ='Data Prep'!W76 -> 33.28571429 | I79: ='Data Prep'!Z76 -> 22 | J79: ='Data Prep'!AA76 ->  | K79: ='Data Prep'!AB76 ->  | L79: ='Data Prep'!AC76 ->  | M79: ='Data Prep'!AD76 -> 18 | N79: ='Data Prep'!AG76 -> 14 | O79: ='Data Prep'!AH76 -> -0.2222222222 | P79: ='Data Prep'!AJ76 -> 2017-06-02 | Q79: ='Data Prep'!AO76 -> Flag for discussion & safety risk | R79: ='Data Prep'!AM76 -> 2016-09-15
A80: ='Data Prep'!B77 -> Active | B80: ='Data Prep'!D77 -> Susan Test | C80: ='Data Prep'!C77 -> 1678 | D80: ='Data Prep'!K77 -> 2016-11-20 | E80: ='Data Prep'!M77 -> 2017-06-02 | F80: ='Data Prep'!P77 -> 2017-06-16 | G80: ='Data Prep'!J77 -> 10 | H80: ='Data Prep'!W77 -> 33.28571429 | I80: ='Data Prep'!Z77 -> 22 | J80: ='Data Prep'!AA77 ->  | K80: ='Data Prep'!AB77 ->  | L80: ='Data Prep'!AC77 ->  | M80: ='Data Prep'!AD77 -> 18 | N80: ='Data Prep'!AG77 -> 14 | O80: ='Data Prep'!AH77 -> -0.2222222222 | P80: ='Data Prep'!AJ77 -> 2017-06-02 | Q80: ='Data Prep'!AO77 -> Flag for discussion & safety risk | R80: ='Data Prep'!AM77 -> 2016-09-15
A81: ='Data Prep'!B78 -> Active | B81: ='Data Prep'!D78 -> Susan Test | C81: ='Data Prep'!C78 -> 1678 | D81: ='Data Prep'!K78 -> 2016-11-20 | E81: ='Data Prep'!M78 -> 2017-06-02 | F81: ='Data Prep'!P78 -> 2017-06-16 | G81: ='Data Prep'!J78 -> 10 | H81: ='Data Prep'!W78 -> 33.28571429 | I81: ='Data Prep'!Z78 -> 22 | J81: ='Data Prep'!AA78 ->  | K81: ='Data Prep'!AB78 ->  | L81: ='Data Prep'!AC78 ->  | M81: ='Data Prep'!AD78 -> 18 | N81: ='Data Prep'!AG78 -> 14 | O81: ='Data Prep'!AH78 -> -0.2222222222 | P81: ='Data Prep'!AJ78 -> 2017-06-02 | Q81: ='Data Prep'!AO78 -> Flag for discussion & safety risk | R81: ='Data Prep'!AM78 -> 2016-09-15
A82: ='Data Prep'!B79 -> Active | B82: ='Data Prep'!D79 -> Susan Test | C82: ='Data Prep'!C79 -> 1678 | D82: ='Data Prep'!K79 -> 2016-11-20 | E82: ='Data Prep'!M79 -> 2017-06-02 | F82: ='Data Prep'!P79 -> 2017-06-16 | G82: ='Data Prep'!J79 -> 10 | H82: ='Data Prep'!W79 -> 33.28571429 | I82: ='Data Prep'!Z79 -> 22 | J82: ='Data Prep'!AA79 -> 15 | K82: ='Data Prep'!AB79 -> -0.3181818182 | L82: ='Data Prep'!AC79 -> 2017-06-02 | M82: ='Data Prep'!AD79 -> 18 | N82: ='Data Prep'!AG79 -> 14 | O82: ='Data Prep'!AH79 -> -0.2222222222 | P82: ='Data Prep'!AJ79 -> 2017-06-02 | Q82: ='Data Prep'!AO79 -> Flag for discussion & safety risk | R82: ='Data Prep'!AM79 -> 2016-09-15
A83: ='Data Prep'!B80 -> Active | B83: ='Data Prep'!D80 -> Susan Test | C83: ='Data Prep'!C80 -> 1678 | D83: ='Data Prep'!K80 -> 2016-11-20 | E83: ='Data Prep'!M80 -> 2017-05-29 | F83: ='Data Prep'!P80 -> 2017-06-16 | G83: ='Data Prep'!J80 -> 0 | H83: ='Data Prep'!W80 -> 33.28571429 | I83: ='Data Prep'!Z80 -> 22 | J83: ='Data Prep'!AA80 ->  | K83: ='Data Prep'!AB80 ->  | L83: ='Data Prep'!AC80 ->  | M83: ='Data Prep'!AD80 -> 18 | N83: ='Data Prep'!AG80 -> 14 | O83: ='Data Prep'!AH80 -> -0.2222222222 | P83: ='Data Prep'!AJ80 -> 2017-06-02 | Q83: ='Data Prep'!AO80 -> Flag for discussion & safety risk | R83: ='Data Prep'!AM80 -> 2016-09-15
A84: ='Data Prep'!B81 -> Active | B84: ='Data Prep'!D81 -> Susan Test | C84: ='Data Prep'!C81 -> 1678 | D84: ='Data Prep'!K81 -> 2016-11-20 | E84: ='Data Prep'!M81 -> 2017-05-29 | F84: ='Data Prep'!P81 -> 2017-06-30 | G84: ='Data Prep'!J81 -> 0 | H84: ='Data Prep'!W81 -> 33.28571429 | I84: ='Data Prep'!Z81 -> 22 | J84: ='Data Prep'!AA81 ->  | K84: ='Data Prep'!AB81 ->  | L84: ='Data Prep'!AC81 ->  | M84: ='Data Prep'!AD81 -> 18 | N84: ='Data Prep'!AG81 -> 14 | O84: ='Data Prep'!AH81 -> -0.2222222222 | P84: ='Data Prep'!AJ81 -> 2017-06-02 | Q84: ='Data Prep'!AO81 -> Flag for discussion & safety risk | R84: ='Data Prep'!AM81 -> 2016-09-15
A85: ='Data Prep'!B82 -> Active | B85: ='Data Prep'!D82 -> Nancy Fake | C85: ='Data Prep'!C82 -> 6789 | D85: ='Data Prep'!K82 -> 2017-05-29 | E85: ='Data Prep'!M82 -> 2017-05-29 | F85: ='Data Prep'!P82 -> 2017-06-12 | G85: ='Data Prep'!J82 -> 0 | H85: ='Data Prep'!W82 -> 6.142857143 | I85: ='Data Prep'!Z82 -> No Score | J85: ='Data Prep'!AA82 -> No Score | K85: ='Data Prep'!AB82 ->  | L85: ='Data Prep'!AC82 ->  | M85: ='Data Prep'!AD82 -> No Score | N85: ='Data Prep'!AG82 -> No Score | O85: ='Data Prep'!AH82 ->  | P85: ='Data Prep'!AJ82 ->  | Q85: ='Data Prep'!AO82 ->  | R85: ='Data Prep'!AM82 -> 
A86: ='Data Prep'!B83 -> Active | B86: ='Data Prep'!D83 -> Nancy Fake | C86: ='Data Prep'!C83 -> 6789 | D86: ='Data Prep'!K83 -> 2017-05-29 | E86: ='Data Prep'!M83 -> 2017-05-29 | F86: ='Data Prep'!P83 -> 2017-06-12 | G86: ='Data Prep'!J83 -> 0 | H86: ='Data Prep'!W83 -> 6.142857143 | I86: ='Data Prep'!Z83 -> No Score | J86: ='Data Prep'!AA83 ->  | K86: ='Data Prep'!AB83 ->  | L86: ='Data Prep'!AC83 ->  | M86: ='Data Prep'!AD83 -> No Score | N86: ='Data Prep'!AG83 -> No Score | O86: ='Data Prep'!AH83 ->  | P86: ='Data Prep'!AJ83 ->  | Q86: ='Data Prep'!AO83 ->  | R86: ='Data Prep'!AM83 -> 
A87: ='Data Prep'!B84 -> Active | B87: ='Data Prep'!D84 -> Nancy Fake | C87: ='Data Prep'!C84 -> 6789 | D87: ='Data Prep'!K84 -> 2017-05-29 | E87: ='Data Prep'!M84 -> 2016-12-15 | F87: ='Data Prep'!P84 -> 2017-06-12 | G87: ='Data Prep'!J84 -> 0 | H87: ='Data Prep'!W84 -> 6.142857143 | I87: ='Data Prep'!Z84 -> No Score | J87: ='Data Prep'!AA84 ->  | K87: ='Data Prep'!AB84 ->  | L87: ='Data Prep'!AC84 ->  | M87: ='Data Prep'!AD84 -> No Score | N87: ='Data Prep'!AG84 -> No Score | O87: ='Data Prep'!AH84 ->  | P87: ='Data Prep'!AJ84 ->  | Q87: ='Data Prep'!AO84 ->  | R87: ='Data Prep'!AM84 -> 
A88: ='Data Prep'!B85 -> Active | B88: ='Data Prep'!D85 -> Nancy Fake | C88: ='Data Prep'!C85 -> 6789 | D88: ='Data Prep'!K85 -> 2017-05-29 | E88: ='Data Prep'!M85 -> 2016-12-15 | F88: ='Data Prep'!P85 -> 2017-06-26 | G88: ='Data Prep'!J85 -> 0 | H88: ='Data Prep'!W85 -> 6.142857143 | I88: ='Data Prep'!Z85 -> No Score | J88: ='Data Prep'!AA85 ->  | K88: ='Data Prep'!AB85 ->  | L88: ='Data Prep'!AC85 ->  | M88: ='Data Prep'!AD85 -> No Score | N88: ='Data Prep'!AG85 -> No Score | O88: ='Data Prep'!AH85 ->  | P88: ='Data Prep'!AJ85 ->  | Q88: ='Data Prep'!AO85 ->  | R88: ='Data Prep'!AM85 -> 
A89: ='Data Prep'!B86 -> Active | B89: ='Data Prep'!D86 -> Nancy Fake | C89: ='Data Prep'!C86 -> 6789 | D89: ='Data Prep'!K86 -> 2017-05-29 | E89: ='Data Prep'!M86 -> 2016-12-15 | F89: ='Data Prep'!P86 -> 2017-07-10 | G89: ='Data Prep'!J86 -> 0 | H89: ='Data Prep'!W86 -> 6.142857143 | I89: ='Data Prep'!Z86 -> No Score | J89: ='Data Prep'!AA86 ->  | K89: ='Data Prep'!AB86 ->  | L89: ='Data Prep'!AC86 ->  | M89: ='Data Prep'!AD86 -> No Score | N89: ='Data Prep'!AG86 -> No Score | O89: ='Data Prep'!AH86 ->  | P89: ='Data Prep'!AJ86 ->  | Q89: ='Data Prep'!AO86 ->  | R89: ='Data Prep'!AM86 -> 
A90: ='Data Prep'!B87 -> Active | B90: ='Data Prep'!D87 -> Nancy Fake | C90: ='Data Prep'!C87 -> 6789 | D90: ='Data Prep'!K87 -> 2017-05-29 | E90: ='Data Prep'!M87 -> 2016-12-15 | F90: ='Data Prep'!P87 -> 2017-07-24 | G90: ='Data Prep'!J87 -> 0 | H90: ='Data Prep'!W87 -> 6.142857143 | I90: ='Data Prep'!Z87 -> No Score | J90: ='Data Prep'!AA87 ->  | K90: ='Data Prep'!AB87 ->  | L90: ='Data Prep'!AC87 ->  | M90: ='Data Prep'!AD87 -> No Score | N90: ='Data Prep'!AG87 -> No Score | O90: ='Data Prep'!AH87 ->  | P90: ='Data Prep'!AJ87 ->  | Q90: ='Data Prep'!AO87 ->  | R90: ='Data Prep'!AM87 -> 
A91: ='Data Prep'!B88 -> Active | B91: ='Data Prep'!D88 -> Nancy Fake | C91: ='Data Prep'!C88 -> 6789 | D91: ='Data Prep'!K88 -> 2017-05-29 | E91: ='Data Prep'!M88 -> 2016-12-15 | F91: ='Data Prep'!P88 -> 2017-08-07 | G91: ='Data Prep'!J88 -> 0 | H91: ='Data Prep'!W88 -> 6.142857143 | I91: ='Data Prep'!Z88 -> No Score | J91: ='Data Prep'!AA88 ->  | K91: ='Data Prep'!AB88 ->  | L91: ='Data Prep'!AC88 ->  | M91: ='Data Prep'!AD88 -> No Score | N91: ='Data Prep'!AG88 -> No Score | O91: ='Data Prep'!AH88 ->  | P91: ='Data Prep'!AJ88 ->  | Q91: ='Data Prep'!AO88 ->  | R91: ='Data Prep'!AM88 -> 
A92: ='Data Prep'!B89 -> Active | B92: ='Data Prep'!D89 -> Nancy Fake | C92: ='Data Prep'!C89 -> 6789 | D92: ='Data Prep'!K89 -> 2017-05-29 | E92: ='Data Prep'!M89 -> 2016-12-15 | F92: ='Data Prep'!P89 -> 2017-08-21 | G92: ='Data Prep'!J89 -> 0 | H92: ='Data Prep'!W89 -> 6.142857143 | I92: ='Data Prep'!Z89 -> No Score | J92: ='Data Prep'!AA89 ->  | K92: ='Data Prep'!AB89 ->  | L92: ='Data Prep'!AC89 ->  | M92: ='Data Prep'!AD89 -> No Score | N92: ='Data Prep'!AG89 -> No Score | O92: ='Data Prep'!AH89 ->  | P92: ='Data Prep'!AJ89 ->  | Q92: ='Data Prep'!AO89 ->  | R92: ='Data Prep'!AM89 -> 
A93: ='Data Prep'!B90 -> Active | B93: ='Data Prep'!D90 -> Nancy Fake | C93: ='Data Prep'!C90 -> 6789 | D93: ='Data Prep'!K90 -> 2017-05-29 | E93: ='Data Prep'!M90 -> 2016-12-15 | F93: ='Data Prep'!P90 -> 2017-09-04 | G93: ='Data Prep'!J90 -> 0 | H93: ='Data Prep'!W90 -> 6.142857143 | I93: ='Data Prep'!Z90 -> No Score | J93: ='Data Prep'!AA90 ->  | K93: ='Data Prep'!AB90 ->  | L93: ='Data Prep'!AC90 ->  | M93: ='Data Prep'!AD90 -> No Score | N93: ='Data Prep'!AG90 -> No Score | O93: ='Data Prep'!AH90 ->  | P93: ='Data Prep'!AJ90 ->  | Q93: ='Data Prep'!AO90 ->  | R93: ='Data Prep'!AM90 -> 
A94: ='Data Prep'!B91 -> Active | B94: ='Data Prep'!D91 -> Nancy Fake | C94: ='Data Prep'!C91 -> 6789 | D94: ='Data Prep'!K91 -> 2017-05-29 | E94: ='Data Prep'!M91 -> 2016-12-15 | F94: ='Data Prep'!P91 -> 2017-09-18 | G94: ='Data Prep'!J91 -> 0 | H94: ='Data Prep'!W91 -> 6.142857143 | I94: ='Data Prep'!Z91 -> No Score | J94: ='Data Prep'!AA91 ->  | K94: ='Data Prep'!AB91 ->  | L94: ='Data Prep'!AC91 ->  | M94: ='Data Prep'!AD91 -> No Score | N94: ='Data Prep'!AG91 -> No Score | O94: ='Data Prep'!AH91 ->  | P94: ='Data Prep'!AJ91 ->  | Q94: ='Data Prep'!AO91 ->  | R94: ='Data Prep'!AM91 -> 
A95: ='Data Prep'!B92 -> Active | B95: ='Data Prep'!D92 -> Nancy Fake | C95: ='Data Prep'!C92 -> 6789 | D95: ='Data Prep'!K92 -> 2017-05-29 | E95: ='Data Prep'!M92 -> 2016-12-15 | F95: ='Data Prep'!P92 -> 2017-10-02 | G95: ='Data Prep'!J92 -> 0 | H95: ='Data Prep'!W92 -> 6.142857143 | I95: ='Data Prep'!Z92 -> No Score | J95: ='Data Prep'!AA92 ->  | K95: ='Data Prep'!AB92 ->  | L95: ='Data Prep'!AC92 ->  | M95: ='Data Prep'!AD92 -> No Score | N95: ='Data Prep'!AG92 -> No Score | O95: ='Data Prep'!AH92 ->  | P95: ='Data Prep'!AJ92 ->  | Q95: ='Data Prep'!AO92 ->  | R95: ='Data Prep'!AM92 -> 
A96: ='Data Prep'!B93 -> Active | B96: ='Data Prep'!D93 -> Nancy Fake | C96: ='Data Prep'!C93 -> 6789 | D96: ='Data Prep'!K93 -> 2017-05-29 | E96: ='Data Prep'!M93 -> 2016-12-15 | F96: ='Data Prep'!P93 -> 2017-10-16 | G96: ='Data Prep'!J93 -> 0 | H96: ='Data Prep'!W93 -> 6.142857143 | I96: ='Data Prep'!Z93 -> No Score | J96: ='Data Prep'!AA93 ->  | K96: ='Data Prep'!AB93 ->  | L96: ='Data Prep'!AC93 ->  | M96: ='Data Prep'!AD93 -> No Score | N96: ='Data Prep'!AG93 -> No Score | O96: ='Data Prep'!AH93 ->  | P96: ='Data Prep'!AJ93 ->  | Q96: ='Data Prep'!AO93 ->  | R96: ='Data Prep'!AM93 -> 
A97: ='Data Prep'!B94 -> Active | B97: ='Data Prep'!D94 -> Nancy Fake | C97: ='Data Prep'!C94 -> 6789 | D97: ='Data Prep'!K94 -> 2017-05-29 | E97: ='Data Prep'!M94 -> 2016-12-15 | F97: ='Data Prep'!P94 -> 2017-10-30 | G97: ='Data Prep'!J94 -> 0 | H97: ='Data Prep'!W94 -> 6.142857143 | I97: ='Data Prep'!Z94 -> No Score | J97: ='Data Prep'!AA94 ->  | K97: ='Data Prep'!AB94 ->  | L97: ='Data Prep'!AC94 ->  | M97: ='Data Prep'!AD94 -> No Score | N97: ='Data Prep'!AG94 -> No Score | O97: ='Data Prep'!AH94 ->  | P97: ='Data Prep'!AJ94 ->  | Q97: ='Data Prep'!AO94 ->  | R97: ='Data Prep'!AM94 -> 
A98: ='Data Prep'!B95 -> Active | B98: ='Data Prep'!D95 -> Nancy Fake | C98: ='Data Prep'!C95 -> 6789 | D98: ='Data Prep'!K95 -> 2017-05-29 | E98: ='Data Prep'!M95 -> 2016-12-15 | F98: ='Data Prep'!P95 -> 2017-11-13 | G98: ='Data Prep'!J95 -> 0 | H98: ='Data Prep'!W95 -> 6.142857143 | I98: ='Data Prep'!Z95 -> No Score | J98: ='Data Prep'!AA95 ->  | K98: ='Data Prep'!AB95 ->  | L98: ='Data Prep'!AC95 ->  | M98: ='Data Prep'!AD95 -> No Score | N98: ='Data Prep'!AG95 -> No Score | O98: ='Data Prep'!AH95 ->  | P98: ='Data Prep'!AJ95 ->  | Q98: ='Data Prep'!AO95 ->  | R98: ='Data Prep'!AM95 -> 
A99: ='Data Prep'!B96 -> Active | B99: ='Data Prep'!D96 -> Nancy Fake | C99: ='Data Prep'!C96 -> 6789 | D99: ='Data Prep'!K96 -> 2017-05-29 | E99: ='Data Prep'!M96 -> 2016-12-15 | F99: ='Data Prep'!P96 -> 2017-11-27 | G99: ='Data Prep'!J96 -> 0 | H99: ='Data Prep'!W96 -> 6.142857143 | I99: ='Data Prep'!Z96 -> No Score | J99: ='Data Prep'!AA96 ->  | K99: ='Data Prep'!AB96 ->  | L99: ='Data Prep'!AC96 ->  | M99: ='Data Prep'!AD96 -> No Score | N99: ='Data Prep'!AG96 -> No Score | O99: ='Data Prep'!AH96 ->  | P99: ='Data Prep'!AJ96 ->  | Q99: ='Data Prep'!AO96 ->  | R99: ='Data Prep'!AM96 -> 
A100: ='Data Prep'!B97 -> Active | B100: ='Data Prep'!D97 -> Nancy Fake | C100: ='Data Prep'!C97 -> 6789 | D100: ='Data Prep'!K97 -> 2017-05-29 | E100: ='Data Prep'!M97 -> 2016-12-15 | F100: ='Data Prep'!P97 -> 2017-12-11 | G100: ='Data Prep'!J97 -> 0 | H100: ='Data Prep'!W97 -> 6.142857143 | I100: ='Data Prep'!Z97 -> No Score | J100: ='Data Prep'!AA97 ->  | K100: ='Data Prep'!AB97 ->  | L100: ='Data Prep'!AC97 ->  | M100: ='Data Prep'!AD97 -> No Score | N100: ='Data Prep'!AG97 -> No Score | O100: ='Data Prep'!AH97 ->  | P100: ='Data Prep'!AJ97 ->  | Q100: ='Data Prep'!AO97 ->  | R100: ='Data Prep'!AM97 -> 
A101: ='Data Prep'!B98 -> RP | B101: ='Data Prep'!D98 -> Betty Test | C101: ='Data Prep'!C98 -> 2500 | D101: ='Data Prep'!K98 -> 2016-12-15 | E101: ='Data Prep'!M98 -> 2016-12-15 | F101: ='Data Prep'!P98 -> 2017-06-14 | G101: ='Data Prep'!J98 -> 10 | H101: ='Data Prep'!W98 -> 29.71428571 | I101: ='Data Prep'!Z98 -> No Score | J101: ='Data Prep'!AA98 ->  | K101: ='Data Prep'!AB98 ->  | L101: ='Data Prep'!AC98 ->  | M101: ='Data Prep'!AD98 -> No Score | N101: ='Data Prep'!AG98 -> No Score | O101: ='Data Prep'!AH98 ->  | P101: ='Data Prep'!AJ98 -> 2017-05-15 | Q101: ='Data Prep'!AO98 ->  | R101: ='Data Prep'!AM98 -> 
A102: ='Data Prep'!B99 -> RP | B102: ='Data Prep'!D99 -> Betty Test | C102: ='Data Prep'!C99 -> 2500 | D102: ='Data Prep'!K99 -> 2016-12-15 | E102: ='Data Prep'!M99 -> 2017-05-15 | F102: ='Data Prep'!P99 -> 2017-06-14 | G102: ='Data Prep'!J99 -> 10 | H102: ='Data Prep'!W99 -> 29.71428571 | I102: ='Data Prep'!Z99 -> 12 | J102: ='Data Prep'!AA99 ->  | K102: ='Data Prep'!AB99 ->  | L102: ='Data Prep'!AC99 ->  | M102: ='Data Prep'!AD99 -> 9 | N102: ='Data Prep'!AG99 -> 3 | O102: ='Data Prep'!AH99 -> -0.6666666667 | P102: ='Data Prep'!AJ99 -> 2017-05-15 | Q102: ='Data Prep'!AO99 ->  | R102: ='Data Prep'!AM99 -> 
A103: ='Data Prep'!B100 -> RP | B103: ='Data Prep'!D100 -> Betty Test | C103: ='Data Prep'!C100 -> 2500 | D103: ='Data Prep'!K100 -> 2016-12-15 | E103: ='Data Prep'!M100 -> 2017-05-15 | F103: ='Data Prep'!P100 -> 2017-06-14 | G103: ='Data Prep'!J100 -> 10 | H103: ='Data Prep'!W100 -> 29.71428571 | I103: ='Data Prep'!Z100 -> 12 | J103: ='Data Prep'!AA100 ->  | K103: ='Data Prep'!AB100 ->  | L103: ='Data Prep'!AC100 ->  | M103: ='Data Prep'!AD100 -> 9 | N103: ='Data Prep'!AG100 -> 3 | O103: ='Data Prep'!AH100 -> -0.6666666667 | P103: ='Data Prep'!AJ100 -> 2017-05-15 | Q103: ='Data Prep'!AO100 ->  | R103: ='Data Prep'!AM100 -> 
A104: ='Data Prep'!B101 -> RP | B104: ='Data Prep'!D101 -> Betty Test | C104: ='Data Prep'!C101 -> 2500 | D104: ='Data Prep'!K101 -> 2016-12-15 | E104: ='Data Prep'!M101 -> 2017-05-15 | F104: ='Data Prep'!P101 -> 2017-06-14 | G104: ='Data Prep'!J101 -> 10 | H104: ='Data Prep'!W101 -> 29.71428571 | I104: ='Data Prep'!Z101 -> 12 | J104: ='Data Prep'!AA101 ->  | K104: ='Data Prep'!AB101 ->  | L104: ='Data Prep'!AC101 ->  | M104: ='Data Prep'!AD101 -> 9 | N104: ='Data Prep'!AG101 -> 3 | O104: ='Data Prep'!AH101 -> -0.6666666667 | P104: ='Data Prep'!AJ101 -> 2017-05-15 | Q104: ='Data Prep'!AO101 ->  | R104: ='Data Prep'!AM101 -> 
A105: ='Data Prep'!B102 -> RP | B105: ='Data Prep'!D102 -> Betty Test | C105: ='Data Prep'!C102 -> 2500 | D105: ='Data Prep'!K102 -> 2016-12-15 | E105: ='Data Prep'!M102 -> 2017-05-15 | F105: ='Data Prep'!P102 -> 2017-06-14 | G105: ='Data Prep'!J102 -> 10 | H105: ='Data Prep'!W102 -> 29.71428571 | I105: ='Data Prep'!Z102 -> 12 | J105: ='Data Prep'!AA102 ->  | K105: ='Data Prep'!AB102 ->  | L105: ='Data Prep'!AC102 ->  | M105: ='Data Prep'!AD102 -> 9 | N105: ='Data Prep'!AG102 -> 3 | O105: ='Data Prep'!AH102 -> -0.6666666667 | P105: ='Data Prep'!AJ102 -> 2017-05-15 | Q105: ='Data Prep'!AO102 ->  | R105: ='Data Prep'!AM102 -> 
A106: ='Data Prep'!B103 -> RP | B106: ='Data Prep'!D103 -> Betty Test | C106: ='Data Prep'!C103 -> 2500 | D106: ='Data Prep'!K103 -> 2016-12-15 | E106: ='Data Prep'!M103 -> 2017-05-15 | F106: ='Data Prep'!P103 -> 2017-06-14 | G106: ='Data Prep'!J103 -> 10 | H106: ='Data Prep'!W103 -> 29.71428571 | I106: ='Data Prep'!Z103 -> 12 | J106: ='Data Prep'!AA103 ->  | K106: ='Data Prep'!AB103 ->  | L106: ='Data Prep'!AC103 ->  | M106: ='Data Prep'!AD103 -> 9 | N106: ='Data Prep'!AG103 -> 3 | O106: ='Data Prep'!AH103 -> -0.6666666667 | P106: ='Data Prep'!AJ103 -> 2017-05-15 | Q106: ='Data Prep'!AO103 ->  | R106: ='Data Prep'!AM103 -> 
A107: ='Data Prep'!B104 -> RP | B107: ='Data Prep'!D104 -> Betty Test | C107: ='Data Prep'!C104 -> 2500 | D107: ='Data Prep'!K104 -> 2016-12-15 | E107: ='Data Prep'!M104 -> 2017-05-15 | F107: ='Data Prep'!P104 -> 2017-06-14 | G107: ='Data Prep'!J104 -> 10 | H107: ='Data Prep'!W104 -> 29.71428571 | I107: ='Data Prep'!Z104 -> 12 | J107: ='Data Prep'!AA104 ->  | K107: ='Data Prep'!AB104 ->  | L107: ='Data Prep'!AC104 ->  | M107: ='Data Prep'!AD104 -> 9 | N107: ='Data Prep'!AG104 -> 3 | O107: ='Data Prep'!AH104 -> -0.6666666667 | P107: ='Data Prep'!AJ104 -> 2017-05-15 | Q107: ='Data Prep'!AO104 ->  | R107: ='Data Prep'!AM104 -> 
A108: ='Data Prep'!B105 -> RP | B108: ='Data Prep'!D105 -> Betty Test | C108: ='Data Prep'!C105 -> 2500 | D108: ='Data Prep'!K105 -> 2016-12-15 | E108: ='Data Prep'!M105 -> 2017-05-15 | F108: ='Data Prep'!P105 -> 2017-06-14 | G108: ='Data Prep'!J105 -> 10 | H108: ='Data Prep'!W105 -> 29.71428571 | I108: ='Data Prep'!Z105 -> 12 | J108: ='Data Prep'!AA105 ->  | K108: ='Data Prep'!AB105 ->  | L108: ='Data Prep'!AC105 ->  | M108: ='Data Prep'!AD105 -> 9 | N108: ='Data Prep'!AG105 -> 3 | O108: ='Data Prep'!AH105 -> -0.6666666667 | P108: ='Data Prep'!AJ105 -> 2017-05-15 | Q108: ='Data Prep'!AO105 ->  | R108: ='Data Prep'!AM105 -> 
A109: ='Data Prep'!B106 -> RP | B109: ='Data Prep'!D106 -> Betty Test | C109: ='Data Prep'!C106 -> 2500 | D109: ='Data Prep'!K106 -> 2016-12-15 | E109: ='Data Prep'!M106 -> 2017-05-15 | F109: ='Data Prep'!P106 -> 2017-06-14 | G109: ='Data Prep'!J106 -> 10 | H109: ='Data Prep'!W106 -> 29.71428571 | I109: ='Data Prep'!Z106 -> 12 | J109: ='Data Prep'!AA106 ->  | K109: ='Data Prep'!AB106 ->  | L109: ='Data Prep'!AC106 ->  | M109: ='Data Prep'!AD106 -> 9 | N109: ='Data Prep'!AG106 -> 3 | O109: ='Data Prep'!AH106 -> -0.6666666667 | P109: ='Data Prep'!AJ106 -> 2017-05-15 | Q109: ='Data Prep'!AO106 ->  | R109: ='Data Prep'!AM106 -> 
A110: ='Data Prep'!B107 -> RP | B110: ='Data Prep'!D107 -> Betty Test | C110: ='Data Prep'!C107 -> 2500 | D110: ='Data Prep'!K107 -> 2016-12-15 | E110: ='Data Prep'!M107 -> 2017-05-15 | F110: ='Data Prep'!P107 -> 2017-06-14 | G110: ='Data Prep'!J107 -> 10 | H110: ='Data Prep'!W107 -> 29.71428571 | I110: ='Data Prep'!Z107 -> 12 | J110: ='Data Prep'!AA107 ->  | K110: ='Data Prep'!AB107 ->  | L110: ='Data Prep'!AC107 ->  | M110: ='Data Prep'!AD107 -> 9 | N110: ='Data Prep'!AG107 -> 3 | O110: ='Data Prep'!AH107 -> -0.6666666667 | P110: ='Data Prep'!AJ107 -> 2017-05-15 | Q110: ='Data Prep'!AO107 ->  | R110: ='Data Prep'!AM107 -> 
A111: ='Data Prep'!B108 -> RP | B111: ='Data Prep'!D108 -> Betty Test | C111: ='Data Prep'!C108 -> 2500 | D111: ='Data Prep'!K108 -> 2016-12-15 | E111: ='Data Prep'!M108 -> 2017-05-15 | F111: ='Data Prep'!P108 -> 2017-06-14 | G111: ='Data Prep'!J108 -> 10 | H111: ='Data Prep'!W108 -> 29.71428571 | I111: ='Data Prep'!Z108 -> 12 | J111: ='Data Prep'!AA108 ->  | K111: ='Data Prep'!AB108 ->  | L111: ='Data Prep'!AC108 ->  | M111: ='Data Prep'!AD108 -> 9 | N111: ='Data Prep'!AG108 -> 3 | O111: ='Data Prep'!AH108 -> -0.6666666667 | P111: ='Data Prep'!AJ108 -> 2017-05-15 | Q111: ='Data Prep'!AO108 ->  | R111: ='Data Prep'!AM108 -> 
A112: ='Data Prep'!B109 -> RP | B112: ='Data Prep'!D109 -> Betty Test | C112: ='Data Prep'!C109 -> 2500 | D112: ='Data Prep'!K109 -> 2016-12-15 | E112: ='Data Prep'!M109 -> 2017-05-15 | F112: ='Data Prep'!P109 -> 2017-06-14 | G112: ='Data Prep'!J109 -> 10 | H112: ='Data Prep'!W109 -> 29.71428571 | I112: ='Data Prep'!Z109 -> 12 | J112: ='Data Prep'!AA109 -> 1 | K112: ='Data Prep'!AB109 -> -0.9166666667 | L112: ='Data Prep'!AC109 -> 2017-05-15 | M112: ='Data Prep'!AD109 -> 9 | N112: ='Data Prep'!AG109 -> 3 | O112: ='Data Prep'!AH109 -> -0.6666666667 | P112: ='Data Prep'!AJ109 -> 2017-05-15 | Q112: ='Data Prep'!AO109 ->  | R112: ='Data Prep'!AM109 -> 
A113: ='Data Prep'!B110 -> RP | B113: ='Data Prep'!D110 -> Betty Test | C113: ='Data Prep'!C110 -> 2500 | D113: ='Data Prep'!K110 -> 2016-12-15 | E113: ='Data Prep'!M110 -> 00:00:00 | F113: ='Data Prep'!P110 -> 2017-06-14 | G113: ='Data Prep'!J110 -> 0 | H113: ='Data Prep'!W110 -> 29.71428571 | I113: ='Data Prep'!Z110 -> 12 | J113: ='Data Prep'!AA110 ->  | K113: ='Data Prep'!AB110 ->  | L113: ='Data Prep'!AC110 ->  | M113: ='Data Prep'!AD110 -> 9 | N113: ='Data Prep'!AG110 -> 3 | O113: ='Data Prep'!AH110 -> -0.6666666667 | P113: ='Data Prep'!AJ110 -> 2017-05-15 | Q113: ='Data Prep'!AO110 ->  | R113: ='Data Prep'!AM110 -> 
A114: ='Data Prep'!B111 -> RP | B114: ='Data Prep'!D111 -> Betty Test | C114: ='Data Prep'!C111 -> 2500 | D114: ='Data Prep'!K111 -> 2016-12-15 | E114: ='Data Prep'!M111 -> 00:00:00 | F114: ='Data Prep'!P111 -> 2017-07-14 | G114: ='Data Prep'!J111 -> 0 | H114: ='Data Prep'!W111 -> 29.71428571 | I114: ='Data Prep'!Z111 -> 12 | J114: ='Data Prep'!AA111 ->  | K114: ='Data Prep'!AB111 ->  | L114: ='Data Prep'!AC111 ->  | M114: ='Data Prep'!AD111 -> 9 | N114: ='Data Prep'!AG111 -> 3 | O114: ='Data Prep'!AH111 -> -0.6666666667 | P114: ='Data Prep'!AJ111 -> 2017-05-15 | Q114: ='Data Prep'!AO111 ->  | R114: ='Data Prep'!AM111 -> 
A115: ='Data Prep'!B112 -> RP | B115: ='Data Prep'!D112 -> Betty Test | C115: ='Data Prep'!C112 -> 2500 | D115: ='Data Prep'!K112 -> 2016-12-15 | E115: ='Data Prep'!M112 -> 00:00:00 | F115: ='Data Prep'!P112 -> 2017-08-13 | G115: ='Data Prep'!J112 -> 0 | H115: ='Data Prep'!W112 -> 29.71428571 | I115: ='Data Prep'!Z112 -> 12 | J115: ='Data Prep'!AA112 ->  | K115: ='Data Prep'!AB112 ->  | L115: ='Data Prep'!AC112 ->  | M115: ='Data Prep'!AD112 -> 9 | N115: ='Data Prep'!AG112 -> 3 | O115: ='Data Prep'!AH112 -> -0.6666666667 | P115: ='Data Prep'!AJ112 -> 2017-05-15 | Q115: ='Data Prep'!AO112 ->  | R115: ='Data Prep'!AM112 -> 
A116: ='Data Prep'!B113 -> RP | B116: ='Data Prep'!D113 -> Betty Test | C116: ='Data Prep'!C113 -> 2500 | D116: ='Data Prep'!K113 -> 2016-12-15 | E116: ='Data Prep'!M113 -> 00:00:00 | F116: ='Data Prep'!P113 -> 2017-09-12 | G116: ='Data Prep'!J113 -> 0 | H116: ='Data Prep'!W113 -> 29.71428571 | I116: ='Data Prep'!Z113 -> 12 | J116: ='Data Prep'!AA113 ->  | K116: ='Data Prep'!AB113 ->  | L116: ='Data Prep'!AC113 ->  | M116: ='Data Prep'!AD113 -> 9 | N116: ='Data Prep'!AG113 -> 3 | O116: ='Data Prep'!AH113 -> -0.6666666667 | P116: ='Data Prep'!AJ113 -> 2017-05-15 | Q116: ='Data Prep'!AO113 ->  | R116: ='Data Prep'!AM113 -> 
A117: ='Data Prep'!B114 -> 0 | B117: ='Data Prep'!D114 -> 0 | C117: ='Data Prep'!C114 -> 0 | D117: ='Data Prep'!K114 ->  | E117: ='Data Prep'!M114 -> 00:00:00 | F117: ='Data Prep'!P114 -> 00:00:00 | G117: ='Data Prep'!J114 -> 0 | H117: ='Data Prep'!W114 ->  | I117: ='Data Prep'!Z114 -> No Score | J117: ='Data Prep'!AA114 -> No Score | K117: ='Data Prep'!AB114 ->  | L117: ='Data Prep'!AC114 ->  | M117: ='Data Prep'!AD114 -> No Score | N117: ='Data Prep'!AG114 -> No Score | O117: ='Data Prep'!AH114 ->  | P117: ='Data Prep'!AJ114 ->  | Q117: ='Data Prep'!AO114 ->  | R117: ='Data Prep'!AM114 -> 
A118: ='Data Prep'!B115 ->  | B118: ='Data Prep'!D115 ->  | C118: ='Data Prep'!C115 ->  | D118: ='Data Prep'!K115 ->  | E118: ='Data Prep'!M115 -> 00:00:00 | F118: ='Data Prep'!P115 -> 00:00:00 | G118: ='Data Prep'!J115 -> 0 | H118: ='Data Prep'!W115 ->  | I118: ='Data Prep'!Z115 -> No Score | J118: ='Data Prep'!AA115 ->  | K118: ='Data Prep'!AB115 ->  | L118: ='Data Prep'!AC115 ->  | M118: ='Data Prep'!AD115 -> No Score | N118: ='Data Prep'!AG115 -> No Score | O118: ='Data Prep'!AH115 ->  | P118: ='Data Prep'!AJ115 ->  | Q118: ='Data Prep'!AO115 ->  | R118: ='Data Prep'!AM115 -> 
A119: ='Data Prep'!B116 ->  | B119: ='Data Prep'!D116 ->  | C119: ='Data Prep'!C116 ->  | D119: ='Data Prep'!K116 ->  | E119: ='Data Prep'!M116 -> 00:00:00 | F119: ='Data Prep'!P116 -> 00:00:00 | G119: ='Data Prep'!J116 -> 0 | H119: ='Data Prep'!W116 ->  | I119: ='Data Prep'!Z116 -> No Score | J119: ='Data Prep'!AA116 ->  | K119: ='Data Prep'!AB116 ->  | L119: ='Data Prep'!AC116 ->  | M119: ='Data Prep'!AD116 -> No Score | N119: ='Data Prep'!AG116 -> No Score | O119: ='Data Prep'!AH116 ->  | P119: ='Data Prep'!AJ116 ->  | Q119: ='Data Prep'!AO116 ->  | R119: ='Data Prep'!AM116 -> 
A120: ='Data Prep'!B117 ->  | B120: ='Data Prep'!D117 ->  | C120: ='Data Prep'!C117 ->  | D120: ='Data Prep'!K117 ->  | E120: ='Data Prep'!M117 -> 00:00:00 | F120: ='Data Prep'!P117 -> 00:00:00 | G120: ='Data Prep'!J117 -> 0 | H120: ='Data Prep'!W117 ->  | I120: ='Data Prep'!Z117 -> No Score | J120: ='Data Prep'!AA117 ->  | K120: ='Data Prep'!AB117 ->  | L120: ='Data Prep'!AC117 ->  | M120: ='Data Prep'!AD117 -> No Score | N120: ='Data Prep'!AG117 -> No Score | O120: ='Data Prep'!AH117 ->  | P120: ='Data Prep'!AJ117 ->  | Q120: ='Data Prep'!AO117 ->  | R120: ='Data Prep'!AM117 -> 
A121: ='Data Prep'!B118 ->  | B121: ='Data Prep'!D118 ->  | C121: ='Data Prep'!C118 ->  | D121: ='Data Prep'!K118 ->  | E121: ='Data Prep'!M118 -> 00:00:00 | F121: ='Data Prep'!P118 -> 00:00:00 | G121: ='Data Prep'!J118 -> 0 | H121: ='Data Prep'!W118 ->  | I121: ='Data Prep'!Z118 -> No Score | J121: ='Data Prep'!AA118 ->  | K121: ='Data Prep'!AB118 ->  | L121: ='Data Prep'!AC118 ->  | M121: ='Data Prep'!AD118 -> No Score | N121: ='Data Prep'!AG118 -> No Score | O121: ='Data Prep'!AH118 ->  | P121: ='Data Prep'!AJ118 ->  | Q121: ='Data Prep'!AO118 ->  | R121: ='Data Prep'!AM118 -> 
A122: ='Data Prep'!B119 ->  | B122: ='Data Prep'!D119 ->  | C122: ='Data Prep'!C119 ->  | D122: ='Data Prep'!K119 ->  | E122: ='Data Prep'!M119 -> 00:00:00 | F122: ='Data Prep'!P119 -> 00:00:00 | G122: ='Data Prep'!J119 -> 0 | H122: ='Data Prep'!W119 ->  | I122: ='Data Prep'!Z119 -> No Score | J122: ='Data Prep'!AA119 ->  | K122: ='Data Prep'!AB119 ->  | L122: ='Data Prep'!AC119 ->  | M122: ='Data Prep'!AD119 -> No Score | N122: ='Data Prep'!AG119 -> No Score | O122: ='Data Prep'!AH119 ->  | P122: ='Data Prep'!AJ119 ->  | Q122: ='Data Prep'!AO119 ->  | R122: ='Data Prep'!AM119 -> 
A123: ='Data Prep'!B120 ->  | B123: ='Data Prep'!D120 ->  | C123: ='Data Prep'!C120 ->  | D123: ='Data Prep'!K120 ->  | E123: ='Data Prep'!M120 -> 00:00:00 | F123: ='Data Prep'!P120 -> 00:00:00 | G123: ='Data Prep'!J120 -> 0 | H123: ='Data Prep'!W120 ->  | I123: ='Data Prep'!Z120 -> No Score | J123: ='Data Prep'!AA120 ->  | K123: ='Data Prep'!AB120 ->  | L123: ='Data Prep'!AC120 ->  | M123: ='Data Prep'!AD120 -> No Score | N123: ='Data Prep'!AG120 -> No Score | O123: ='Data Prep'!AH120 ->  | P123: ='Data Prep'!AJ120 ->  | Q123: ='Data Prep'!AO120 ->  | R123: ='Data Prep'!AM120 -> 
A124: ='Data Prep'!B121 ->  | B124: ='Data Prep'!D121 ->  | C124: ='Data Prep'!C121 ->  | D124: ='Data Prep'!K121 ->  | E124: ='Data Prep'!M121 -> 00:00:00 | F124: ='Data Prep'!P121 -> 00:00:00 | G124: ='Data Prep'!J121 -> 0 | H124: ='Data Prep'!W121 ->  | I124: ='Data Prep'!Z121 -> No Score | J124: ='Data Prep'!AA121 ->  | K124: ='Data Prep'!AB121 ->  | L124: ='Data Prep'!AC121 ->  | M124: ='Data Prep'!AD121 -> No Score | N124: ='Data Prep'!AG121 -> No Score | O124: ='Data Prep'!AH121 ->  | P124: ='Data Prep'!AJ121 ->  | Q124: ='Data Prep'!AO121 ->  | R124: ='Data Prep'!AM121 -> 
A125: ='Data Prep'!B122 ->  | B125: ='Data Prep'!D122 ->  | C125: ='Data Prep'!C122 ->  | D125: ='Data Prep'!K122 ->  | E125: ='Data Prep'!M122 -> 00:00:00 | F125: ='Data Prep'!P122 -> 00:00:00 | G125: ='Data Prep'!J122 -> 0 | H125: ='Data Prep'!W122 ->  | I125: ='Data Prep'!Z122 -> No Score | J125: ='Data Prep'!AA122 ->  | K125: ='Data Prep'!AB122 ->  | L125: ='Data Prep'!AC122 ->  | M125: ='Data Prep'!AD122 -> No Score | N125: ='Data Prep'!AG122 -> No Score | O125: ='Data Prep'!AH122 ->  | P125: ='Data Prep'!AJ122 ->  | Q125: ='Data Prep'!AO122 ->  | R125: ='Data Prep'!AM122 -> 
A126: ='Data Prep'!B123 ->  | B126: ='Data Prep'!D123 ->  | C126: ='Data Prep'!C123 ->  | D126: ='Data Prep'!K123 ->  | E126: ='Data Prep'!M123 -> 00:00:00 | F126: ='Data Prep'!P123 -> 00:00:00 | G126: ='Data Prep'!J123 -> 0 | H126: ='Data Prep'!W123 ->  | I126: ='Data Prep'!Z123 -> No Score | J126: ='Data Prep'!AA123 ->  | K126: ='Data Prep'!AB123 ->  | L126: ='Data Prep'!AC123 ->  | M126: ='Data Prep'!AD123 -> No Score | N126: ='Data Prep'!AG123 -> No Score | O126: ='Data Prep'!AH123 ->  | P126: ='Data Prep'!AJ123 ->  | Q126: ='Data Prep'!AO123 ->  | R126: ='Data Prep'!AM123 -> 
A127: ='Data Prep'!B124 ->  | B127: ='Data Prep'!D124 ->  | C127: ='Data Prep'!C124 ->  | D127: ='Data Prep'!K124 ->  | E127: ='Data Prep'!M124 -> 00:00:00 | F127: ='Data Prep'!P124 -> 00:00:00 | G127: ='Data Prep'!J124 -> 0 | H127: ='Data Prep'!W124 ->  | I127: ='Data Prep'!Z124 -> No Score | J127: ='Data Prep'!AA124 ->  | K127: ='Data Prep'!AB124 ->  | L127: ='Data Prep'!AC124 ->  | M127: ='Data Prep'!AD124 -> No Score | N127: ='Data Prep'!AG124 -> No Score | O127: ='Data Prep'!AH124 ->  | P127: ='Data Prep'!AJ124 ->  | Q127: ='Data Prep'!AO124 ->  | R127: ='Data Prep'!AM124 -> 
A128: ='Data Prep'!B125 ->  | B128: ='Data Prep'!D125 ->  | C128: ='Data Prep'!C125 ->  | D128: ='Data Prep'!K125 ->  | E128: ='Data Prep'!M125 -> 00:00:00 | F128: ='Data Prep'!P125 -> 00:00:00 | G128: ='Data Prep'!J125 -> 0 | H128: ='Data Prep'!W125 ->  | I128: ='Data Prep'!Z125 -> No Score | J128: ='Data Prep'!AA125 ->  | K128: ='Data Prep'!AB125 ->  | L128: ='Data Prep'!AC125 ->  | M128: ='Data Prep'!AD125 -> No Score | N128: ='Data Prep'!AG125 -> No Score | O128: ='Data Prep'!AH125 ->  | P128: ='Data Prep'!AJ125 ->  | Q128: ='Data Prep'!AO125 ->  | R128: ='Data Prep'!AM125 -> 
A129: ='Data Prep'!B126 ->  | B129: ='Data Prep'!D126 ->  | C129: ='Data Prep'!C126 ->  | D129: ='Data Prep'!K126 ->  | E129: ='Data Prep'!M126 -> 00:00:00 | F129: ='Data Prep'!P126 -> 00:00:00 | G129: ='Data Prep'!J126 -> 0 | H129: ='Data Prep'!W126 ->  | I129: ='Data Prep'!Z126 -> No Score | J129: ='Data Prep'!AA126 ->  | K129: ='Data Prep'!AB126 ->  | L129: ='Data Prep'!AC126 ->  | M129: ='Data Prep'!AD126 -> No Score | N129: ='Data Prep'!AG126 -> No Score | O129: ='Data Prep'!AH126 ->  | P129: ='Data Prep'!AJ126 ->  | Q129: ='Data Prep'!AO126 ->  | R129: ='Data Prep'!AM126 -> 
A130: ='Data Prep'!B127 ->  | B130: ='Data Prep'!D127 ->  | C130: ='Data Prep'!C127 ->  | D130: ='Data Prep'!K127 ->  | E130: ='Data Prep'!M127 -> 00:00:00 | F130: ='Data Prep'!P127 -> 00:00:00 | G130: ='Data Prep'!J127 -> 0 | H130: ='Data Prep'!W127 ->  | I130: ='Data Prep'!Z127 -> No Score | J130: ='Data Prep'!AA127 ->  | K130: ='Data Prep'!AB127 ->  | L130: ='Data Prep'!AC127 ->  | M130: ='Data Prep'!AD127 -> No Score | N130: ='Data Prep'!AG127 -> No Score | O130: ='Data Prep'!AH127 ->  | P130: ='Data Prep'!AJ127 ->  | Q130: ='Data Prep'!AO127 ->  | R130: ='Data Prep'!AM127 -> 
A131: ='Data Prep'!B128 ->  | B131: ='Data Prep'!D128 ->  | C131: ='Data Prep'!C128 ->  | D131: ='Data Prep'!K128 ->  | E131: ='Data Prep'!M128 -> 00:00:00 | F131: ='Data Prep'!P128 -> 00:00:00 | G131: ='Data Prep'!J128 -> 0 | H131: ='Data Prep'!W128 ->  | I131: ='Data Prep'!Z128 -> No Score | J131: ='Data Prep'!AA128 ->  | K131: ='Data Prep'!AB128 ->  | L131: ='Data Prep'!AC128 ->  | M131: ='Data Prep'!AD128 -> No Score | N131: ='Data Prep'!AG128 -> No Score | O131: ='Data Prep'!AH128 ->  | P131: ='Data Prep'!AJ128 ->  | Q131: ='Data Prep'!AO128 ->  | R131: ='Data Prep'!AM128 -> 
A132: ='Data Prep'!B129 ->  | B132: ='Data Prep'!D129 ->  | C132: ='Data Prep'!C129 ->  | D132: ='Data Prep'!K129 ->  | E132: ='Data Prep'!M129 -> 00:00:00 | F132: ='Data Prep'!P129 -> 00:00:00 | G132: ='Data Prep'!J129 -> 0 | H132: ='Data Prep'!W129 ->  | I132: ='Data Prep'!Z129 -> No Score | J132: ='Data Prep'!AA129 ->  | K132: ='Data Prep'!AB129 ->  | L132: ='Data Prep'!AC129 ->  | M132: ='Data Prep'!AD129 -> No Score | N132: ='Data Prep'!AG129 -> No Score | O132: ='Data Prep'!AH129 ->  | P132: ='Data Prep'!AJ129 ->  | Q132: ='Data Prep'!AO129 ->  | R132: ='Data Prep'!AM129 -> 
A133: ='Data Prep'!B130 -> 0 | B133: ='Data Prep'!D130 -> 0 | C133: ='Data Prep'!C130 -> 0 | D133: ='Data Prep'!K130 ->  | E133: ='Data Prep'!M130 -> 00:00:00 | F133: ='Data Prep'!P130 -> 00:00:00 | G133: ='Data Prep'!J130 -> 0 | H133: ='Data Prep'!W130 ->  | I133: ='Data Prep'!Z130 -> No Score | J133: ='Data Prep'!AA130 -> No Score | K133: ='Data Prep'!AB130 ->  | L133: ='Data Prep'!AC130 ->  | M133: ='Data Prep'!AD130 -> No Score | N133: ='Data Prep'!AG130 -> No Score | O133: ='Data Prep'!AH130 ->  | P133: ='Data Prep'!AJ130 ->  | Q133: ='Data Prep'!AO130 ->  | R133: ='Data Prep'!AM130 -> 
A134: ='Data Prep'!B131 ->  | B134: ='Data Prep'!D131 ->  | C134: ='Data Prep'!C131 ->  | D134: ='Data Prep'!K131 ->  | E134: ='Data Prep'!M131 -> 00:00:00 | F134: ='Data Prep'!P131 -> 00:00:00 | G134: ='Data Prep'!J131 -> 0 | H134: ='Data Prep'!W131 ->  | I134: ='Data Prep'!Z131 -> No Score | J134: ='Data Prep'!AA131 ->  | K134: ='Data Prep'!AB131 ->  | L134: ='Data Prep'!AC131 ->  | M134: ='Data Prep'!AD131 -> No Score | N134: ='Data Prep'!AG131 -> No Score | O134: ='Data Prep'!AH131 ->  | P134: ='Data Prep'!AJ131 ->  | Q134: ='Data Prep'!AO131 ->  | R134: ='Data Prep'!AM131 -> 
A135: ='Data Prep'!B132 ->  | B135: ='Data Prep'!D132 ->  | C135: ='Data Prep'!C132 ->  | D135: ='Data Prep'!K132 ->  | E135: ='Data Prep'!M132 -> 00:00:00 | F135: ='Data Prep'!P132 -> 00:00:00 | G135: ='Data Prep'!J132 -> 0 | H135: ='Data Prep'!W132 ->  | I135: ='Data Prep'!Z132 -> No Score | J135: ='Data Prep'!AA132 ->  | K135: ='Data Prep'!AB132 ->  | L135: ='Data Prep'!AC132 ->  | M135: ='Data Prep'!AD132 -> No Score | N135: ='Data Prep'!AG132 -> No Score | O135: ='Data Prep'!AH132 ->  | P135: ='Data Prep'!AJ132 ->  | Q135: ='Data Prep'!AO132 ->  | R135: ='Data Prep'!AM132 -> 
A136: ='Data Prep'!B133 ->  | B136: ='Data Prep'!D133 ->  | C136: ='Data Prep'!C133 ->  | D136: ='Data Prep'!K133 ->  | E136: ='Data Prep'!M133 -> 00:00:00 | F136: ='Data Prep'!P133 -> 00:00:00 | G136: ='Data Prep'!J133 -> 0 | H136: ='Data Prep'!W133 ->  | I136: ='Data Prep'!Z133 -> No Score | J136: ='Data Prep'!AA133 ->  | K136: ='Data Prep'!AB133 ->  | L136: ='Data Prep'!AC133 ->  | M136: ='Data Prep'!AD133 -> No Score | N136: ='Data Prep'!AG133 -> No Score | O136: ='Data Prep'!AH133 ->  | P136: ='Data Prep'!AJ133 ->  | Q136: ='Data Prep'!AO133 ->  | R136: ='Data Prep'!AM133 -> 
A137: ='Data Prep'!B134 ->  | B137: ='Data Prep'!D134 ->  | C137: ='Data Prep'!C134 ->  | D137: ='Data Prep'!K134 ->  | E137: ='Data Prep'!M134 -> 00:00:00 | F137: ='Data Prep'!P134 -> 00:00:00 | G137: ='Data Prep'!J134 -> 0 | H137: ='Data Prep'!W134 ->  | I137: ='Data Prep'!Z134 -> No Score | J137: ='Data Prep'!AA134 ->  | K137: ='Data Prep'!AB134 ->  | L137: ='Data Prep'!AC134 ->  | M137: ='Data Prep'!AD134 -> No Score | N137: ='Data Prep'!AG134 -> No Score | O137: ='Data Prep'!AH134 ->  | P137: ='Data Prep'!AJ134 ->  | Q137: ='Data Prep'!AO134 ->  | R137: ='Data Prep'!AM134 -> 
A138: ='Data Prep'!B135 ->  | B138: ='Data Prep'!D135 ->  | C138: ='Data Prep'!C135 ->  | D138: ='Data Prep'!K135 ->  | E138: ='Data Prep'!M135 -> 00:00:00 | F138: ='Data Prep'!P135 -> 00:00:00 | G138: ='Data Prep'!J135 -> 0 | H138: ='Data Prep'!W135 ->  | I138: ='Data Prep'!Z135 -> No Score | J138: ='Data Prep'!AA135 ->  | K138: ='Data Prep'!AB135 ->  | L138: ='Data Prep'!AC135 ->  | M138: ='Data Prep'!AD135 -> No Score | N138: ='Data Prep'!AG135 -> No Score | O138: ='Data Prep'!AH135 ->  | P138: ='Data Prep'!AJ135 ->  | Q138: ='Data Prep'!AO135 ->  | R138: ='Data Prep'!AM135 -> 
A139: ='Data Prep'!B136 ->  | B139: ='Data Prep'!D136 ->  | C139: ='Data Prep'!C136 ->  | D139: ='Data Prep'!K136 ->  | E139: ='Data Prep'!M136 -> 00:00:00 | F139: ='Data Prep'!P136 -> 00:00:00 | G139: ='Data Prep'!J136 -> 0 | H139: ='Data Prep'!W136 ->  | I139: ='Data Prep'!Z136 -> No Score | J139: ='Data Prep'!AA136 ->  | K139: ='Data Prep'!AB136 ->  | L139: ='Data Prep'!AC136 ->  | M139: ='Data Prep'!AD136 -> No Score | N139: ='Data Prep'!AG136 -> No Score | O139: ='Data Prep'!AH136 ->  | P139: ='Data Prep'!AJ136 ->  | Q139: ='Data Prep'!AO136 ->  | R139: ='Data Prep'!AM136 -> 
A140: ='Data Prep'!B137 ->  | B140: ='Data Prep'!D137 ->  | C140: ='Data Prep'!C137 ->  | D140: ='Data Prep'!K137 ->  | E140: ='Data Prep'!M137 -> 00:00:00 | F140: ='Data Prep'!P137 -> 00:00:00 | G140: ='Data Prep'!J137 -> 0 | H140: ='Data Prep'!W137 ->  | I140: ='Data Prep'!Z137 -> No Score | J140: ='Data Prep'!AA137 ->  | K140: ='Data Prep'!AB137 ->  | L140: ='Data Prep'!AC137 ->  | M140: ='Data Prep'!AD137 -> No Score | N140: ='Data Prep'!AG137 -> No Score | O140: ='Data Prep'!AH137 ->  | P140: ='Data Prep'!AJ137 ->  | Q140: ='Data Prep'!AO137 ->  | R140: ='Data Prep'!AM137 -> 
A141: ='Data Prep'!B138 ->  | B141: ='Data Prep'!D138 ->  | C141: ='Data Prep'!C138 ->  | D141: ='Data Prep'!K138 ->  | E141: ='Data Prep'!M138 -> 00:00:00 | F141: ='Data Prep'!P138 -> 00:00:00 | G141: ='Data Prep'!J138 -> 0 | H141: ='Data Prep'!W138 ->  | I141: ='Data Prep'!Z138 -> No Score | J141: ='Data Prep'!AA138 ->  | K141: ='Data Prep'!AB138 ->  | L141: ='Data Prep'!AC138 ->  | M141: ='Data Prep'!AD138 -> No Score | N141: ='Data Prep'!AG138 -> No Score | O141: ='Data Prep'!AH138 ->  | P141: ='Data Prep'!AJ138 ->  | Q141: ='Data Prep'!AO138 ->  | R141: ='Data Prep'!AM138 -> 
A142: ='Data Prep'!B139 ->  | B142: ='Data Prep'!D139 ->  | C142: ='Data Prep'!C139 ->  | D142: ='Data Prep'!K139 ->  | E142: ='Data Prep'!M139 -> 00:00:00 | F142: ='Data Prep'!P139 -> 00:00:00 | G142: ='Data Prep'!J139 -> 0 | H142: ='Data Prep'!W139 ->  | I142: ='Data Prep'!Z139 -> No Score | J142: ='Data Prep'!AA139 ->  | K142: ='Data Prep'!AB139 ->  | L142: ='Data Prep'!AC139 ->  | M142: ='Data Prep'!AD139 -> No Score | N142: ='Data Prep'!AG139 -> No Score | O142: ='Data Prep'!AH139 ->  | P142: ='Data Prep'!AJ139 ->  | Q142: ='Data Prep'!AO139 ->  | R142: ='Data Prep'!AM139 -> 
A143: ='Data Prep'!B140 ->  | B143: ='Data Prep'!D140 ->  | C143: ='Data Prep'!C140 ->  | D143: ='Data Prep'!K140 ->  | E143: ='Data Prep'!M140 -> 00:00:00 | F143: ='Data Prep'!P140 -> 00:00:00 | G143: ='Data Prep'!J140 -> 0 | H143: ='Data Prep'!W140 ->  | I143: ='Data Prep'!Z140 -> No Score | J143: ='Data Prep'!AA140 ->  | K143: ='Data Prep'!AB140 ->  | L143: ='Data Prep'!AC140 ->  | M143: ='Data Prep'!AD140 -> No Score | N143: ='Data Prep'!AG140 -> No Score | O143: ='Data Prep'!AH140 ->  | P143: ='Data Prep'!AJ140 ->  | Q143: ='Data Prep'!AO140 ->  | R143: ='Data Prep'!AM140 -> 
A144: ='Data Prep'!B141 ->  | B144: ='Data Prep'!D141 ->  | C144: ='Data Prep'!C141 ->  | D144: ='Data Prep'!K141 ->  | E144: ='Data Prep'!M141 -> 00:00:00 | F144: ='Data Prep'!P141 -> 00:00:00 | G144: ='Data Prep'!J141 -> 0 | H144: ='Data Prep'!W141 ->  | I144: ='Data Prep'!Z141 -> No Score | J144: ='Data Prep'!AA141 ->  | K144: ='Data Prep'!AB141 ->  | L144: ='Data Prep'!AC141 ->  | M144: ='Data Prep'!AD141 -> No Score | N144: ='Data Prep'!AG141 -> No Score | O144: ='Data Prep'!AH141 ->  | P144: ='Data Prep'!AJ141 ->  | Q144: ='Data Prep'!AO141 ->  | R144: ='Data Prep'!AM141 -> 
A145: ='Data Prep'!B142 ->  | B145: ='Data Prep'!D142 ->  | C145: ='Data Prep'!C142 ->  | D145: ='Data Prep'!K142 ->  | E145: ='Data Prep'!M142 -> 00:00:00 | F145: ='Data Prep'!P142 -> 00:00:00 | G145: ='Data Prep'!J142 -> 0 | H145: ='Data Prep'!W142 ->  | I145: ='Data Prep'!Z142 -> No Score | J145: ='Data Prep'!AA142 ->  | K145: ='Data Prep'!AB142 ->  | L145: ='Data Prep'!AC142 ->  | M145: ='Data Prep'!AD142 -> No Score | N145: ='Data Prep'!AG142 -> No Score | O145: ='Data Prep'!AH142 ->  | P145: ='Data Prep'!AJ142 ->  | Q145: ='Data Prep'!AO142 ->  | R145: ='Data Prep'!AM142 -> 
A146: ='Data Prep'!B143 ->  | B146: ='Data Prep'!D143 ->  | C146: ='Data Prep'!C143 ->  | D146: ='Data Prep'!K143 ->  | E146: ='Data Prep'!M143 -> 00:00:00 | F146: ='Data Prep'!P143 -> 00:00:00 | G146: ='Data Prep'!J143 -> 0 | H146: ='Data Prep'!W143 ->  | I146: ='Data Prep'!Z143 -> No Score | J146: ='Data Prep'!AA143 ->  | K146: ='Data Prep'!AB143 ->  | L146: ='Data Prep'!AC143 ->  | M146: ='Data Prep'!AD143 -> No Score | N146: ='Data Prep'!AG143 -> No Score | O146: ='Data Prep'!AH143 ->  | P146: ='Data Prep'!AJ143 ->  | Q146: ='Data Prep'!AO143 ->  | R146: ='Data Prep'!AM143 -> 
A147: ='Data Prep'!B144 ->  | B147: ='Data Prep'!D144 ->  | C147: ='Data Prep'!C144 ->  | D147: ='Data Prep'!K144 ->  | E147: ='Data Prep'!M144 -> 00:00:00 | F147: ='Data Prep'!P144 -> 00:00:00 | G147: ='Data Prep'!J144 -> 0 | H147: ='Data Prep'!W144 ->  | I147: ='Data Prep'!Z144 -> No Score | J147: ='Data Prep'!AA144 ->  | K147: ='Data Prep'!AB144 ->  | L147: ='Data Prep'!AC144 ->  | M147: ='Data Prep'!AD144 -> No Score | N147: ='Data Prep'!AG144 -> No Score | O147: ='Data Prep'!AH144 ->  | P147: ='Data Prep'!AJ144 ->  | Q147: ='Data Prep'!AO144 ->  | R147: ='Data Prep'!AM144 -> 
A148: ='Data Prep'!B145 ->  | B148: ='Data Prep'!D145 ->  | C148: ='Data Prep'!C145 ->  | D148: ='Data Prep'!K145 ->  | E148: ='Data Prep'!M145 -> 00:00:00 | F148: ='Data Prep'!P145 -> 00:00:00 | G148: ='Data Prep'!J145 -> 0 | H148: ='Data Prep'!W145 ->  | I148: ='Data Prep'!Z145 -> No Score | J148: ='Data Prep'!AA145 ->  | K148: ='Data Prep'!AB145 ->  | L148: ='Data Prep'!AC145 ->  | M148: ='Data Prep'!AD145 -> No Score | N148: ='Data Prep'!AG145 -> No Score | O148: ='Data Prep'!AH145 ->  | P148: ='Data Prep'!AJ145 ->  | Q148: ='Data Prep'!AO145 ->  | R148: ='Data Prep'!AM145 -> 
A149: ='Data Prep'!B146 -> 0 | B149: ='Data Prep'!D146 -> 0 | C149: ='Data Prep'!C146 -> 0 | D149: ='Data Prep'!K146 ->  | E149: ='Data Prep'!M146 -> 00:00:00 | F149: ='Data Prep'!P146 -> 00:00:00 | G149: ='Data Prep'!J146 -> 0 | H149: ='Data Prep'!W146 ->  | I149: ='Data Prep'!Z146 -> No Score | J149: ='Data Prep'!AA146 -> No Score | K149: ='Data Prep'!AB146 ->  | L149: ='Data Prep'!AC146 ->  | M149: ='Data Prep'!AD146 -> No Score | N149: ='Data Prep'!AG146 -> No Score | O149: ='Data Prep'!AH146 ->  | P149: ='Data Prep'!AJ146 ->  | Q149: ='Data Prep'!AO146 ->  | R149: ='Data Prep'!AM146 -> 
A150: ='Data Prep'!B147 ->  | B150: ='Data Prep'!D147 ->  | C150: ='Data Prep'!C147 ->  | D150: ='Data Prep'!K147 ->  | E150: ='Data Prep'!M147 -> 00:00:00 | F150: ='Data Prep'!P147 -> 00:00:00 | G150: ='Data Prep'!J147 -> 0 | H150: ='Data Prep'!W147 ->  | I150: ='Data Prep'!Z147 -> No Score | J150: ='Data Prep'!AA147 ->  | K150: ='Data Prep'!AB147 ->  | L150: ='Data Prep'!AC147 ->  | M150: ='Data Prep'!AD147 -> No Score | N150: ='Data Prep'!AG147 -> No Score | O150: ='Data Prep'!AH147 ->  | P150: ='Data Prep'!AJ147 ->  | Q150: ='Data Prep'!AO147 ->  | R150: ='Data Prep'!AM147 -> 
A151: ='Data Prep'!B148 ->  | B151: ='Data Prep'!D148 ->  | C151: ='Data Prep'!C148 ->  | D151: ='Data Prep'!K148 ->  | E151: ='Data Prep'!M148 -> 00:00:00 | F151: ='Data Prep'!P148 -> 00:00:00 | G151: ='Data Prep'!J148 -> 0 | H151: ='Data Prep'!W148 ->  | I151: ='Data Prep'!Z148 -> No Score | J151: ='Data Prep'!AA148 ->  | K151: ='Data Prep'!AB148 ->  | L151: ='Data Prep'!AC148 ->  | M151: ='Data Prep'!AD148 -> No Score | N151: ='Data Prep'!AG148 -> No Score | O151: ='Data Prep'!AH148 ->  | P151: ='Data Prep'!AJ148 ->  | Q151: ='Data Prep'!AO148 ->  | R151: ='Data Prep'!AM148 -> 
A152: ='Data Prep'!B149 ->  | B152: ='Data Prep'!D149 ->  | C152: ='Data Prep'!C149 ->  | D152: ='Data Prep'!K149 ->  | E152: ='Data Prep'!M149 -> 00:00:00 | F152: ='Data Prep'!P149 -> 00:00:00 | G152: ='Data Prep'!J149 -> 0 | H152: ='Data Prep'!W149 ->  | I152: ='Data Prep'!Z149 -> No Score | J152: ='Data Prep'!AA149 ->  | K152: ='Data Prep'!AB149 ->  | L152: ='Data Prep'!AC149 ->  | M152: ='Data Prep'!AD149 -> No Score | N152: ='Data Prep'!AG149 -> No Score | O152: ='Data Prep'!AH149 ->  | P152: ='Data Prep'!AJ149 ->  | Q152: ='Data Prep'!AO149 ->  | R152: ='Data Prep'!AM149 -> 
A153: ='Data Prep'!B150 ->  | B153: ='Data Prep'!D150 ->  | C153: ='Data Prep'!C150 ->  | D153: ='Data Prep'!K150 ->  | E153: ='Data Prep'!M150 -> 00:00:00 | F153: ='Data Prep'!P150 -> 00:00:00 | G153: ='Data Prep'!J150 -> 0 | H153: ='Data Prep'!W150 ->  | I153: ='Data Prep'!Z150 -> No Score | J153: ='Data Prep'!AA150 ->  | K153: ='Data Prep'!AB150 ->  | L153: ='Data Prep'!AC150 ->  | M153: ='Data Prep'!AD150 -> No Score | N153: ='Data Prep'!AG150 -> No Score | O153: ='Data Prep'!AH150 ->  | P153: ='Data Prep'!AJ150 ->  | Q153: ='Data Prep'!AO150 ->  | R153: ='Data Prep'!AM150 -> 
A154: ='Data Prep'!B151 ->  | B154: ='Data Prep'!D151 ->  | C154: ='Data Prep'!C151 ->  | D154: ='Data Prep'!K151 ->  | E154: ='Data Prep'!M151 -> 00:00:00 | F154: ='Data Prep'!P151 -> 00:00:00 | G154: ='Data Prep'!J151 -> 0 | H154: ='Data Prep'!W151 ->  | I154: ='Data Prep'!Z151 -> No Score | J154: ='Data Prep'!AA151 ->  | K154: ='Data Prep'!AB151 ->  | L154: ='Data Prep'!AC151 ->  | M154: ='Data Prep'!AD151 -> No Score | N154: ='Data Prep'!AG151 -> No Score | O154: ='Data Prep'!AH151 ->  | P154: ='Data Prep'!AJ151 ->  | Q154: ='Data Prep'!AO151 ->  | R154: ='Data Prep'!AM151 -> 
A155: ='Data Prep'!B152 ->  | B155: ='Data Prep'!D152 ->  | C155: ='Data Prep'!C152 ->  | D155: ='Data Prep'!K152 ->  | E155: ='Data Prep'!M152 -> 00:00:00 | F155: ='Data Prep'!P152 -> 00:00:00 | G155: ='Data Prep'!J152 -> 0 | H155: ='Data Prep'!W152 ->  | I155: ='Data Prep'!Z152 -> No Score | J155: ='Data Prep'!AA152 ->  | K155: ='Data Prep'!AB152 ->  | L155: ='Data Prep'!AC152 ->  | M155: ='Data Prep'!AD152 -> No Score | N155: ='Data Prep'!AG152 -> No Score | O155: ='Data Prep'!AH152 ->  | P155: ='Data Prep'!AJ152 ->  | Q155: ='Data Prep'!AO152 ->  | R155: ='Data Prep'!AM152 -> 
A156: ='Data Prep'!B153 ->  | B156: ='Data Prep'!D153 ->  | C156: ='Data Prep'!C153 ->  | D156: ='Data Prep'!K153 ->  | E156: ='Data Prep'!M153 -> 00:00:00 | F156: ='Data Prep'!P153 -> 00:00:00 | G156: ='Data Prep'!J153 -> 0 | H156: ='Data Prep'!W153 ->  | I156: ='Data Prep'!Z153 -> No Score | J156: ='Data Prep'!AA153 ->  | K156: ='Data Prep'!AB153 ->  | L156: ='Data Prep'!AC153 ->  | M156: ='Data Prep'!AD153 -> No Score | N156: ='Data Prep'!AG153 -> No Score | O156: ='Data Prep'!AH153 ->  | P156: ='Data Prep'!AJ153 ->  | Q156: ='Data Prep'!AO153 ->  | R156: ='Data Prep'!AM153 -> 
A157: ='Data Prep'!B154 ->  | B157: ='Data Prep'!D154 ->  | C157: ='Data Prep'!C154 ->  | D157: ='Data Prep'!K154 ->  | E157: ='Data Prep'!M154 -> 00:00:00 | F157: ='Data Prep'!P154 -> 00:00:00 | G157: ='Data Prep'!J154 -> 0 | H157: ='Data Prep'!W154 ->  | I157: ='Data Prep'!Z154 -> No Score | J157: ='Data Prep'!AA154 ->  | K157: ='Data Prep'!AB154 ->  | L157: ='Data Prep'!AC154 ->  | M157: ='Data Prep'!AD154 -> No Score | N157: ='Data Prep'!AG154 -> No Score | O157: ='Data Prep'!AH154 ->  | P157: ='Data Prep'!AJ154 ->  | Q157: ='Data Prep'!AO154 ->  | R157: ='Data Prep'!AM154 -> 
A158: ='Data Prep'!B155 ->  | B158: ='Data Prep'!D155 ->  | C158: ='Data Prep'!C155 ->  | D158: ='Data Prep'!K155 ->  | E158: ='Data Prep'!M155 -> 00:00:00 | F158: ='Data Prep'!P155 -> 00:00:00 | G158: ='Data Prep'!J155 -> 0 | H158: ='Data Prep'!W155 ->  | I158: ='Data Prep'!Z155 -> No Score | J158: ='Data Prep'!AA155 ->  | K158: ='Data Prep'!AB155 ->  | L158: ='Data Prep'!AC155 ->  | M158: ='Data Prep'!AD155 -> No Score | N158: ='Data Prep'!AG155 -> No Score | O158: ='Data Prep'!AH155 ->  | P158: ='Data Prep'!AJ155 ->  | Q158: ='Data Prep'!AO155 ->  | R158: ='Data Prep'!AM155 -> 
A159: ='Data Prep'!B156 ->  | B159: ='Data Prep'!D156 ->  | C159: ='Data Prep'!C156 ->  | D159: ='Data Prep'!K156 ->  | E159: ='Data Prep'!M156 -> 00:00:00 | F159: ='Data Prep'!P156 -> 00:00:00 | G159: ='Data Prep'!J156 -> 0 | H159: ='Data Prep'!W156 ->  | I159: ='Data Prep'!Z156 -> No Score | J159: ='Data Prep'!AA156 ->  | K159: ='Data Prep'!AB156 ->  | L159: ='Data Prep'!AC156 ->  | M159: ='Data Prep'!AD156 -> No Score | N159: ='Data Prep'!AG156 -> No Score | O159: ='Data Prep'!AH156 ->  | P159: ='Data Prep'!AJ156 ->  | Q159: ='Data Prep'!AO156 ->  | R159: ='Data Prep'!AM156 -> 
A160: ='Data Prep'!B157 ->  | B160: ='Data Prep'!D157 ->  | C160: ='Data Prep'!C157 ->  | D160: ='Data Prep'!K157 ->  | E160: ='Data Prep'!M157 -> 00:00:00 | F160: ='Data Prep'!P157 -> 00:00:00 | G160: ='Data Prep'!J157 -> 0 | H160: ='Data Prep'!W157 ->  | I160: ='Data Prep'!Z157 -> No Score | J160: ='Data Prep'!AA157 ->  | K160: ='Data Prep'!AB157 ->  | L160: ='Data Prep'!AC157 ->  | M160: ='Data Prep'!AD157 -> No Score | N160: ='Data Prep'!AG157 -> No Score | O160: ='Data Prep'!AH157 ->  | P160: ='Data Prep'!AJ157 ->  | Q160: ='Data Prep'!AO157 ->  | R160: ='Data Prep'!AM157 -> 
A161: ='Data Prep'!B158 ->  | B161: ='Data Prep'!D158 ->  | C161: ='Data Prep'!C158 ->  | D161: ='Data Prep'!K158 ->  | E161: ='Data Prep'!M158 -> 00:00:00 | F161: ='Data Prep'!P158 -> 00:00:00 | G161: ='Data Prep'!J158 -> 0 | H161: ='Data Prep'!W158 ->  | I161: ='Data Prep'!Z158 -> No Score | J161: ='Data Prep'!AA158 ->  | K161: ='Data Prep'!AB158 ->  | L161: ='Data Prep'!AC158 ->  | M161: ='Data Prep'!AD158 -> No Score | N161: ='Data Prep'!AG158 -> No Score | O161: ='Data Prep'!AH158 ->  | P161: ='Data Prep'!AJ158 ->  | Q161: ='Data Prep'!AO158 ->  | R161: ='Data Prep'!AM158 -> 
A162: ='Data Prep'!B159 ->  | B162: ='Data Prep'!D159 ->  | C162: ='Data Prep'!C159 ->  | D162: ='Data Prep'!K159 ->  | E162: ='Data Prep'!M159 -> 00:00:00 | F162: ='Data Prep'!P159 -> 00:00:00 | G162: ='Data Prep'!J159 -> 0 | H162: ='Data Prep'!W159 ->  | I162: ='Data Prep'!Z159 -> No Score | J162: ='Data Prep'!AA159 ->  | K162: ='Data Prep'!AB159 ->  | L162: ='Data Prep'!AC159 ->  | M162: ='Data Prep'!AD159 -> No Score | N162: ='Data Prep'!AG159 -> No Score | O162: ='Data Prep'!AH159 ->  | P162: ='Data Prep'!AJ159 ->  | Q162: ='Data Prep'!AO159 ->  | R162: ='Data Prep'!AM159 -> 
A163: ='Data Prep'!B160 ->  | B163: ='Data Prep'!D160 ->  | C163: ='Data Prep'!C160 ->  | D163: ='Data Prep'!K160 ->  | E163: ='Data Prep'!M160 -> 00:00:00 | F163: ='Data Prep'!P160 -> 00:00:00 | G163: ='Data Prep'!J160 -> 0 | H163: ='Data Prep'!W160 ->  | I163: ='Data Prep'!Z160 -> No Score | J163: ='Data Prep'!AA160 ->  | K163: ='Data Prep'!AB160 ->  | L163: ='Data Prep'!AC160 ->  | M163: ='Data Prep'!AD160 -> No Score | N163: ='Data Prep'!AG160 -> No Score | O163: ='Data Prep'!AH160 ->  | P163: ='Data Prep'!AJ160 ->  | Q163: ='Data Prep'!AO160 ->  | R163: ='Data Prep'!AM160 -> 
A164: ='Data Prep'!B161 ->  | B164: ='Data Prep'!D161 ->  | C164: ='Data Prep'!C161 ->  | D164: ='Data Prep'!K161 ->  | E164: ='Data Prep'!M161 -> 00:00:00 | F164: ='Data Prep'!P161 -> 00:00:00 | G164: ='Data Prep'!J161 -> 0 | H164: ='Data Prep'!W161 ->  | I164: ='Data Prep'!Z161 -> No Score | J164: ='Data Prep'!AA161 ->  | K164: ='Data Prep'!AB161 ->  | L164: ='Data Prep'!AC161 ->  | M164: ='Data Prep'!AD161 -> No Score | N164: ='Data Prep'!AG161 -> No Score | O164: ='Data Prep'!AH161 ->  | P164: ='Data Prep'!AJ161 ->  | Q164: ='Data Prep'!AO161 ->  | R164: ='Data Prep'!AM161 -> 

Sheet Caseload Overview
A1: Click here for Patient Tracking Spreadsheet Template resources | E1: 1) EVERY time this worksheet is used, ensure all other versions of the template are CLOSED, and press "Ctrl+J" to refresh the page. 2) Do NOT use the Caseload Overview if fewer than 2 ACTIVE patients are entered on the Patient Tracking worksheet. 3) Do NOT change the number of rows or columns. If you need to make any changes to the table whatsoever (other than sort and filter), use the de-identified template provided at the link to the left. 4) Be aware that at least one PHQ-9 score must be entered for a given record in order for that record's GAD-7 scores to display properly in the Caseload Overview.
E2: Treatment Status Indicates that the the most recent contact was over 2 months ago | J2: PHQ-9 | N2: GAD-7 A green check mark indicates that a patient's last available GAD-7 score was at target (<8 or 50% decrease from initial score) | R2: Psychiatric Case Review
E3: The most recent contact was over 1 month (30 days) ago The next follow-up contact is past due | J3: The last available PHQ-9 score is at target (<5 or 50% decrease from initial score) The last available PHQ-9 score is more than 30 days old | N3: The last available GAD-7 score is at target (<10 or 50% decrease from initial score) The last available GAD-7 score is more than 30 days old
A4: View Record | B4: Treatment Status | C4: Name | D4: MRN | E4: Date of Initial Assessment | F4: Date of Most Recent Contact | G4: Date Next Follow-up Due | H4: Number of Follow-up Contacts | I4: Weeks in Treatment | J4: Initial PHQ-9 Score | K4: Last Available PHQ-9 Score | L4: % Change in PHQ-9 Score | M4: Date of Last PHQ-9 Score | N4: Initial GAD-7 Score | O4: Last Available GAD-7 Score | P4: % Change in GAD-7 Score | Q4: Date of Last GAD-7 Score | R4: Flag | S4: Most Recent Psychiatric Case Review Note
A5: =HYPERLINK("#'Patient Tracking'!" & ADDRESS(MATCH($D5, 'Patient Tracking'!$A:$A, 0), 1), "View") -> View | B5: Active | C5: Nancy Fake | D5: 6789 | E5: 2017-05-29 | F5: 2017-05-29 | G5: 2017-06-12 | H5: 0 | I5: 6.142857143 | J5: No Score | K5: No Score | N5: No Score | O5: No Score
A6: =HYPERLINK("#'Patient Tracking'!" & ADDRESS(MATCH($D6, 'Patient Tracking'!$A:$A, 0), 1), "View") -> View | B6: RP | C6: Betty Test | D6: 2500 | E6: 2016-12-15 | F6: 2017-05-15 | G6: 2017-06-14 | H6: 10 | I6: 29.71428571 | J6: 12 | K6: 1 | L6: -0.9166666667 | M6: 2017-05-15 | N6: 9 | O6: 3 | P6: -0.6666666667 | Q6: 2017-05-15
A7: =HYPERLINK("#'Patient Tracking'!" & ADDRESS(MATCH($D7, 'Patient Tracking'!$A:$A, 0), 1), "View") -> View | B7: Active | C7: Susan Test | D7: 1678 | E7: 2016-11-20 | F7: 2017-06-02 | G7: 2017-06-16 | H7: 10 | I7: 33.28571429 | J7: 22 | K7: 15 | L7: -0.3181818182 | M7: 2017-06-02 | N7: 18 | O7: 14 | P7: -0.2222222222 | Q7: 2017-06-02 | R7: Flag for discussion & safety risk | S7: 2016-09-15
A8: =HYPERLINK("#'Patient Tracking'!" & ADDRESS(MATCH($D8, 'Patient Tracking'!$A:$A, 0), 1), "View") -> View | B8: Inactive | C8: John Doe | D8: 4321 | E8: 2016-01-15 | F8: 2016-11-16 | G8: 2016-12-16 | H8: 12 | I8: 77.57142857 | J8: 20 | K8: 0 | L8: -1 | M8: 2016-11-16 | N8: 14 | O8: 1 | P8: -0.9285714286 | Q8: 2016-11-16 | S8: 2016-11-01
A9: =HYPERLINK("#'Patient Tracking'!" & ADDRESS(MATCH($D9, 'Patient Tracking'!$A:$A, 0), 1), "View") -> View | B9: Active | C9: Bob Dolittle | D9: 1222 | E9: 2017-03-02 | F9: 2017-07-01 | G9: 2017-07-15 | H9: 3 | I9: 18.71428571 | J9: 22 | K9: 19 | L9: -0.1363636364 | M9: 2017-07-01 | N9: 12 | O9: 10 | P9: -0.1666666667 | Q9: 2017-07-01 | R9: Flag as safety risk | S9: 2016-09-17
A10: =HYPERLINK("#'Patient Tracking'!" & ADDRESS(MATCH($D10, 'Patient Tracking'!$A:$A, 0), 1), "View") -> View | B10: Active | C10: Joe Smith | D10: 1234 | E10: 2017-04-01 | F10: 2017-07-11 | G10: 2017-07-25 | H10: 6 | I10: 14.42857143 | J10: 15 | K10: 8 | L10: -0.4666666667 | M10: 2017-07-11 | N10: 11 | O10: 4 | P10: -0.6363636364 | Q10: 2017-07-11 | S10: 2016-10-24
A11: =HYPERLINK("#'Patient Tracking'!" & ADDRESS(MATCH($D11, 'Patient Tracking'!$A:$A, 0), 1), "View") -> View | B11: Active | C11: Albert Smith | D11: 5555 | E11: 2017-03-05 | F11: 2017-06-30 | G11: 2017-07-28 | H11: 5 | I11: 18.28571429 | J11: 18 | K11: 18 | L11: 0 | M11: 2017-06-30 | N11: 14 | O11: 10 | P11: -0.2857142857 | Q11: 2017-06-30 | R11: Flag for discussion
A12: =HYPERLINK("#'Patient Tracking'!" & ADDRESS(MATCH($D12, 'Patient Tracking'!$A:$A, 0), 1), "View") -> 
A13: =HYPERLINK("#'Patient Tracking'!" & ADDRESS(MATCH($D13, 'Patient Tracking'!$A:$A, 0), 1), "View") -> 
A14: =HYPERLINK("#'Patient Tracking'!" & ADDRESS(MATCH($D14, 'Patient Tracking'!$A:$A, 0), 1), "View") -> 
A15: =HYPERLINK("#'Patient Tracking'!" & ADDRESS(MATCH($D15, 'Patient Tracking'!$A:$A, 0), 1), "View") -> 
A16: =HYPERLINK("#'Patient Tracking'!" & ADDRESS(MATCH($D16, 'Patient Tracking'!$A:$A, 0), 1), "View") -> 
A17: =HYPERLINK("#'Patient Tracking'!" & ADDRESS(MATCH($D17, 'Patient Tracking'!$A:$A, 0), 1), "View") -> 
A18: =HYPERLINK("#'Patient Tracking'!" & ADDRESS(MATCH($D18, 'Patient Tracking'!$A:$A, 0), 1), "View") -> 
A19: =HYPERLINK("#'Patient Tracking'!" & ADDRESS(MATCH($D19, 'Patient Tracking'!$A:$A, 0), 1), "View") -> 
A20: =HYPERLINK("#'Patient Tracking'!" & ADDRESS(MATCH($D20, 'Patient Tracking'!$A:$A, 0), 1), "View") -> 
A21: =HYPERLINK("#'Patient Tracking'!" & ADDRESS(MATCH($D21, 'Patient Tracking'!$A:$A, 0), 1), "View") -> 
A22: =HYPERLINK("#'Patient Tracking'!" & ADDRESS(MATCH($D22, 'Patient Tracking'!$A:$A, 0), 1), "View") -> 
A23: =HYPERLINK("#'Patient Tracking'!" & ADDRESS(MATCH($D23, 'Patient Tracking'!$A:$A, 0), 1), "View") -> 
A24: =HYPERLINK("#'Patient Tracking'!" & ADDRESS(MATCH($D24, 'Patient Tracking'!$A:$A, 0), 1), "View") -> 
A25: =HYPERLINK("#'Patient Tracking'!" & ADDRESS(MATCH($D25, 'Patient Tracking'!$A:$A, 0), 1), "View") -> 
A26: =HYPERLINK("#'Patient Tracking'!" & ADDRESS(MATCH($D26, 'Patient Tracking'!$A:$A, 0), 1), "View") -> 
A27: =HYPERLINK("#'Patient Tracking'!" & ADDRESS(MATCH($D27, 'Patient Tracking'!$A:$A, 0), 1), "View") -> 
A28: =HYPERLINK("#'Patient Tracking'!" & ADDRESS(MATCH($D28, 'Patient Tracking'!$A:$A, 0), 1), "View") -> 
A29: =HYPERLINK("#'Patient Tracking'!" & ADDRESS(MATCH($D29, 'Patient Tracking'!$A:$A, 0), 1), "View") -> 
A30: =HYPERLINK("#'Patient Tracking'!" & ADDRESS(MATCH($D30, 'Patient Tracking'!$A:$A, 0), 1), "View") -> 
A31: =HYPERLINK("#'Patient Tracking'!" & ADDRESS(MATCH($D31, 'Patient Tracking'!$A:$A, 0), 1), "View") -> 
A32: =HYPERLINK("#'Patient Tracking'!" & ADDRESS(MATCH($D32, 'Patient Tracking'!$A:$A, 0), 1), "View") -> 
A33: =HYPERLINK("#'Patient Tracking'!" & ADDRESS(MATCH($D33, 'Patient Tracking'!$A:$A, 0), 1), "View") -> 
A34: =HYPERLINK("#'Patient Tracking'!" & ADDRESS(MATCH($D34, 'Patient Tracking'!$A:$A, 0), 1), "View") -> 
A35: =HYPERLINK("#'Patient Tracking'!" & ADDRESS(MATCH($D35, 'Patient Tracking'!$A:$A, 0), 1), "View") -> 
A36: =HYPERLINK("#'Patient Tracking'!" & ADDRESS(MATCH($D36, 'Patient Tracking'!$A:$A, 0), 1), "View") -> 
A37: =HYPERLINK("#'Patient Tracking'!" & ADDRESS(MATCH($D37, 'Patient Tracking'!$A:$A, 0), 1), "View") -> 
A38: =HYPERLINK("#'Patient Tracking'!" & ADDRESS(MATCH($D38, 'Patient Tracking'!$A:$A, 0), 1), "View") -> 
A39: =HYPERLINK("#'Patient Tracking'!" & ADDRESS(MATCH($D39, 'Patient Tracking'!$A:$A, 0), 1), "View") -> 
A40: =HYPERLINK("#'Patient Tracking'!" & ADDRESS(MATCH($D40, 'Patient Tracking'!$A:$A, 0), 1), "View") -> 
A41: =HYPERLINK("#'Patient Tracking'!" & ADDRESS(MATCH($D41, 'Patient Tracking'!$A:$A, 0), 1), "View") -> 
A42: =HYPERLINK("#'Patient Tracking'!" & ADDRESS(MATCH($D42, 'Patient Tracking'!$A:$A, 0), 1), "View") -> 
A43: =HYPERLINK("#'Patient Tracking'!" & ADDRESS(MATCH($D43, 'Patient Tracking'!$A:$A, 0), 1), "View") -> 
A44: =HYPERLINK("#'Patient Tracking'!" & ADDRESS(MATCH($D44, 'Patient Tracking'!$A:$A, 0), 1), "View") -> 
A45: =HYPERLINK("#'Patient Tracking'!" & ADDRESS(MATCH($D45, 'Patient Tracking'!$A:$A, 0), 1), "View") -> 
A46: =HYPERLINK("#'Patient Tracking'!" & ADDRESS(MATCH($D46, 'Patient Tracking'!$A:$A, 0), 1), "View") -> 
A47: =HYPERLINK("#'Patient Tracking'!" & ADDRESS(MATCH($D47, 'Patient Tracking'!$A:$A, 0), 1), "View") -> 
A48: =HYPERLINK("#'Patient Tracking'!" & ADDRESS(MATCH($D48, 'Patient Tracking'!$A:$A, 0), 1), "View") -> 
A49: =HYPERLINK("#'Patient Tracking'!" & ADDRESS(MATCH($D49, 'Patient Tracking'!$A:$A, 0), 1), "View") -> 
A50: =HYPERLINK("#'Patient Tracking'!" & ADDRESS(MATCH($D50, 'Patient Tracking'!$A:$A, 0), 1), "View") -> 
A51: =HYPERLINK("#'Patient Tracking'!" & ADDRESS(MATCH($D51, 'Patient Tracking'!$A:$A, 0), 1), "View") -> 
A52: =HYPERLINK("#'Patient Tracking'!" & ADDRESS(MATCH($D52, 'Patient Tracking'!$A:$A, 0), 1), "View") -> 
A53: =HYPERLINK("#'Patient Tracking'!" & ADDRESS(MATCH($D53, 'Patient Tracking'!$A:$A, 0), 1), "View") -> 
A54: =HYPERLINK("#'Patient Tracking'!" & ADDRESS(MATCH($D54, 'Patient Tracking'!$A:$A, 0), 1), "View") -> 
A55: =HYPERLINK("#'Patient Tracking'!" & ADDRESS(MATCH($D55, 'Patient Tracking'!$A:$A, 0), 1), "View") -> 
A56: =HYPERLINK("#'Patient Tracking'!" & ADDRESS(MATCH($D56, 'Patient Tracking'!$A:$A, 0), 1), "View") -> 
A57: =HYPERLINK("#'Patient Tracking'!" & ADDRESS(MATCH($D57, 'Patient Tracking'!$A:$A, 0), 1), "View") -> 
A58: =HYPERLINK("#'Patient Tracking'!" & ADDRESS(MATCH($D58, 'Patient Tracking'!$A:$A, 0), 1), "View") -> 
A59: =HYPERLINK("#'Patient Tracking'!" & ADDRESS(MATCH($D59, 'Patient Tracking'!$A:$A, 0), 1), "View") -> 
A60: =HYPERLINK("#'Patient Tracking'!" & ADDRESS(MATCH($D60, 'Patient Tracking'!$A:$A, 0), 1), "View") -> 
A61: =HYPERLINK("#'Patient Tracking'!" & ADDRESS(MATCH($D61, 'Patient Tracking'!$A:$A, 0), 1), "View") -> 
A62: =HYPERLINK("#'Patient Tracking'!" & ADDRESS(MATCH($D62, 'Patient Tracking'!$A:$A, 0), 1), "View") -> 
A63: =HYPERLINK("#'Patient Tracking'!" & ADDRESS(MATCH($D63, 'Patient Tracking'!$A:$A, 0), 1), "View") -> 
A64: =HYPERLINK("#'Patient Tracking'!" & ADDRESS(MATCH($D64, 'Patient Tracking'!$A:$A, 0), 1), "View") -> 
A65: =HYPERLINK("#'Patient Tracking'!" & ADDRESS(MATCH($D65, 'Patient Tracking'!$A:$A, 0), 1), "View") -> 
A66: =HYPERLINK("#'Patient Tracking'!" & ADDRESS(MATCH($D66, 'Patient Tracking'!$A:$A, 0), 1), "View") -> 
A67: =HYPERLINK("#'Patient Tracking'!" & ADDRESS(MATCH($D67, 'Patient Tracking'!$A:$A, 0), 1), "View") -> 
A68: =HYPERLINK("#'Patient Tracking'!" & ADDRESS(MATCH($D68, 'Patient Tracking'!$A:$A, 0), 1), "View") -> 
A69: =HYPERLINK("#'Patient Tracking'!" & ADDRESS(MATCH($D69, 'Patient Tracking'!$A:$A, 0), 1), "View") -> 
A70: =HYPERLINK("#'Patient Tracking'!" & ADDRESS(MATCH($D70, 'Patient Tracking'!$A:$A, 0), 1), "View") -> 
A71: =HYPERLINK("#'Patient Tracking'!" & ADDRESS(MATCH($D71, 'Patient Tracking'!$A:$A, 0), 1), "View") -> 
A72: =HYPERLINK("#'Patient Tracking'!" & ADDRESS(MATCH($D72, 'Patient Tracking'!$A:$A, 0), 1), "View") -> 
A73: =HYPERLINK("#'Patient Tracking'!" & ADDRESS(MATCH($D73, 'Patient Tracking'!$A:$A, 0), 1), "View") -> 
A74: =HYPERLINK("#'Patient Tracking'!" & ADDRESS(MATCH($D74, 'Patient Tracking'!$A:$A, 0), 1), "View") -> 
A75: =HYPERLINK("#'Patient Tracking'!" & ADDRESS(MATCH($D75, 'Patient Tracking'!$A:$A, 0), 1), "View") -> 
A76: =HYPERLINK("#'Patient Tracking'!" & ADDRESS(MATCH($D76, 'Patient Tracking'!$A:$A, 0), 1), "View") -> 
A77: =HYPERLINK("#'Patient Tracking'!" & ADDRESS(MATCH($D77, 'Patient Tracking'!$A:$A, 0), 1), "View") -> 
A78: =HYPERLINK("#'Patient Tracking'!" & ADDRESS(MATCH($D78, 'Patient Tracking'!$A:$A, 0), 1), "View") -> 
A79: =HYPERLINK("#'Patient Tracking'!" & ADDRESS(MATCH($D79, 'Patient Tracking'!$A:$A, 0), 1), "View") -> 
A80: =HYPERLINK("#'Patient Tracking'!" & ADDRESS(MATCH($D80, 'Patient Tracking'!$A:$A, 0), 1), "View") -> 
A81: =HYPERLINK("#'Patient Tracking'!" & ADDRESS(MATCH($D81, 'Patient Tracking'!$A:$A, 0), 1), "View") -> 
A82: =HYPERLINK("#'Patient Tracking'!" & ADDRESS(MATCH($D82, 'Patient Tracking'!$A:$A, 0), 1), "View") -> 
A83: =HYPERLINK("#'Patient Tracking'!" & ADDRESS(MATCH($D83, 'Patient Tracking'!$A:$A, 0), 1), "View") -> 
A84: =HYPERLINK("#'Patient Tracking'!" & ADDRESS(MATCH($D84, 'Patient Tracking'!$A:$A, 0), 1), "View") -> 
A85: =HYPERLINK("#'Patient Tracking'!" & ADDRESS(MATCH($D85, 'Patient Tracking'!$A:$A, 0), 1), "View") -> 
A86: =HYPERLINK("#'Patient Tracking'!" & ADDRESS(MATCH($D86, 'Patient Tracking'!$A:$A, 0), 1), "View") -> 
A87: =HYPERLINK("#'Patient Tracking'!" & ADDRESS(MATCH($D87, 'Patient Tracking'!$A:$A, 0), 1), "View") -> 
A88: =HYPERLINK("#'Patient Tracking'!" & ADDRESS(MATCH($D88, 'Patient Tracking'!$A:$A, 0), 1), "View") -> 
A89: =HYPERLINK("#'Patient Tracking'!" & ADDRESS(MATCH($D89, 'Patient Tracking'!$A:$A, 0), 1), "View") -> 
A90: =HYPERLINK("#'Patient Tracking'!" & ADDRESS(MATCH($D90, 'Patient Tracking'!$A:$A, 0), 1), "View") -> 
A91: =HYPERLINK("#'Patient Tracking'!" & ADDRESS(MATCH($D91, 'Patient Tracking'!$A:$A, 0), 1), "View") -> 
A92: =HYPERLINK("#'Patient Tracking'!" & ADDRESS(MATCH($D92, 'Patient Tracking'!$A:$A, 0), 1), "View") -> 
A93: =HYPERLINK("#'Patient Tracking'!" & ADDRESS(MATCH($D93, 'Patient Tracking'!$A:$A, 0), 1), "View") -> 
A94: =HYPERLINK("#'Patient Tracking'!" & ADDRESS(MATCH($D94, 'Patient Tracking'!$A:$A, 0), 1), "View") -> 
A95: =HYPERLINK("#'Patient Tracking'!" & ADDRESS(MATCH($D95, 'Patient Tracking'!$A:$A, 0), 1), "View") -> 
A96: =HYPERLINK("#'Patient Tracking'!" & ADDRESS(MATCH($D96, 'Patient Tracking'!$A:$A, 0), 1), "View") -> 
A97: =HYPERLINK("#'Patient Tracking'!" & ADDRESS(MATCH($D97, 'Patient Tracking'!$A:$A, 0), 1), "View") -> 
A98: =HYPERLINK("#'Patient Tracking'!" & ADDRESS(MATCH($D98, 'Patient Tracking'!$A:$A, 0), 1), "View") -> 
A99: =HYPERLINK("#'Patient Tracking'!" & ADDRESS(MATCH($D99, 'Patient Tracking'!$A:$A, 0), 1), "View") -> 
A100: =HYPERLINK("#'Patient Tracking'!" & ADDRESS(MATCH($D100, 'Patient Tracking'!$A:$A, 0), 1), "View") -> 
A101: =HYPERLINK("#'Patient Tracking'!" & ADDRESS(MATCH($D101, 'Patient Tracking'!$A:$A, 0), 1), "View") -> 
A102: =HYPERLINK("#'Patient Tracking'!" & ADDRESS(MATCH($D102, 'Patient Tracking'!$A:$A, 0), 1), "View") -> 
A103: =HYPERLINK("#'Patient Tracking'!" & ADDRESS(MATCH($D103, 'Patient Tracking'!$A:$A, 0), 1), "View") -> 
A104: =HYPERLINK("#'Patient Tracking'!" & ADDRESS(MATCH($D104, 'Patient Tracking'!$A:$A, 0), 1), "View") -> 
A105: =HYPERLINK("#'Patient Tracking'!" & ADDRESS(MATCH($D105, 'Patient Tracking'!$A:$A, 0), 1), "View") -> 
A106: =HYPERLINK("#'Patient Tracking'!" & ADDRESS(MATCH($D106, 'Patient Tracking'!$A:$A, 0), 1), "View") -> 
A107: =HYPERLINK("#'Patient Tracking'!" & ADDRESS(MATCH($D107, 'Patient Tracking'!$A:$A, 0), 1), "View") -> 
A108: =HYPERLINK("#'Patient Tracking'!" & ADDRESS(MATCH($D108, 'Patient Tracking'!$A:$A, 0), 1), "View") -> 
A109: =HYPERLINK("#'Patient Tracking'!" & ADDRESS(MATCH($D109, 'Patient Tracking'!$A:$A, 0), 1), "View") -> 
A110: =HYPERLINK("#'Patient Tracking'!" & ADDRESS(MATCH($D110, 'Patient Tracking'!$A:$A, 0), 1), "View") -> 
A111: =HYPERLINK("#'Patient Tracking'!" & ADDRESS(MATCH($D111, 'Patient Tracking'!$A:$A, 0), 1), "View") -> 
A112: =HYPERLINK("#'Patient Tracking'!" & ADDRESS(MATCH($D112, 'Patient Tracking'!$A:$A, 0), 1), "View") -> 
A113: =HYPERLINK("#'Patient Tracking'!" & ADDRESS(MATCH($D113, 'Patient Tracking'!$A:$A, 0), 1), "View") -> 
A114: =HYPERLINK("#'Patient Tracking'!" & ADDRESS(MATCH($D114, 'Patient Tracking'!$A:$A, 0), 1), "View") -> 
A115: =HYPERLINK("#'Patient Tracking'!" & ADDRESS(MATCH($D115, 'Patient Tracking'!$A:$A, 0), 1), "View") -> 
A116: =HYPERLINK("#'Patient Tracking'!" & ADDRESS(MATCH($D116, 'Patient Tracking'!$A:$A, 0), 1), "View") -> 
A117: =HYPERLINK("#'Patient Tracking'!" & ADDRESS(MATCH($D117, 'Patient Tracking'!$A:$A, 0), 1), "View") -> 
A118: =HYPERLINK("#'Patient Tracking'!" & ADDRESS(MATCH($D118, 'Patient Tracking'!$A:$A, 0), 1), "View") -> 
A119: =HYPERLINK("#'Patient Tracking'!" & ADDRESS(MATCH($D119, 'Patient Tracking'!$A:$A, 0), 1), "View") -> 
A120: =HYPERLINK("#'Patient Tracking'!" & ADDRESS(MATCH($D120, 'Patient Tracking'!$A:$A, 0), 1), "View") -> 
A121: =HYPERLINK("#'Patient Tracking'!" & ADDRESS(MATCH($D121, 'Patient Tracking'!$A:$A, 0), 1), "View") -> 
A122: =HYPERLINK("#'Patient Tracking'!" & ADDRESS(MATCH($D122, 'Patient Tracking'!$A:$A, 0), 1), "View") -> 
A123: =HYPERLINK("#'Patient Tracking'!" & ADDRESS(MATCH($D123, 'Patient Tracking'!$A:$A, 0), 1), "View") -> 
A124: =HYPERLINK("#'Patient Tracking'!" & ADDRESS(MATCH($D124, 'Patient Tracking'!$A:$A, 0), 1), "View") -> 
A125: =HYPERLINK("#'Patient Tracking'!" & ADDRESS(MATCH($D125, 'Patient Tracking'!$A:$A, 0), 1), "View") -> 
A126: =HYPERLINK("#'Patient Tracking'!" & ADDRESS(MATCH($D126, 'Patient Tracking'!$A:$A, 0), 1), "View") -> 
A127: =HYPERLINK("#'Patient Tracking'!" & ADDRESS(MATCH($D127, 'Patient Tracking'!$A:$A, 0), 1), "View") -> 
A128: =HYPERLINK("#'Patient Tracking'!" & ADDRESS(MATCH($D128, 'Patient Tracking'!$A:$A, 0), 1), "View") -> 
A129: =HYPERLINK("#'Patient Tracking'!" & ADDRESS(MATCH($D129, 'Patient Tracking'!$A:$A, 0), 1), "View") -> 
A130: =HYPERLINK("#'Patient Tracking'!" & ADDRESS(MATCH($D130, 'Patient Tracking'!$A:$A, 0), 1), "View") -> 
A131: =HYPERLINK("#'Patient Tracking'!" & ADDRESS(MATCH($D131, 'Patient Tracking'!$A:$A, 0), 1), "View") -> 
A132: =HYPERLINK("#'Patient Tracking'!" & ADDRESS(MATCH($D132, 'Patient Tracking'!$A:$A, 0), 1), "View") -> 
A133: =HYPERLINK("#'Patient Tracking'!" & ADDRESS(MATCH($D133, 'Patient Tracking'!$A:$A, 0), 1), "View") -> 
A134: =HYPERLINK("#'Patient Tracking'!" & ADDRESS(MATCH($D134, 'Patient Tracking'!$A:$A, 0), 1), "View") -> 
A135: =HYPERLINK("#'Patient Tracking'!" & ADDRESS(MATCH($D135, 'Patient Tracking'!$A:$A, 0), 1), "View") -> 
A136: =HYPERLINK("#'Patient Tracking'!" & ADDRESS(MATCH($D136, 'Patient Tracking'!$A:$A, 0), 1), "View") -> 
A137: =HYPERLINK("#'Patient Tracking'!" & ADDRESS(MATCH($D137, 'Patient Tracking'!$A:$A, 0), 1), "View") -> 
A138: =HYPERLINK("#'Patient Tracking'!" & ADDRESS(MATCH($D138, 'Patient Tracking'!$A:$A, 0), 1), "View") -> 
A139: =HYPERLINK("#'Patient Tracking'!" & ADDRESS(MATCH($D139, 'Patient Tracking'!$A:$A, 0), 1), "View") -> 
A140: =HYPERLINK("#'Patient Tracking'!" & ADDRESS(MATCH($D140, 'Patient Tracking'!$A:$A, 0), 1), "View") -> 
A141: =HYPERLINK("#'Patient Tracking'!" & ADDRESS(MATCH($D141, 'Patient Tracking'!$A:$A, 0), 1), "View") -> 
A142: =HYPERLINK("#'Patient Tracking'!" & ADDRESS(MATCH($D142, 'Patient Tracking'!$A:$A, 0), 1), "View") -> 
A143: =HYPERLINK("#'Patient Tracking'!" & ADDRESS(MATCH($D143, 'Patient Tracking'!$A:$A, 0), 1), "View") -> 
A144: =HYPERLINK("#'Patient Tracking'!" & ADDRESS(MATCH($D144, 'Patient Tracking'!$A:$A, 0), 1), "View") -> 
A145: =HYPERLINK("#'Patient Tracking'!" & ADDRESS(MATCH($D145, 'Patient Tracking'!$A:$A, 0), 1), "View") -> 
A146: =HYPERLINK("#'Patient Tracking'!" & ADDRESS(MATCH($D146, 'Patient Tracking'!$A:$A, 0), 1), "View") -> 
A147: =HYPERLINK("#'Patient Tracking'!" & ADDRESS(MATCH($D147, 'Patient Tracking'!$A:$A, 0), 1), "View") -> 
A148: =HYPERLINK("#'Patient Tracking'!" & ADDRESS(MATCH($D148, 'Patient Tracking'!$A:$A, 0), 1), "View") -> 
A149: =HYPERLINK("#'Patient Tracking'!" & ADDRESS(MATCH($D149, 'Patient Tracking'!$A:$A, 0), 1), "View") -> 
A150: =HYPERLINK("#'Patient Tracking'!" & ADDRESS(MATCH($D150, 'Patient Tracking'!$A:$A, 0), 1), "View") -> 
A151: =HYPERLINK("#'Patient Tracking'!" & ADDRESS(MATCH($D151, 'Patient Tracking'!$A:$A, 0), 1), "View") -> 
A152: =HYPERLINK("#'Patient Tracking'!" & ADDRESS(MATCH($D152, 'Patient Tracking'!$A:$A, 0), 1), "View") -> 
A153: =HYPERLINK("#'Patient Tracking'!" & ADDRESS(MATCH($D153, 'Patient Tracking'!$A:$A, 0), 1), "View") -> 
A154: =HYPERLINK("#'Patient Tracking'!" & ADDRESS(MATCH($D154, 'Patient Tracking'!$A:$A, 0), 1), "View") -> 
A155: =HYPERLINK("#'Patient Tracking'!" & ADDRESS(MATCH($D155, 'Patient Tracking'!$A:$A, 0), 1), "View") -> 
A156: =HYPERLINK("#'Patient Tracking'!" & ADDRESS(MATCH($D156, 'Patient Tracking'!$A:$A, 0), 1), "View") -> 
A157: =HYPERLINK("#'Patient Tracking'!" & ADDRESS(MATCH($D157, 'Patient Tracking'!$A:$A, 0), 1), "View") -> 
A158: =HYPERLINK("#'Patient Tracking'!" & ADDRESS(MATCH($D158, 'Patient Tracking'!$A:$A, 0), 1), "View") -> 
A159: =HYPERLINK("#'Patient Tracking'!" & ADDRESS(MATCH($D159, 'Patient Tracking'!$A:$A, 0), 1), "View") -> 
A160: =HYPERLINK("#'Patient Tracking'!" & ADDRESS(MATCH($D160, 'Patient Tracking'!$A:$A, 0), 1), "View") -> 
A161: =HYPERLINK("#'Patient Tracking'!" & ADDRESS(MATCH($D161, 'Patient Tracking'!$A:$A, 0), 1), "View") -> 
A162: =HYPERLINK("#'Patient Tracking'!" & ADDRESS(MATCH($D162, 'Patient Tracking'!$A:$A, 0), 1), "View") -> 
A163: =HYPERLINK("#'Patient Tracking'!" & ADDRESS(MATCH($D163, 'Patient Tracking'!$A:$A, 0), 1), "View") -> 
A164: =HYPERLINK("#'Patient Tracking'!" & ADDRESS(MATCH($D164, 'Patient Tracking'!$A:$A, 0), 1), "View") -> 
A165: =HYPERLINK("#'Patient Tracking'!" & ADDRESS(MATCH($D165, 'Patient Tracking'!$A:$A, 0), 1), "View") -> 
A166: =HYPERLINK("#'Patient Tracking'!" & ADDRESS(MATCH($D166, 'Patient Tracking'!$A:$A, 0), 1), "View") -> 
A167: =HYPERLINK("#'Patient Tracking'!" & ADDRESS(MATCH($D167, 'Patient Tracking'!$A:$A, 0), 1), "View") -> 
A168: =HYPERLINK("#'Patient Tracking'!" & ADDRESS(MATCH($D168, 'Patient Tracking'!$A:$A, 0), 1), "View") -> 
A169: =HYPERLINK("#'Patient Tracking'!" & ADDRESS(MATCH($D169, 'Patient Tracking'!$A:$A, 0), 1), "View") -> 
A170: =HYPERLINK("#'Patient Tracking'!" & ADDRESS(MATCH($D170, 'Patient Tracking'!$A:$A, 0), 1), "View") -> 
A171: =HYPERLINK("#'Patient Tracking'!" & ADDRESS(MATCH($D171, 'Patient Tracking'!$A:$A, 0), 1), "View") -> 
A172: =HYPERLINK("#'Patient Tracking'!" & ADDRESS(MATCH($D172, 'Patient Tracking'!$A:$A, 0), 1), "View") -> 
A173: =HYPERLINK("#'Patient Tracking'!" & ADDRESS(MATCH($D173, 'Patient Tracking'!$A:$A, 0), 1), "View") -> 
A174: =HYPERLINK("#'Patient Tracking'!" & ADDRESS(MATCH($D174, 'Patient Tracking'!$A:$A, 0), 1), "View") -> 
A175: =HYPERLINK("#'Patient Tracking'!" & ADDRESS(MATCH($D175, 'Patient Tracking'!$A:$A, 0), 1), "View") -> 
A176: =HYPERLINK("#'Patient Tracking'!" & ADDRESS(MATCH($D176, 'Patient Tracking'!$A:$A, 0), 1), "View") -> 
A177: =HYPERLINK("#'Patient Tracking'!" & ADDRESS(MATCH($D177, 'Patient Tracking'!$A:$A, 0), 1), "View") -> 
A178: =HYPERLINK("#'Patient Tracking'!" & ADDRESS(MATCH($D178, 'Patient Tracking'!$A:$A, 0), 1), "View") -> 
A179: =HYPERLINK("#'Patient Tracking'!" & ADDRESS(MATCH($D179, 'Patient Tracking'!$A:$A, 0), 1), "View") -> 
A180: =HYPERLINK("#'Patient Tracking'!" & ADDRESS(MATCH($D180, 'Patient Tracking'!$A:$A, 0), 1), "View") -> 
A181: =HYPERLINK("#'Patient Tracking'!" & ADDRESS(MATCH($D181, 'Patient Tracking'!$A:$A, 0), 1), "View") -> 
A182: =HYPERLINK("#'Patient Tracking'!" & ADDRESS(MATCH($D182, 'Patient Tracking'!$A:$A, 0), 1), "View") -> 
A183: =HYPERLINK("#'Patient Tracking'!" & ADDRESS(MATCH($D183, 'Patient Tracking'!$A:$A, 0), 1), "View") -> 
A184: =HYPERLINK("#'Patient Tracking'!" & ADDRESS(MATCH($D184, 'Patient Tracking'!$A:$A, 0), 1), "View") -> 
A185: =HYPERLINK("#'Patient Tracking'!" & ADDRESS(MATCH($D185, 'Patient Tracking'!$A:$A, 0), 1), "View") -> 
A186: =HYPERLINK("#'Patient Tracking'!" & ADDRESS(MATCH($D186, 'Patient Tracking'!$A:$A, 0), 1), "View") -> 
A187: =HYPERLINK("#'Patient Tracking'!" & ADDRESS(MATCH($D187, 'Patient Tracking'!$A:$A, 0), 1), "View") -> 
A188: =HYPERLINK("#'Patient Tracking'!" & ADDRESS(MATCH($D188, 'Patient Tracking'!$A:$A, 0), 1), "View") -> 
A189: =HYPERLINK("#'Patient Tracking'!" & ADDRESS(MATCH($D189, 'Patient Tracking'!$A:$A, 0), 1), "View") -> 
A190: =HYPERLINK("#'Patient Tracking'!" & ADDRESS(MATCH($D190, 'Patient Tracking'!$A:$A, 0), 1), "View") -> 
A191: =HYPERLINK("#'Patient Tracking'!" & ADDRESS(MATCH($D191, 'Patient Tracking'!$A:$A, 0), 1), "View") -> 
A192: =HYPERLINK("#'Patient Tracking'!" & ADDRESS(MATCH($D192, 'Patient Tracking'!$A:$A, 0), 1), "View") -> 
A193: =HYPERLINK("#'Patient Tracking'!" & ADDRESS(MATCH($D193, 'Patient Tracking'!$A:$A, 0), 1), "View") -> 
A194: =HYPERLINK("#'Patient Tracking'!" & ADDRESS(MATCH($D194, 'Patient Tracking'!$A:$A, 0), 1), "View") -> 
A195: =HYPERLINK("#'Patient Tracking'!" & ADDRESS(MATCH($D195, 'Patient Tracking'!$A:$A, 0), 1), "View") -> 
A196: =HYPERLINK("#'Patient Tracking'!" & ADDRESS(MATCH($D196, 'Patient Tracking'!$A:$A, 0), 1), "View") -> 
A197: =HYPERLINK("#'Patient Tracking'!" & ADDRESS(MATCH($D197, 'Patient Tracking'!$A:$A, 0), 1), "View") -> 
A198: =HYPERLINK("#'Patient Tracking'!" & ADDRESS(MATCH($D198, 'Patient Tracking'!$A:$A, 0), 1), "View") -> 
A199: =HYPERLINK("#'Patient Tracking'!" & ADDRESS(MATCH($D199, 'Patient Tracking'!$A:$A, 0), 1), "View") -> 
A200: =HYPERLINK("#'Patient Tracking'!" & ADDRESS(MATCH($D200, 'Patient Tracking'!$A:$A, 0), 1), "View") -> 
... 1402 more rows

Sheet Caseload Overview - BACKUP (hidden)
A1: Click here for Patient Tracking Spreadsheet Template resources | E1: 1) EVERY time this worksheet is used, ensure all other versions of the template are CLOSED, and press "Ctrl+J" to refresh the page. 2) Do NOT use the Caseload Overview if fewer than 2 ACTIVE patients are entered on the Patient Tracking worksheet. 3) Do NOT change the number of rows or columns. If you need to make any changes to the table whatsoever (other than sort and filter), use the de-identified template provided at the link to the left. 4) Be aware that at least one PHQ-9 score must be entered for a given record in order for that record's GAD-7 scores to display properly in the Caseload Overview.
E2: Treatment Status Indicates that the the most recent contact was over 2 months ago | J2: PHQ-9 | N2: GAD-7 A green check mark indicates that a patient's last available GAD-7 score was at target (<8 or 50% decrease from initial score) | R2: Psychiatric Case Review
E3: The most recent contact was over 1 month (30 days) ago The next follow-up contact is past due | J3: The last available PHQ-9 score is at target (<5 or 50% decrease from initial score) The last available PHQ-9 score is more than 30 days old | N3: The last available GAD-7 score is at target (<10 or 50% decrease from initial score) The last available GAD-7 score is more than 30 days old
A4: View Record | B4: Treatment Status | C4: Name | D4: MRN | E4: Date of Initial Assessment | F4: Date of Most Recent Contact | G4: Date Next Follow-up Due | H4: Number of Follow-up Contacts | I4: Weeks in Treatment | J4: Initial PHQ-9 Score | K4: Last Available PHQ-9 Score | L4: % Change in PHQ-9 Score | M4: Date of Last PHQ-9 Score | N4: Initial GAD-7 Score | O4: Last Available GAD-7 Score | P4: % Change in GAD-7 Score | Q4: Date of Last GAD-7 Score | R4: Flag | S4: Most Recent Psychiatric Case Review Note
A5: =HYPERLINK("#'Patient Tracking'!" & ADDRESS(MATCH($D5, 'Patient Tracking'!$A:$A, 0), 1), "View") -> View | B5: Active | C5: Bob Dolittle | D5: 1222 | E5: 2016-09-02 | F5: 2016-10-28 | G5: 2016-11-11 | H5: 3 | I5: 13.85714286 | J5: 22 | K5: 19 | L5: -0.1363636364 | M5: 2016-10-28 | N5: 12 | O5: 10 | P5: -0.1666666667 | Q5: 2016-10-28 | R5: Flag as safety risk | S5: 2016-09-17
A6: =HYPERLINK("#'Patient Tracking'!" & ADDRESS(MATCH($D6, 'Patient Tracking'!$A:$A, 0), 1), "View") -> View | B6: Active | C6: Susan Test | D6: 1678 | E6: 2016-02-20 | F6: 2016-10-30 | G6: 2016-11-13 | H6: 10 | I6: 41.71428571 | J6: 22 | K6: 15 | L6: -0.3181818182 | M6: 2016-10-30 | N6: 18 | O6: 14 | P6: -0.2222222222 | Q6: 2016-10-30 | R6: Flag for discussion & safety risk | S6: 2016-09-15
A7: =HYPERLINK("#'Patient Tracking'!" & ADDRESS(MATCH($D7, 'Patient Tracking'!$A:$A, 0), 1), "View") -> View | B7: Active | C7: Albert Smith | D7: 5555 | E7: 2016-08-05 | F7: 2016-10-22 | G7: 2016-11-19 | H7: 5 | I7: 17.85714286 | J7: 18 | K7: 18 | L7: 0 | M7: 2016-10-22 | N7: 14 | O7: 10 | P7: -0.2857142857 | Q7: 2016-10-22 | R7: Flag for discussion
A8: =HYPERLINK("#'Patient Tracking'!" & ADDRESS(MATCH($D8, 'Patient Tracking'!$A:$A, 0), 1), "View") -> View | B8: Active | C8: Nancy Fake | D8: 6789 | E8: 2016-11-05 | F8: 2016-11-05 | G8: 2016-11-19 | H8: 0 | I8: 4.714285714 | J8: No Score | K8: No Score | N8: No Score | O8: No Score
A9: =HYPERLINK("#'Patient Tracking'!" & ADDRESS(MATCH($D9, 'Patient Tracking'!$A:$A, 0), 1), "View") -> View | B9: Active | C9: Joe Smith | D9: 1234 | E9: 2016-09-01 | F9: 2016-11-08 | G9: 2016-11-22 | H9: 5 | I9: 14 | J9: 15 | K9: 9 | L9: -0.4 | M9: 2016-11-08 | N9: 11 | O9: 7 | P9: -0.3636363636 | Q9: 2016-11-08 | S9: 2016-10-24
A10: =HYPERLINK("#'Patient Tracking'!" & ADDRESS(MATCH($D10, 'Patient Tracking'!$A:$A, 0), 1), "View") -> View | B10: RP | C10: Betty Test | D10: 2500 | E10: 2016-05-15 | F10: 2016-11-15 | G10: 2016-12-15 | H10: 10 | I10: 29.57142857 | J10: 12 | K10: 1 | L10: -0.9166666667 | M10: 2016-11-15 | N10: 9 | O10: 3 | P10: -0.6666666667 | Q10: 2016-11-15
A11: =HYPERLINK("#'Patient Tracking'!" & ADDRESS(MATCH($D11, 'Patient Tracking'!$A:$A, 0), 1), "View") -> View | B11: RP | C11: John Doe | D11: 4321 | E11: 2016-01-15 | F11: 2016-11-16 | G11: 2016-12-16 | H11: 12 | I11: 46.85714286 | J11: 20 | K11: 0 | L11: -1 | M11: 2016-11-16 | N11: 14 | O11: 1 | P11: -0.9285714286 | Q11: 2016-11-16 | S11: 2016-11-01
A12: =HYPERLINK("#'Patient Tracking'!" & ADDRESS(MATCH($D12, 'Patient Tracking'!$A:$A, 0), 1), "View") -> 
A13: =HYPERLINK("#'Patient Tracking'!" & ADDRESS(MATCH($D13, 'Patient Tracking'!$A:$A, 0), 1), "View") -> 
A14: =HYPERLINK("#'Patient Tracking'!" & ADDRESS(MATCH($D14, 'Patient Tracking'!$A:$A, 0), 1), "View") -> 
A15: =HYPERLINK("#'Patient Tracking'!" & ADDRESS(MATCH($D15, 'Patient Tracking'!$A:$A, 0), 1), "View") -> 
A16: =HYPERLINK("#'Patient Tracking'!" & ADDRESS(MATCH($D16, 'Patient Tracking'!$A:$A, 0), 1), "View") -> 
A17: =HYPERLINK("#'Patient Tracking'!" & ADDRESS(MATCH($D17, 'Patient Tracking'!$A:$A, 0), 1), "View") -> 
A18: =HYPERLINK("#'Patient Tracking'!" & ADDRESS(MATCH($D18, 'Patient Tracking'!$A:$A, 0), 1), "View") -> 
A19: =HYPERLINK("#'Patient Tracking'!" & ADDRESS(MATCH($D19, 'Patient Tracking'!$A:$A, 0), 1), "View") -> 
A20: =HYPERLINK("#'Patient Tracking'!" & ADDRESS(MATCH($D20, 'Patient Tracking'!$A:$A, 0), 1), "View") -> 
A21: =HYPERLINK("#'Patient Tracking'!" & ADDRESS(MATCH($D21, 'Patient Tracking'!$A:$A, 0), 1), "View") -> 
A22: =HYPERLINK("#'Patient Tracking'!" & ADDRESS(MATCH($D22, 'Patient Tracking'!$A:$A, 0), 1), "View") -> 
A23: =HYPERLINK("#'Patient Tracking'!" & ADDRESS(MATCH($D23, 'Patient Tracking'!$A:$A, 0), 1), "View") -> 
A24: =HYPERLINK("#'Patient Tracking'!" & ADDRESS(MATCH($D24, 'Patient Tracking'!$A:$A, 0), 1), "View") -> 
A25: =HYPERLINK("#'Patient Tracking'!" & ADDRESS(MATCH($D25, 'Patient Tracking'!$A:$A, 0), 1), "View") -> 
A26: =HYPERLINK("#'Patient Tracking'!" & ADDRESS(MATCH($D26, 'Patient Tracking'!$A:$A, 0), 1), "View") -> 
A27: =HYPERLINK("#'Patient Tracking'!" & ADDRESS(MATCH($D27, 'Patient Tracking'!$A:$A, 0), 1), "View") -> 
A28: =HYPERLINK("#'Patient Tracking'!" & ADDRESS(MATCH($D28, 'Patient Tracking'!$A:$A, 0), 1), "View") -> 
A29: =HYPERLINK("#'Patient Tracking'!" & ADDRESS(MATCH($D29, 'Patient Tracking'!$A:$A, 0), 1), "View") -> 
A30: =HYPERLINK("#'Patient Tracking'!" & ADDRESS(MATCH($D30, 'Patient Tracking'!$A:$A, 0), 1), "View") -> 
A31: =HYPERLINK("#'Patient Tracking'!" & ADDRESS(MATCH($D31, 'Patient Tracking'!$A:$A, 0), 1), "View") -> 
A32: =HYPERLINK("#'Patient Tracking'!" & ADDRESS(MATCH($D32, 'Patient Tracking'!$A:$A, 0), 1), "View") -> 
A33: =HYPERLINK("#'Patient Tracking'!" & ADDRESS(MATCH($D33, 'Patient Tracking'!$A:$A, 0), 1), "View") -> 
A34: =HYPERLINK("#'Patient Tracking'!" & ADDRESS(MATCH($D34, 'Patient Tracking'!$A:$A, 0), 1), "View") -> 
A35: =HYPERLINK("#'Patient Tracking'!" & ADDRESS(MATCH($D35, 'Patient Tracking'!$A:$A, 0), 1), "View") -> 
A36: =HYPERLINK("#'Patient Tracking'!" & ADDRESS(MATCH($D36, 'Patient Tracking'!$A:$A, 0), 1), "View") -> 
A37: =HYPERLINK("#'Patient Tracking'!" & ADDRESS(MATCH($D37, 'Patient Tracking'!$A:$A, 0), 1), "View") -> 
A38: =HYPERLINK("#'Patient Tracking'!" & ADDRESS(MATCH($D38, 'Patient Tracking'!$A:$A, 0), 1), "View") -> 
A39: =HYPERLINK("#'Patient Tracking'!" & ADDRESS(MATCH($D39, 'Patient Tracking'!$A:$A, 0), 1), "View") -> 
A40: =HYPERLINK("#'Patient Tracking'!" & ADDRESS(MATCH($D40, 'Patient Tracking'!$A:$A, 0), 1), "View") -> 
A41: =HYPERLINK("#'Patient Tracking'!" & ADDRESS(MATCH($D41, 'Patient Tracking'!$A:$A, 0), 1), "View") -> 
A42: =HYPERLINK("#'Patient Tracking'!" & ADDRESS(MATCH($D42, 'Patient Tracking'!$A:$A, 0), 1), "View") -> 
A43: =HYPERLINK("#'Patient Tracking'!" & ADDRESS(MATCH($D43, 'Patient Tracking'!$A:$A, 0), 1), "View") -> 
A44: =HYPERLINK("#'Patient Tracking'!" & ADDRESS(MATCH($D44, 'Patient Tracking'!$A:$A, 0), 1), "View") -> 
A45: =HYPERLINK("#'Patient Tracking'!" & ADDRESS(MATCH($D45, 'Patient Tracking'!$A:$A, 0), 1), "View") -> 
A46: =HYPERLINK("#'Patient Tracking'!" & ADDRESS(MATCH($D46, 'Patient Tracking'!$A:$A, 0), 1), "View") -> 
A47: =HYPERLINK("#'Patient Tracking'!" & ADDRESS(MATCH($D47, 'Patient Tracking'!$A:$A, 0), 1), "View") -> 
A48: =HYPERLINK("#'Patient Tracking'!" & ADDRESS(MATCH($D48, 'Patient Tracking'!$A:$A, 0), 1), "View") -> 
A49: =HYPERLINK("#'Patient Tracking'!" & ADDRESS(MATCH($D49, 'Patient Tracking'!$A:$A, 0), 1), "View") -> 
A50: =HYPERLINK("#'Patient Tracking'!" & ADDRESS(MATCH($D50, 'Patient Tracking'!$A:$A, 0), 1), "View") -> 
A51: =HYPERLINK("#'Patient Tracking'!" & ADDRESS(MATCH($D51, 'Patient Tracking'!$A:$A, 0), 1), "View") -> 
A52: =HYPERLINK("#'Patient Tracking'!" & ADDRESS(MATCH($D52, 'Patient Tracking'!$A:$A, 0), 1), "View") -> 
A53: =HYPERLINK("#'Patient Tracking'!" & ADDRESS(MATCH($D53, 'Patient Tracking'!$A:$A, 0), 1), "View") -> 
A54: =HYPERLINK("#'Patient Tracking'!" & ADDRESS(MATCH($D54, 'Patient Tracking'!$A:$A, 0), 1), "View") -> 
A55: =HYPERLINK("#'Patient Tracking'!" & ADDRESS(MATCH($D55, 'Patient Tracking'!$A:$A, 0), 1), "View") -> 
A56: =HYPERLINK("#'Patient Tracking'!" & ADDRESS(MATCH($D56, 'Patient Tracking'!$A:$A, 0), 1), "View") -> 
A57: =HYPERLINK("#'Patient Tracking'!" & ADDRESS(MATCH($D57, 'Patient Tracking'!$A:$A, 0), 1), "View") -> 
A58: =HYPERLINK("#'Patient Tracking'!" & ADDRESS(MATCH($D58, 'Patient Tracking'!$A:$A, 0), 1), "View") -> 
A59: =HYPERLINK("#'Patient Tracking'!" & ADDRESS(MATCH($D59, 'Patient Tracking'!$A:$A, 0), 1), "View") -> 
A60: =HYPERLINK("#'Patient Tracking'!" & ADDRESS(MATCH($D60, 'Patient Tracking'!$A:$A, 0), 1), "View") -> 
A61: =HYPERLINK("#'Patient Tracking'!" & ADDRESS(MATCH($D61, 'Patient Tracking'!$A:$A, 0), 1), "View") -> 
A62: =HYPERLINK("#'Patient Tracking'!" & ADDRESS(MATCH($D62, 'Patient Tracking'!$A:$A, 0), 1), "View") -> 
A63: =HYPERLINK("#'Patient Tracking'!" & ADDRESS(MATCH($D63, 'Patient Tracking'!$A:$A, 0), 1), "View") -> 
A64: =HYPERLINK("#'Patient Tracking'!" & ADDRESS(MATCH($D64, 'Patient Tracking'!$A:$A, 0), 1), "View") -> 
A65: =HYPERLINK("#'Patient Tracking'!" & ADDRESS(MATCH($D65, 'Patient Tracking'!$A:$A, 0), 1), "View") -> 
A66: =HYPERLINK("#'Patient Tracking'!" & ADDRESS(MATCH($D66, 'Patient Tracking'!$A:$A, 0), 1), "View") -> 
A67: =HYPERLINK("#'Patient Tracking'!" & ADDRESS(MATCH($D67, 'Patient Tracking'!$A:$A, 0), 1), "View") -> 
A68: =HYPERLINK("#'Patient Tracking'!" & ADDRESS(MATCH($D68, 'Patient Tracking'!$A:$A, 0), 1), "View") -> 
A69: =HYPERLINK("#'Patient Tracking'!" & ADDRESS(MATCH($D69, 'Patient Tracking'!$A:$A, 0), 1), "View") -> 
A70: =HYPERLINK("#'Patient Tracking'!" & ADDRESS(MATCH($D70, 'Patient Tracking'!$A:$A, 0), 1), "View") -> 
A71: =HYPERLINK("#'Patient Tracking'!" & ADDRESS(MATCH($D71, 'Patient Tracking'!$A:$A, 0), 1), "View") -> 
A72: =HYPERLINK("#'Patient Tracking'!" & ADDRESS(MATCH($D72, 'Patient Tracking'!$A:$A, 0), 1), "View") -> 
A73: =HYPERLINK("#'Patient Tracking'!" & ADDRESS(MATCH($D73, 'Patient Tracking'!$A:$A, 0), 1), "View") -> 
A74: =HYPERLINK("#'Patient Tracking'!" & ADDRESS(MATCH($D74, 'Patient Tracking'!$A:$A, 0), 1), "View") -> 
A75: =HYPERLINK("#'Patient Tracking'!" & ADDRESS(MATCH($D75, 'Patient Tracking'!$A:$A, 0), 1), "View") -> 
A76: =HYPERLINK("#'Patient Tracking'!" & ADDRESS(MATCH($D76, 'Patient Tracking'!$A:$A, 0), 1), "View") -> 
A77: =HYPERLINK("#'Patient Tracking'!" & ADDRESS(MATCH($D77, 'Patient Tracking'!$A:$A, 0), 1), "View") -> 
A78: =HYPERLINK("#'Patient Tracking'!" & ADDRESS(MATCH($D78, 'Patient Tracking'!$A:$A, 0), 1), "View") -> 
A79: =HYPERLINK("#'Patient Tracking'!" & ADDRESS(MATCH($D79, 'Patient Tracking'!$A:$A, 0), 1), "View") -> 
A80: =HYPERLINK("#'Patient Tracking'!" & ADDRESS(MATCH($D80, 'Patient Tracking'!$A:$A, 0), 1), "View") -> 
